Workbook

Sheet がんの予防
E2: 番号 | H2: 個別施策 | Q2: 番号 | T2: 中間アウトカム | AC2: 番号 | AF2: 分野アウトカム
E4: ①生活習慣（喫煙）
E5: 予D-0101 | I5: =VLOOKUP(E5,INDEXTBL!$A$1:$N$1216,2,FALSE) -> 喫煙者の行動に影響する人達から、喫煙者に対して、タバコと禁煙に関する正しい知識を伝える | K5: 沖縄県 | L5: 全国 | M5: 最良値 （都道府県） | Q5: 予B-0101 | U5: =VLOOKUP(Q5,INDEXTBL!$A$1:$N$1216,2,FALSE) -> 喫煙率と受動喫煙が減少できている | W5: 沖縄県 | X5: 全国 | Y5: 最良値 （都道府県） | AC5: 予A-0101 | AG5: =VLOOKUP(AC5,INDEXTBL!$A$1:$N$1216,2,FALSE) -> がん種別年齢調整死亡率（75歳未満、全年齢）が減少できている | AI5: 沖縄県 | AJ5: 全国 | AK5: 最良値 （都道府県）
H6: 予D-010101 | I6: =VLOOKUP(H6,INDEXTBL!$C$1:$N$1216,3,FALSE) -> 禁煙希望割合（男）（％） | J6: =VLOOKUP($H6,INDEXTBL!$C$1:$O$1216,5,FALSE) -> EX023 | K6: =IFERROR(HLOOKUP(J6,DATA!$C$2:$CAP$14,8,FALSE),"NA") -> 0.314 | L6: =IFERROR(HLOOKUP(J6,DATA!$C$2:$CAP$14,7,FALSE),"NA") -> 0.246 | M6: =IFERROR(TEXT(_xlfn.AGGREGATE(5,7,OFFSET(DATA!$A$1,14,MATCH(J6,DATA!$A$2:$CAP$2,0)-1,47,1))*100,"0.0")&"%" &" （"& $N6 & "）","NA") -> NA | N6: =INDEX(DATA!$C$15:$C$61,MATCH(_xlfn.AGGREGATE(5,7,OFFSET(DATA!$A$1,14,MATCH(J6,DATA!$A$2:$CAP$2,0)-1,47,1)),OFFSET(DATA!$A$1,14,MATCH(J6,DATA!$A$2:$CAP$2,0)-1,47,1),0)) ->  | R6: グラフ | T6: 予B-010101 | U6: =IF($C$2="乳","-",VLOOKUP(T6,INDEXTBL!$C$1:$N$1216,3,FALSE)) -> 20歳以上の者の喫煙率（男）（％） | V6: =VLOOKUP(T6,INDEXTBL!$C$1:$N$1216,5,FALSE) -> 全44 | W6: =IFERROR(TEXT(HLOOKUP("全44",DATA!$C$2:$CAP$14,8,FALSE),"0.0")&"%","NA") -> 29.5% | X6: =IFERROR(TEXT(HLOOKUP("全44",DATA!$C$2:$CAP$14,7,FALSE),"0.0")&"%","NA") -> 28.8% | Y6: =IFERROR(TEXT(_xlfn.AGGREGATE(5,7,OFFSET(DATA!$A$1,14,MATCH("全44",DATA!$A$2:$CAP$2,0)-1,47,1)),"0.0")&"%" &" （"& $Z6 & "）","NA") -> 24.3% （京都府） | Z6: =INDEX(DATA!$C$15:$C$61,MATCH(_xlfn.AGGREGATE(5,7,OFFSET(DATA!$A$1,14,MATCH("全44",DATA!$A$2:$CAP$2,0)-1,47,1)),OFFSET(DATA!$A$1,14,MATCH("全44",DATA!$A$2:$CAP$2,0)-1,47,1),0)) -> 京都府 | AD6: グラフ | AF6: 予A-010101 | AG6: =VLOOKUP(AF6,INDEXTBL!$C$1:$N$1216,3,FALSE) -> 大腸がん死亡率（男）（75歳未満、年齢調整、人口10万対） | AH6: =VLOOKUP(AF6,INDEXTBL!$C$1:$N$1216,6,FALSE) -> 大腸13 | AI6: =IFERROR(HLOOKUP(AH6,DATA!$C$2:$CAP$14,8,FALSE),"NA") -> 14.37041694 | AJ6: =IFERROR(HLOOKUP(AH6,DATA!$C$2:$CAP$14,7,FALSE),"NA") -> 12.37327456 | AK6: =IFERROR(TEXT(_xlfn.AGGREGATE(5,7,OFFSET(DATA!$A$1,14,MATCH(AH6,DATA!$A$2:$CAP$2,0)-1,47,1)),"0.0") &" （"& AL6 & "）","NA") -> 9.2 （滋賀県） | AL6: =INDEX(DATA!$C$15:$C$61,MATCH(_xlfn.AGGREGATE(5,7,OFFSET(DATA!$A$1,14,MATCH(AH6,DATA!$A$2:$CAP$2,0)-1,47,1)),OFFSET(DATA!$A$1,14,MATCH(AH6,DATA!$A$2:$CAP$2,0)-1,47,1),0)) -> 滋賀県
H7: 予D-010102 | I7: =VLOOKUP(H7,INDEXTBL!$C$1:$N$1216,3,FALSE) -> 禁煙希望割合（女）（％） | J7: =VLOOKUP($H7,INDEXTBL!$C$1:$O$1216,5,FALSE) -> EX024 | K7: =IFERROR(HLOOKUP(J7,DATA!$C$2:$CAP$14,8,FALSE),"NA") -> 0.571 | L7: =IFERROR(HLOOKUP(J7,DATA!$C$2:$CAP$14,7,FALSE),"NA") -> 0.309 | M7: =IFERROR(TEXT(_xlfn.AGGREGATE(5,7,OFFSET(DATA!$A$1,14,MATCH(J7,DATA!$A$2:$CAP$2,0)-1,47,1))*100,"0.0")&"%" &" （"& $N7 & "）","NA") -> NA | N7: =INDEX(DATA!$C$15:$C$61,MATCH(_xlfn.AGGREGATE(5,7,OFFSET(DATA!$A$1,14,MATCH(J7,DATA!$A$2:$CAP$2,0)-1,47,1)),OFFSET(DATA!$A$1,14,MATCH(J7,DATA!$A$2:$CAP$2,0)-1,47,1),0)) ->  | R7: グラフ | T7: 予B-010102 | U7: =VLOOKUP(T7,INDEXTBL!$C$1:$N$1216,3,FALSE) -> 20歳以上の者の喫煙率（女）（％） | V7: =VLOOKUP(T7,INDEXTBL!$C$1:$N$1216,5,FALSE) -> 全45 | W7: =IFERROR(TEXT(HLOOKUP("全45",DATA!$C$2:$CAP$14,8,FALSE),"0.0")&"%","NA") -> 8.8% | X7: =IFERROR(TEXT(HLOOKUP("全45",DATA!$C$2:$CAP$14,7,FALSE),"0.0")&"%","NA") -> 8.8% | Y7: =IFERROR(TEXT(_xlfn.AGGREGATE(5,7,OFFSET(DATA!$A$1,14,MATCH("全45",DATA!$A$2:$CAP$2,0)-1,47,1)),"0.0")&"%" &" （"& $Z7 & "）","NA") -> 5.3% （島根県） | Z7: =INDEX(DATA!$C$15:$C$61,MATCH(_xlfn.AGGREGATE(5,7,OFFSET(DATA!$A$1,14,MATCH("全45",DATA!$A$2:$CAP$2,0)-1,47,1)),OFFSET(DATA!$A$1,14,MATCH("全45",DATA!$A$2:$CAP$2,0)-1,47,1),0)) -> 島根県 | AD7: グラフ | AF7: 予A-010102 | AG7: =VLOOKUP(AF7,INDEXTBL!$C$1:$N$1216,3,FALSE) -> 大腸がん死亡率（女）（75歳未満、年齢調整、人口10万対） | AH7: =VLOOKUP(AF7,INDEXTBL!$C$1:$N$1216,6,FALSE) -> 大腸14 | AI7: =IFERROR(HLOOKUP(AH7,DATA!$C$2:$CAP$14,8,FALSE),"NA") -> 8.184990088 | AJ7: =IFERROR(HLOOKUP(AH7,DATA!$C$2:$CAP$14,7,FALSE),"NA") -> 7.174747799 | AK7: =IFERROR(TEXT(_xlfn.AGGREGATE(5,7,OFFSET(DATA!$A$1,14,MATCH(AH7,DATA!$A$2:$CAP$2,0)-1,47,1)),"0.0") &" （"& AL7 & "）","NA") -> 5.0 （岡山県） | AL7: =INDEX(DATA!$C$15:$C$61,MATCH(_xlfn.AGGREGATE(5,7,OFFSET(DATA!$A$1,14,MATCH(AH7,DATA!$A$2:$CAP$2,0)-1,47,1)),OFFSET(DATA!$A$1,14,MATCH(AH7,DATA!$A$2:$CAP$2,0)-1,47,1),0)) -> 岡山県
H8: 予D-010103 | I8: =VLOOKUP(H8,INDEXTBL!$C$1:$N$1216,3,FALSE) -> 喫煙の健康影響について正しい知識を持つ人の割合（％） | K8: =IFERROR(HLOOKUP(J8,DATA!$C$2:$CAP$14,8,FALSE),"NA") -> NA | L8: =IFERROR(HLOOKUP(J8,DATA!$C$2:$CAP$14,7,FALSE),"NA") -> NA | M8: =IFERROR(TEXT(_xlfn.AGGREGATE(5,7,OFFSET(DATA!$A$1,14,MATCH(J8,DATA!$A$2:$CAP$2,0)-1,47,1))*100,"0.0")&"%" &" （"& $N8 & "）","NA") -> NA | N8: =INDEX(DATA!$C$15:$C$61,MATCH(_xlfn.AGGREGATE(5,7,OFFSET(DATA!$A$1,14,MATCH(J8,DATA!$A$2:$CAP$2,0)-1,47,1)),OFFSET(DATA!$A$1,14,MATCH(J8,DATA!$A$2:$CAP$2,0)-1,47,1),0)) ->  | T8: 予B-010103 | U8: =VLOOKUP(T8,INDEXTBL!$C$1:$N$1216,3,FALSE) -> 中学生・高校生の喫煙者の割合 中学生（計）（％） | V8: =VLOOKUP(T8,INDEXTBL!$C$1:$N$1216,5,FALSE) -> EX008 | W8: =IFERROR(HLOOKUP("EX008",DATA!$C$2:$CAP$14,8,FALSE),"NA") -> NA | X8: =IFERROR(HLOOKUP("EX008",DATA!$C$2:$CAP$14,7,FALSE),"NA") -> 0.002 | Y8: =IFERROR(TEXT(_xlfn.AGGREGATE(5,7,OFFSET(DATA!$A$1,14,MATCH("EX008",DATA!$A$2:$AYN$2,0)-1,47,1))*100,"0.0")&"%" &" （"& $Z8 & "）","NA") -> NA | Z8: =INDEX(DATA!$C$15:$C$61,MATCH(_xlfn.AGGREGATE(5,7,OFFSET(DATA!$A$1,14,MATCH("EX008",DATA!$A$2:$AYN$2,0)-1,47,1)),OFFSET(DATA!$A$1,14,MATCH("EX008",DATA!$A$2:$CAP$2,0)-1,47,1),0)) ->  | AC8: 予A-0102 | AG8: =VLOOKUP(AC8,INDEXTBL!$A$1:$N$1216,2,FALSE) -> がん種別罹患率が減少できている | AI8: 沖縄県 | AJ8: 全国 | AK8: 最良値 （都道府県）
H9: 予D-010104 | I9: =VLOOKUP(H9,INDEXTBL!$C$1:$N$1216,3,FALSE) -> 地域を対象として普及啓発に努めている拠点病院等の割合（％） | J9: EX174 | K9: =IFERROR(HLOOKUP(J9,DATA!$C$2:$CAP$14,8,FALSE),"NA") -> 0.33 | L9: =IFERROR(HLOOKUP(J9,DATA!$C$2:$CAP$14,7,FALSE),"NA") -> NA | M9: =IFERROR(TEXT(_xlfn.AGGREGATE(5,7,OFFSET(DATA!$A$1,14,MATCH(J9,DATA!$A$2:$CAP$2,0)-1,47,1))*100,"0.0")&"%" &" （"& $N9 & "）","NA") -> NA | N9: =INDEX(DATA!$C$15:$C$61,MATCH(_xlfn.AGGREGATE(5,7,OFFSET(DATA!$A$1,14,MATCH(J9,DATA!$A$2:$CAP$2,0)-1,47,1)),OFFSET(DATA!$A$1,14,MATCH(J9,DATA!$A$2:$CAP$2,0)-1,47,1),0)) ->  | T9: 予B-010104 | U9: =VLOOKUP(T9,INDEXTBL!$C$1:$N$1216,3,FALSE) -> 中学生・高校生の喫煙者の割合 高校生（男）（％） | V9: =VLOOKUP(T9,INDEXTBL!$C$1:$N$1216,5,FALSE) -> EX009 | W9: =IFERROR(HLOOKUP("EX009",DATA!$C$2:$CAP$14,8,FALSE),"NA") -> 0.025 | X9: =IFERROR(HLOOKUP("EX009",DATA!$C$2:$CAP$14,7,FALSE),"NA") -> NA | Y9: =IFERROR(TEXT(_xlfn.AGGREGATE(5,7,OFFSET(DATA!$A$1,14,MATCH("EX009",DATA!$A$2:$CAP$2,0)-1,47,1))*100,"0.0")&"%" &" （"& $Z9 & "）","NA") -> NA | Z9: =INDEX(DATA!$C$15:$C$61,MATCH(_xlfn.AGGREGATE(5,7,OFFSET(DATA!$A$1,14,MATCH("EX009",DATA!$A$2:$CAP$2,0)-1,47,1)),OFFSET(DATA!$A$1,14,MATCH("EX009",DATA!$A$2:$CAP$2,0)-1,47,1),0)) ->  | AD9: グラフ | AF9: 予A-020101 | AG9: =VLOOKUP(AF9,INDEXTBL!$C$1:$N$1216,3,FALSE) -> 大腸がん罹患率（男）（年齢調整、人口10万人対） | AH9: =VLOOKUP(AF9,INDEXTBL!$C$1:$N$1216,6,FALSE) -> 大腸21 | AI9: =IFERROR(HLOOKUP(AH9,DATA!$C$2:$CAP$14,8,FALSE),"NA") -> 77.50963446 | AJ9: =IFERROR(HLOOKUP(AH9,DATA!$C$2:$CAP$14,7,FALSE),"NA") -> 68.2488601 | AK9: =IFERROR(TEXT(_xlfn.AGGREGATE(5,7,OFFSET(DATA!$A$1,14,MATCH(AH9,DATA!$A$2:$CAP$2,0)-1,47,1)),"0.0") &" （"& AL9 & "）","NA") -> 57.9 （大分県） | AL9: =INDEX(DATA!$C$15:$C$61,MATCH(_xlfn.AGGREGATE(5,7,OFFSET(DATA!$A$1,14,MATCH(AH9,DATA!$A$2:$CAP$2,0)-1,47,1)),OFFSET(DATA!$A$1,14,MATCH(AH9,DATA!$A$2:$CAP$2,0)-1,47,1),0)) -> 大分県
E10: 予D-0102 | I10: =VLOOKUP(E10,INDEXTBL!$A$1:$N$1216,2,FALSE) -> 禁煙希望者に禁煙してもらう | K10: 沖縄県 | L10: 全国 | M10: 最良値 （都道府県） | T10: 予B-010105 | U10: =VLOOKUP(T10,INDEXTBL!$C$1:$N$1216,3,FALSE) -> 中学生・高校生の喫煙者の割合 高校生（女）（％） | V10: =VLOOKUP(T10,INDEXTBL!$C$1:$N$1216,5,FALSE) -> EX010 | W10: =IFERROR(HLOOKUP("EX010",DATA!$C$2:$CAP$14,8,FALSE),"NA") -> 0.008 | X10: =IFERROR(HLOOKUP("EX010",DATA!$C$2:$CAP$14,7,FALSE),"NA") -> NA | Y10: =IFERROR(TEXT(_xlfn.AGGREGATE(5,7,OFFSET(DATA!$A$1,14,MATCH("EX010",DATA!$A$2:$AYN$2,0)-1,47,1))*100,"0.0")&"%" &" （"& $Z10 & "）","NA") -> NA | Z10: =INDEX(DATA!$C$15:$C$61,MATCH(_xlfn.AGGREGATE(5,7,OFFSET(DATA!$A$1,14,MATCH("EX010",DATA!$A$2:$AYN$2,0)-1,47,1)),OFFSET(DATA!$A$1,14,MATCH("EX010",DATA!$A$2:$CAP$2,0)-1,47,1),0)) ->  | AD10: グラフ | AF10: 予A-020102 | AG10: =VLOOKUP(AF10,INDEXTBL!$C$1:$N$1216,3,FALSE) -> 大腸がん罹患率（女）（年齢調整、人口10万人対） | AH10: =VLOOKUP(AF10,INDEXTBL!$C$1:$N$1216,6,FALSE) -> 大腸22 | AI10: =IFERROR(HLOOKUP(AH10,DATA!$C$2:$CAP$14,8,FALSE),"NA") -> 44.80835412 | AJ10: =IFERROR(HLOOKUP(AH10,DATA!$C$2:$CAP$14,7,FALSE),"NA") -> 42.13255574 | AK10: =IFERROR(TEXT(_xlfn.AGGREGATE(5,7,OFFSET(DATA!$A$1,14,MATCH(AH10,DATA!$A$2:$CAP$2,0)-1,47,1)),"0.0") &" （"& AL10 & "）","NA") -> 35.1 （熊本県） | AL10: =INDEX(DATA!$C$15:$C$61,MATCH(_xlfn.AGGREGATE(5,7,OFFSET(DATA!$A$1,14,MATCH(AH10,DATA!$A$2:$CAP$2,0)-1,47,1)),OFFSET(DATA!$A$1,14,MATCH(AH10,DATA!$A$2:$CAP$2,0)-1,47,1),0)) -> 熊本県
H11: 予D-010201 | I11: =VLOOKUP(H11,INDEXTBL!$C$1:$N$1216,3,FALSE) -> （検討中） | J11: =VLOOKUP($H11,INDEXTBL!$C$1:$O$1216,10,FALSE) -> 0 | K11: =IFERROR(HLOOKUP(J11,DATA!$C$2:$CAP$14,8,FALSE),"NA") -> NA | L11: =IFERROR(HLOOKUP(J11,DATA!$C$2:$CAP$14,7,FALSE),"NA") -> NA | M11: =IFERROR(TEXT(_xlfn.AGGREGATE(4,7,OFFSET(DATA!$A$1,14,MATCH(J11,DATA!$A$2:$CAP$2,0)-1,47,1)),"0.0") &" （"& N11 & "）","NA") -> NA | N11: =INDEX(DATA!$C$15:$C$61,MATCH(_xlfn.AGGREGATE(4,7,OFFSET(DATA!$A$1,14,MATCH(J11,DATA!$A$2:$CAP$2,0)-1,47,1)),OFFSET(DATA!$A$1,14,MATCH(J11,DATA!$A$2:$CAP$2,0)-1,47,1),0)) ->  | T11: 予B-010106 | U11: =VLOOKUP(T11,INDEXTBL!$C$1:$N$1216,3,FALSE) -> 妊婦の喫煙率（％） | V11: =VLOOKUP(T11,INDEXTBL!$C$1:$N$1216,5,FALSE) -> EX011 | W11: =IFERROR(HLOOKUP("EX011",DATA!$C$2:$CAP$14,8,FALSE),"NA") -> 0.021 | X11: =IFERROR(HLOOKUP("EX011",DATA!$C$2:$CAP$14,7,FALSE),"NA") -> 0.019 | Y11: =IFERROR(TEXT(_xlfn.AGGREGATE(5,7,OFFSET(DATA!$A$1,14,MATCH("EX011",DATA!$A$2:$AYN$2,0)-1,47,1))*100,"0.0")&"%" &" （"& $Z11 & "）","NA") -> 0.8% （山形県） | Z11: =INDEX(DATA!$C$15:$C$61,MATCH(_xlfn.AGGREGATE(5,7,OFFSET(DATA!$A$1,14,MATCH("EX011",DATA!$A$2:$AYN$2,0)-1,47,1)),OFFSET(DATA!$A$1,14,MATCH("EX011",DATA!$A$2:$CAP$2,0)-1,47,1),0)) -> 山形県
H12: 予D-010202 | I12: =VLOOKUP(H12,INDEXTBL!$C$1:$N$1216,3,FALSE) -> （検討中） | J12: =VLOOKUP($H12,INDEXTBL!$C$1:$O$1216,10,FALSE) -> 0 | K12: =IFERROR(HLOOKUP(J12,DATA!$C$2:$CAP$14,8,FALSE),"NA") -> NA | L12: =IFERROR(HLOOKUP(J12,DATA!$C$2:$CAP$14,7,FALSE),"NA") -> NA | M12: =IFERROR(TEXT(_xlfn.AGGREGATE(4,7,OFFSET(DATA!$A$1,14,MATCH(J12,DATA!$A$2:$CAP$2,0)-1,47,1)),"0.0") &" （"& N12 & "）","NA") -> NA | N12: =INDEX(DATA!$C$15:$C$61,MATCH(_xlfn.AGGREGATE(4,7,OFFSET(DATA!$A$1,14,MATCH(J12,DATA!$A$2:$CAP$2,0)-1,47,1)),OFFSET(DATA!$A$1,14,MATCH(J12,DATA!$A$2:$CAP$2,0)-1,47,1),0)) ->  | R12: グラフ | T12: 予B-010107 | U12: =VLOOKUP(T12,INDEXTBL!$C$1:$N$1216,3,FALSE) -> （NDB-SCR）ニコチン依存症管理料１（初回） 外来 | V12: =VLOOKUP(T12,INDEXTBL!$C$1:$N$1216,10,FALSE) -> N7 | W12: =IFERROR(HLOOKUP(VLOOKUP($T12,INDEXTBL!$C$1:$O$1216,10,FALSE),DATA!$C$2:$CAP$14,8,FALSE),"NA") -> 161.2 | X12: =IFERROR(HLOOKUP(VLOOKUP($T12,INDEXTBL!$C$1:$O$1216,10,FALSE),DATA!$C$2:$CAP$14,7,FALSE),"NA") -> 100 | Y12: =IFERROR(TEXT(_xlfn.AGGREGATE(4,7,OFFSET(DATA!$A$1,14,MATCH(VLOOKUP($T12,INDEXTBL!$C$1:$N$1216,10,FALSE),DATA!$A$2:$CAP$2,0)-1,47,1)),"#.#") &" （"& Z12 & "）","NA") -> 184.7 （鳥取県） | Z12: =INDEX(DATA!$C$15:$C$61,MATCH(_xlfn.AGGREGATE(4,7,OFFSET(DATA!$A$1,14,MATCH(VLOOKUP($T12,INDEXTBL!$C$1:$N$1216,10,FALSE),DATA!$A$2:$CAP$2,0)-1,47,1)),OFFSET(DATA!$A$1,14,MATCH(VLOOKUP($T12,INDEXTBL!$C$1:$N$1216,10,FALSE),DATA!$A$2:$CAP$2,0)-1,47,1),0)) -> 鳥取県
H13: 予D-010203 | I13: =VLOOKUP(H13,INDEXTBL!$C$1:$N$1216,3,FALSE) -> （検討中） | J13: =VLOOKUP($H13,INDEXTBL!$C$1:$O$1216,10,FALSE) -> 0 | K13: =IFERROR(HLOOKUP(J13,DATA!$C$2:$CAP$14,8,FALSE),"NA") -> NA | L13: =IFERROR(HLOOKUP(J13,DATA!$C$2:$CAP$14,7,FALSE),"NA") -> NA | M13: =IFERROR(TEXT(_xlfn.AGGREGATE(4,7,OFFSET(DATA!$A$1,14,MATCH(J13,DATA!$A$2:$CAP$2,0)-1,47,1)),"0.0") &" （"& N13 & "）","NA") -> NA | N13: =INDEX(DATA!$C$15:$C$61,MATCH(_xlfn.AGGREGATE(4,7,OFFSET(DATA!$A$1,14,MATCH(J13,DATA!$A$2:$CAP$2,0)-1,47,1)),OFFSET(DATA!$A$1,14,MATCH(J13,DATA!$A$2:$CAP$2,0)-1,47,1),0)) ->  | R13: グラフ | T13: 予B-010108 | U13: =VLOOKUP(T13,INDEXTBL!$C$1:$N$1216,3,FALSE) -> （NDB-SCR）ニコチン依存症管理料１（２回目から４回目まで） 外来 | V13: =VLOOKUP(T13,INDEXTBL!$C$1:$N$1216,10,FALSE) -> N8 | W13: =IFERROR(HLOOKUP(VLOOKUP($T13,INDEXTBL!$C$1:$O$1216,10,FALSE),DATA!$C$2:$CAP$14,8,FALSE),"NA") -> 166.2 | X13: =IFERROR(HLOOKUP(VLOOKUP($T13,INDEXTBL!$C$1:$O$1216,10,FALSE),DATA!$C$2:$CAP$14,7,FALSE),"NA") -> 100 | Y13: =IFERROR(TEXT(_xlfn.AGGREGATE(4,7,OFFSET(DATA!$A$1,14,MATCH(VLOOKUP($T13,INDEXTBL!$C$1:$N$1216,10,FALSE),DATA!$A$2:$CAP$2,0)-1,47,1)),"#.#") &" （"& Z13 & "）","NA") -> 173.4 （鳥取県） | Z13: =INDEX(DATA!$C$15:$C$61,MATCH(_xlfn.AGGREGATE(4,7,OFFSET(DATA!$A$1,14,MATCH(VLOOKUP($T13,INDEXTBL!$C$1:$N$1216,10,FALSE),DATA!$A$2:$CAP$2,0)-1,47,1)),OFFSET(DATA!$A$1,14,MATCH(VLOOKUP($T13,INDEXTBL!$C$1:$N$1216,10,FALSE),DATA!$A$2:$CAP$2,0)-1,47,1),0)) -> 鳥取県
R14: グラフ | T14: 予B-010109 | U14: =VLOOKUP(T14,INDEXTBL!$C$1:$N$1216,3,FALSE) -> （NDB-SCR）ニコチン依存症管理料１（５回目） 外来 | V14: =VLOOKUP(T14,INDEXTBL!$C$1:$N$1216,10,FALSE) -> N9 | W14: =IFERROR(HLOOKUP(VLOOKUP($T14,INDEXTBL!$C$1:$O$1216,10,FALSE),DATA!$C$2:$CAP$14,8,FALSE),"NA") -> 170 | X14: =IFERROR(HLOOKUP(VLOOKUP($T14,INDEXTBL!$C$1:$O$1216,10,FALSE),DATA!$C$2:$CAP$14,7,FALSE),"NA") -> 100 | Y14: =IFERROR(TEXT(_xlfn.AGGREGATE(4,7,OFFSET(DATA!$A$1,14,MATCH(VLOOKUP($T14,INDEXTBL!$C$1:$N$1216,10,FALSE),DATA!$A$2:$CAP$2,0)-1,47,1)),"#.#") &" （"& Z14 & "）","NA") -> 185.6 （島根県） | Z14: =INDEX(DATA!$C$15:$C$61,MATCH(_xlfn.AGGREGATE(4,7,OFFSET(DATA!$A$1,14,MATCH(VLOOKUP($T14,INDEXTBL!$C$1:$N$1216,10,FALSE),DATA!$A$2:$CAP$2,0)-1,47,1)),OFFSET(DATA!$A$1,14,MATCH(VLOOKUP($T14,INDEXTBL!$C$1:$N$1216,10,FALSE),DATA!$A$2:$CAP$2,0)-1,47,1),0)) -> 島根県
E15: ②生活習慣（飲酒）
E16: 予D-0201 | I16: =VLOOKUP(E16,INDEXTBL!$A$1:$N$1216,2,FALSE) -> ハイリスク飲酒者に対する簡易介入を行う | K16: 沖縄県 | L16: 全国 | M16: 最良値 （都道府県） | Q16: 予B-0201 | U16: =VLOOKUP(Q16,INDEXTBL!$A$1:$N$1216,2,FALSE) -> 生活習慣病のリスクを高める量を飲酒している者が減少できている | W16: 沖縄県 | X16: 全国 | Y16: 最良値 （都道府県）
H17: 予D-020101 | I17: =VLOOKUP(H17,INDEXTBL!$C$1:$N$1216,3,FALSE) -> （検討中） | J17: =VLOOKUP(H17,INDEXTBL!$C$1:$N$1216,5,FALSE) -> 0 | K17: =IFERROR(HLOOKUP(J17,DATA!$C$2:$CAP$14,8,FALSE),"NA") -> NA | L17: =IFERROR(HLOOKUP(J17,DATA!$C$2:$CAP$14,7,FALSE),"NA") -> NA | M17: =IFERROR(TEXT(_xlfn.AGGREGATE(4,7,OFFSET(DATA!$A$1,14,MATCH(J17,DATA!$A$2:$CAP$2,0)-1,47,1)),"0.0") &" （"& N17 & "）","NA") -> NA | N17: =INDEX(DATA!$C$15:$C$61,MATCH(_xlfn.AGGREGATE(4,7,OFFSET(DATA!$A$1,14,MATCH(J17,DATA!$A$2:$CAP$2,0)-1,47,1)),OFFSET(DATA!$A$1,14,MATCH(J17,DATA!$A$2:$CAP$2,0)-1,47,1),0)) ->  | R17: グラフ | T17: 予B-020101 | U17: =IF($C$2="乳","-",VLOOKUP(T17,INDEXTBL!$C$1:$N$1216,3,FALSE)) -> ハイリスク飲酒者の割合（男）（％） | V17: =VLOOKUP(T17,INDEXTBL!$C$1:$N$1216,5,FALSE) -> 全48 | W17: =IFERROR(TEXT(HLOOKUP("全48",DATA!$C$2:$CAP$14,8,FALSE),"0.0")&"%","NA") -> 17.2% | X17: =IFERROR(TEXT(HLOOKUP("全48",DATA!$C$2:$CAP$14,7,FALSE),"0.0")&"%","NA") -> 14.9% | Y17: =IFERROR(TEXT(_xlfn.AGGREGATE(5,7,OFFSET(DATA!$A$1,14,MATCH("全48",DATA!$A$2:$CAP$2,0)-1,47,1)),"0.0")&"%" &" （"& $Z17 & "）","NA") -> NA | Z17: =INDEX(DATA!$C$15:$C$61,MATCH(_xlfn.AGGREGATE(5,7,OFFSET(DATA!$A$1,14,MATCH("全48",DATA!$A$2:$CAP$2,0)-1,47,1)),OFFSET(DATA!$A$1,14,MATCH("全48",DATA!$A$2:$CAP$2,0)-1,47,1),0)) -> 
H18: 予D-020102 | I18: =VLOOKUP(H18,INDEXTBL!$C$1:$N$1216,3,FALSE) -> （検討中） | J18: =VLOOKUP(H18,INDEXTBL!$C$1:$N$1216,5,FALSE) -> 0 | K18: =IFERROR(HLOOKUP(J18,DATA!$C$2:$CAP$14,8,FALSE),"NA") -> NA | L18: =IFERROR(HLOOKUP(J18,DATA!$C$2:$CAP$14,7,FALSE),"NA") -> NA | M18: =IFERROR(TEXT(_xlfn.AGGREGATE(4,7,OFFSET(DATA!$A$1,14,MATCH(J18,DATA!$A$2:$CAP$2,0)-1,47,1)),"0.0") &" （"& N18 & "）","NA") -> NA | N18: =INDEX(DATA!$C$15:$C$61,MATCH(_xlfn.AGGREGATE(4,7,OFFSET(DATA!$A$1,14,MATCH(J18,DATA!$A$2:$CAP$2,0)-1,47,1)),OFFSET(DATA!$A$1,14,MATCH(J18,DATA!$A$2:$CAP$2,0)-1,47,1),0)) ->  | R18: グラフ | T18: 予B-020102 | U18: =VLOOKUP(T18,INDEXTBL!$C$1:$N$1216,3,FALSE) -> ハイリスク飲酒者の割合（女）（％） | V18: =VLOOKUP(T18,INDEXTBL!$C$1:$N$1216,5,FALSE) -> 全49 | W18: =IFERROR(TEXT(HLOOKUP("全49",DATA!$C$2:$CAP$14,8,FALSE),"0.0")&"%","NA") -> 13.1% | X18: =IFERROR(TEXT(HLOOKUP("全49",DATA!$C$2:$CAP$14,7,FALSE),"0.0")&"%","NA") -> 9.1% | Y18: =IFERROR(TEXT(_xlfn.AGGREGATE(5,7,OFFSET(DATA!$A$1,14,MATCH("全49",DATA!$A$2:$CAP$2,0)-1,47,1)),"0.0")&"%" &" （"& $Z18 & "）","NA") -> NA | Z18: =INDEX(DATA!$C$15:$C$61,MATCH(_xlfn.AGGREGATE(5,7,OFFSET(DATA!$A$1,14,MATCH("全49",DATA!$A$2:$CAP$2,0)-1,47,1)),OFFSET(DATA!$A$1,14,MATCH("全49",DATA!$A$2:$CAP$2,0)-1,47,1),0)) -> 
E19: 予D-0202 | I19: =VLOOKUP(E19,INDEXTBL!$A$1:$N$1216,2,FALSE) -> ハイリスク飲酒に関する正しい知識を伝える | K19: 沖縄県 | L19: 全国 | M19: 最良値 （都道府県）
H20: 予D-020201 | I20: =VLOOKUP(H20,INDEXTBL!$C$1:$N$1216,3,FALSE) -> 中学生の飲酒者の割合（男）（％） | J20: =VLOOKUP(H20,INDEXTBL!$C$1:$N$1216,5,FALSE) -> 0 | K20: =IFERROR(HLOOKUP(J20,DATA!$C$2:$CAP$14,8,FALSE),"NA") -> NA | L20: =IFERROR(HLOOKUP(J20,DATA!$C$2:$CAP$14,7,FALSE),"NA") -> NA | M20: =IFERROR(TEXT(_xlfn.AGGREGATE(4,7,OFFSET(DATA!$A$1,14,MATCH(J20,DATA!$A$2:$CAP$2,0)-1,47,1)),"0.0") &" （"& N20 & "）","NA") -> NA | N20: =INDEX(DATA!$C$15:$C$61,MATCH(_xlfn.AGGREGATE(4,7,OFFSET(DATA!$A$1,14,MATCH(J20,DATA!$A$2:$CAP$2,0)-1,47,1)),OFFSET(DATA!$A$1,14,MATCH(J20,DATA!$A$2:$CAP$2,0)-1,47,1),0)) -> 
H21: 予D-020202 | I21: =VLOOKUP(H21,INDEXTBL!$C$1:$N$1216,3,FALSE) -> 中学生の飲酒者の割合（女）（％） | J21: =VLOOKUP(H21,INDEXTBL!$C$1:$N$1216,5,FALSE) -> 0 | K21: =IFERROR(HLOOKUP(J21,DATA!$C$2:$CAP$14,8,FALSE),"NA") -> NA | L21: =IFERROR(HLOOKUP(J21,DATA!$C$2:$CAP$14,7,FALSE),"NA") -> NA | M21: =IFERROR(TEXT(_xlfn.AGGREGATE(4,7,OFFSET(DATA!$A$1,14,MATCH(J21,DATA!$A$2:$CAP$2,0)-1,47,1)),"0.0") &" （"& N21 & "）","NA") -> NA | N21: =INDEX(DATA!$C$15:$C$61,MATCH(_xlfn.AGGREGATE(4,7,OFFSET(DATA!$A$1,14,MATCH(J21,DATA!$A$2:$CAP$2,0)-1,47,1)),OFFSET(DATA!$A$1,14,MATCH(J21,DATA!$A$2:$CAP$2,0)-1,47,1),0)) -> 
H22: 予D-020203 | I22: =VLOOKUP(H22,INDEXTBL!$C$1:$N$1216,3,FALSE) -> 高校生の飲酒者の割合（男）（％） | J22: =VLOOKUP(H22,INDEXTBL!$C$1:$N$1216,5,FALSE) -> EX161 | K22: =IFERROR(HLOOKUP(J22,DATA!$C$2:$CAP$14,8,FALSE),"NA") -> 0.049 | L22: =IFERROR(HLOOKUP(J22,DATA!$C$2:$CAP$14,7,FALSE),"NA") -> NA | M22: =IFERROR(TEXT(_xlfn.AGGREGATE(4,7,OFFSET(DATA!$A$1,14,MATCH(J22,DATA!$A$2:$CAP$2,0)-1,47,1)),"0.0") &" （"& N22 & "）","NA") -> NA | N22: =INDEX(DATA!$C$15:$C$61,MATCH(_xlfn.AGGREGATE(4,7,OFFSET(DATA!$A$1,14,MATCH(J22,DATA!$A$2:$CAP$2,0)-1,47,1)),OFFSET(DATA!$A$1,14,MATCH(J22,DATA!$A$2:$CAP$2,0)-1,47,1),0)) -> 
H23: 予D-020204 | I23: =VLOOKUP(H23,INDEXTBL!$C$1:$N$1216,3,FALSE) -> 高校生の飲酒者の割合（女）（％） | J23: =VLOOKUP(H23,INDEXTBL!$C$1:$N$1216,5,FALSE) -> EX162 | K23: =IFERROR(HLOOKUP(J23,DATA!$C$2:$CAP$14,8,FALSE),"NA") -> 0.045 | L23: =IFERROR(HLOOKUP(J23,DATA!$C$2:$CAP$14,7,FALSE),"NA") -> NA | M23: =IFERROR(TEXT(_xlfn.AGGREGATE(4,7,OFFSET(DATA!$A$1,14,MATCH(J23,DATA!$A$2:$CAP$2,0)-1,47,1)),"0.0") &" （"& N23 & "）","NA") -> NA | N23: =INDEX(DATA!$C$15:$C$61,MATCH(_xlfn.AGGREGATE(4,7,OFFSET(DATA!$A$1,14,MATCH(J23,DATA!$A$2:$CAP$2,0)-1,47,1)),OFFSET(DATA!$A$1,14,MATCH(J23,DATA!$A$2:$CAP$2,0)-1,47,1),0)) -> 
H24: 予D-020205 | I24: =VLOOKUP(H24,INDEXTBL!$C$1:$N$1216,3,FALSE) -> 「節度ある適度な飲酒」の認知度（％） | J24: =VLOOKUP(H24,INDEXTBL!$C$1:$N$1216,5,FALSE) -> EX025 | K24: =IFERROR(HLOOKUP("EX025",DATA!$C$2:$CAP$14,8,FALSE),"NA") -> 0.411 | L24: =IFERROR(HLOOKUP("EX025",DATA!$C$2:$CAP$14,7,FALSE),"NA") -> NA | M24: =IFERROR(TEXT(_xlfn.AGGREGATE(5,7,OFFSET(DATA!$A$1,14,MATCH("EX025",DATA!$A$2:$AYN$2,0)-1,47,1))*100,"0.0")&"%" &" （"& $N24 & "）","NA") -> NA | N24: =INDEX(DATA!$C$15:$C$61,MATCH(_xlfn.AGGREGATE(5,7,OFFSET(DATA!$A$1,14,MATCH("EX025",DATA!$A$2:$AYN$2,0)-1,47,1)),OFFSET(DATA!$A$1,14,MATCH("EX025",DATA!$A$2:$CAP$2,0)-1,47,1),0)) -> 
E26: ③肥満
E27: 予D-0301 | I27: =VLOOKUP(E27,INDEXTBL!$A$1:$N$1216,2,FALSE) -> 適正体重を維持している者を増加させる | K27: 沖縄県 | L27: 全国 | M27: 最良値 （都道府県） | Q27: 予B-0301 | U27: =VLOOKUP(Q27,INDEXTBL!$A$1:$N$1216,2,FALSE) -> 肥満、若年女性のやせ、低栄養傾向の高齢者の減少 | W27: 沖縄県 | X27: 全国 | Y27: 最良値 （都道府県）
H28: 予D-030101 | I28: =VLOOKUP(H28,INDEXTBL!$C$1:$N$1216,3,FALSE) -> （検討中） | J28: =VLOOKUP(H28,INDEXTBL!$C$1:$N$1216,5,FALSE) -> 0 | K28: =IFERROR(HLOOKUP(J28,DATA!$C$2:$CAP$14,8,FALSE),"NA") -> NA | L28: =IFERROR(HLOOKUP(J28,DATA!$C$2:$CAP$14,7,FALSE),"NA") -> NA | M28: =IFERROR(TEXT(_xlfn.AGGREGATE(4,7,OFFSET(DATA!$A$1,14,MATCH(J28,DATA!$A$2:$CAP$2,0)-1,47,1)),"0.0") &" （"& N28 & "）","NA") -> NA | N28: =INDEX(DATA!$C$15:$C$61,MATCH(_xlfn.AGGREGATE(4,7,OFFSET(DATA!$A$1,14,MATCH(J28,DATA!$A$2:$CAP$2,0)-1,47,1)),OFFSET(DATA!$A$1,14,MATCH(J28,DATA!$A$2:$CAP$2,0)-1,47,1),0)) ->  | T28: 予B-030101 | U28: =VLOOKUP(T28,INDEXTBL!$C$1:$N$1216,3,FALSE) -> BMI18.5以上25未満の割合（20歳以上65歳未満）（男）（％） | V28: =VLOOKUP(T28,INDEXTBL!$C$1:$N$1216,5,FALSE) -> EX149 | W28: =IFERROR(HLOOKUP(V28,DATA!$C$2:$CAP$14,8,FALSE),"NA") -> 0.562 | X28: =IFERROR(HLOOKUP(V28,DATA!$C$2:$CAP$14,7,FALSE),"NA") -> 0.631 | Y28: =IFERROR(TEXT(_xlfn.AGGREGATE(5,7,OFFSET(DATA!$A$1,14,MATCH(V28,DATA!$A$2:$AYN$2,0)-1,47,1))*100,"0.0")&"%" &" （"& $Z28 & "）","NA") -> NA | Z28: =INDEX(DATA!$C$15:$C$61,MATCH(_xlfn.AGGREGATE(5,7,OFFSET(DATA!$A$1,14,MATCH(V28,DATA!$A$2:$AYN$2,0)-1,47,1)),OFFSET(DATA!$A$1,14,MATCH(V28,DATA!$A$2:$CAP$2,0)-1,47,1),0)) -> 
T29: 予B-030102 | U29: =VLOOKUP(T29,INDEXTBL!$C$1:$N$1216,3,FALSE) -> BMI18.5以上25未満の割合（20歳以上65歳未満）（女）（％） | V29: =VLOOKUP(T29,INDEXTBL!$C$1:$N$1216,5,FALSE) -> EX150 | W29: =IFERROR(HLOOKUP(V29,DATA!$C$2:$CAP$14,8,FALSE),"NA") -> 0.676 | X29: =IFERROR(HLOOKUP(V29,DATA!$C$2:$CAP$14,7,FALSE),"NA") -> 0.662 | Y29: =IFERROR(TEXT(_xlfn.AGGREGATE(5,7,OFFSET(DATA!$A$1,14,MATCH(V29,DATA!$A$2:$AYN$2,0)-1,47,1))*100,"0.0")&"%" &" （"& $Z29 & "）","NA") -> NA | Z29: =INDEX(DATA!$C$15:$C$61,MATCH(_xlfn.AGGREGATE(5,7,OFFSET(DATA!$A$1,14,MATCH(V29,DATA!$A$2:$AYN$2,0)-1,47,1)),OFFSET(DATA!$A$1,14,MATCH(V29,DATA!$A$2:$CAP$2,0)-1,47,1),0)) -> 
T30: 予B-030103 | U30: =VLOOKUP(T30,INDEXTBL!$C$1:$N$1216,3,FALSE) -> BMI20超25未満の割合（65歳以上）（男）（％） | V30: =VLOOKUP(T30,INDEXTBL!$C$1:$N$1216,5,FALSE) -> EX151 | W30: =IFERROR(HLOOKUP(V30,DATA!$C$2:$CAP$14,8,FALSE),"NA") -> 0.578 | X30: =IFERROR(HLOOKUP(V30,DATA!$C$2:$CAP$14,7,FALSE),"NA") -> 0.646 | Y30: =IFERROR(TEXT(_xlfn.AGGREGATE(5,7,OFFSET(DATA!$A$1,14,MATCH(V30,DATA!$A$2:$AYN$2,0)-1,47,1))*100,"0.0")&"%" &" （"& $Z30 & "）","NA") -> NA | Z30: =INDEX(DATA!$C$15:$C$61,MATCH(_xlfn.AGGREGATE(5,7,OFFSET(DATA!$A$1,14,MATCH(V30,DATA!$A$2:$AYN$2,0)-1,47,1)),OFFSET(DATA!$A$1,14,MATCH(V30,DATA!$A$2:$CAP$2,0)-1,47,1),0)) -> 
T31: 予B-030104 | U31: =VLOOKUP(T31,INDEXTBL!$C$1:$N$1216,3,FALSE) -> BMI20超25未満の割合（65歳以上）（女）（％） | V31: =VLOOKUP(T31,INDEXTBL!$C$1:$N$1216,5,FALSE) -> EX152 | W31: =IFERROR(HLOOKUP(V31,DATA!$C$2:$CAP$14,8,FALSE),"NA") -> 0.724 | X31: =IFERROR(HLOOKUP(V31,DATA!$C$2:$CAP$14,7,FALSE),"NA") -> 0.641 | Y31: =IFERROR(TEXT(_xlfn.AGGREGATE(5,7,OFFSET(DATA!$A$1,14,MATCH(V31,DATA!$A$2:$AYN$2,0)-1,47,1))*100,"0.0")&"%" &" （"& $Z31 & "）","NA") -> NA | Z31: =INDEX(DATA!$C$15:$C$61,MATCH(_xlfn.AGGREGATE(5,7,OFFSET(DATA!$A$1,14,MATCH(V31,DATA!$A$2:$AYN$2,0)-1,47,1)),OFFSET(DATA!$A$1,14,MATCH(V31,DATA!$A$2:$CAP$2,0)-1,47,1),0)) -> 
E33: ④運動不足
E34: 予D-0401 | I34: =VLOOKUP(E34,INDEXTBL!$A$1:$N$1216,2,FALSE) -> 運動習慣者を増加させる | K34: 沖縄県 | L34: 全国 | M34: 最良値 （都道府県） | Q34: 予B-0401 | U34: =VLOOKUP(Q34,INDEXTBL!$A$1:$N$1216,2,FALSE) -> 日常生活における歩数の増加 | W34: 沖縄県 | X34: 全国 | Y34: 最良値 （都道府県）
H35: 予D-040101 | I35: =VLOOKUP(H35,INDEXTBL!$C$1:$N$1216,3,FALSE) -> （検討中） | J35: =VLOOKUP(H35,INDEXTBL!$C$1:$N$1216,5,FALSE) -> 0 | K35: =IFERROR(HLOOKUP(J35,DATA!$C$2:$CAP$14,8,FALSE),"NA") -> NA | L35: =IFERROR(HLOOKUP(J35,DATA!$C$2:$CAP$14,7,FALSE),"NA") -> NA | M35: =IFERROR(TEXT(_xlfn.AGGREGATE(4,7,OFFSET(DATA!$A$1,14,MATCH(J35,DATA!$A$2:$CAP$2,0)-1,47,1)),"0.0") &" （"& N35 & "）","NA") -> NA | N35: =INDEX(DATA!$C$15:$C$61,MATCH(_xlfn.AGGREGATE(4,7,OFFSET(DATA!$A$1,14,MATCH(J35,DATA!$A$2:$CAP$2,0)-1,47,1)),OFFSET(DATA!$A$1,14,MATCH(J35,DATA!$A$2:$CAP$2,0)-1,47,1),0)) ->  | T35: 予B-040101 | U35: =VLOOKUP(T35,INDEXTBL!$C$1:$N$1216,3,FALSE) -> 1日の歩数の平均値（20歳以上65歳未満）（男） | V35: =VLOOKUP(T35,INDEXTBL!$C$1:$N$1216,5,FALSE) -> EX153 | W35: =IFERROR(HLOOKUP(V35,DATA!$C$2:$CAP$14,8,FALSE),"NA") -> 6640 | X35: =IFERROR(HLOOKUP(V35,DATA!$C$2:$CAP$14,7,FALSE),"NA") -> 7864 | Y35: =IFERROR(TEXT(_xlfn.AGGREGATE(4,7,OFFSET(DATA!$A$1,14,MATCH(VLOOKUP($T35,INDEXTBL!$C$1:$N$1216,10,FALSE),DATA!$A$2:$CAP$2,0)-1,47,1)),"#,##0歩") &" （"& Z35 & "）","NA") -> NA | Z35: =INDEX(DATA!$C$15:$C$61,MATCH(_xlfn.AGGREGATE(4,7,OFFSET(DATA!$A$1,14,MATCH(VLOOKUP($T35,INDEXTBL!$C$1:$N$1216,10,FALSE),DATA!$A$2:$CAP$2,0)-1,47,1)),OFFSET(DATA!$A$1,14,MATCH(VLOOKUP($T35,INDEXTBL!$C$1:$N$1216,10,FALSE),DATA!$A$2:$CAP$2,0)-1,47,1),0)) -> 
T36: 予B-040102 | U36: =VLOOKUP(T36,INDEXTBL!$C$1:$N$1216,3,FALSE) -> 1日の歩数の平均値（20歳以上65歳未満）（女） | V36: =VLOOKUP(T36,INDEXTBL!$C$1:$N$1216,5,FALSE) -> EX154 | W36: =IFERROR(HLOOKUP(V36,DATA!$C$2:$CAP$14,8,FALSE),"NA") -> 6366 | X36: =IFERROR(HLOOKUP(V36,DATA!$C$2:$CAP$14,7,FALSE),"NA") -> 6685 | Y36: =IFERROR(TEXT(_xlfn.AGGREGATE(4,7,OFFSET(DATA!$A$1,14,MATCH(VLOOKUP($T36,INDEXTBL!$C$1:$N$1216,10,FALSE),DATA!$A$2:$CAP$2,0)-1,47,1)),"#,##0歩") &" （"& Z36 & "）","NA") -> NA | Z36: =INDEX(DATA!$C$15:$C$61,MATCH(_xlfn.AGGREGATE(4,7,OFFSET(DATA!$A$1,14,MATCH(VLOOKUP($T36,INDEXTBL!$C$1:$N$1216,10,FALSE),DATA!$A$2:$CAP$2,0)-1,47,1)),OFFSET(DATA!$A$1,14,MATCH(VLOOKUP($T36,INDEXTBL!$C$1:$N$1216,10,FALSE),DATA!$A$2:$CAP$2,0)-1,47,1),0)) -> 
T37: 予B-040103 | U37: =VLOOKUP(T37,INDEXTBL!$C$1:$N$1216,3,FALSE) -> 1日の歩数の平均値（65歳以上）（男） | V37: =VLOOKUP(T37,INDEXTBL!$C$1:$N$1216,5,FALSE) -> EX155 | W37: =IFERROR(HLOOKUP(V37,DATA!$C$2:$CAP$14,8,FALSE),"NA") -> 5430 | X37: =IFERROR(HLOOKUP(V37,DATA!$C$2:$CAP$14,7,FALSE),"NA") -> 5396 | Y37: =IFERROR(TEXT(_xlfn.AGGREGATE(4,7,OFFSET(DATA!$A$1,14,MATCH(VLOOKUP($T37,INDEXTBL!$C$1:$N$1216,10,FALSE),DATA!$A$2:$CAP$2,0)-1,47,1)),"#,##0歩") &" （"& Z37 & "）","NA") -> NA | Z37: =INDEX(DATA!$C$15:$C$61,MATCH(_xlfn.AGGREGATE(4,7,OFFSET(DATA!$A$1,14,MATCH(VLOOKUP($T37,INDEXTBL!$C$1:$N$1216,10,FALSE),DATA!$A$2:$CAP$2,0)-1,47,1)),OFFSET(DATA!$A$1,14,MATCH(VLOOKUP($T37,INDEXTBL!$C$1:$N$1216,10,FALSE),DATA!$A$2:$CAP$2,0)-1,47,1),0)) -> 
T38: 予B-040104 | U38: =VLOOKUP(T38,INDEXTBL!$C$1:$N$1216,3,FALSE) -> 1日の歩数の平均値（65歳以上）（女） | V38: =VLOOKUP(T38,INDEXTBL!$C$1:$N$1216,5,FALSE) -> EX156 | W38: =IFERROR(HLOOKUP(V38,DATA!$C$2:$CAP$14,8,FALSE),"NA") -> 4905 | X38: =IFERROR(HLOOKUP(V38,DATA!$C$2:$CAP$14,7,FALSE),"NA") -> 4656 | Y38: =IFERROR(TEXT(_xlfn.AGGREGATE(4,7,OFFSET(DATA!$A$1,14,MATCH(VLOOKUP($T38,INDEXTBL!$C$1:$N$1216,10,FALSE),DATA!$A$2:$CAP$2,0)-1,47,1)),"#,##0歩") &" （"& Z38 & "）","NA") -> NA | Z38: =INDEX(DATA!$C$15:$C$61,MATCH(_xlfn.AGGREGATE(4,7,OFFSET(DATA!$A$1,14,MATCH(VLOOKUP($T38,INDEXTBL!$C$1:$N$1216,10,FALSE),DATA!$A$2:$CAP$2,0)-1,47,1)),OFFSET(DATA!$A$1,14,MATCH(VLOOKUP($T38,INDEXTBL!$C$1:$N$1216,10,FALSE),DATA!$A$2:$CAP$2,0)-1,47,1),0)) -> 
T39: 予B-040105 | U39: =VLOOKUP(T39,INDEXTBL!$C$1:$N$1216,3,FALSE) -> 運動習慣者の割合（20歳以上65歳未満）（男）（％） | V39: =VLOOKUP(T39,INDEXTBL!$C$1:$N$1216,5,FALSE) -> EX157 | W39: =IFERROR(HLOOKUP(V39,DATA!$C$2:$CAP$14,8,FALSE),"NA") -> 0.303 | X39: =IFERROR(HLOOKUP(V39,DATA!$C$2:$CAP$14,7,FALSE),"NA") -> 0.235 | Y39: =IFERROR(TEXT(_xlfn.AGGREGATE(5,7,OFFSET(DATA!$A$1,14,MATCH(V39,DATA!$A$2:$AYN$2,0)-1,47,1))*100,"0.0")&"%" &" （"& $Z39 & "）","NA") -> NA | Z39: =INDEX(DATA!$C$15:$C$61,MATCH(_xlfn.AGGREGATE(5,7,OFFSET(DATA!$A$1,14,MATCH(V39,DATA!$A$2:$AYN$2,0)-1,47,1)),OFFSET(DATA!$A$1,14,MATCH(V39,DATA!$A$2:$CAP$2,0)-1,47,1),0)) -> 
T40: 予B-040106 | U40: =VLOOKUP(T40,INDEXTBL!$C$1:$N$1216,3,FALSE) -> 運動習慣者の割合（20歳以上65歳未満）（女）（％） | V40: =VLOOKUP(T40,INDEXTBL!$C$1:$N$1216,5,FALSE) -> EX158 | W40: =IFERROR(HLOOKUP(V40,DATA!$C$2:$CAP$14,8,FALSE),"NA") -> 0.193 | X40: =IFERROR(HLOOKUP(V40,DATA!$C$2:$CAP$14,7,FALSE),"NA") -> 0.169 | Y40: =IFERROR(TEXT(_xlfn.AGGREGATE(5,7,OFFSET(DATA!$A$1,14,MATCH(V40,DATA!$A$2:$AYN$2,0)-1,47,1))*100,"0.0")&"%" &" （"& $Z40 & "）","NA") -> NA | Z40: =INDEX(DATA!$C$15:$C$61,MATCH(_xlfn.AGGREGATE(5,7,OFFSET(DATA!$A$1,14,MATCH(V40,DATA!$A$2:$AYN$2,0)-1,47,1)),OFFSET(DATA!$A$1,14,MATCH(V40,DATA!$A$2:$CAP$2,0)-1,47,1),0)) -> 
T41: 予B-040107 | U41: =VLOOKUP(T41,INDEXTBL!$C$1:$N$1216,3,FALSE) -> 運動習慣者の割合（65歳以上）（男）（％） | V41: =VLOOKUP(T41,INDEXTBL!$C$1:$N$1216,5,FALSE) -> EX159 | W41: =IFERROR(HLOOKUP(V41,DATA!$C$2:$CAP$14,8,FALSE),"NA") -> 0.566 | X41: =IFERROR(HLOOKUP(V41,DATA!$C$2:$CAP$14,7,FALSE),"NA") -> 0.419 | Y41: =IFERROR(TEXT(_xlfn.AGGREGATE(5,7,OFFSET(DATA!$A$1,14,MATCH(V41,DATA!$A$2:$AYN$2,0)-1,47,1))*100,"0.0")&"%" &" （"& $Z41 & "）","NA") -> NA | Z41: =INDEX(DATA!$C$15:$C$61,MATCH(_xlfn.AGGREGATE(5,7,OFFSET(DATA!$A$1,14,MATCH(V41,DATA!$A$2:$AYN$2,0)-1,47,1)),OFFSET(DATA!$A$1,14,MATCH(V41,DATA!$A$2:$CAP$2,0)-1,47,1),0)) -> 
T42: 予B-040108 | U42: =VLOOKUP(T42,INDEXTBL!$C$1:$N$1216,3,FALSE) -> 運動習慣者の割合（65歳以上）（女）（％） | V42: =VLOOKUP(T42,INDEXTBL!$C$1:$N$1216,5,FALSE) -> EX160 | W42: =IFERROR(HLOOKUP(V42,DATA!$C$2:$CAP$14,8,FALSE),"NA") -> 0.43 | X42: =IFERROR(HLOOKUP(V42,DATA!$C$2:$CAP$14,7,FALSE),"NA") -> 0.339 | Y42: =IFERROR(TEXT(_xlfn.AGGREGATE(5,7,OFFSET(DATA!$A$1,14,MATCH(V42,DATA!$A$2:$AYN$2,0)-1,47,1))*100,"0.0")&"%" &" （"& $Z42 & "）","NA") -> NA | Z42: =INDEX(DATA!$C$15:$C$61,MATCH(_xlfn.AGGREGATE(5,7,OFFSET(DATA!$A$1,14,MATCH(V42,DATA!$A$2:$AYN$2,0)-1,47,1)),OFFSET(DATA!$A$1,14,MATCH(V42,DATA!$A$2:$CAP$2,0)-1,47,1),0)) -> 

Sheet がん検診
B2: 大腸がん | C2: =IF(ISBLANK($B$2),"",SUBSTITUTE($B$2,"がん","")) -> 大腸 | E2: 番号 | H2: 個別施策 | Q2: 番号 | T2: 中間アウトカム | AC2: 番号 | AF2: 分野アウトカム
C3: =IF($C$2="大腸",6,IF($C$2="肺",7,IF($C$2="胃",8,IF($C$2="女性乳房",9,IF($C$2="子宮頸部",5,""))))) -> 6
E4: ①科学的根拠に基づくがん検診の実施について
E5: 検D-0101 | I5: =VLOOKUP(E5,INDEXTBL!$A$1:$N$1216,2,FALSE) -> 指針に基づいたがん検診のみを行う | K5: 沖縄県 | L5: 全国 | M5: 最良値 （都道府県） | Q5: 検B-0101 | U5: =VLOOKUP(Q5,INDEXTBL!$A$1:$N$1216,2,FALSE) -> 科学的根拠に基づいた検診の実施ができている | W5: 沖縄県 | X5: 全国 | Y5: 最良値 （都道府県） | AC5: 検A-0101 | AG5: =VLOOKUP(AC5,INDEXTBL!$A$1:$N$1165,2,FALSE) -> 有効ながん検診を有するがんの死亡の減少ができている | AI5: 沖縄県 | AJ5: 全国 | AK5: 最良値 （都道府県）
F6: グラフ | H6: 検D-010101 | I6: =VLOOKUP(H6,INDEXTBL!$C$1:$N$1216,3,FALSE) -> 指針の遵守市町村の割合 対象年齢（％） | J6: =VLOOKUP(H6,INDEXTBL!$C$1:$N$1216,_xlfn.SWITCH($B$2,"胃がん",8,"大腸がん",6,"肺がん",7,"女性乳房がん",9,"子宮頸部がん",5),FALSE) -> 大腸72 | K6: =IFERROR(TEXT(HLOOKUP(VLOOKUP($H6,INDEXTBL!$C$1:$N$1216,$C$3,FALSE),DATA!$C$2:$DAD$14,8,FALSE),"0.0")&"%","NA") -> 51.2% | L6: =IFERROR(TEXT(HLOOKUP(VLOOKUP($H6,INDEXTBL!$C$1:$N$1216,$C$3,FALSE),DATA!$C$2:$DAD$14,7,FALSE),"0.0")&"%","NA") -> 77.6% | M6: =IFERROR(TEXT(_xlfn.AGGREGATE(4,7,OFFSET(DATA!$A$1,14,MATCH(VLOOKUP($H6,INDEXTBL!$C$1:$N$1216,$C$3,FALSE),DATA!$A$2:$DAD$2,0)-1,47,1)),"0.0")&"%" &" （"& N6 & "）","NA") -> 100.0% （群馬県） | N6: =INDEX(DATA!$C$15:$C$61,MATCH(_xlfn.AGGREGATE(4,7,OFFSET(DATA!$A$1,14,MATCH(VLOOKUP($H6,INDEXTBL!$C$1:$N$1216,$C$3,FALSE),DATA!$A$2:$DAD$2,0)-1,47,1)),OFFSET(DATA!$A$1,14,MATCH(VLOOKUP($H6,INDEXTBL!$C$1:$N$1216,$C$3,FALSE),DATA!$A$2:$DAD$2,0)-1,47,1),0)) -> 群馬県 | R6: グラフ | T6: 検B-010101 | U6: =VLOOKUP(T6,INDEXTBL!$C$1:$N$1216,3,FALSE) -> 指針の遵守市町村の割合（％） | V6: =VLOOKUP(T6,INDEXTBL!$C$1:$N$1216,_xlfn.SWITCH($B$2,"胃がん",8,"大腸がん",6,"肺がん",7,"女性乳房がん",9,"子宮頸部がん",5),FALSE) -> 大腸A08 | W6: =IFERROR(TEXT(HLOOKUP(VLOOKUP($T6,INDEXTBL!$C$1:$N$1178,$C$3,FALSE),DATA!$C$2:$DAD$14,8,FALSE),"0.0")&"%","NA") -> 100.0% | X6: =IFERROR(TEXT(HLOOKUP(VLOOKUP($T6,INDEXTBL!$C$1:$N$1178,$C$3,FALSE),DATA!$C$2:$DAD$14,7,FALSE),"0.0")&"%","NA") -> 100.0% | Y6: =IFERROR(TEXT(_xlfn.AGGREGATE(4,7,OFFSET(DATA!$A$1,14,MATCH(VLOOKUP($T6,INDEXTBL!$C$1:$N$1178,$C$3,FALSE),DATA!$A$2:$DAD$2,0)-1,47,1)),"0.0")&"%" &" （"& Z6 & "）","NA") -> 100.0% （北海道） | Z6: =INDEX(DATA!$C$15:$C$61,MATCH(_xlfn.AGGREGATE(4,7,OFFSET(DATA!$A$1,14,MATCH(VLOOKUP($T6,INDEXTBL!$C$1:$N$1178,$C$3,FALSE),DATA!$A$2:$DAD$2,0)-1,47,1)),OFFSET(DATA!$A$1,14,MATCH(VLOOKUP($T6,INDEXTBL!$C$1:$N$1178,$C$3,FALSE),DATA!$A$2:$DAD$2,0)-1,47,1),0)) -> 北海道 | AD6: グラフ | AF6: 検A-010101 | AG6: =VLOOKUP(AF6,INDEXTBL!$C$1:$N$1165,3,FALSE) -> 死亡率（男）（75歳未満、年齢調整、人口10万対） | AH6: =IF(OR($C$2="女性乳房",$C$2="子宮頸部"),"",VLOOKUP(AF6,INDEXTBL!$C$1:$N$1216,_xlfn.SWITCH($B$2,"胃がん",8,"大腸がん",6,"肺がん",7,"女性乳房がん",9,"子宮頸部がん",5),FALSE)) -> 大腸13 | AI6: =IFERROR(TEXT(HLOOKUP(VLOOKUP($AF6,INDEXTBL!$C$1:$N$1165,$C$3,FALSE),DATA!$C$2:$DAD$14,8,FALSE),"0.0"),"NA") -> 14.4 | AJ6: =IFERROR(TEXT(HLOOKUP(VLOOKUP($AF6,INDEXTBL!$C$1:$N$1165,$C$3,FALSE),DATA!$C$2:$DAD$14,7,FALSE),"0.0"),"NA") -> 12.4 | AK6: =IFERROR(TEXT(_xlfn.AGGREGATE(5,7,OFFSET(DATA!$A$1,14,MATCH(VLOOKUP($AF6,INDEXTBL!$C$1:$N$1165,$C$3,FALSE),DATA!$A$2:$DAD$2,0)-1,47,1)),"0.0") &" （"& AL6 & "）","NA") -> 9.2 （滋賀県） | AL6: =INDEX(DATA!$C$15:$C$61,MATCH(_xlfn.AGGREGATE(5,7,OFFSET(DATA!$A$1,14,MATCH(VLOOKUP($AF6,INDEXTBL!$C$1:$N$1165,$C$3,FALSE),DATA!$A$2:$DAD$2,0)-1,47,1)),OFFSET(DATA!$A$1,14,MATCH(VLOOKUP($AF6,INDEXTBL!$C$1:$N$1165,$C$3,FALSE),DATA!$A$2:$DAD$2,0)-1,47,1),0)) -> 滋賀県
F7: グラフ | H7: 検D-010102 | I7: =VLOOKUP(H7,INDEXTBL!$C$1:$N$1216,3,FALSE) -> 指針の遵守市町村の割合 受診間隔（％） | J7: =VLOOKUP(H7,INDEXTBL!$C$1:$N$1216,_xlfn.SWITCH($B$2,"胃がん",8,"大腸がん",6,"肺がん",7,"女性乳房がん",9,"子宮頸部がん",5),FALSE) -> 大腸73 | K7: =IFERROR(TEXT(HLOOKUP(VLOOKUP($H7,INDEXTBL!$C$1:$N$1216,$C$3,FALSE),DATA!$C$2:$DAD$14,8,FALSE),"0.0")&"%","NA") -> 97.6% | L7: =IFERROR(TEXT(HLOOKUP(VLOOKUP($H7,INDEXTBL!$C$1:$N$1216,$C$3,FALSE),DATA!$C$2:$DAD$14,7,FALSE),"0.0")&"%","NA") -> 99.8% | M7: =IFERROR(TEXT(_xlfn.AGGREGATE(4,7,OFFSET(DATA!$A$1,14,MATCH(VLOOKUP($H7,INDEXTBL!$C$1:$N$1216,$C$3,FALSE),DATA!$A$2:$DAD$2,0)-1,47,1)),"0.0")&"%" &" （"& N7 & "）","NA") -> 100.0% （北海道） | N7: =INDEX(DATA!$C$15:$C$61,MATCH(_xlfn.AGGREGATE(4,7,OFFSET(DATA!$A$1,14,MATCH(VLOOKUP($H7,INDEXTBL!$C$1:$N$1216,$C$3,FALSE),DATA!$A$2:$DAD$2,0)-1,47,1)),OFFSET(DATA!$A$1,14,MATCH(VLOOKUP($H7,INDEXTBL!$C$1:$N$1216,$C$3,FALSE),DATA!$A$2:$DAD$2,0)-1,47,1),0)) -> 北海道 | AD7: グラフ | AF7: 検A-010102 | AG7: =VLOOKUP(AF7,INDEXTBL!$C$1:$N$1165,3,FALSE) -> 死亡率（女）（75歳未満、年齢調整、人口10万対） | AH7: =VLOOKUP(AF7,INDEXTBL!$C$1:$N$1216,_xlfn.SWITCH($B$2,"胃がん",8,"大腸がん",6,"肺がん",7,"女性乳房がん",9,"子宮頸部がん",5),FALSE) -> 大腸14 | AI7: =IFERROR(TEXT(HLOOKUP(VLOOKUP($AF7,INDEXTBL!$C$1:$N$1165,$C$3,FALSE),DATA!$C$2:$DAD$14,8,FALSE),"0.0"),"NA") -> 8.2 | AJ7: =IFERROR(TEXT(HLOOKUP(VLOOKUP($AF7,INDEXTBL!$C$1:$N$1165,$C$3,FALSE),DATA!$C$2:$DAD$14,7,FALSE),"0.0"),"NA") -> 7.2 | AK7: =IFERROR(TEXT(_xlfn.AGGREGATE(5,7,OFFSET(DATA!$A$1,14,MATCH(VLOOKUP($AF7,INDEXTBL!$C$1:$N$1165,$C$3,FALSE),DATA!$A$2:$DAD$2,0)-1,47,1)),"0.0") &" （"& AL7 & "）","NA") -> 5.0 （岡山県） | AL7: =INDEX(DATA!$C$15:$C$61,MATCH(_xlfn.AGGREGATE(5,7,OFFSET(DATA!$A$1,14,MATCH(VLOOKUP($AF7,INDEXTBL!$C$1:$N$1165,$C$3,FALSE),DATA!$A$2:$DAD$2,0)-1,47,1)),OFFSET(DATA!$A$1,14,MATCH(VLOOKUP($AF7,INDEXTBL!$C$1:$N$1165,$C$3,FALSE),DATA!$A$2:$DAD$2,0)-1,47,1),0)) -> 岡山県
E8: 検D-0102 | I8: =VLOOKUP(E8,INDEXTBL!$A$1:$N$1216,2,FALSE) -> 指針に基づかないがん検診を中止する | K8: 沖縄県 | L8: 全国 | M8: 最良値 （都道府県） | AC8: 検A-0102 | AG8: =VLOOKUP(AC8,INDEXTBL!$A$1:$N$1165,2,FALSE) -> 有効ながん検診を有するがんの進行がんの減少ができている | AI8: 沖縄県 | AJ8: 全国 | AK8: 最良値 （都道府県）
F9: グラフ | H9: 検D-010201 | I9: =VLOOKUP(H9,INDEXTBL!$C$1:$N$1216,3,FALSE) -> 指針に基づかない検診の実施数（集団）（市区町村数） | J9: =VLOOKUP(H9,INDEXTBL!$C$1:$N$1216,_xlfn.SWITCH($B$2,"胃がん",8,"大腸がん",6,"肺がん",7,"女性乳房がん",9,"子宮頸部がん",5),FALSE) -> EX大腸1 | K9: =IFERROR(HLOOKUP(VLOOKUP($H9,INDEXTBL!$C$1:$N$1216,$C$3,FALSE),DATA!$C$2:$DAD$14,8,FALSE),"NA") -> 2 | L9: =IFERROR(HLOOKUP(VLOOKUP($H9,INDEXTBL!$C$1:$N$1216,$C$3,FALSE),DATA!$C$2:$DAD$14,7,FALSE),"NA") -> 96 | M9: =IFERROR(_xlfn.AGGREGATE(5,7,OFFSET(DATA!$A$1,14,MATCH(VLOOKUP($H9,INDEXTBL!$C$1:$N$1216,$C$3,FALSE),DATA!$A$2:$DAD$2,0)-1,47,1)) &" （"& N9 & "）","NA") -> 0 （青森県） | N9: =INDEX(DATA!$C$15:$C$61,MATCH(_xlfn.AGGREGATE(5,7,OFFSET(DATA!$A$1,14,MATCH(VLOOKUP($H9,INDEXTBL!$C$1:$N$1216,$C$3,FALSE),DATA!$A$2:$DAD$2,0)-1,47,1)),OFFSET(DATA!$A$1,14,MATCH(VLOOKUP($H9,INDEXTBL!$C$1:$N$1216,$C$3,FALSE),DATA!$A$2:$DAD$2,0)-1,47,1),0)) -> 青森県 | AF9: 検A-010201 | AG9: =VLOOKUP(AF9,INDEXTBL!$C$1:$N$1165,3,FALSE) -> 進行がん罹患率（男）（年齢調整、人口10万人対） | AH9: =IF(OR($C$2="女性乳房",$C$2="子宮頸部"),"",VLOOKUP(AF9,INDEXTBL!$C$1:$N$1216,_xlfn.SWITCH($B$2,"胃がん",8,"大腸がん",6,"肺がん",7,"女性乳房がん",9,"子宮頸部がん",5),FALSE)) -> 0 | AI9: =IFERROR(TEXT(HLOOKUP(VLOOKUP($AF9,INDEXTBL!$C$1:$N$1165,$C$3,FALSE),DATA!$C$2:$DAD$14,8,FALSE),"0.0"),"NA") -> NA | AJ9: =IFERROR(TEXT(HLOOKUP(VLOOKUP($AF9,INDEXTBL!$C$1:$N$1165,$C$3,FALSE),DATA!$C$2:$DAD$14,7,FALSE),"0.0"),"NA") -> NA | AK9: =IFERROR(TEXT(_xlfn.AGGREGATE(5,7,OFFSET(DATA!$A$1,14,MATCH(VLOOKUP($AF9,INDEXTBL!$C$1:$N$1165,$C$3,FALSE),DATA!$A$2:$DAD$2,0)-1,47,1)),"0.0") &" （"& AL9 & "）","NA") -> NA | AL9: =INDEX(DATA!$C$15:$C$61,MATCH(_xlfn.AGGREGATE(5,7,OFFSET(DATA!$A$1,14,MATCH(VLOOKUP($AF9,INDEXTBL!$C$1:$N$1165,$C$3,FALSE),DATA!$A$2:$DAD$2,0)-1,47,1)),OFFSET(DATA!$A$1,14,MATCH(VLOOKUP($AF9,INDEXTBL!$C$1:$N$1165,$C$3,FALSE),DATA!$A$2:$DAD$2,0)-1,47,1),0)) -> 
F10: グラフ | H10: 検D-010202 | I10: =VLOOKUP(H10,INDEXTBL!$C$1:$N$1216,3,FALSE) -> 指針に基づかない検診の実施割合（集団）（％） | J10: =VLOOKUP(H10,INDEXTBL!$C$1:$N$1216,_xlfn.SWITCH($B$2,"胃がん",8,"大腸がん",6,"肺がん",7,"女性乳房がん",9,"子宮頸部がん",5),FALSE) -> 大腸79 | K10: =IFERROR(TEXT(HLOOKUP(VLOOKUP($H10,INDEXTBL!$C$1:$N$1216,$C$3,FALSE),DATA!$C$2:$DAD$14,8,FALSE),"0.0")&"%","NA") -> 5.0% | L10: =IFERROR(TEXT(HLOOKUP(VLOOKUP($H10,INDEXTBL!$C$1:$N$1216,$C$3,FALSE),DATA!$C$2:$DAD$14,7,FALSE),"0.0")&"%","NA") -> 6.0% | M10: =IFERROR(TEXT(_xlfn.AGGREGATE(5,7,OFFSET(DATA!$A$1,14,MATCH(VLOOKUP($H10,INDEXTBL!$C$1:$N$1216,$C$3,FALSE),DATA!$A$2:$DAD$2,0)-1,47,1)),"0.0")&"%" &" （"& N10 & "）","NA") -> 0.0% （青森県） | N10: =INDEX(DATA!$C$15:$C$61,MATCH(_xlfn.AGGREGATE(5,7,OFFSET(DATA!$A$1,14,MATCH(VLOOKUP($H10,INDEXTBL!$C$1:$N$1216,$C$3,FALSE),DATA!$A$2:$DAD$2,0)-1,47,1)),OFFSET(DATA!$A$1,14,MATCH(VLOOKUP($H10,INDEXTBL!$C$1:$N$1216,$C$3,FALSE),DATA!$A$2:$DAD$2,0)-1,47,1),0)) -> 青森県 | AF10: 検A-010202 | AG10: =VLOOKUP(AF10,INDEXTBL!$C$1:$N$1165,3,FALSE) -> 進行がん罹患率（女）（年齢調整、人口10万人対） | AH10: =VLOOKUP(AF10,INDEXTBL!$C$1:$N$1216,_xlfn.SWITCH($B$2,"胃がん",8,"大腸がん",6,"肺がん",7,"女性乳房がん",9,"子宮頸部がん",5),FALSE) -> 0 | AI10: =IFERROR(TEXT(HLOOKUP(VLOOKUP($AF10,INDEXTBL!$C$1:$N$1165,$C$3,FALSE),DATA!$C$2:$DAD$14,8,FALSE),"0.0"),"NA") -> NA | AJ10: =IFERROR(TEXT(HLOOKUP(VLOOKUP($AF10,INDEXTBL!$C$1:$N$1165,$C$3,FALSE),DATA!$C$2:$DAD$14,7,FALSE),"0.0"),"NA") -> NA | AK10: =IFERROR(TEXT(_xlfn.AGGREGATE(5,7,OFFSET(DATA!$A$1,14,MATCH(VLOOKUP($AF10,INDEXTBL!$C$1:$N$1165,$C$3,FALSE),DATA!$A$2:$DAD$2,0)-1,47,1)),"0.0") &" （"& AL10 & "）","NA") -> NA | AL10: =INDEX(DATA!$C$15:$C$61,MATCH(_xlfn.AGGREGATE(5,7,OFFSET(DATA!$A$1,14,MATCH(VLOOKUP($AF10,INDEXTBL!$C$1:$N$1165,$C$3,FALSE),DATA!$A$2:$DAD$2,0)-1,47,1)),OFFSET(DATA!$A$1,14,MATCH(VLOOKUP($AF10,INDEXTBL!$C$1:$N$1165,$C$3,FALSE),DATA!$A$2:$DAD$2,0)-1,47,1),0)) -> 
F11: グラフ | H11: 検D-010203 | I11: =VLOOKUP(H11,INDEXTBL!$C$1:$N$1216,3,FALSE) -> 指針に基づかない検診の実施数（個別）（市区町村数） | J11: =VLOOKUP(H11,INDEXTBL!$C$1:$N$1216,_xlfn.SWITCH($B$2,"胃がん",8,"大腸がん",6,"肺がん",7,"女性乳房がん",9,"子宮頸部がん",5),FALSE) -> EX大腸2 | K11: =IFERROR(HLOOKUP(VLOOKUP($H11,INDEXTBL!$C$1:$N$1216,$C$3,FALSE),DATA!$C$2:$DAD$14,8,FALSE),"NA") -> 0 | L11: =IFERROR(HLOOKUP(VLOOKUP($H11,INDEXTBL!$C$1:$N$1216,$C$3,FALSE),DATA!$C$2:$DAD$14,7,FALSE),"NA") -> 36 | M11: =IFERROR(_xlfn.AGGREGATE(5,7,OFFSET(DATA!$A$1,14,MATCH(VLOOKUP($H11,INDEXTBL!$C$1:$N$1216,$C$3,FALSE),DATA!$A$2:$DAD$2,0)-1,47,1)) &" （"& N11 & "）","NA") -> 0 （青森県） | N11: =INDEX(DATA!$C$15:$C$61,MATCH(_xlfn.AGGREGATE(5,7,OFFSET(DATA!$A$1,14,MATCH(VLOOKUP($H11,INDEXTBL!$C$1:$N$1216,$C$3,FALSE),DATA!$A$2:$DAD$2,0)-1,47,1)),OFFSET(DATA!$A$1,14,MATCH(VLOOKUP($H11,INDEXTBL!$C$1:$N$1216,$C$3,FALSE),DATA!$A$2:$DAD$2,0)-1,47,1),0)) -> 青森県
F12: グラフ | H12: 検D-010204 | I12: =VLOOKUP(H12,INDEXTBL!$C$1:$N$1216,3,FALSE) -> 指針に基づかない検診の実施割合（個別）（％） | J12: =VLOOKUP(H12,INDEXTBL!$C$1:$N$1216,_xlfn.SWITCH($B$2,"胃がん",8,"大腸がん",6,"肺がん",7,"女性乳房がん",9,"子宮頸部がん",5),FALSE) -> 大腸85 | K12: =IFERROR(TEXT(HLOOKUP(VLOOKUP($H12,INDEXTBL!$C$1:$N$1216,$C$3,FALSE),DATA!$C$2:$DAD$14,8,FALSE),"0.0")&"%","NA") -> 0.0% | L12: =IFERROR(TEXT(HLOOKUP(VLOOKUP($H12,INDEXTBL!$C$1:$N$1216,$C$3,FALSE),DATA!$C$2:$DAD$14,7,FALSE),"0.0")&"%","NA") -> 3.7% | M12: =IFERROR(TEXT(_xlfn.AGGREGATE(5,7,OFFSET(DATA!$A$1,14,MATCH(VLOOKUP($H12,INDEXTBL!$C$1:$N$1216,$C$3,FALSE),DATA!$A$2:$DAD$2,0)-1,47,1)),"0.0")&"%" &" （"& N12 & "）","NA") -> 0.0% （青森県） | N12: =INDEX(DATA!$C$15:$C$61,MATCH(_xlfn.AGGREGATE(5,7,OFFSET(DATA!$A$1,14,MATCH(VLOOKUP($H12,INDEXTBL!$C$1:$N$1216,$C$3,FALSE),DATA!$A$2:$DAD$2,0)-1,47,1)),OFFSET(DATA!$A$1,14,MATCH(VLOOKUP($H12,INDEXTBL!$C$1:$N$1216,$C$3,FALSE),DATA!$A$2:$DAD$2,0)-1,47,1),0)) -> 青森県
E14: ②がん検診の精度管理等について | AC14: （参考値）
E15: 検D-0201 | I15: =VLOOKUP(E15,INDEXTBL!$A$1:$N$1216,2,FALSE) -> 行政担当者、保健所職員、検診機関の職員等は、国等が企画する研修会を受講する | K15: 沖縄県 | L15: 全国 | M15: 最良値 （都道府県） | Q15: 検B-0201 | U15: =VLOOKUP(Q15,INDEXTBL!$A$1:$N$1216,2,FALSE) -> 検診の質の管理体制の構築と精度向上ができている | W15: 沖縄県 | X15: 全国 | Y15: 最良値 （都道府県） | AC15: 検A-0103 | AI15: 沖縄県 | AJ15: 全国 | AK15: 最良値 （都道府県）
H16: 検D-020101 | I16: =VLOOKUP(H16,INDEXTBL!$C$1:$N$1216,3,FALSE) -> 全国がん検診従事者研修（基礎）を修了した担当者等の割合（％） | J16: =VLOOKUP(H16,INDEXTBL!$C$1:$N$1216,5,FALSE) -> EX163 | K16: =IFERROR(HLOOKUP(VLOOKUP($H16,INDEXTBL!$C$1:$N$1216,5,FALSE),DATA!$C$2:$DAD$14,8,FALSE)*100&"%","NA") -> 17.5% | L16: =IFERROR(HLOOKUP(VLOOKUP($H16,INDEXTBL!$C$1:$N$1216,5,FALSE),DATA!$C$2:$DAD$14,7,FALSE)*100&"%","NA") -> NA | M16: =IFERROR(HLOOKUP(VLOOKUP($H16,INDEXTBL!$C$1:$N$1216,$C$3,FALSE),DATA!$C$2:$DAD$14,10,FALSE),"NA") -> NA | N16: =INDEX(DATA!$C$15:$C$61,MATCH(_xlfn.AGGREGATE(5,7,OFFSET(DATA!$A$1,14,MATCH(VLOOKUP($H16,INDEXTBL!$C$1:$N$1216,5,FALSE),DATA!$A$2:$DAD$2,0)-1,47,1)),OFFSET(DATA!$A$1,14,MATCH(VLOOKUP($H16,INDEXTBL!$C$1:$N$1216,5,FALSE),DATA!$A$2:$DAD$2,0)-1,47,1),0)) ->  | R16: グラフ | T16: 検B-020101 | U16: =VLOOKUP(T16,INDEXTBL!$C$1:$N$1216,3,FALSE) -> 要精検率（男）（％） | V16: =IF(OR($C$2="女性乳房",$C$2="子宮頸部"),"",VLOOKUP(T16,INDEXTBL!$C$1:$N$1216,_xlfn.SWITCH($B$2,"胃がん",8,"大腸がん",6,"肺がん",7,"女性乳房がん",9,"子宮頸部がん",5),FALSE)) -> 大腸65 | W16: =IFERROR(TEXT(HLOOKUP(VLOOKUP($T16,INDEXTBL!$C$1:$N$1216,$C$3,FALSE),DATA!$C$2:$DAD$14,8,FALSE),"0.0")&"%","NA") -> 8.4% | X16: =IFERROR(TEXT(HLOOKUP(VLOOKUP($T16,INDEXTBL!$C$1:$N$1216,$C$3,FALSE),DATA!$C$2:$DAD$14,7,FALSE),"0.0")&"%","NA") -> 9.4% | Y16: =IFERROR(TEXT(_xlfn.AGGREGATE(4,7,OFFSET(DATA!$A$1,14,MATCH(VLOOKUP($T16,INDEXTBL!$C$1:$N$1216,$C$3,FALSE),DATA!$A$2:$DAD$2,0)-1,47,1)),"0.0")&"%" &" （"& Z16 & "）","NA") -> 12.4% （長崎県） | Z16: =INDEX(DATA!$C$15:$C$61,MATCH(_xlfn.AGGREGATE(4,7,OFFSET(DATA!$A$1,14,MATCH(VLOOKUP($T16,INDEXTBL!$C$1:$N$1216,$C$3,FALSE),DATA!$A$2:$DAD$2,0)-1,47,1)),OFFSET(DATA!$A$1,14,MATCH(VLOOKUP($T16,INDEXTBL!$C$1:$N$1216,$C$3,FALSE),DATA!$A$2:$DAD$2,0)-1,47,1),0)) -> 長崎県 | AD16: グラフ | AF16: 検A-010301 | AG16: =VLOOKUP(AF16,INDEXTBL!$C$1:$N$1165,3,FALSE) -> 早期がん割合（％） | AH16: =IF(OR($C$2="女性乳房",$C$2="子宮頸部"),"",VLOOKUP(AF16,INDEXTBL!$C$1:$N$1216,_xlfn.SWITCH($B$2,"胃がん",8,"大腸がん",6,"肺がん",7,"女性乳房がん",9,"子宮頸部がん",5),FALSE)) -> 大腸A07 | AI16: =IFERROR(TEXT(HLOOKUP(VLOOKUP($AF16,INDEXTBL!$C$1:$N$1165,$C$3,FALSE),DATA!$C$2:$DAD$14,8,FALSE),"0.0")&"%","NA") -> 56.4% | AJ16: =IFERROR(TEXT(HLOOKUP(VLOOKUP($AF16,INDEXTBL!$C$1:$N$1165,$C$3,FALSE),DATA!$C$2:$DAD$14,7,FALSE),"0.0")&"%","NA") -> 57.9% | AK16: =IFERROR(TEXT(_xlfn.AGGREGATE(5,7,OFFSET(DATA!$A$1,14,MATCH(VLOOKUP($AF16,INDEXTBL!$C$1:$N$1165,$C$3,FALSE),DATA!$A$2:$DAD$2,0)-1,47,1)),"0.0")&"%" &" （"& AL16 & "）","NA") -> 51.7% （宮崎県） | AL16: =INDEX(DATA!$C$15:$C$61,MATCH(_xlfn.AGGREGATE(5,7,OFFSET(DATA!$A$1,14,MATCH(VLOOKUP($AF16,INDEXTBL!$C$1:$N$1165,$C$3,FALSE),DATA!$A$2:$DAD$2,0)-1,47,1)),OFFSET(DATA!$A$1,14,MATCH(VLOOKUP($AF16,INDEXTBL!$C$1:$N$1165,$C$3,FALSE),DATA!$A$2:$DAD$2,0)-1,47,1),0)) -> 宮崎県
H17: 検D-020102 | I17: =VLOOKUP(H17,INDEXTBL!$C$1:$N$1216,3,FALSE) -> 全国がん検診従事者研修（実務）を修了した担当者等の割合（％） | J17: =VLOOKUP(H17,INDEXTBL!$C$1:$N$1216,5,FALSE) -> EX175 | K17: =IFERROR(HLOOKUP(VLOOKUP($H17,INDEXTBL!$C$1:$N$1216,5,FALSE),DATA!$C$2:$DAD$14,8,FALSE)*100&"%","NA") -> 6.3% | L17: =IFERROR(HLOOKUP(VLOOKUP($H17,INDEXTBL!$C$1:$N$1216,5,FALSE),DATA!$C$2:$DAD$14,7,FALSE)*100&"%","NA") -> NA | M17: =IFERROR(HLOOKUP(VLOOKUP($H17,INDEXTBL!$C$1:$N$1216,$C$3,FALSE),DATA!$C$2:$DAD$14,10,FALSE),"NA") -> NA | N17: =INDEX(DATA!$C$15:$C$61,MATCH(_xlfn.AGGREGATE(5,7,OFFSET(DATA!$A$1,14,MATCH(VLOOKUP($H17,INDEXTBL!$C$1:$N$1216,5,FALSE),DATA!$A$2:$DAD$2,0)-1,47,1)),OFFSET(DATA!$A$1,14,MATCH(VLOOKUP($H17,INDEXTBL!$C$1:$N$1216,5,FALSE),DATA!$A$2:$DAD$2,0)-1,47,1),0)) ->  | R17: グラフ | T17: 検B-020102 | U17: =VLOOKUP(T17,INDEXTBL!$C$1:$N$1216,3,FALSE) -> 要精検率（女）（％） | V17: =VLOOKUP(T17,INDEXTBL!$C$1:$N$1216,_xlfn.SWITCH($B$2,"胃がん",8,"大腸がん",6,"肺がん",7,"女性乳房がん",9,"子宮頸部がん",5),FALSE) -> 大腸66 | W17: =IFERROR(TEXT(HLOOKUP(VLOOKUP($T17,INDEXTBL!$C$1:$N$1216,$C$3,FALSE),DATA!$C$2:$DAD$14,8,FALSE),"0.0")&"%","NA") -> 6.0% | X17: =IFERROR(TEXT(HLOOKUP(VLOOKUP($T17,INDEXTBL!$C$1:$N$1216,$C$3,FALSE),DATA!$C$2:$DAD$14,7,FALSE),"0.0")&"%","NA") -> 6.6% | Y17: =IFERROR(TEXT(_xlfn.AGGREGATE(4,7,OFFSET(DATA!$A$1,14,MATCH(VLOOKUP($T17,INDEXTBL!$C$1:$N$1216,$C$3,FALSE),DATA!$A$2:$DAD$2,0)-1,47,1)),"0.0")&"%" &" （"& Z17 & "）","NA") -> 8.9% （長崎県） | Z17: =INDEX(DATA!$C$15:$C$61,MATCH(_xlfn.AGGREGATE(4,7,OFFSET(DATA!$A$1,14,MATCH(VLOOKUP($T17,INDEXTBL!$C$1:$N$1216,$C$3,FALSE),DATA!$A$2:$DAD$2,0)-1,47,1)),OFFSET(DATA!$A$1,14,MATCH(VLOOKUP($T17,INDEXTBL!$C$1:$N$1216,$C$3,FALSE),DATA!$A$2:$DAD$2,0)-1,47,1),0)) -> 長崎県
H18: 検D-020103 | I18: =VLOOKUP(H18,INDEXTBL!$C$1:$N$1216,3,FALSE) -> 全国がん検診指導者研修を修了した担当者等の割合（％） | J18: =VLOOKUP(H18,INDEXTBL!$C$1:$N$1216,5,FALSE) -> EX176 | K18: =IFERROR(HLOOKUP(VLOOKUP($H18,INDEXTBL!$C$1:$N$1216,5,FALSE),DATA!$C$2:$DAD$14,8,FALSE)*100&"%","NA") -> 0% | L18: =IFERROR(HLOOKUP(VLOOKUP($H18,INDEXTBL!$C$1:$N$1216,$C$3,FALSE),DATA!$C$2:$DAD$14,7,FALSE),"NA") -> NA | M18: =IFERROR(HLOOKUP(VLOOKUP($H18,INDEXTBL!$C$1:$N$1216,$C$3,FALSE),DATA!$C$2:$DAD$14,10,FALSE),"NA") -> NA | N18: =INDEX(DATA!$C$15:$C$61,MATCH(_xlfn.AGGREGATE(5,7,OFFSET(DATA!$A$1,14,MATCH(VLOOKUP($H18,INDEXTBL!$C$1:$N$1216,5,FALSE),DATA!$A$2:$DAD$2,0)-1,47,1)),OFFSET(DATA!$A$1,14,MATCH(VLOOKUP($H18,INDEXTBL!$C$1:$N$1216,5,FALSE),DATA!$A$2:$DAD$2,0)-1,47,1),0)) ->  | R18: グラフ | T18: 検B-020103 | U18: =VLOOKUP(T18,INDEXTBL!$C$1:$N$1216,3,FALSE) -> 精検受診率（男）（％） | V18: =VLOOKUP(T18,INDEXTBL!$C$1:$N$1216,_xlfn.SWITCH($B$2,"胃がん",8,"大腸がん",6,"肺がん",7,"女性乳房がん",9,"子宮頸部がん",5),FALSE) -> 大腸63 | W18: =IFERROR(TEXT(HLOOKUP(VLOOKUP($T18,INDEXTBL!$C$1:$N$1216,$C$3,FALSE),DATA!$C$2:$DAD$14,8,FALSE),"0.0")&"%","NA") -> 54.5% | X18: =IFERROR(TEXT(HLOOKUP(VLOOKUP($T18,INDEXTBL!$C$1:$N$1216,$C$3,FALSE),DATA!$C$2:$DAD$14,7,FALSE),"0.0")&"%","NA") -> 67.1% | Y18: =IFERROR(TEXT(_xlfn.AGGREGATE(4,7,OFFSET(DATA!$A$1,14,MATCH(VLOOKUP($T18,INDEXTBL!$C$1:$N$1216,$C$3,FALSE),DATA!$A$2:$DAD$2,0)-1,47,1)),"0.0")&"%" &" （"& Z18 & "）","NA") -> 85.5% （滋賀県） | Z18: =INDEX(DATA!$C$15:$C$61,MATCH(_xlfn.AGGREGATE(4,7,OFFSET(DATA!$A$1,14,MATCH(VLOOKUP($T18,INDEXTBL!$C$1:$N$1216,$C$3,FALSE),DATA!$A$2:$DAD$2,0)-1,47,1)),OFFSET(DATA!$A$1,14,MATCH(VLOOKUP($T18,INDEXTBL!$C$1:$N$1216,$C$3,FALSE),DATA!$A$2:$DAD$2,0)-1,47,1),0)) -> 滋賀県
E19: 検D-0202 | I19: =VLOOKUP(E19,INDEXTBL!$A$1:$N$1216,2,FALSE) -> 県は受診率向上と精度管理のために研修会等を開催し、市町村等は担当者を受講させる | K19: 沖縄県 | L19: 全国 | M19: 最良値 （都道府県） | R19: グラフ | T19: 検B-020104 | U19: =VLOOKUP(T19,INDEXTBL!$C$1:$N$1216,3,FALSE) -> 精検受診率（女）（％） | V19: =VLOOKUP(T19,INDEXTBL!$C$1:$N$1216,_xlfn.SWITCH($B$2,"胃がん",8,"大腸がん",6,"肺がん",7,"女性乳房がん",9,"子宮頸部がん",5),FALSE) -> 大腸64 | W19: =IFERROR(TEXT(HLOOKUP(VLOOKUP($T19,INDEXTBL!$C$1:$N$1216,$C$3,FALSE),DATA!$C$2:$DAD$14,8,FALSE),"0.0")&"%","NA") -> 58.3% | X19: =IFERROR(TEXT(HLOOKUP(VLOOKUP($T19,INDEXTBL!$C$1:$N$1216,$C$3,FALSE),DATA!$C$2:$DAD$14,7,FALSE),"0.0")&"%","NA") -> 70.1% | Y19: =IFERROR(TEXT(_xlfn.AGGREGATE(4,7,OFFSET(DATA!$A$1,14,MATCH(VLOOKUP($T19,INDEXTBL!$C$1:$N$1216,$C$3,FALSE),DATA!$A$2:$DAD$2,0)-1,47,1)),"0.0")&"%" &" （"& Z19 & "）","NA") -> 89.6% （滋賀県） | Z19: =INDEX(DATA!$C$15:$C$61,MATCH(_xlfn.AGGREGATE(4,7,OFFSET(DATA!$A$1,14,MATCH(VLOOKUP($T19,INDEXTBL!$C$1:$N$1216,$C$3,FALSE),DATA!$A$2:$DAD$2,0)-1,47,1)),OFFSET(DATA!$A$1,14,MATCH(VLOOKUP($T19,INDEXTBL!$C$1:$N$1216,$C$3,FALSE),DATA!$A$2:$DAD$2,0)-1,47,1),0)) -> 滋賀県
H20: 検D-020201 | I20: =VLOOKUP(H20,INDEXTBL!$C$1:$N$1216,3,FALSE) -> 研修を終了した担当者等の数（人） | J20: EX177 | K20: =IFERROR(HLOOKUP(VLOOKUP($H20,INDEXTBL!$C$1:$N$1216,5,FALSE),DATA!$C$2:$DAD$14,8,FALSE),"NA") -> 25 | L20: =IFERROR(HLOOKUP(VLOOKUP($H20,INDEXTBL!$C$1:$N$1216,$C$3,FALSE),DATA!$C$2:$DAD$14,7,FALSE),"NA") -> NA | M20: =IFERROR(HLOOKUP(VLOOKUP($H20,INDEXTBL!$C$1:$N$1216,$C$3,FALSE),DATA!$C$2:$DAD$14,10,FALSE),"NA") -> NA | R20: グラフ | T20: 検B-020105 | U20: =VLOOKUP(T20,INDEXTBL!$C$1:$N$1216,3,FALSE) -> 精検未受診率（男）（％） | V20: =VLOOKUP(T20,INDEXTBL!$C$1:$N$1216,_xlfn.SWITCH($B$2,"胃がん",8,"大腸がん",6,"肺がん",7,"女性乳房がん",9,"子宮頸部がん",5),FALSE) -> 大腸A03 | W20: =IFERROR(TEXT(HLOOKUP(VLOOKUP($T20,INDEXTBL!$C$1:$N$1216,$C$3,FALSE),DATA!$C$2:$DAD$14,8,FALSE),"0.0")&"%","NA") -> 18.1% | X20: =IFERROR(TEXT(HLOOKUP(VLOOKUP($T20,INDEXTBL!$C$1:$N$1216,$C$3,FALSE),DATA!$C$2:$DAD$14,7,FALSE),"0.0")&"%","NA") -> 14.9% | Y20: =IFERROR(TEXT(_xlfn.AGGREGATE(5,7,OFFSET(DATA!$A$1,14,MATCH(VLOOKUP($T20,INDEXTBL!$C$1:$N$1216,$C$3,FALSE),DATA!$A$2:$DAD$2,0)-1,47,1)),"0.0")&"%" &" （"& Z20 & "）","NA") -> 0.8% （福井県） | Z20: =INDEX(DATA!$C$15:$C$61,MATCH(_xlfn.AGGREGATE(5,7,OFFSET(DATA!$A$1,14,MATCH(VLOOKUP($T20,INDEXTBL!$C$1:$N$1216,$C$3,FALSE),DATA!$A$2:$DAD$2,0)-1,47,1)),OFFSET(DATA!$A$1,14,MATCH(VLOOKUP($T20,INDEXTBL!$C$1:$N$1216,$C$3,FALSE),DATA!$A$2:$DAD$2,0)-1,47,1),0)) -> 福井県
E21: 検D-0203 | I21: =VLOOKUP(E21,INDEXTBL!$A$1:$N$1216,2,FALSE) -> 県は、がん登録情報等を活用したがん検診の精度管理について、市町村へ技術的支援等を行う | K21: 沖縄県 | L21: 全国 | M21: 最良値 （都道府県） | R21: グラフ | T21: 検B-020106 | U21: =VLOOKUP(T21,INDEXTBL!$C$1:$N$1216,3,FALSE) -> 精検未受診率（女）（％） | V21: =VLOOKUP(T21,INDEXTBL!$C$1:$N$1216,_xlfn.SWITCH($B$2,"胃がん",8,"大腸がん",6,"肺がん",7,"女性乳房がん",9,"子宮頸部がん",5),FALSE) -> 大腸A04 | W21: =IFERROR(TEXT(HLOOKUP(VLOOKUP($T21,INDEXTBL!$C$1:$N$1216,$C$3,FALSE),DATA!$C$2:$DAD$14,8,FALSE),"0.0")&"%","NA") -> 15.3% | X21: =IFERROR(TEXT(HLOOKUP(VLOOKUP($T21,INDEXTBL!$C$1:$N$1216,$C$3,FALSE),DATA!$C$2:$DAD$14,7,FALSE),"0.0")&"%","NA") -> 13.8% | Y21: =IFERROR(TEXT(_xlfn.AGGREGATE(5,7,OFFSET(DATA!$A$1,14,MATCH(VLOOKUP($T21,INDEXTBL!$C$1:$N$1216,$C$3,FALSE),DATA!$A$2:$DAD$2,0)-1,47,1)),"0.0")&"%" &" （"& Z21 & "）","NA") -> 1.2% （福井県） | Z21: =INDEX(DATA!$C$15:$C$61,MATCH(_xlfn.AGGREGATE(5,7,OFFSET(DATA!$A$1,14,MATCH(VLOOKUP($T21,INDEXTBL!$C$1:$N$1216,$C$3,FALSE),DATA!$A$2:$DAD$2,0)-1,47,1)),OFFSET(DATA!$A$1,14,MATCH(VLOOKUP($T21,INDEXTBL!$C$1:$N$1216,$C$3,FALSE),DATA!$A$2:$DAD$2,0)-1,47,1),0)) -> 福井県
H22: 検D-020301 | I22: =VLOOKUP(H22,INDEXTBL!$C$1:$N$1216,3,FALSE) -> がん登録情報を活用した精度管理実施市町村の割合（％） | J22: EX178 | K22: =IFERROR(HLOOKUP(VLOOKUP($H22,INDEXTBL!$C$1:$N$1216,5,FALSE),DATA!$C$2:$DAD$14,8,FALSE)*100&"%","NA") -> 0% | L22: =IFERROR(HLOOKUP(VLOOKUP($H22,INDEXTBL!$C$1:$N$1216,$C$3,FALSE),DATA!$C$2:$DAD$14,7,FALSE),"NA") -> NA | M22: =IFERROR(HLOOKUP(VLOOKUP($H22,INDEXTBL!$C$1:$N$1216,$C$3,FALSE),DATA!$C$2:$DAD$14,10,FALSE),"NA") -> NA | R22: グラフ | T22: 検B-020107 | U22: =IF(OR($C$2="女性乳房",$C$2="子宮頸部"),"-",VLOOKUP(T22,INDEXTBL!$C$1:$N$1216,3,FALSE)) -> 精検未把握率（男）（％） | V22: =VLOOKUP(T22,INDEXTBL!$C$1:$N$1216,_xlfn.SWITCH($B$2,"胃がん",8,"大腸がん",6,"肺がん",7,"女性乳房がん",9,"子宮頸部がん",5),FALSE) -> 大腸A05 | W22: =IFERROR(TEXT(HLOOKUP(VLOOKUP($T22,INDEXTBL!$C$1:$N$1216,$C$3,FALSE),DATA!$C$2:$DAD$14,8,FALSE),"0.0")&"%","NA") -> 27.4% | X22: =IFERROR(TEXT(HLOOKUP(VLOOKUP($T22,INDEXTBL!$C$1:$N$1216,$C$3,FALSE),DATA!$C$2:$DAD$14,7,FALSE),"0.0")&"%","NA") -> 18.0% | Y22: =IFERROR(TEXT(_xlfn.AGGREGATE(5,7,OFFSET(DATA!$A$1,14,MATCH(VLOOKUP($T22,INDEXTBL!$C$1:$N$1216,$C$3,FALSE),DATA!$A$2:$DAD$2,0)-1,47,1)),"0.0")&"%" &" （"& Z22 & "）","NA") -> 0.6% （新潟県） | Z22: =INDEX(DATA!$C$15:$C$61,MATCH(_xlfn.AGGREGATE(5,7,OFFSET(DATA!$A$1,14,MATCH(VLOOKUP($T22,INDEXTBL!$C$1:$N$1216,$C$3,FALSE),DATA!$A$2:$DAD$2,0)-1,47,1)),OFFSET(DATA!$A$1,14,MATCH(VLOOKUP($T22,INDEXTBL!$C$1:$N$1216,$C$3,FALSE),DATA!$A$2:$DAD$2,0)-1,47,1),0)) -> 新潟県
E23: 検D-0204 | I23: =VLOOKUP(E23,INDEXTBL!$A$1:$N$1216,2,FALSE) -> 県は、精密検査受診率の低い市町村の実態把握を行い、それらに関する指導・助言等を行う | K23: 沖縄県 | L23: 全国 | M23: 最良値 （都道府県） | R23: グラフ | T23: 検B-020108 | U23: =VLOOKUP(T23,INDEXTBL!$C$1:$N$1216,3,FALSE) -> 精検未把握率（女）（％） | V23: =VLOOKUP(T23,INDEXTBL!$C$1:$N$1216,_xlfn.SWITCH($B$2,"胃がん",8,"大腸がん",6,"肺がん",7,"女性乳房がん",9,"子宮頸部がん",5),FALSE) -> 大腸A06 | W23: =IFERROR(TEXT(HLOOKUP(VLOOKUP($T23,INDEXTBL!$C$1:$N$1216,$C$3,FALSE),DATA!$C$2:$DAD$14,8,FALSE),"0.0")&"%","NA") -> 26.4% | X23: =IFERROR(TEXT(HLOOKUP(VLOOKUP($T23,INDEXTBL!$C$1:$N$1216,$C$3,FALSE),DATA!$C$2:$DAD$14,7,FALSE),"0.0")&"%","NA") -> 16.1% | Y23: =IFERROR(TEXT(_xlfn.AGGREGATE(5,7,OFFSET(DATA!$A$1,14,MATCH(VLOOKUP($T23,INDEXTBL!$C$1:$N$1216,$C$3,FALSE),DATA!$A$2:$DAD$2,0)-1,47,1)),"0.0")&"%" &" （"& Z23 & "）","NA") -> 0.5% （新潟県） | Z23: =INDEX(DATA!$C$15:$C$61,MATCH(_xlfn.AGGREGATE(5,7,OFFSET(DATA!$A$1,14,MATCH(VLOOKUP($T23,INDEXTBL!$C$1:$N$1216,$C$3,FALSE),DATA!$A$2:$DAD$2,0)-1,47,1)),OFFSET(DATA!$A$1,14,MATCH(VLOOKUP($T23,INDEXTBL!$C$1:$N$1216,$C$3,FALSE),DATA!$A$2:$DAD$2,0)-1,47,1),0)) -> 新潟県
H24: 検D-020401 | I24: =VLOOKUP(H24,INDEXTBL!$C$1:$N$1216,3,FALSE) -> 県が指導・助言等を行った市町村数 | J24: EX179 | K24: =IFERROR(HLOOKUP(VLOOKUP($H24,INDEXTBL!$C$1:$N$1216,5,FALSE),DATA!$C$2:$DAD$14,8,FALSE),"NA") -> 41 | L24: =IFERROR(HLOOKUP(VLOOKUP($H24,INDEXTBL!$C$1:$N$1216,$C$3,FALSE),DATA!$C$2:$DAD$14,7,FALSE),"NA") -> NA | M24: =IFERROR(HLOOKUP(VLOOKUP($H24,INDEXTBL!$C$1:$N$1216,$C$3,FALSE),DATA!$C$2:$DAD$14,10,FALSE),"NA") -> NA | R24: グラフ | T24: 検B-020109 | U24: =IF(OR($C$2="女性乳房",$C$2="子宮頸部"),"-",VLOOKUP(T24,INDEXTBL!$C$1:$N$1216,3,FALSE)) -> がん発見率（男）（％） | V24: =VLOOKUP(T24,INDEXTBL!$C$1:$N$1216,_xlfn.SWITCH($B$2,"胃がん",8,"大腸がん",6,"肺がん",7,"女性乳房がん",9,"子宮頸部がん",5),FALSE) -> 大腸59 | W24: =IFERROR(TEXT(HLOOKUP(VLOOKUP($T24,INDEXTBL!$C$1:$N$1216,$C$3,FALSE),DATA!$C$2:$DAD$14,8,FALSE),"0.00")&"%","NA") -> 0.20% | X24: =IFERROR(TEXT(HLOOKUP(VLOOKUP($T24,INDEXTBL!$C$1:$N$1216,$C$3,FALSE),DATA!$C$2:$DAD$14,7,FALSE),"0.00")&"%","NA") -> 0.32% | Y24: =IFERROR(TEXT(_xlfn.AGGREGATE(4,7,OFFSET(DATA!$A$1,14,MATCH(VLOOKUP($T24,INDEXTBL!$C$1:$N$1216,$C$3,FALSE),DATA!$A$2:$DAD$2,0)-1,47,1)),"0.00")&"%" &" （"& Z24 & "）","NA") -> 0.51% （山口県） | Z24: =INDEX(DATA!$C$15:$C$61,MATCH(_xlfn.AGGREGATE(4,7,OFFSET(DATA!$A$1,14,MATCH(VLOOKUP($T24,INDEXTBL!$C$1:$N$1216,$C$3,FALSE),DATA!$A$2:$DAD$2,0)-1,47,1)),OFFSET(DATA!$A$1,14,MATCH(VLOOKUP($T24,INDEXTBL!$C$1:$N$1216,$C$3,FALSE),DATA!$A$2:$DAD$2,0)-1,47,1),0)) -> 山口県
E25: 検D-0205 | I25: =VLOOKUP(E25,INDEXTBL!$A$1:$N$1216,2,FALSE) -> 市町村は、指針に基づいたがん検診の実施及び精度管理の向上を行う | K25: 沖縄県 | L25: 全国 | M25: 最良値 （都道府県） | R25: グラフ | T25: 検B-020110 | U25: =VLOOKUP(T25,INDEXTBL!$C$1:$N$1216,3,FALSE) -> がん発見率（女）（％） | V25: =VLOOKUP(T25,INDEXTBL!$C$1:$N$1216,_xlfn.SWITCH($B$2,"胃がん",8,"大腸がん",6,"肺がん",7,"女性乳房がん",9,"子宮頸部がん",5),FALSE) -> 大腸60 | W25: =IFERROR(TEXT(HLOOKUP(VLOOKUP($T25,INDEXTBL!$C$1:$N$1216,$C$3,FALSE),DATA!$C$2:$DAD$14,8,FALSE),"0.00")&"%","NA") -> 0.10% | X25: =IFERROR(TEXT(HLOOKUP(VLOOKUP($T25,INDEXTBL!$C$1:$N$1216,$C$3,FALSE),DATA!$C$2:$DAD$14,7,FALSE),"0.00")&"%","NA") -> 0.18% | Y25: =IFERROR(TEXT(_xlfn.AGGREGATE(4,7,OFFSET(DATA!$A$1,14,MATCH(VLOOKUP($T25,INDEXTBL!$C$1:$N$1216,$C$3,FALSE),DATA!$A$2:$DAD$2,0)-1,47,1)),"0.00")&"%" &" （"& Z25 & "）","NA") -> 0.27% （富山県） | Z25: =INDEX(DATA!$C$15:$C$61,MATCH(_xlfn.AGGREGATE(4,7,OFFSET(DATA!$A$1,14,MATCH(VLOOKUP($T25,INDEXTBL!$C$1:$N$1216,$C$3,FALSE),DATA!$A$2:$DAD$2,0)-1,47,1)),OFFSET(DATA!$A$1,14,MATCH(VLOOKUP($T25,INDEXTBL!$C$1:$N$1216,$C$3,FALSE),DATA!$A$2:$DAD$2,0)-1,47,1),0)) -> 富山県
H26: 検D-020501 | I26: =VLOOKUP(H26,INDEXTBL!$C$1:$N$1216,3,FALSE) -> 国の示す「市町村事業におけるがん検診の事業評価の手法について」に基づいた事業評価をしている検診実施機関の割合（％） | J26: EX180 | K26: =IFERROR(HLOOKUP(VLOOKUP($H26,INDEXTBL!$C$1:$N$1216,5,FALSE),DATA!$C$2:$DAD$14,8,FALSE)*100&"%","NA") -> NA | L26: =IFERROR(HLOOKUP(VLOOKUP($H26,INDEXTBL!$C$1:$N$1216,$C$3,FALSE),DATA!$C$2:$DAD$14,7,FALSE),"NA") -> NA | M26: =IFERROR(HLOOKUP(VLOOKUP($H26,INDEXTBL!$C$1:$N$1216,$C$3,FALSE),DATA!$C$2:$DAD$14,10,FALSE),"NA") -> NA | R26: グラフ | T26: 検B-020111 | U26: =IF(OR($C$2="女性乳房",$C$2="子宮頸部"),"-",VLOOKUP(T26,INDEXTBL!$C$1:$N$1216,3,FALSE)) -> 陽性反応的中度（男）（％） | V26: =VLOOKUP(T26,INDEXTBL!$C$1:$N$1216,_xlfn.SWITCH($B$2,"胃がん",8,"大腸がん",6,"肺がん",7,"女性乳房がん",9,"子宮頸部がん",5),FALSE) -> 大腸61 | W26: =IFERROR(TEXT(HLOOKUP(VLOOKUP($T26,INDEXTBL!$C$1:$N$1216,$C$3,FALSE),DATA!$C$2:$DAD$14,8,FALSE),"0.00")&"%","NA") -> 2.32% | X26: =IFERROR(TEXT(HLOOKUP(VLOOKUP($T26,INDEXTBL!$C$1:$N$1216,$C$3,FALSE),DATA!$C$2:$DAD$14,7,FALSE),"0.00")&"%","NA") -> 3.39% | Y26: =IFERROR(TEXT(_xlfn.AGGREGATE(4,7,OFFSET(DATA!$A$1,14,MATCH(VLOOKUP($T26,INDEXTBL!$C$1:$N$1216,$C$3,FALSE),DATA!$A$2:$DAD$2,0)-1,47,1)),"0.00")&"%" &" （"& Z26 & "）","NA") -> 5.63% （新潟県） | Z26: =INDEX(DATA!$C$15:$C$61,MATCH(_xlfn.AGGREGATE(4,7,OFFSET(DATA!$A$1,14,MATCH(VLOOKUP($T26,INDEXTBL!$C$1:$N$1216,$C$3,FALSE),DATA!$A$2:$DAD$2,0)-1,47,1)),OFFSET(DATA!$A$1,14,MATCH(VLOOKUP($T26,INDEXTBL!$C$1:$N$1216,$C$3,FALSE),DATA!$A$2:$DAD$2,0)-1,47,1),0)) -> 新潟県
H27: 検D-020502 | I27: =VLOOKUP(H27,INDEXTBL!$C$1:$N$1216,3,FALSE) -> 精度管理の実態や指標を定期的に評価・公開している市町村の割合（％） | J27: EX181 | K27: =IFERROR(HLOOKUP(VLOOKUP($H27,INDEXTBL!$C$1:$N$1216,5,FALSE),DATA!$C$2:$DAD$14,8,FALSE)*100&"%","NA") -> 100% | L27: =IFERROR(HLOOKUP(VLOOKUP($H27,INDEXTBL!$C$1:$N$1216,$C$3,FALSE),DATA!$C$2:$DAD$14,7,FALSE),"NA") -> NA | M27: =IFERROR(HLOOKUP(VLOOKUP($H27,INDEXTBL!$C$1:$N$1216,$C$3,FALSE),DATA!$C$2:$DAD$14,10,FALSE),"NA") -> NA | R27: グラフ | T27: 検B-020112 | U27: =VLOOKUP(T27,INDEXTBL!$C$1:$N$1216,3,FALSE) -> 陽性反応的中度（女）（％） | V27: =VLOOKUP(T27,INDEXTBL!$C$1:$N$1216,_xlfn.SWITCH($B$2,"胃がん",8,"大腸がん",6,"肺がん",7,"女性乳房がん",9,"子宮頸部がん",5),FALSE) -> 大腸62 | W27: =IFERROR(TEXT(HLOOKUP(VLOOKUP($T27,INDEXTBL!$C$1:$N$1216,$C$3,FALSE),DATA!$C$2:$DAD$14,8,FALSE),"0.00")&"%","NA") -> 1.62% | X27: =IFERROR(TEXT(HLOOKUP(VLOOKUP($T27,INDEXTBL!$C$1:$N$1216,$C$3,FALSE),DATA!$C$2:$DAD$14,7,FALSE),"0.00")&"%","NA") -> 2.73% | Y27: =IFERROR(TEXT(_xlfn.AGGREGATE(4,7,OFFSET(DATA!$A$1,14,MATCH(VLOOKUP($T27,INDEXTBL!$C$1:$N$1216,$C$3,FALSE),DATA!$A$2:$DAD$2,0)-1,47,1)),"0.00")&"%" &" （"& Z27 & "）","NA") -> 4.47% （富山県） | Z27: =INDEX(DATA!$C$15:$C$61,MATCH(_xlfn.AGGREGATE(4,7,OFFSET(DATA!$A$1,14,MATCH(VLOOKUP($T27,INDEXTBL!$C$1:$N$1216,$C$3,FALSE),DATA!$A$2:$DAD$2,0)-1,47,1)),OFFSET(DATA!$A$1,14,MATCH(VLOOKUP($T27,INDEXTBL!$C$1:$N$1216,$C$3,FALSE),DATA!$A$2:$DAD$2,0)-1,47,1),0)) -> 富山県
H28: 検D-020503 | I28: =VLOOKUP(H28,INDEXTBL!$C$1:$N$1216,3,FALSE) -> 精度管理の実態や指標を定期的に評価・公開している検診実施機関の割合（％） | J28: EX182 | K28: =IFERROR(HLOOKUP(VLOOKUP($H28,INDEXTBL!$C$1:$N$1216,5,FALSE),DATA!$C$2:$DAD$14,8,FALSE)*100&"%","NA") -> 89.4% | L28: =IFERROR(HLOOKUP(VLOOKUP($H28,INDEXTBL!$C$1:$N$1216,$C$3,FALSE),DATA!$C$2:$DAD$14,7,FALSE),"NA") -> NA | M28: =IFERROR(HLOOKUP(VLOOKUP($H28,INDEXTBL!$C$1:$N$1216,$C$3,FALSE),DATA!$C$2:$DAD$14,10,FALSE),"NA") -> NA | T28: 検B-020113 | U28: =IF(OR($C$2="女性乳房",$C$2="子宮頸部"),"-",VLOOKUP(T28,INDEXTBL!$C$1:$N$1216,3,FALSE)) -> 感度 | V28: =VLOOKUP(T28,INDEXTBL!$C$1:$N$1216,_xlfn.SWITCH($B$2,"胃がん",8,"大腸がん",6,"肺がん",7,"女性乳房がん",9,"子宮頸部がん",5),FALSE) -> 0 | W28: =IFERROR(HLOOKUP(VLOOKUP($T28,INDEXTBL!$C$1:$N$1216,$C$3,FALSE),DATA!$C$2:$DAD$14,8,FALSE),"NA") -> NA | X28: =IFERROR(HLOOKUP(VLOOKUP($T28,INDEXTBL!$C$1:$N$1216,$C$3,FALSE),DATA!$C$2:$DAD$14,7,FALSE),"NA") -> NA | Y28: =IFERROR(TEXT(_xlfn.AGGREGATE(4,7,OFFSET(DATA!$A$1,14,MATCH(VLOOKUP($T28,INDEXTBL!$C$1:$N$1216,$C$3,FALSE),DATA!$A$2:$DAD$2,0)-1,47,1)),"0.0")&"%" &" （"& Z28 & "）","NA") -> NA | Z28: =INDEX(DATA!$C$15:$C$61,MATCH(_xlfn.AGGREGATE(4,7,OFFSET(DATA!$A$1,14,MATCH(VLOOKUP($T28,INDEXTBL!$C$1:$N$1216,$C$3,FALSE),DATA!$A$2:$DAD$2,0)-1,47,1)),OFFSET(DATA!$A$1,14,MATCH(VLOOKUP($T28,INDEXTBL!$C$1:$N$1216,$C$3,FALSE),DATA!$A$2:$DAD$2,0)-1,47,1),0)) -> 
H29: 検D-020504 | I29: =VLOOKUP(H29,INDEXTBL!$C$1:$N$1216,3,FALSE) -> 要精検率の許容値を達成している市町村の割合（％） | J29: EX183 | K29: =IFERROR(HLOOKUP(VLOOKUP($H29,INDEXTBL!$C$1:$N$1216,5,FALSE),DATA!$C$2:$DAD$14,8,FALSE)*100&"%","NA") -> 57.5% | L29: =IFERROR(HLOOKUP(VLOOKUP($H29,INDEXTBL!$C$1:$N$1216,$C$3,FALSE),DATA!$C$2:$DAD$14,7,FALSE),"NA") -> NA | M29: =IFERROR(HLOOKUP(VLOOKUP($H29,INDEXTBL!$C$1:$N$1216,$C$3,FALSE),DATA!$C$2:$DAD$14,10,FALSE),"NA") -> NA | T29: 検B-020114 | U29: =VLOOKUP(T29,INDEXTBL!$C$1:$N$1216,3,FALSE) -> 特異度 | V29: =VLOOKUP(T29,INDEXTBL!$C$1:$N$1216,_xlfn.SWITCH($B$2,"胃がん",8,"大腸がん",6,"肺がん",7,"女性乳房がん",9,"子宮頸部がん",5),FALSE) -> 0 | W29: =IFERROR(HLOOKUP(VLOOKUP($T29,INDEXTBL!$C$1:$N$1216,$C$3,FALSE),DATA!$C$2:$DAD$14,8,FALSE),"NA") -> NA | X29: =IFERROR(HLOOKUP(VLOOKUP($T29,INDEXTBL!$C$1:$N$1216,$C$3,FALSE),DATA!$C$2:$DAD$14,7,FALSE),"NA") -> NA | Y29: =IFERROR(TEXT(_xlfn.AGGREGATE(4,7,OFFSET(DATA!$A$1,14,MATCH(VLOOKUP($T29,INDEXTBL!$C$1:$N$1216,$C$3,FALSE),DATA!$A$2:$DAD$2,0)-1,47,1)),"0.0")&"%" &" （"& Z29 & "）","NA") -> NA | Z29: =INDEX(DATA!$C$15:$C$61,MATCH(_xlfn.AGGREGATE(4,7,OFFSET(DATA!$A$1,14,MATCH(VLOOKUP($T29,INDEXTBL!$C$1:$N$1216,$C$3,FALSE),DATA!$A$2:$DAD$2,0)-1,47,1)),OFFSET(DATA!$A$1,14,MATCH(VLOOKUP($T29,INDEXTBL!$C$1:$N$1216,$C$3,FALSE),DATA!$A$2:$DAD$2,0)-1,47,1),0)) -> 
H30: 検D-020505 | I30: =VLOOKUP(H30,INDEXTBL!$C$1:$N$1216,3,FALSE) -> 精検受診率の目標値90%以上を達成している市町村の割合（％） | J30: EX184 | K30: =IFERROR(HLOOKUP(VLOOKUP($H30,INDEXTBL!$C$1:$N$1216,5,FALSE),DATA!$C$2:$DAD$14,8,FALSE)*100&"%","NA") -> 2.4% | L30: =IFERROR(HLOOKUP(VLOOKUP($H30,INDEXTBL!$C$1:$N$1216,$C$3,FALSE),DATA!$C$2:$DAD$14,7,FALSE),"NA") -> NA | M30: =IFERROR(HLOOKUP(VLOOKUP($H30,INDEXTBL!$C$1:$N$1216,$C$3,FALSE),DATA!$C$2:$DAD$14,10,FALSE),"NA") -> NA
H31: 検D-020506 | I31: =VLOOKUP(H31,INDEXTBL!$C$1:$N$1216,3,FALSE) -> 未把握率の目標値5%以下を達成している市町村の割合（％） | J31: EX185 | K31: =IFERROR(HLOOKUP(VLOOKUP($H31,INDEXTBL!$C$1:$N$1216,5,FALSE),DATA!$C$2:$DAD$14,8,FALSE)*100&"%","NA") -> 14.6% | L31: =IFERROR(HLOOKUP(VLOOKUP($H31,INDEXTBL!$C$1:$N$1216,$C$3,FALSE),DATA!$C$2:$DAD$14,7,FALSE),"NA") -> NA | M31: =IFERROR(HLOOKUP(VLOOKUP($H31,INDEXTBL!$C$1:$N$1216,$C$3,FALSE),DATA!$C$2:$DAD$14,10,FALSE),"NA") -> NA
H32: 検D-020507 | I32: =VLOOKUP(H32,INDEXTBL!$C$1:$N$1216,3,FALSE) -> 精検未受診率の目標値5%以下を達成している市町村の割合（％） | J32: EX186 | K32: =IFERROR(HLOOKUP(VLOOKUP($H32,INDEXTBL!$C$1:$N$1216,5,FALSE),DATA!$C$2:$DAD$14,8,FALSE)*100&"%","NA") -> 41.5% | L32: =IFERROR(HLOOKUP(VLOOKUP($H32,INDEXTBL!$C$1:$N$1216,$C$3,FALSE),DATA!$C$2:$DAD$14,7,FALSE),"NA") -> NA | M32: =IFERROR(HLOOKUP(VLOOKUP($H32,INDEXTBL!$C$1:$N$1216,$C$3,FALSE),DATA!$C$2:$DAD$14,10,FALSE),"NA") -> NA
H33: 検D-020508 | I33: =VLOOKUP(H33,INDEXTBL!$C$1:$N$1216,3,FALSE) -> 感度と特異度の把握をしている市町村の割合（％） | J33: EX187 | K33: =IFERROR(HLOOKUP(VLOOKUP($H33,INDEXTBL!$C$1:$N$1216,5,FALSE),DATA!$C$2:$DAD$14,8,FALSE)*100&"%","NA") -> 9.8% | L33: =IFERROR(HLOOKUP(VLOOKUP($H33,INDEXTBL!$C$1:$N$1216,$C$3,FALSE),DATA!$C$2:$DAD$14,7,FALSE),"NA") -> NA | M33: =IFERROR(HLOOKUP(VLOOKUP($H33,INDEXTBL!$C$1:$N$1216,$C$3,FALSE),DATA!$C$2:$DAD$14,10,FALSE),"NA") -> NA
H34: 検D-020509 | I34: =VLOOKUP(H34,INDEXTBL!$C$1:$N$1216,3,FALSE) -> 感度と特異度の把握をしている検診実施機関の割合（％） | J34: EX188 | K34: =IFERROR(HLOOKUP(VLOOKUP($H34,INDEXTBL!$C$1:$N$1216,5,FALSE),DATA!$C$2:$DAD$14,8,FALSE)*100&"%","NA") -> NA | L34: =IFERROR(HLOOKUP(VLOOKUP($H34,INDEXTBL!$C$1:$N$1216,$C$3,FALSE),DATA!$C$2:$DAD$14,7,FALSE),"NA") -> NA | M34: =IFERROR(HLOOKUP(VLOOKUP($H34,INDEXTBL!$C$1:$N$1216,$C$3,FALSE),DATA!$C$2:$DAD$14,10,FALSE),"NA") -> NA
E35: 検D-0206 | I35: =VLOOKUP(E35,INDEXTBL!$A$1:$N$1216,2,FALSE) -> 職域を含めた、がん検診の実施者による分かりやすい情報提供を推進する | K35: 沖縄県 | L35: 全国 | M35: 最良値 （都道府県）
H36: 検D-020601 | I36: =VLOOKUP(H36,INDEXTBL!$C$1:$N$1216,3,FALSE) -> がん検診の正しい情報提供を実施した市町村の割合（％） | J36: EX189 | K36: =IFERROR(TEXT(HLOOKUP(VLOOKUP($H36,INDEXTBL!$C$1:$N$1216,5,FALSE),DATA!$C$2:$DAD$14,8,FALSE),"0.0")&"%","NA") -> 77.5% | L36: =IFERROR(TEXT(HLOOKUP(VLOOKUP($H36,INDEXTBL!$C$1:$N$1216,5,FALSE),DATA!$C$2:$DAD$14,7,FALSE),"0.0")&"%","NA") -> 80.1% | M36: =IFERROR(TEXT(_xlfn.AGGREGATE(4,7,OFFSET(DATA!$A$1,14,MATCH(VLOOKUP($H36,INDEXTBL!$C$1:$N$1216,5,FALSE),DATA!$A$2:$DAD$2,0)-1,47,1)),"0.0")&"%" &" （"& N36 & "）","NA") -> 100.0% （青森県） | N36: =INDEX(DATA!$C$15:$C$61,MATCH(_xlfn.AGGREGATE(4,7,OFFSET(DATA!$A$1,14,MATCH(VLOOKUP($H36,INDEXTBL!$C$1:$N$1216,5,FALSE),DATA!$A$2:$DAD$2,0)-1,47,1)),OFFSET(DATA!$A$1,14,MATCH(VLOOKUP($H36,INDEXTBL!$C$1:$N$1216,5,FALSE),DATA!$A$2:$DAD$2,0)-1,47,1),0)) -> 青森県
E41: ③受診率対策について | Q41: 検B-0301 | U41: =VLOOKUP(Q41,INDEXTBL!$A$1:$N$1216,2,FALSE) -> 科学的根拠に基づく受診勧奨を行い、検診受診率の増加ができている | W41: 沖縄県 | X41: 全国 | Y41: 最良値 （都道府県）
E42: 検D-0301 | I42: =VLOOKUP(E42,INDEXTBL!$A$1:$N$1216,2,FALSE) -> 受診率向上に向けて、がん検診受診率をより正確かつ精緻に、また、個人単位で把握することができるように検討する | K42: 沖縄県 | L42: 全国 | M42: 最良値 （都道府県） | R42: グラフ | T42: 検B-030101 | U42: =IF(OR($C$2="女性乳房",$C$2="子宮頸部"),"-",VLOOKUP(T42,INDEXTBL!$C$1:$N$1216,3,FALSE)) -> 検診受診率（国民生活基礎調査）（男）（％） | V42: =VLOOKUP(T42,INDEXTBL!$C$1:$N$1216,_xlfn.SWITCH($B$2,"胃がん",8,"大腸がん",6,"肺がん",7,"女性乳房がん",9,"子宮頸部がん",5),FALSE) -> 大腸69 | W42: =IFERROR(TEXT(HLOOKUP(VLOOKUP($T42,INDEXTBL!$C$1:$N$1216,$C$3,FALSE),DATA!$C$2:$DAD$14,8,FALSE),"0.0")&"%","NA") -> 40.0% | X42: =IFERROR(TEXT(HLOOKUP(VLOOKUP($T42,INDEXTBL!$C$1:$N$1216,$C$3,FALSE),DATA!$C$2:$DAD$14,7,FALSE),"0.0")&"%","NA") -> 49.1% | Y42: =IFERROR(TEXT(_xlfn.AGGREGATE(4,7,OFFSET(DATA!$A$1,14,MATCH(VLOOKUP($T42,INDEXTBL!$C$1:$N$1216,$C$3,FALSE),DATA!$A$2:$DAD$2,0)-1,47,1)),"0.0")&"%" &" （"& Z42 & "）","NA") -> 65.1% （山形県） | Z42: =INDEX(DATA!$C$15:$C$61,MATCH(_xlfn.AGGREGATE(4,7,OFFSET(DATA!$A$1,14,MATCH(VLOOKUP($T42,INDEXTBL!$C$1:$N$1216,$C$3,FALSE),DATA!$A$2:$DAD$2,0)-1,47,1)),OFFSET(DATA!$A$1,14,MATCH(VLOOKUP($T42,INDEXTBL!$C$1:$N$1216,$C$3,FALSE),DATA!$A$2:$DAD$2,0)-1,47,1),0)) -> 山形県
H43: 検D-030101 | I43: =VLOOKUP(H43,INDEXTBL!$C$1:$N$1216,3,FALSE) -> 検討を行っている市町村の割合（％） | J43: =VLOOKUP(H43,INDEXTBL!$C$1:$N$1216,5,FALSE) -> EX190 | K43: =IFERROR(TEXT(HLOOKUP(VLOOKUP($H43,INDEXTBL!$C$1:$N$1216,5,FALSE),DATA!$C$2:$DAD$14,8,FALSE),"0.0")&"%","NA") -> 34.1% | L43: =IFERROR(HLOOKUP(VLOOKUP($H43,INDEXTBL!$C$1:$N$1216,$C$3,FALSE),DATA!$C$2:$DAD$14,7,FALSE),"NA") -> NA | M43: =IFERROR(HLOOKUP(VLOOKUP($H43,INDEXTBL!$C$1:$N$1216,$C$3,FALSE),DATA!$C$2:$DAD$14,10,FALSE),"NA") -> NA | R43: グラフ | T43: 検B-030102 | U43: =VLOOKUP(T43,INDEXTBL!$C$1:$N$1216,3,FALSE) -> 検診受診率（国民生活基礎調査）（女）（％） | V43: =VLOOKUP(T43,INDEXTBL!$C$1:$N$1216,_xlfn.SWITCH($B$2,"胃がん",8,"大腸がん",6,"肺がん",7,"女性乳房がん",9,"子宮頸部がん",5),FALSE) -> 大腸70 | W43: =IFERROR(TEXT(HLOOKUP(VLOOKUP($T43,INDEXTBL!$C$1:$N$1216,$C$3,FALSE),DATA!$C$2:$DAD$14,8,FALSE),"0.0")&"%","NA") -> 37.0% | X43: =IFERROR(TEXT(HLOOKUP(VLOOKUP($T43,INDEXTBL!$C$1:$N$1216,$C$3,FALSE),DATA!$C$2:$DAD$14,7,FALSE),"0.0")&"%","NA") -> 42.8% | Y43: =IFERROR(TEXT(_xlfn.AGGREGATE(4,7,OFFSET(DATA!$A$1,14,MATCH(VLOOKUP($T43,INDEXTBL!$C$1:$N$1216,$C$3,FALSE),DATA!$A$2:$DAD$2,0)-1,47,1)),"0.0")&"%" &" （"& Z43 & "）","NA") -> 63.1% （山形県） | Z43: =INDEX(DATA!$C$15:$C$61,MATCH(_xlfn.AGGREGATE(4,7,OFFSET(DATA!$A$1,14,MATCH(VLOOKUP($T43,INDEXTBL!$C$1:$N$1216,$C$3,FALSE),DATA!$A$2:$DAD$2,0)-1,47,1)),OFFSET(DATA!$A$1,14,MATCH(VLOOKUP($T43,INDEXTBL!$C$1:$N$1216,$C$3,FALSE),DATA!$A$2:$DAD$2,0)-1,47,1),0)) -> 山形県
E44: 検D-0302 | I44: =VLOOKUP(E44,INDEXTBL!$A$1:$N$1216,2,FALSE) -> 市町村及び県が連携して、より科学的かつ効率的な受診勧奨策（コール・リコールなど）を推進し検診受診率を増加する | K44: 沖縄県 | L44: 全国 | M44: 最良値 （都道府県）
F45: グラフ | H45: 検D-030201 | I45: =VLOOKUP(H45,INDEXTBL!$C$1:$N$1216,3,FALSE) -> 受診勧奨実施市町村の割合（％） | J45: =VLOOKUP(H45,INDEXTBL!$C$1:$N$1216,5,FALSE) -> EX164 | K45: =IFERROR(TEXT(HLOOKUP(VLOOKUP($H45,INDEXTBL!$C$1:$N$1216,5,FALSE),DATA!$C$2:$DAD$14,8,FALSE),"0.0")&"%","NA") -> 65.9% | L45: =IFERROR(TEXT(HLOOKUP(VLOOKUP($H45,INDEXTBL!$C$1:$N$1216,5,FALSE),DATA!$C$2:$DAD$14,7,FALSE),"0.0")&"%","NA") -> 85.5% | M45: =IFERROR(TEXT(_xlfn.AGGREGATE(4,7,OFFSET(DATA!$A$1,14,MATCH(VLOOKUP($H45,INDEXTBL!$C$1:$N$1216,5,FALSE),DATA!$A$2:$DAD$2,0)-1,47,1)),"0.0")&"%" &" （"& N45 & "）","NA") -> 100.0% （富山県） | N45: =INDEX(DATA!$C$15:$C$61,MATCH(_xlfn.AGGREGATE(4,7,OFFSET(DATA!$A$1,14,MATCH(VLOOKUP($H45,INDEXTBL!$C$1:$N$1216,5,FALSE),DATA!$A$2:$DAD$2,0)-1,47,1)),OFFSET(DATA!$A$1,14,MATCH(VLOOKUP($H45,INDEXTBL!$C$1:$N$1216,5,FALSE),DATA!$A$2:$DAD$2,0)-1,47,1),0)) -> 富山県
H46: 検D-030202 | I46: =VLOOKUP(H46,INDEXTBL!$C$1:$N$1216,3,FALSE) -> 検診受診率の目標値60%以上を達成している市町村の割合（％） | J46: =VLOOKUP(H46,INDEXTBL!$C$1:$N$1216,5,FALSE) -> EX191 | K46: =IFERROR(TEXT(HLOOKUP(VLOOKUP($H46,INDEXTBL!$C$1:$N$1216,5,FALSE),DATA!$C$2:$DAD$14,8,FALSE),"0.0")&"%","NA") -> 0.0% | L46: =IFERROR(HLOOKUP(VLOOKUP($H46,INDEXTBL!$C$1:$N$1216,$C$3,FALSE),DATA!$C$2:$DAD$14,7,FALSE),"NA") -> NA | M46: =IFERROR(HLOOKUP(VLOOKUP($H46,INDEXTBL!$C$1:$N$1216,$C$3,FALSE),DATA!$C$2:$DAD$14,10,FALSE),"NA") -> NA
E47: 検D-0303 | I47: =VLOOKUP(E47,INDEXTBL!$A$1:$N$1216,2,FALSE) -> 市町村及び県は、受診者の立場に立ったがん検診を受診する上での利便性の向上を行う | K47: 沖縄県 | L47: 全国 | M47: 最良値 （都道府県）
H48: 検D-030301 | I48: =VLOOKUP(H48,INDEXTBL!$C$1:$N$1216,3,FALSE) -> 利便性の向上を行っている市町村の割合（％） | J48: 大腸82 | K48: =IFERROR(TEXT(HLOOKUP(VLOOKUP($H48,INDEXTBL!$C$1:$N$1216,$C$3,FALSE),DATA!$C$2:$DAD$14,8,FALSE),"0.0")&"%","NA") -> 80.0% | L48: =IFERROR(TEXT(HLOOKUP(VLOOKUP($H48,INDEXTBL!$C$1:$N$1216,$C$3,FALSE),DATA!$C$2:$DAD$14,7,FALSE),"0.0")&"%","NA") -> 85.4% | M48: =IFERROR(TEXT(_xlfn.AGGREGATE(4,7,OFFSET(DATA!$A$1,14,MATCH(VLOOKUP($H48,INDEXTBL!$C$1:$N$1216,$C$3,FALSE),DATA!$A$2:$DAD$2,0)-1,47,1)),"0.0")&"%" &" （"& N48 & "）","NA") -> 100.0% （岩手県） | N48: =INDEX(DATA!$C$15:$C$61,MATCH(_xlfn.AGGREGATE(4,7,OFFSET(DATA!$A$1,14,MATCH(VLOOKUP($H48,INDEXTBL!$C$1:$N$1216,$C$3,FALSE),DATA!$A$2:$DAD$2,0)-1,47,1)),OFFSET(DATA!$A$1,14,MATCH(VLOOKUP($H48,INDEXTBL!$C$1:$N$1216,$C$3,FALSE),DATA!$A$2:$DAD$2,0)-1,47,1),0)) -> 岩手県
E49: 検D-0304 | I49: =VLOOKUP(E49,INDEXTBL!$A$1:$N$1216,2,FALSE) -> 市町村は、啓発のための研修会等を行う | K49: 沖縄県 | L49: 全国 | M49: 最良値 （都道府県）
H50: 検D-030401 | I50: =VLOOKUP(H50,INDEXTBL!$C$1:$N$1216,3,FALSE) -> 普及啓発キャンペーン実施市町村数 | J50: =VLOOKUP(H50,INDEXTBL!$C$1:$N$1216,5,FALSE) -> EX045 | K50: =IFERROR(TEXT(HLOOKUP(VLOOKUP($H50,INDEXTBL!$C$1:$N$1216,5,FALSE),DATA!$C$2:$DAD$14,8,FALSE),"0"),"NA") -> 22 | L50: =IFERROR(HLOOKUP(VLOOKUP($H50,INDEXTBL!$C$1:$N$1216,5,FALSE),DATA!$C$2:$DAD$14,7,FALSE),"NA") -> NA | M50: =IFERROR(_xlfn.AGGREGATE(5,7,OFFSET(DATA!$A$1,14,MATCH(VLOOKUP($H50,INDEXTBL!$C$1:$N$1216,5,FALSE),DATA!$A$2:$DAD$2,0)-1,47,1)) &" （"& N50 & "）","NA") -> NA | N50: =INDEX(DATA!$C$15:$C$61,MATCH(_xlfn.AGGREGATE(4,7,OFFSET(DATA!$A$1,14,MATCH(VLOOKUP($H50,INDEXTBL!$C$1:$N$1216,5,FALSE),DATA!$A$2:$DAD$2,0)-1,47,1)),OFFSET(DATA!$A$1,14,MATCH(VLOOKUP($H50,INDEXTBL!$C$1:$N$1216,5,FALSE),DATA!$A$2:$DAD$2,0)-1,47,1),0)) -> 
E51: 検D-0305 | I51: =VLOOKUP(E51,INDEXTBL!$A$1:$N$1216,2,FALSE) -> 県は、職域等におけるがん検診や人間ドックについて、実施状況の継続的な把握に務める | K51: 沖縄県 | L51: 全国 | M51: 最良値 （都道府県）
H52: 検D-030501 | I52: =VLOOKUP(H52,INDEXTBL!$C$1:$N$1216,3,FALSE) -> 指針に基づく検診の実施率（％） | J52: =VLOOKUP(H52,INDEXTBL!$C$1:$N$1216,_xlfn.SWITCH($B$2,"胃がん",8,"大腸がん",6,"肺がん",7,"女性乳房がん",9,"子宮頸部がん",5),FALSE) -> 0 | K52: =IFERROR(HLOOKUP(VLOOKUP($H52,INDEXTBL!$C$1:$N$1216,$C$3,FALSE),DATA!$C$2:$DAD$14,8,FALSE),"NA") -> NA | L52: =IFERROR(HLOOKUP(VLOOKUP($H52,INDEXTBL!$C$1:$N$1216,$C$3,FALSE),DATA!$C$2:$DAD$14,7,FALSE),"NA") -> NA | M52: =IFERROR(HLOOKUP(VLOOKUP($H52,INDEXTBL!$C$1:$N$1216,$C$3,FALSE),DATA!$C$2:$DAD$14,10,FALSE),"NA") -> NA

Sheet がん医療提供体制
E2: 番号 | H2: 個別施策 | Q2: 番号 | T2: 中間アウトカム | AC2: 番号 | AF2: 分野アウトカム
E4: ①医療提供全般
E5: 提D-0101 | I5: =VLOOKUP(E5,INDEXTBL!$A$1:$O$1216,2,FALSE) -> 沖縄県は、必要に応じたがん医療の集約化と機能分化と連携を行う | K5: 沖縄県 | L5: 全国 | M5: 最良値 （都道府県） | Q5: 提B-0101 | U5: =VLOOKUP(Q5,INDEXTBL!$A$1:$O$1216,2,FALSE) -> 患者が、「がん診療を行う医療施設」（「施設」）で、医療機関の機能分担を通じた質の高い安心な医療の効率的な提供が受けられている | W5: 沖縄県 | X5: 全国 | Y5: 最良値 （都道府県） | AC5: 提A-0101 | AG5: =VLOOKUP(AC5,INDEXTBL!$A$1:$O$1216,2,FALSE) -> がん診療の質の向上と均てん化が行われ、患者に提供できている | AI5: 沖縄県 | AJ5: 全国 | AK5: 最良値 （都道府県）
H6: 提D-010101 | I6: =VLOOKUP(H6,INDEXTBL!$C$1:$O$1216,3,FALSE) -> 第８次医療計画に基づいて協議を行い決定した「施設」の総数 | J6: =VLOOKUP(H6,INDEXTBL!$C$1:$N$1216,5,FALSE) -> EX169 | K6: =IFERROR(HLOOKUP(VLOOKUP($H6,INDEXTBL!$C$1:$O$1216,5,FALSE),DATA!$C$2:$CAD$14,8,FALSE),"NA") -> 7 | L6: =IFERROR(HLOOKUP(VLOOKUP($H6,INDEXTBL!$C$1:$O$1216,5,FALSE),DATA!$C$2:$CAD$14,7,FALSE),"NA") -> NA | M6: =IFERROR(TEXT(_xlfn.AGGREGATE(4,7,OFFSET(DATA!$A$1,14,MATCH(VLOOKUP($H6,INDEXTBL!$C$1:$O$1216,5,FALSE),DATA!$A$2:$CAD$2,0)-1,47,1)),"0.0")&"%" &" （"& N6 & "）","NA") -> NA | N6: =INDEX(DATA!$C$15:$C$61,MATCH(_xlfn.AGGREGATE(4,7,OFFSET(DATA!$A$1,14,MATCH(VLOOKUP($H6,INDEXTBL!$C$1:$O$1216,5,FALSE),DATA!$A$2:$CAD$2,0)-1,47,1)),OFFSET(DATA!$A$1,14,MATCH(VLOOKUP($H6,INDEXTBL!$C$1:$O$1216,5,FALSE),DATA!$A$2:$CAD$2,0)-1,47,1),0)) ->  | T6: 提B-010101 | U6: =VLOOKUP(T6,INDEXTBL!$C$1:$O$1216,3,FALSE) -> 「施設」における治療開始のカバー率（％） | V6: =VLOOKUP(T6,INDEXTBL!$C$1:$N$1216,6,FALSE) -> 0 | W6: =IFERROR(TEXT(HLOOKUP(VLOOKUP($T6,INDEXTBL!$C$1:$O$1216,11,FALSE),DATA!$C$2:$CAD$14,8,FALSE),"0.0")&"%","NA") -> NA | X6: =IFERROR(TEXT(HLOOKUP(VLOOKUP($T6,INDEXTBL!$C$1:$O$1216,11,FALSE),DATA!$C$2:$CAD$14,7,FALSE),"0.0")&"%","NA") -> NA | Y6: =IFERROR(TEXT(_xlfn.AGGREGATE(4,7,OFFSET(DATA!$A$1,14,MATCH(VLOOKUP($T6,INDEXTBL!$C$1:$O$1216,11,FALSE),DATA!$A$2:$CAD$2,0)-1,47,1)),"0.0")&"%" &" （"& Z6 & "）","NA") -> NA | Z6: =INDEX(DATA!$C$15:$C$61,MATCH(_xlfn.AGGREGATE(4,7,OFFSET(DATA!$A$1,14,MATCH(VLOOKUP($T6,INDEXTBL!$C$1:$O$1216,11,FALSE),DATA!$A$2:$CAD$2,0)-1,47,1)),OFFSET(DATA!$A$1,14,MATCH(VLOOKUP($T6,INDEXTBL!$C$1:$O$1216,11,FALSE),DATA!$A$2:$CAD$2,0)-1,47,1),0)) ->  | AF6: 提A-010101 | AG6: =VLOOKUP(AF6,INDEXTBL!$C$1:$O$1216,3,FALSE) -> 大腸がん5年相対生存率（男）（％） | AH6: =VLOOKUP(AF6,INDEXTBL!$C$1:$N$1216,6,FALSE) -> 大腸23 | AI6: =IFERROR(TEXT(HLOOKUP(VLOOKUP($AF6,INDEXTBL!$C$1:$N$1165,6,FALSE),DATA!$C$2:$DAD$14,8,FALSE),"0.0")&"%","NA") -> 70.2% | AJ6: =IFERROR(TEXT(HLOOKUP(VLOOKUP($AF6,INDEXTBL!$C$1:$N$1165,6,FALSE),DATA!$C$2:$DAD$14,7,FALSE),"0.0")&"%","NA") -> 72.4% | AK6: =IFERROR(TEXT(_xlfn.AGGREGATE(4,7,OFFSET(DATA!$A$1,14,MATCH(VLOOKUP($AF6,INDEXTBL!$C$1:$N$1165,6,FALSE),DATA!$A$2:$DAD$2,0)-1,47,1)),"0.0")&"%" &" （"& AL6 & "）","NA") -> 79.3% （秋田県） | AL6: =INDEX(DATA!$C$15:$C$61,MATCH(_xlfn.AGGREGATE(4,7,OFFSET(DATA!$A$1,14,MATCH(VLOOKUP($AF6,INDEXTBL!$C$1:$N$1165,6,FALSE),DATA!$A$2:$DAD$2,0)-1,47,1)),OFFSET(DATA!$A$1,14,MATCH(VLOOKUP($AF6,INDEXTBL!$C$1:$N$1165,6,FALSE),DATA!$A$2:$DAD$2,0)-1,47,1),0)) -> 秋田県 | AM6: ※
AF7: 提A-010102 | AG7: =VLOOKUP(AF7,INDEXTBL!$C$1:$O$1216,3,FALSE) -> 大腸がん5年相対生存率（女）（％） | AH7: =VLOOKUP(AF7,INDEXTBL!$C$1:$N$1216,6,FALSE) -> 大腸24 | AI7: =IFERROR(TEXT(HLOOKUP(VLOOKUP($AF7,INDEXTBL!$C$1:$N$1165,6,FALSE),DATA!$C$2:$DAD$14,8,FALSE),"0.0")&"%","NA") -> 69.5% | AJ7: =IFERROR(TEXT(HLOOKUP(VLOOKUP($AF7,INDEXTBL!$C$1:$N$1165,6,FALSE),DATA!$C$2:$DAD$14,7,FALSE),"0.0")&"%","NA") -> 70.1% | AK7: =IFERROR(TEXT(_xlfn.AGGREGATE(4,7,OFFSET(DATA!$A$1,14,MATCH(VLOOKUP($AF7,INDEXTBL!$C$1:$N$1165,6,FALSE),DATA!$A$2:$DAD$2,0)-1,47,1)),"0.0")&"%" &" （"& AL7 & "）","NA") -> 75.8% （長崎県） | AL7: =INDEX(DATA!$C$15:$C$61,MATCH(_xlfn.AGGREGATE(4,7,OFFSET(DATA!$A$1,14,MATCH(VLOOKUP($AF7,INDEXTBL!$C$1:$N$1165,6,FALSE),DATA!$A$2:$DAD$2,0)-1,47,1)),OFFSET(DATA!$A$1,14,MATCH(VLOOKUP($AF7,INDEXTBL!$C$1:$N$1165,6,FALSE),DATA!$A$2:$DAD$2,0)-1,47,1),0)) -> 長崎県 | AM7: ※
AK8: ※2009-11年症例
E9: ②病理診断
E10: 提D-0201 | I10: =VLOOKUP(E10,INDEXTBL!$A$1:$O$1216,2,FALSE) -> 「施設」では、質の高い病理診断や細胞診断を行う | K10: 沖縄県 | L10: 全国 | M10: 最良値 （都道府県） | Q10: 提B-0201 | U10: =VLOOKUP(Q10,INDEXTBL!$A$1:$O$1216,2,FALSE) -> （検討中） | W10: 沖縄県 | X10: 全国 | Y10: 最良値 （都道府県）
H11: 提D-020101 | I11: =VLOOKUP(H11,INDEXTBL!$C$1:$O$1216,3,FALSE) -> 常勤の病理専門医が１名以上配置されている「施設」の割合（％） | J11: =VLOOKUP(H11,INDEXTBL!$C$1:$N$1216,5,FALSE) -> EX170 | K11: =IFERROR(TEXT(HLOOKUP(VLOOKUP($H11,INDEXTBL!$C$1:$O$1216,5,FALSE),DATA!$C$2:$CAD$14,8,FALSE)*100,"0.0")&"%","NA") -> 100.0% | L11: =IFERROR(TEXT(HLOOKUP(VLOOKUP($H11,INDEXTBL!$C$1:$O$1216,5,FALSE),DATA!$C$2:$CAD$14,T28,FALSE)*100,"0.0")&"%","NA") -> NA | M11: =IFERROR(TEXT(_xlfn.AGGREGATE(4,7,OFFSET(DATA!$A$1,14,MATCH(VLOOKUP($H11,INDEXTBL!$C$1:$O$1216,5,FALSE),DATA!$A$2:$CAD$2,0)-1,47,1)),"0.0")&"%" &" （"& N11 & "）","NA") -> NA | N11: =INDEX(DATA!$C$15:$C$61,MATCH(_xlfn.AGGREGATE(4,7,OFFSET(DATA!$A$1,14,MATCH(VLOOKUP($H11,INDEXTBL!$C$1:$O$1216,5,FALSE),DATA!$A$2:$CAD$2,0)-1,47,1)),OFFSET(DATA!$A$1,14,MATCH(VLOOKUP($H11,INDEXTBL!$C$1:$O$1216,5,FALSE),DATA!$A$2:$CAD$2,0)-1,47,1),0)) ->  | T11: 提B-020101 | U11: =VLOOKUP(T11,INDEXTBL!$C$1:$O$1216,3,FALSE) -> （検討中） | V11: =VLOOKUP(T11,INDEXTBL!$C$1:$N$1216,6,FALSE) -> 0 | W11: =IFERROR(TEXT(HLOOKUP(VLOOKUP($T11,INDEXTBL!$C$1:$O$1216,6,FALSE),DATA!$C$2:$CAD$14,8,FALSE),"0.0")&"%","NA") -> NA | X11: =IFERROR(TEXT(HLOOKUP(VLOOKUP($T11,INDEXTBL!$C$1:$O$1216,11,FALSE),DATA!$C$2:$CAD$14,7,FALSE),"0.0")&"%","NA") -> NA | Y11: =IFERROR(TEXT(_xlfn.AGGREGATE(4,7,OFFSET(DATA!$A$1,14,MATCH(VLOOKUP($T11,INDEXTBL!$C$1:$O$1216,11,FALSE),DATA!$A$2:$CAD$2,0)-1,47,1)),"0.0")&"%" &" （"& Z11 & "）","NA") -> NA | Z11: =INDEX(DATA!$C$15:$C$61,MATCH(_xlfn.AGGREGATE(4,7,OFFSET(DATA!$A$1,14,MATCH(VLOOKUP($T11,INDEXTBL!$C$1:$O$1216,11,FALSE),DATA!$A$2:$CAD$2,0)-1,47,1)),OFFSET(DATA!$A$1,14,MATCH(VLOOKUP($T11,INDEXTBL!$C$1:$O$1216,11,FALSE),DATA!$A$2:$CAD$2,0)-1,47,1),0)) -> 
E13: ③がんゲノム医療
E14: 提D-0301 | I14: =VLOOKUP(E14,INDEXTBL!$A$1:$O$1216,2,FALSE) -> 必要な患者に対し、適切なタイミングで、がん遺伝子パネル検査等及びその結果を踏まえた治療を行う | K14: 沖縄県 | L14: 全国 | M14: 最良値 （都道府県） | Q14: 提B-0301 | U14: =VLOOKUP(Q14,INDEXTBL!$A$1:$O$1216,2,FALSE) -> 患者が、がん遺伝子パネル検査を受け、その結果に基づいて治療が選択できている | W14: 沖縄県 | X14: 全国 | Y14: 最良値 （都道府県）
H15: 提D-030101 | I15: =VLOOKUP(H15,INDEXTBL!$C$1:$O$1216,3,FALSE) -> がんゲノム情報管理センターに登録された患者数（人） | J15: =VLOOKUP(H15,INDEXTBL!$C$1:$N$1216,5,FALSE) -> EX052 | K15: =IFERROR(HLOOKUP(VLOOKUP($H15,INDEXTBL!$C$1:$O$1216,5,FALSE),DATA!$C$2:$CAD$14,8,FALSE),"NA") -> 126 | L15: =IFERROR(HLOOKUP(VLOOKUP($H15,INDEXTBL!$C$1:$O$1216,5,FALSE),DATA!$C$2:$CAD$14,7,FALSE),"NA") -> NA | M15: =IFERROR(TEXT(_xlfn.AGGREGATE(4,7,OFFSET(DATA!$A$1,14,MATCH(VLOOKUP($H15,INDEXTBL!$C$1:$O$1216,5,FALSE),DATA!$A$2:$CAD$2,0)-1,47,1)),"0.0")&"%" &" （"& N15 & "）","NA") -> NA | N15: =INDEX(DATA!$C$15:$C$61,MATCH(_xlfn.AGGREGATE(4,7,OFFSET(DATA!$A$1,14,MATCH(VLOOKUP($H15,INDEXTBL!$C$1:$O$1216,5,FALSE),DATA!$A$2:$CAD$2,0)-1,47,1)),OFFSET(DATA!$A$1,14,MATCH(VLOOKUP($H15,INDEXTBL!$C$1:$O$1216,5,FALSE),DATA!$A$2:$CAD$2,0)-1,47,1),0)) ->  | T15: 提B-030101 | U15: =VLOOKUP(T15,INDEXTBL!$C$1:$O$1216,3,FALSE) -> がん遺伝子パネル検査を実施した患者のうち、エキスパートパネルで推奨された薬剤が投与された割合（％） | V15: =VLOOKUP(T15,INDEXTBL!$C$1:$N$1216,6,FALSE) -> EX165 | W15: =IFERROR(TEXT(HLOOKUP(VLOOKUP($T15,INDEXTBL!$C$1:$O$1216,6,FALSE),DATA!$C$2:$CAD$14,8,FALSE),"0.0")&"%","NA") -> 2.4% | X15: =IFERROR(TEXT(HLOOKUP(VLOOKUP($T15,INDEXTBL!$C$1:$O$1216,6,FALSE),DATA!$C$2:$CAD$14,7,FALSE),"0.0"),"NA") -> NA | Y15: =IFERROR(TEXT(_xlfn.AGGREGATE(4,7,OFFSET(DATA!$A$1,14,MATCH(VLOOKUP($T15,INDEXTBL!$C$1:$O$1216,5,FALSE),DATA!$A$2:$CAD$2,0)-1,47,1)),"0.0")&"%" &" （"& Z15 & "）","NA") -> NA | Z15: =INDEX(DATA!$C$15:$C$61,MATCH(_xlfn.AGGREGATE(4,7,OFFSET(DATA!$A$1,14,MATCH(VLOOKUP($T15,INDEXTBL!$C$1:$O$1216,5,FALSE),DATA!$A$2:$CAD$2,0)-1,47,1)),OFFSET(DATA!$A$1,14,MATCH(VLOOKUP($T15,INDEXTBL!$C$1:$O$1216,5,FALSE),DATA!$A$2:$CAD$2,0)-1,47,1),0)) -> 
H16: 提D-030102 | I16: =VLOOKUP(H16,INDEXTBL!$C$1:$O$1216,3,FALSE) -> 琉球大学病院において遺伝性腫瘍に関する遺伝カウンセリングを実施した患者数（人） | J16: =VLOOKUP(H16,INDEXTBL!$C$1:$N$1216,5,FALSE) -> EX053 | K16: =IFERROR(HLOOKUP(VLOOKUP($H16,INDEXTBL!$C$1:$O$1216,5,FALSE),DATA!$C$2:$CAD$14,8,FALSE),"NA") -> 80 | L16: =IFERROR(HLOOKUP(VLOOKUP($H16,INDEXTBL!$C$1:$O$1216,5,FALSE),DATA!$C$2:$CAD$14,7,FALSE),"NA") -> NA | M16: =IFERROR(TEXT(_xlfn.AGGREGATE(4,7,OFFSET(DATA!$A$1,14,MATCH(VLOOKUP($H16,INDEXTBL!$C$1:$O$1216,5,FALSE),DATA!$A$2:$CAD$2,0)-1,47,1)),"0.0")&"%" &" （"& N16 & "）","NA") -> NA | N16: =INDEX(DATA!$C$15:$C$61,MATCH(_xlfn.AGGREGATE(4,7,OFFSET(DATA!$A$1,14,MATCH(VLOOKUP($H16,INDEXTBL!$C$1:$O$1216,5,FALSE),DATA!$A$2:$CAD$2,0)-1,47,1)),OFFSET(DATA!$A$1,14,MATCH(VLOOKUP($H16,INDEXTBL!$C$1:$O$1216,5,FALSE),DATA!$A$2:$CAD$2,0)-1,47,1),0)) -> 
H17: 提D-030103 | I17: =VLOOKUP(H17,INDEXTBL!$C$1:$O$1216,3,FALSE) -> 臨床遺伝専門医（人） | J17: =VLOOKUP(H17,INDEXTBL!$C$1:$N$1216,5,FALSE) -> EX054 | K17: =IFERROR(TEXT(HLOOKUP(VLOOKUP($H17,INDEXTBL!$C$1:$O$1216,5,FALSE),DATA!$C$2:$CAD$14,8,FALSE)/DATA!$H$9*1000000,"0.0"),"NA") -> 8.2 | L17: =IFERROR(TEXT(HLOOKUP(VLOOKUP($H17,INDEXTBL!$C$1:$O$1216,5,FALSE),DATA!$C$2:$CAD$14,7,FALSE)/DATA!$H$8*1000000,"0.0"),"NA") -> 14.7 | M17: =IFERROR(TEXT(MAX(OFFSET(DATA!$A$1,14,MATCH(VLOOKUP($H17,INDEXTBL!$C$1:$O$1216,5,FALSE),DATA!$A$2:$CAD$2,0)-1,47,1)/DATA!$H$15:$H$61*1000000),"0.0") &" （"& N17 & "）","NA") -> 31.0 （東京都） | N17: =INDEX(DATA!$C$15:$C$61,MATCH(MAX(OFFSET(DATA!$A$1,14,MATCH(VLOOKUP($H17,INDEXTBL!$C$1:$O$1216,5,FALSE),DATA!$A$2:$CAD$2,0)-1,47,1)/DATA!$H$15:$H$61*1000000),OFFSET(DATA!$A$1,14,MATCH(VLOOKUP($H17,INDEXTBL!$C$1:$O$1216,5,FALSE),DATA!$A$2:$CAD$2,0)-1,47,1)/DATA!$H$15:$H$61*1000000,0)) -> 東京都 | O17: ＊＊
H18: 提D-030104 | I18: =VLOOKUP(H18,INDEXTBL!$C$1:$O$1216,3,FALSE) -> 認定遺伝カウンセラー（人） | J18: =VLOOKUP(H18,INDEXTBL!$C$1:$N$1216,5,FALSE) -> EX055 | K18: =IFERROR(TEXT(HLOOKUP(VLOOKUP($H18,INDEXTBL!$C$1:$O$1216,5,FALSE),DATA!$C$2:$CAD$14,8,FALSE)/DATA!$H$9*1000000,"0.0"),"NA") -> 0.7 | L18: =IFERROR(TEXT(HLOOKUP(VLOOKUP($H18,INDEXTBL!$C$1:$O$1216,5,FALSE),DATA!$C$2:$CAD$14,7,FALSE)/DATA!$H$8*1000000,"0.0"),"NA") -> 3.1 | M18: =IFERROR(TEXT(MAX(OFFSET(DATA!$A$1,14,MATCH(VLOOKUP($H18,INDEXTBL!$C$1:$O$1216,5,FALSE),DATA!$A$2:$CAD$2,0)-1,47,1)/DATA!$H$15:$H$61*1000000),"0.0") &" （"& N18 & "）","NA") -> 6.5 （東京都） | N18: =INDEX(DATA!$C$15:$C$61,MATCH(MAX(OFFSET(DATA!$A$1,14,MATCH(VLOOKUP($H18,INDEXTBL!$C$1:$O$1216,5,FALSE),DATA!$A$2:$CAD$2,0)-1,47,1)/DATA!$H$15:$H$61*1000000),OFFSET(DATA!$A$1,14,MATCH(VLOOKUP($H18,INDEXTBL!$C$1:$O$1216,5,FALSE),DATA!$A$2:$CAD$2,0)-1,47,1)/DATA!$H$15:$H$61*1000000,0)) -> 東京都 | O18: ＊＊
H19: 提D-030105 | I19: =VLOOKUP(H19,INDEXTBL!$C$1:$O$1216,3,FALSE) -> がんゲノム医療コーディネーター（人） | J19: =VLOOKUP(H19,INDEXTBL!$C$1:$N$1216,5,FALSE) -> EX056 | K19: =IFERROR(HLOOKUP(VLOOKUP($H19,INDEXTBL!$C$1:$O$1216,5,FALSE),DATA!$C$2:$CAD$14,8,FALSE),"NA") -> 4.3 | L19: =IFERROR(HLOOKUP(VLOOKUP($H19,INDEXTBL!$C$1:$O$1216,5,FALSE),DATA!$C$2:$CAD$14,7,FALSE),"NA") -> 18.74 | M19: =IFERROR(TEXT(_xlfn.AGGREGATE(4,7,OFFSET(DATA!$A$1,14,MATCH(VLOOKUP($H19,INDEXTBL!$C$1:$O$1216,5,FALSE),DATA!$A$2:$CAD$2,0)-1,47,1)),"0.0") &" （"& N19 & "）","NA") -> 45.0 （島根県） | N19: =INDEX(DATA!$C$15:$C$61,MATCH(_xlfn.AGGREGATE(4,7,OFFSET(DATA!$A$1,14,MATCH(VLOOKUP($H19,INDEXTBL!$C$1:$O$1216,5,FALSE),DATA!$A$2:$CAD$2,0)-1,47,1)),OFFSET(DATA!$A$1,14,MATCH(VLOOKUP($H19,INDEXTBL!$C$1:$O$1216,5,FALSE),DATA!$A$2:$CAD$2,0)-1,47,1),0)) -> 島根県 | O19: ＊＊
M20: ＊＊：人口100万人あたり
E21: ④手術療法
E22: 提D-0401 | I22: =VLOOKUP(E22,INDEXTBL!$A$1:$O$1216,2,FALSE) -> 必要な資格を持った専門家が計画的に養成を行い、「施設」に必要に応じて配置する | K22: 沖縄県 | L22: 全国 | M22: 最良値 （都道府県） | Q22: 提B-0401 | U22: =VLOOKUP(Q22,INDEXTBL!$A$1:$O$1216,2,FALSE) -> 必要な患者が、最適な手術を、タイムリーで質が高く安全に受けられている | W22: 沖縄県 | X22: 全国 | Y22: 最良値 （都道府県）
F23: グラフ | H23: 提D-040101 | I23: =VLOOKUP(H23,INDEXTBL!$C$1:$O$1216,3,FALSE) -> 消化器外科専門医（人） | J23: =VLOOKUP(H23,INDEXTBL!$C$1:$N$1216,6,FALSE) -> 大腸109 | K23: =IFERROR(TEXT(HLOOKUP(VLOOKUP($H23,INDEXTBL!$C$1:$O$1216,6,FALSE),DATA!$C$2:$CAD$14,8,FALSE),"0.0"),"NA") -> 57.9 | L23: =IFERROR(TEXT(HLOOKUP(VLOOKUP($H23,INDEXTBL!$C$1:$O$1216,6,FALSE),DATA!$C$2:$CAD$14,7,FALSE),"0.0"),"NA") -> 72.8 | M23: =IFERROR(TEXT(_xlfn.AGGREGATE(4,7,OFFSET(DATA!$A$1,14,MATCH(VLOOKUP($H23,INDEXTBL!$C$1:$N$1216,6,FALSE),DATA!$A$2:$DAD$2,0)-1,47,1)),"0.0") &" （"& N23 & "）","NA") -> 106.6 （鳥取県） | N23: =INDEX(DATA!$C$15:$C$61,MATCH(_xlfn.AGGREGATE(4,7,OFFSET(DATA!$A$1,14,MATCH(VLOOKUP($H23,INDEXTBL!$C$1:$N$1216,6,FALSE),DATA!$A$2:$DAD$2,0)-1,47,1)),OFFSET(DATA!$A$1,14,MATCH(VLOOKUP($H23,INDEXTBL!$C$1:$N$1216,6,FALSE),DATA!$A$2:$DAD$2,0)-1,47,1),0)) -> 鳥取県 | O23: ＊＊ | R23: グラフ | T23: 提B-040101 | U23: =VLOOKUP(T23,INDEXTBL!$C$1:$O$1216,3,FALSE) -> （DPC-QI）StageIII大腸癌に対する術後補助化学療法 実施率（％） | V23: =VLOOKUP(T23,INDEXTBL!$C$1:$N$1216,6,FALSE) -> 大腸102 | W23: =IFERROR(TEXT(HLOOKUP(VLOOKUP($T23,INDEXTBL!$C$1:$O$1216,6,FALSE),DATA!$C$2:$CAD$14,8,FALSE),"0.0")&"%","NA") -> 100.0% | X23: =IFERROR(TEXT(HLOOKUP(VLOOKUP($T23,INDEXTBL!$C$1:$O$1216,6,FALSE),DATA!$C$2:$CAD$14,7,FALSE),"0.0")&"%","NA") -> 97.7% | Y23: =IFERROR(TEXT(_xlfn.AGGREGATE(4,7,OFFSET(DATA!$A$1,14,MATCH(VLOOKUP($T23,INDEXTBL!$C$1:$O$1216,6,FALSE),DATA!$A$2:$CAD$2,0)-1,47,1)),"0.0")&"%" &" （"& Z23 & "）","NA") -> 100.0% （青森県） | Z23: =INDEX(DATA!$C$15:$C$61,MATCH(_xlfn.AGGREGATE(4,7,OFFSET(DATA!$A$1,14,MATCH(VLOOKUP($T23,INDEXTBL!$C$1:$O$1216,6,FALSE),DATA!$A$2:$CAD$2,0)-1,47,1)),OFFSET(DATA!$A$1,14,MATCH(VLOOKUP($T23,INDEXTBL!$C$1:$O$1216,6,FALSE),DATA!$A$2:$CAD$2,0)-1,47,1),0)) -> 青森県
F24: グラフ | H24: 提D-040102 | I24: =VLOOKUP(H24,INDEXTBL!$C$1:$O$1216,3,FALSE) -> 大腸肛門病専門医（人） | J24: =VLOOKUP(H24,INDEXTBL!$C$1:$N$1216,5,FALSE) -> EX171 | K24: =IFERROR(TEXT(HLOOKUP(VLOOKUP($H24,INDEXTBL!$C$1:$O$1216,5,FALSE),DATA!$C$2:$CAD$14,8,FALSE),"0.0"),"NA") -> 7.5 | L24: =IFERROR(TEXT(HLOOKUP(VLOOKUP($H24,INDEXTBL!$C$1:$O$1216,5,FALSE),DATA!$C$2:$CAD$14,7,FALSE),"0.0"),"NA") -> 15.9 | M24: =IFERROR(TEXT(_xlfn.AGGREGATE(4,7,OFFSET(DATA!$A$1,14,MATCH(VLOOKUP($H24,INDEXTBL!$C$1:$N$1216,5,FALSE),DATA!$A$2:$DAD$2,0)-1,47,1)),"0.0") &" （"& N24 & "）","NA") -> 115.8 （茨城県） | N24: =INDEX(DATA!$C$15:$C$61,MATCH(_xlfn.AGGREGATE(4,7,OFFSET(DATA!$A$1,14,MATCH(VLOOKUP($H24,INDEXTBL!$C$1:$N$1216,5,FALSE),DATA!$A$2:$DAD$2,0)-1,47,1)),OFFSET(DATA!$A$1,14,MATCH(VLOOKUP($H24,INDEXTBL!$C$1:$N$1216,5,FALSE),DATA!$A$2:$DAD$2,0)-1,47,1),0)) -> 茨城県 | O24: ＊＊
H25: 提D-040103 | I25: =VLOOKUP(H25,INDEXTBL!$C$1:$O$1216,3,FALSE) -> 消化器内視鏡専門医（人） | J25: =VLOOKUP(H25,INDEXTBL!$C$1:$N$1216,5,FALSE) -> EX172 | K25: =IFERROR(TEXT(HLOOKUP(VLOOKUP($H25,INDEXTBL!$C$1:$O$1216,5,FALSE),DATA!$C$2:$CAD$14,8,FALSE)/DATA!$H$9*1000000,"0.0"),"NA") -> 102.2 | L25: =IFERROR(TEXT(HLOOKUP(VLOOKUP($H25,INDEXTBL!$C$1:$O$1216,5,FALSE),DATA!$C$2:$CAD$14,7,FALSE)/DATA!$H$8*1000000,"0.0"),"NA") -> 157.4 | M25: =IFERROR(TEXT(MAX(OFFSET(DATA!$A$1,14,MATCH(VLOOKUP($H25,INDEXTBL!$C$1:$O$1216,5,FALSE),DATA!$A$2:$CAD$2,0)-1,47,1)/DATA!$H$15:$H$61*1000000),"0.0") &" （"& N25 & "）","NA") -> 221.6 （大分県） | N25: =INDEX(DATA!$C$15:$C$61,MATCH(MAX(OFFSET(DATA!$A$1,14,MATCH(VLOOKUP($H25,INDEXTBL!$C$1:$O$1216,5,FALSE),DATA!$A$2:$CAD$2,0)-1,47,1)/DATA!$H$15:$H$61*1000000),OFFSET(DATA!$A$1,14,MATCH(VLOOKUP($H25,INDEXTBL!$C$1:$O$1216,5,FALSE),DATA!$A$2:$CAD$2,0)-1,47,1)/DATA!$H$15:$H$61*1000000,0)) -> 大分県 | O25: ＊＊
H26: 提D-040104 | I26: =VLOOKUP(H26,INDEXTBL!$C$1:$O$1216,3,FALSE) -> 消化器外科専門医が常勤で配置されている「施設」の割合（％） | J26: =VLOOKUP(H26,INDEXTBL!$C$1:$N$1216,5,FALSE) -> EX192 | K26: =IFERROR(TEXT(HLOOKUP(VLOOKUP($H26,INDEXTBL!$C$1:$O$1216,5,FALSE),DATA!$C$2:$CAD$14,8,FALSE),"0.0")&"%","NA") -> 100.0% | L26: =IFERROR(TEXT(HLOOKUP(VLOOKUP($H26,INDEXTBL!$C$1:$O$1216,5,FALSE),DATA!$C$2:$CAD$14,T43,FALSE)*100,"0.0")&"%","NA") -> NA | M26: =IFERROR(TEXT(_xlfn.AGGREGATE(4,7,OFFSET(DATA!$A$1,14,MATCH(VLOOKUP($H26,INDEXTBL!$C$1:$O$1216,5,FALSE),DATA!$A$2:$CAD$2,0)-1,47,1)),"0.0")&"%" &" （"& N26 & "）","NA") -> NA | N26: =INDEX(DATA!$C$15:$C$61,MATCH(_xlfn.AGGREGATE(4,7,OFFSET(DATA!$A$1,14,MATCH(VLOOKUP($H26,INDEXTBL!$C$1:$O$1216,5,FALSE),DATA!$A$2:$CAD$2,0)-1,47,1)),OFFSET(DATA!$A$1,14,MATCH(VLOOKUP($H26,INDEXTBL!$C$1:$O$1216,5,FALSE),DATA!$A$2:$CAD$2,0)-1,47,1),0)) -> 
H27: 提D-040105 | I27: =VLOOKUP(H27,INDEXTBL!$C$1:$O$1216,3,FALSE) -> 大腸肛門病専門医が常勤で配置されている「施設」の割合（％） | J27: =VLOOKUP(H27,INDEXTBL!$C$1:$N$1216,5,FALSE) -> EX193 | K27: =IFERROR(TEXT(HLOOKUP(VLOOKUP($H27,INDEXTBL!$C$1:$O$1216,5,FALSE),DATA!$C$2:$CAD$14,8,FALSE),"0.0")&"%","NA") -> 42.9% | L27: =IFERROR(TEXT(HLOOKUP(VLOOKUP($H27,INDEXTBL!$C$1:$O$1216,5,FALSE),DATA!$C$2:$CAD$14,T44,FALSE)*100,"0.0")&"%","NA") -> NA | M27: =IFERROR(TEXT(_xlfn.AGGREGATE(4,7,OFFSET(DATA!$A$1,14,MATCH(VLOOKUP($H27,INDEXTBL!$C$1:$O$1216,5,FALSE),DATA!$A$2:$CAD$2,0)-1,47,1)),"0.0")&"%" &" （"& N27 & "）","NA") -> NA | N27: =INDEX(DATA!$C$15:$C$61,MATCH(_xlfn.AGGREGATE(4,7,OFFSET(DATA!$A$1,14,MATCH(VLOOKUP($H27,INDEXTBL!$C$1:$O$1216,5,FALSE),DATA!$A$2:$CAD$2,0)-1,47,1)),OFFSET(DATA!$A$1,14,MATCH(VLOOKUP($H27,INDEXTBL!$C$1:$O$1216,5,FALSE),DATA!$A$2:$CAD$2,0)-1,47,1),0)) -> 
H28: 提D-040106 | I28: =VLOOKUP(H28,INDEXTBL!$C$1:$O$1216,3,FALSE) -> 消化器内視鏡専門医が常勤で配置されている「施設」の割合（％） | J28: =VLOOKUP(H28,INDEXTBL!$C$1:$N$1216,5,FALSE) -> EX194 | K28: =IFERROR(TEXT(HLOOKUP(VLOOKUP($H28,INDEXTBL!$C$1:$O$1216,5,FALSE),DATA!$C$2:$CAD$14,8,FALSE),"0.0")&"%","NA") -> 100.0% | L28: =IFERROR(TEXT(HLOOKUP(VLOOKUP($H28,INDEXTBL!$C$1:$O$1216,5,FALSE),DATA!$C$2:$CAD$14,T45,FALSE)*100,"0.0")&"%","NA") -> NA | M28: =IFERROR(TEXT(_xlfn.AGGREGATE(4,7,OFFSET(DATA!$A$1,14,MATCH(VLOOKUP($H28,INDEXTBL!$C$1:$O$1216,5,FALSE),DATA!$A$2:$CAD$2,0)-1,47,1)),"0.0")&"%" &" （"& N28 & "）","NA") -> NA | N28: =INDEX(DATA!$C$15:$C$61,MATCH(_xlfn.AGGREGATE(4,7,OFFSET(DATA!$A$1,14,MATCH(VLOOKUP($H28,INDEXTBL!$C$1:$O$1216,5,FALSE),DATA!$A$2:$CAD$2,0)-1,47,1)),OFFSET(DATA!$A$1,14,MATCH(VLOOKUP($H28,INDEXTBL!$C$1:$O$1216,5,FALSE),DATA!$A$2:$CAD$2,0)-1,47,1),0)) -> 
M29: ＊＊：人口100万人あたり
E30: ⑤放射線療法
E31: 提D-0501 | I31: =VLOOKUP(E31,INDEXTBL!$A$1:$O$1216,2,FALSE) -> 必要な資格を持った専門家を計画的に養成し、「施設」に必要に応じて配置する | K31: 沖縄県 | L31: 全国 | M31: 最良値 （都道府県） | Q31: 提B-0501 | U31: =VLOOKUP(Q31,INDEXTBL!$A$1:$O$1216,2,FALSE) -> （検討中） | W31: 沖縄県 | X31: 全国 | Y31: 最良値 （都道府県）
H32: 提D-050101 | I32: =VLOOKUP(H32,INDEXTBL!$C$1:$O$1216,3,FALSE) -> 放射線治療専門医が何らかの形で週に1回以上または月に1回以上関わっている「施設」の割合（％） | J32: =VLOOKUP(H32,INDEXTBL!$C$1:$N$1216,5,FALSE) -> EX195 | K32: =IFERROR(TEXT(HLOOKUP(VLOOKUP($H32,INDEXTBL!$C$1:$O$1216,5,FALSE),DATA!$C$2:$CAD$14,8,FALSE),"0.0")&"%","NA") -> 36.0% | L32: =IFERROR(TEXT(HLOOKUP(VLOOKUP($H32,INDEXTBL!$C$1:$O$1216,5,FALSE),DATA!$C$2:$CAD$14,T50,FALSE)*100,"0.0")&"%","NA") -> NA | M32: =IFERROR(TEXT(_xlfn.AGGREGATE(4,7,OFFSET(DATA!$A$1,14,MATCH(VLOOKUP($H32,INDEXTBL!$C$1:$O$1216,5,FALSE),DATA!$A$2:$CAD$2,0)-1,47,1)),"0.0")&"%" &" （"& N32 & "）","NA") -> NA | N32: =INDEX(DATA!$C$15:$C$61,MATCH(_xlfn.AGGREGATE(4,7,OFFSET(DATA!$A$1,14,MATCH(VLOOKUP($H32,INDEXTBL!$C$1:$O$1216,5,FALSE),DATA!$A$2:$CAD$2,0)-1,47,1)),OFFSET(DATA!$A$1,14,MATCH(VLOOKUP($H32,INDEXTBL!$C$1:$O$1216,5,FALSE),DATA!$A$2:$CAD$2,0)-1,47,1),0)) ->  | T32: 提B-050101 | U32: =VLOOKUP(T32,INDEXTBL!$C$1:$O$1216,3,FALSE) -> （検討中） | W32: =IFERROR(HLOOKUP(VLOOKUP($T32,INDEXTBL!$C$1:$O$1216,9,FALSE),DATA!$C$2:$CAD$14,8,FALSE),"NA") -> NA | X32: =IFERROR(HLOOKUP(VLOOKUP($T32,INDEXTBL!$C$1:$O$1216,9,FALSE),DATA!$C$2:$CAP$14,7,FALSE),"NA") -> NA | Y32: =IFERROR(TEXT(_xlfn.AGGREGATE(4,7,OFFSET(DATA!$A$1,14,MATCH(VLOOKUP($T32,INDEXTBL!$C$1:$O$1216,9,FALSE),DATA!$A$2:$CAD$2,0)-1,47,1))*100,"0.0")&"%" &" （"& Z32 & "）","NA") -> NA | Z32: =INDEX(DATA!$C$15:$C$61,MATCH(_xlfn.AGGREGATE(4,7,OFFSET(DATA!$A$1,14,MATCH(VLOOKUP($T32,INDEXTBL!$C$1:$O$1216,9,FALSE),DATA!$A$2:$CAD$2,0)-1,47,1)),OFFSET(DATA!$A$1,14,MATCH(VLOOKUP($T32,INDEXTBL!$C$1:$O$1216,9,FALSE),DATA!$A$2:$CAD$2,0)-1,47,1),0)) -> 
H33: 提D-050102 | I33: =VLOOKUP(H33,INDEXTBL!$C$1:$O$1216,3,FALSE) -> 放射線治療専門医（人） | J33: =VLOOKUP(H33,INDEXTBL!$C$1:$N$1216,5,FALSE) -> EX066 | K33: =IFERROR(TEXT(HLOOKUP(VLOOKUP($H33,INDEXTBL!$C$1:$O$1216,5,FALSE),DATA!$C$2:$CAD$14,8,FALSE)/DATA!$H$9*1000000,"0.0"),"NA") -> 10.2 | L33: =IFERROR(TEXT(HLOOKUP(VLOOKUP($H33,INDEXTBL!$C$1:$O$1216,5,FALSE),DATA!$C$2:$CAD$14,7,FALSE)/DATA!$H$8*1000000,"0.0"),"NA") -> 11.4 | M33: =IFERROR(TEXT(MAX(OFFSET(DATA!$A$1,14,MATCH(VLOOKUP($H33,INDEXTBL!$C$1:$O$1216,5,FALSE),DATA!$A$2:$CAD$2,0)-1,47,1)/DATA!$H$15:$H$61*1000000),"0.0") &" （"& N33 & "）","NA") -> 22.1 （京都府） | N33: =INDEX(DATA!$C$15:$C$61,MATCH(MAX(OFFSET(DATA!$A$1,14,MATCH(VLOOKUP($H33,INDEXTBL!$C$1:$O$1216,5,FALSE),DATA!$A$2:$CAD$2,0)-1,47,1)/DATA!$H$15:$H$61*1000000),OFFSET(DATA!$A$1,14,MATCH(VLOOKUP($H33,INDEXTBL!$C$1:$O$1216,5,FALSE),DATA!$A$2:$CAD$2,0)-1,47,1)/DATA!$H$15:$H$61*1000000,0)) -> 京都府 | O33: ＊＊
H34: 提D-050103 | I34: =VLOOKUP(H34,INDEXTBL!$C$1:$O$1216,3,FALSE) -> 放射線治療専門放射線技師（人） | J34: =VLOOKUP(H34,INDEXTBL!$C$1:$N$1216,5,FALSE) -> EX067 | K34: =IFERROR(TEXT(HLOOKUP(VLOOKUP($H34,INDEXTBL!$C$1:$O$1216,5,FALSE),DATA!$C$2:$CAD$14,8,FALSE)/DATA!$H$9*1000000,"0.0"),"NA") -> 7.5 | L34: =IFERROR(TEXT(HLOOKUP(VLOOKUP($H34,INDEXTBL!$C$1:$O$1216,5,FALSE),DATA!$C$2:$CAD$14,7,FALSE)/DATA!$H$8*1000000,"0.0"),"NA") -> 14.6 | M34: =IFERROR(TEXT(MAX(OFFSET(DATA!$A$1,14,MATCH(VLOOKUP($H34,INDEXTBL!$C$1:$O$1216,5,FALSE),DATA!$A$2:$CAD$2,0)-1,47,1)/DATA!$H$15:$H$61*1000000),"0.0") &" （"& N34 & "）","NA") -> 55.2 （大分県） | N34: =INDEX(DATA!$C$15:$C$61,MATCH(MAX(OFFSET(DATA!$A$1,14,MATCH(VLOOKUP($H34,INDEXTBL!$C$1:$O$1216,5,FALSE),DATA!$A$2:$CAD$2,0)-1,47,1)/DATA!$H$15:$H$61*1000000),OFFSET(DATA!$A$1,14,MATCH(VLOOKUP($H34,INDEXTBL!$C$1:$O$1216,5,FALSE),DATA!$A$2:$CAD$2,0)-1,47,1)/DATA!$H$15:$H$61*1000000,0)) -> 大分県 | O34: ＊＊
H35: 提D-050104 | I35: =VLOOKUP(H35,INDEXTBL!$C$1:$O$1216,3,FALSE) -> 医学物理士（人） | J35: =VLOOKUP(H35,INDEXTBL!$C$1:$N$1216,5,FALSE) -> EX068 | K35: =IFERROR(TEXT(HLOOKUP(VLOOKUP($H35,INDEXTBL!$C$1:$O$1216,5,FALSE),DATA!$C$2:$CAD$14,8,FALSE)/DATA!$H$9*1000000,"0.0"),"NA") -> 6.1 | L35: =IFERROR(TEXT(HLOOKUP(VLOOKUP($H35,INDEXTBL!$C$1:$O$1216,5,FALSE),DATA!$C$2:$CAD$14,7,FALSE)/DATA!$H$8*1000000,"0.0"),"NA") -> 11.6 | M35: =IFERROR(TEXT(MAX(OFFSET(DATA!$A$1,14,MATCH(VLOOKUP($H35,INDEXTBL!$C$1:$O$1216,5,FALSE),DATA!$A$2:$CAD$2,0)-1,47,1)/DATA!$H$15:$H$61*1000000),"0.0") &" （"& N35 & "）","NA") -> 23.5 （福井県） | N35: =INDEX(DATA!$C$15:$C$61,MATCH(MAX(OFFSET(DATA!$A$1,14,MATCH(VLOOKUP($H35,INDEXTBL!$C$1:$O$1216,5,FALSE),DATA!$A$2:$CAD$2,0)-1,47,1)/DATA!$H$15:$H$61*1000000),OFFSET(DATA!$A$1,14,MATCH(VLOOKUP($H35,INDEXTBL!$C$1:$O$1216,5,FALSE),DATA!$A$2:$CAD$2,0)-1,47,1)/DATA!$H$15:$H$61*1000000,0)) -> 福井県 | O35: ＊＊
H36: 提D-050105 | I36: =VLOOKUP(H36,INDEXTBL!$C$1:$O$1216,3,FALSE) -> がん放射線療法看護認定看護師（人） | J36: =VLOOKUP(H36,INDEXTBL!$C$1:$N$1216,5,FALSE) -> EX069 | K36: =IFERROR(TEXT(HLOOKUP(VLOOKUP($H36,INDEXTBL!$C$1:$O$1216,5,FALSE),DATA!$C$2:$CAD$14,8,FALSE)/DATA!$H$9*1000000,"0.0"),"NA") -> 4.1 | L36: =IFERROR(TEXT(HLOOKUP(VLOOKUP($H36,INDEXTBL!$C$1:$O$1216,5,FALSE),DATA!$C$2:$CAD$14,7,FALSE)/DATA!$H$8*1000000,"0.0"),"NA") -> 2.6 | M36: =IFERROR(TEXT(MAX(OFFSET(DATA!$A$1,14,MATCH(VLOOKUP($H36,INDEXTBL!$C$1:$O$1216,5,FALSE),DATA!$A$2:$CAD$2,0)-1,47,1)/DATA!$H$15:$H$61*1000000),"0.0") &" （"& N36 & "）","NA") -> 7.5 （山形県） | N36: =INDEX(DATA!$C$15:$C$61,MATCH(MAX(OFFSET(DATA!$A$1,14,MATCH(VLOOKUP($H36,INDEXTBL!$C$1:$O$1216,5,FALSE),DATA!$A$2:$CAD$2,0)-1,47,1)/DATA!$H$15:$H$61*1000000),OFFSET(DATA!$A$1,14,MATCH(VLOOKUP($H36,INDEXTBL!$C$1:$O$1216,5,FALSE),DATA!$A$2:$CAD$2,0)-1,47,1)/DATA!$H$15:$H$61*1000000,0)) -> 山形県 | O36: ＊＊
H37: 提D-050106 | I37: =VLOOKUP(H37,INDEXTBL!$C$1:$O$1216,3,FALSE) -> 放射線治療専門医2名以上が常勤で配置されている放射線治療施設の割合（％） | J37: =VLOOKUP(H37,INDEXTBL!$C$1:$N$1216,5,FALSE) -> EX196 | K37: =IFERROR(TEXT(HLOOKUP(VLOOKUP($H37,INDEXTBL!$C$1:$O$1216,5,FALSE),DATA!$C$2:$CAD$14,8,FALSE),"0.0")&"%","NA") -> 20.0% | L37: =IFERROR(TEXT(HLOOKUP(VLOOKUP($H37,INDEXTBL!$C$1:$O$1216,5,FALSE),DATA!$C$2:$CAD$14,T55,FALSE)*100,"0.0")&"%","NA") -> NA | M37: =IFERROR(TEXT(_xlfn.AGGREGATE(4,7,OFFSET(DATA!$A$1,14,MATCH(VLOOKUP($H37,INDEXTBL!$C$1:$O$1216,5,FALSE),DATA!$A$2:$CAD$2,0)-1,47,1)),"0.0")&"%" &" （"& N37 & "）","NA") -> NA | N37: =INDEX(DATA!$C$15:$C$61,MATCH(_xlfn.AGGREGATE(4,7,OFFSET(DATA!$A$1,14,MATCH(VLOOKUP($H37,INDEXTBL!$C$1:$O$1216,5,FALSE),DATA!$A$2:$CAD$2,0)-1,47,1)),OFFSET(DATA!$A$1,14,MATCH(VLOOKUP($H37,INDEXTBL!$C$1:$O$1216,5,FALSE),DATA!$A$2:$CAD$2,0)-1,47,1),0)) -> 
H38: 提D-050107 | I38: =VLOOKUP(H38,INDEXTBL!$C$1:$O$1216,3,FALSE) -> 放射線治療専門放射線技師2名以上が常勤で配置されている放射線治療施設の割合（％） | J38: =VLOOKUP(H38,INDEXTBL!$C$1:$N$1216,5,FALSE) -> EX197 | K38: =IFERROR(TEXT(HLOOKUP(VLOOKUP($H38,INDEXTBL!$C$1:$O$1216,5,FALSE),DATA!$C$2:$CAD$14,8,FALSE),"0.0")&"%","NA") -> 60.0% | L38: =IFERROR(TEXT(HLOOKUP(VLOOKUP($H38,INDEXTBL!$C$1:$O$1216,5,FALSE),DATA!$C$2:$CAD$14,T56,FALSE)*100,"0.0")&"%","NA") -> NA | M38: =IFERROR(TEXT(_xlfn.AGGREGATE(4,7,OFFSET(DATA!$A$1,14,MATCH(VLOOKUP($H38,INDEXTBL!$C$1:$O$1216,5,FALSE),DATA!$A$2:$CAD$2,0)-1,47,1)),"0.0")&"%" &" （"& N38 & "）","NA") -> NA | N38: =INDEX(DATA!$C$15:$C$61,MATCH(_xlfn.AGGREGATE(4,7,OFFSET(DATA!$A$1,14,MATCH(VLOOKUP($H38,INDEXTBL!$C$1:$O$1216,5,FALSE),DATA!$A$2:$CAD$2,0)-1,47,1)),OFFSET(DATA!$A$1,14,MATCH(VLOOKUP($H38,INDEXTBL!$C$1:$O$1216,5,FALSE),DATA!$A$2:$CAD$2,0)-1,47,1),0)) -> 
H39: 提D-050108 | I39: =VLOOKUP(H39,INDEXTBL!$C$1:$O$1216,3,FALSE) -> 医学物理士が常勤で配置されている放射線治療施設の割合（％） | J39: =VLOOKUP(H39,INDEXTBL!$C$1:$N$1216,5,FALSE) -> EX198 | K39: =IFERROR(TEXT(HLOOKUP(VLOOKUP($H39,INDEXTBL!$C$1:$O$1216,5,FALSE),DATA!$C$2:$CAD$14,8,FALSE),"0.0")&"%","NA") -> 40.0% | L39: =IFERROR(TEXT(HLOOKUP(VLOOKUP($H39,INDEXTBL!$C$1:$O$1216,5,FALSE),DATA!$C$2:$CAD$14,T57,FALSE)*100,"0.0")&"%","NA") -> NA | M39: =IFERROR(TEXT(_xlfn.AGGREGATE(4,7,OFFSET(DATA!$A$1,14,MATCH(VLOOKUP($H39,INDEXTBL!$C$1:$O$1216,5,FALSE),DATA!$A$2:$CAD$2,0)-1,47,1)),"0.0")&"%" &" （"& N39 & "）","NA") -> NA | N39: =INDEX(DATA!$C$15:$C$61,MATCH(_xlfn.AGGREGATE(4,7,OFFSET(DATA!$A$1,14,MATCH(VLOOKUP($H39,INDEXTBL!$C$1:$O$1216,5,FALSE),DATA!$A$2:$CAD$2,0)-1,47,1)),OFFSET(DATA!$A$1,14,MATCH(VLOOKUP($H39,INDEXTBL!$C$1:$O$1216,5,FALSE),DATA!$A$2:$CAD$2,0)-1,47,1),0)) -> 
H40: 提D-050109 | I40: =VLOOKUP(H40,INDEXTBL!$C$1:$O$1216,3,FALSE) -> がん放射線療法看護認定看護師が常勤で配置されている放射線治療施設の割合（％） | J40: =VLOOKUP(H40,INDEXTBL!$C$1:$N$1216,5,FALSE) -> EX199 | K40: =IFERROR(TEXT(HLOOKUP(VLOOKUP($H40,INDEXTBL!$C$1:$O$1216,5,FALSE),DATA!$C$2:$CAD$14,8,FALSE),"0.0")&"%","NA") -> 60.0% | L40: =IFERROR(TEXT(HLOOKUP(VLOOKUP($H40,INDEXTBL!$C$1:$O$1216,5,FALSE),DATA!$C$2:$CAD$14,T58,FALSE)*100,"0.0")&"%","NA") -> NA | M40: =IFERROR(TEXT(_xlfn.AGGREGATE(4,7,OFFSET(DATA!$A$1,14,MATCH(VLOOKUP($H40,INDEXTBL!$C$1:$O$1216,5,FALSE),DATA!$A$2:$CAD$2,0)-1,47,1)),"0.0")&"%" &" （"& N40 & "）","NA") -> NA | N40: =INDEX(DATA!$C$15:$C$61,MATCH(_xlfn.AGGREGATE(4,7,OFFSET(DATA!$A$1,14,MATCH(VLOOKUP($H40,INDEXTBL!$C$1:$O$1216,5,FALSE),DATA!$A$2:$CAD$2,0)-1,47,1)),OFFSET(DATA!$A$1,14,MATCH(VLOOKUP($H40,INDEXTBL!$C$1:$O$1216,5,FALSE),DATA!$A$2:$CAD$2,0)-1,47,1),0)) -> 
E41: 提D-0502 | I41: =VLOOKUP(E41,INDEXTBL!$A$1:$O$1216,2,FALSE) -> 放射線療法が可能な全ての医療機関において、IMRTを含む標準治療を行う | K41: 沖縄県 | L41: 全国 | M41: 最良値 （都道府県）
H42: 提D-050201 | I42: =VLOOKUP(H42,INDEXTBL!$C$1:$O$1216,3,FALSE) -> IMRT加算をとっている放射線治療施設の割合（％） | J42: =VLOOKUP(H42,INDEXTBL!$C$1:$N$1216,5,FALSE) -> EX200 | K42: =IFERROR(TEXT(HLOOKUP(VLOOKUP($H42,INDEXTBL!$C$1:$O$1216,5,FALSE),DATA!$C$2:$CAD$14,8,FALSE),"0.0")&"%","NA") -> 27.3% | L42: =IFERROR(TEXT(HLOOKUP(VLOOKUP($H42,INDEXTBL!$C$1:$O$1216,5,FALSE),DATA!$C$2:$CAD$14,T60,FALSE)*100,"0.0")&"%","NA") -> NA | M42: =IFERROR(TEXT(_xlfn.AGGREGATE(4,7,OFFSET(DATA!$A$1,14,MATCH(VLOOKUP($H42,INDEXTBL!$C$1:$O$1216,5,FALSE),DATA!$A$2:$CAD$2,0)-1,47,1)),"0.0")&"%" &" （"& N42 & "）","NA") -> NA | N42: =INDEX(DATA!$C$15:$C$61,MATCH(_xlfn.AGGREGATE(4,7,OFFSET(DATA!$A$1,14,MATCH(VLOOKUP($H42,INDEXTBL!$C$1:$O$1216,5,FALSE),DATA!$A$2:$CAD$2,0)-1,47,1)),OFFSET(DATA!$A$1,14,MATCH(VLOOKUP($H42,INDEXTBL!$C$1:$O$1216,5,FALSE),DATA!$A$2:$CAD$2,0)-1,47,1),0)) -> 
E43: 提D-0503 | I43: =VLOOKUP(E43,INDEXTBL!$A$1:$O$1216,2,FALSE) -> 「施設」では、粒子線治療や核医学治療、ホウ素中性子捕捉療法等について、適切に患者を紹介する | K43: 沖縄県 | L43: 全国 | M43: 最良値 （都道府県）
H44: 提D-050301 | I44: =VLOOKUP(H44,INDEXTBL!$C$1:$O$1216,3,FALSE) -> 「施設」から紹介されて、粒子線治療を受けた患者の数（人） | J44: =VLOOKUP(H44,INDEXTBL!$C$1:$N$1216,5,FALSE) -> EX201 | K44: =IFERROR(HLOOKUP(VLOOKUP($H44,INDEXTBL!$C$1:$O$1216,5,FALSE),DATA!$C$2:$CAD$14,8,FALSE),"NA") -> 7 | L44: =IFERROR(HLOOKUP(VLOOKUP($H44,INDEXTBL!$C$1:$O$1216,5,FALSE),DATA!$C$2:$CAD$14,7,FALSE),"NA") -> NA | M44: =IFERROR(TEXT(_xlfn.AGGREGATE(4,7,OFFSET(DATA!$A$1,14,MATCH(VLOOKUP($H44,INDEXTBL!$C$1:$O$1216,5,FALSE),DATA!$A$2:$CAD$2,0)-1,47,1)),"0.0")&"%" &" （"& N44 & "）","NA") -> NA | N44: =INDEX(DATA!$C$15:$C$61,MATCH(_xlfn.AGGREGATE(4,7,OFFSET(DATA!$A$1,14,MATCH(VLOOKUP($H44,INDEXTBL!$C$1:$O$1216,5,FALSE),DATA!$A$2:$CAD$2,0)-1,47,1)),OFFSET(DATA!$A$1,14,MATCH(VLOOKUP($H44,INDEXTBL!$C$1:$O$1216,5,FALSE),DATA!$A$2:$CAD$2,0)-1,47,1),0)) ->  | O44: #
M45: ＊＊：人口100万人あたり
M46: #：集計できない施設は除く
E47: ⑥薬物療法
E48: 提D-0601 | I48: =VLOOKUP(E48,INDEXTBL!$A$1:$O$1216,2,FALSE) -> 必要な資格を持った専門家を計画的に養成し、「施設」に必要に応じて配置する | K48: 沖縄県 | L48: 全国 | M48: 最良値 （都道府県） | Q48: 提B-0601 | U48: =VLOOKUP(Q48,INDEXTBL!$A$1:$O$1216,2,FALSE) -> 必要な患者が、最新の知見に基づく最適な薬物療法を、タイムリーで質が高く安全に受けられている | W48: 沖縄県 | X48: 全国 | Y48: 最良値 （都道府県）
H49: 提D-060101 | I49: =VLOOKUP(H49,INDEXTBL!$C$1:$O$1216,3,FALSE) -> がん薬物療法専門医が何らかの形で週に1回以上または月に1回以上関わっている「施設」の割合（％） | J49: =VLOOKUP(H49,INDEXTBL!$C$1:$N$1216,5,FALSE) -> EX202 | K49: =IFERROR(TEXT(HLOOKUP(VLOOKUP($H49,INDEXTBL!$C$1:$O$1216,5,FALSE),DATA!$C$2:$CAD$14,8,FALSE),"0.0")&"%","NA") -> 28.6% | L49: =IFERROR(TEXT(HLOOKUP(VLOOKUP($H49,INDEXTBL!$C$1:$O$1216,5,FALSE),DATA!$C$2:$CAD$14,T67,FALSE)*100,"0.0")&"%","NA") -> NA | M49: =IFERROR(TEXT(_xlfn.AGGREGATE(4,7,OFFSET(DATA!$A$1,14,MATCH(VLOOKUP($H49,INDEXTBL!$C$1:$O$1216,5,FALSE),DATA!$A$2:$CAD$2,0)-1,47,1)),"0.0")&"%" &" （"& N49 & "）","NA") -> NA | N49: =INDEX(DATA!$C$15:$C$61,MATCH(_xlfn.AGGREGATE(4,7,OFFSET(DATA!$A$1,14,MATCH(VLOOKUP($H49,INDEXTBL!$C$1:$O$1216,5,FALSE),DATA!$A$2:$CAD$2,0)-1,47,1)),OFFSET(DATA!$A$1,14,MATCH(VLOOKUP($H49,INDEXTBL!$C$1:$O$1216,5,FALSE),DATA!$A$2:$CAD$2,0)-1,47,1),0)) ->  | R49: グラフ | T49: 提B-060101 | U49: =VLOOKUP(T49,INDEXTBL!$C$1:$O$1216,3,FALSE) -> （DPC-QI）StageIII大腸癌に対する術後補助化学療法 実施率（％）【再掲】 | V49: =VLOOKUP(T49,INDEXTBL!$C$1:$N$1216,6,FALSE) -> 大腸102 | W49: =IFERROR(TEXT(HLOOKUP(VLOOKUP($T49,INDEXTBL!$C$1:$O$1216,6,FALSE),DATA!$C$2:$CAD$14,8,FALSE),"0.0")&"%","NA") -> 100.0% | X49: =IFERROR(TEXT(HLOOKUP(VLOOKUP($T49,INDEXTBL!$C$1:$O$1216,6,FALSE),DATA!$C$2:$CAD$14,7,FALSE),"0.0")&"%","NA") -> 97.7% | Y49: =IFERROR(TEXT(_xlfn.AGGREGATE(4,7,OFFSET(DATA!$A$1,14,MATCH(VLOOKUP($T49,INDEXTBL!$C$1:$O$1216,6,FALSE),DATA!$A$2:$CAD$2,0)-1,47,1)),"0.0")&"%" &" （"& Z49 & "）","NA") -> 100.0% （青森県） | Z49: =INDEX(DATA!$C$15:$C$61,MATCH(_xlfn.AGGREGATE(4,7,OFFSET(DATA!$A$1,14,MATCH(VLOOKUP($T49,INDEXTBL!$C$1:$O$1216,6,FALSE),DATA!$A$2:$CAD$2,0)-1,47,1)),OFFSET(DATA!$A$1,14,MATCH(VLOOKUP($T49,INDEXTBL!$C$1:$O$1216,6,FALSE),DATA!$A$2:$CAD$2,0)-1,47,1),0)) -> 青森県
H50: 提D-060102 | I50: =VLOOKUP(H50,INDEXTBL!$C$1:$O$1216,3,FALSE) -> がん薬物療法専門医（人） | J50: =VLOOKUP(H50,INDEXTBL!$C$1:$N$1216,5,FALSE) -> EX070 | K50: =IFERROR(TEXT(HLOOKUP(VLOOKUP($H50,INDEXTBL!$C$1:$O$1216,5,FALSE),DATA!$C$2:$CAD$14,8,FALSE)/DATA!$H$9*1000000,"0.0"),"NA") -> 4.1 | L50: =IFERROR(TEXT(HLOOKUP(VLOOKUP($H50,INDEXTBL!$C$1:$O$1216,5,FALSE),DATA!$C$2:$CAD$14,7,FALSE)/DATA!$H$8*1000000,"0.0"),"NA") -> 13.3 | M50: =IFERROR(TEXT(MAX(OFFSET(DATA!$A$1,14,MATCH(VLOOKUP($H50,INDEXTBL!$C$1:$O$1216,5,FALSE),DATA!$A$2:$CAD$2,0)-1,47,1)/DATA!$H$15:$H$61*1000000),"0.0") &" （"& N50 & "）","NA") -> 26.5 （岡山県） | N50: =INDEX(DATA!$C$15:$C$61,MATCH(MAX(OFFSET(DATA!$A$1,14,MATCH(VLOOKUP($H50,INDEXTBL!$C$1:$O$1216,5,FALSE),DATA!$A$2:$CAD$2,0)-1,47,1)/DATA!$H$15:$H$61*1000000),OFFSET(DATA!$A$1,14,MATCH(VLOOKUP($H50,INDEXTBL!$C$1:$O$1216,5,FALSE),DATA!$A$2:$CAD$2,0)-1,47,1)/DATA!$H$15:$H$61*1000000,0)) -> 岡山県 | O50: ＊＊ | R50: グラフ | T50: 提B-060102 | U50: =VLOOKUP(T50,INDEXTBL!$C$1:$O$1216,3,FALSE) -> （DPC-QI）嘔吐高リスクの抗がん剤へ制吐剤 実施率（％） | V50: =VLOOKUP(T50,INDEXTBL!$C$1:$N$1216,5,FALSE) -> EX167 | W50: =IFERROR(TEXT(HLOOKUP(VLOOKUP($T50,INDEXTBL!$C$1:$O$1216,5,FALSE),DATA!$C$2:$CAD$14,8,FALSE),"0.0")&"%","NA") -> 92.9% | X50: =IFERROR(TEXT(HLOOKUP(VLOOKUP($T50,INDEXTBL!$C$1:$O$1216,5,FALSE),DATA!$C$2:$CAD$14,7,FALSE),"0.0")&"%","NA") -> 97.8% | Y50: =IFERROR(TEXT(_xlfn.AGGREGATE(4,7,OFFSET(DATA!$A$1,14,MATCH(VLOOKUP($T50,INDEXTBL!$C$1:$O$1216,5,FALSE),DATA!$A$2:$CAD$2,0)-1,47,1)),"0.0")&"%" &" （"& Z50 & "）","NA") -> 100.0% （茨城県） | Z50: =INDEX(DATA!$C$15:$C$61,MATCH(_xlfn.AGGREGATE(4,7,OFFSET(DATA!$A$1,14,MATCH(VLOOKUP($T50,INDEXTBL!$C$1:$O$1216,5,FALSE),DATA!$A$2:$CAD$2,0)-1,47,1)),OFFSET(DATA!$A$1,14,MATCH(VLOOKUP($T50,INDEXTBL!$C$1:$O$1216,5,FALSE),DATA!$A$2:$CAD$2,0)-1,47,1),0)) -> 茨城県
H51: 提D-060103 | I51: =VLOOKUP(H51,INDEXTBL!$C$1:$O$1216,3,FALSE) -> 消化器病専門医（人） | J51: =VLOOKUP(H51,INDEXTBL!$C$1:$N$1216,5,FALSE) -> EX173 | K51: =IFERROR(TEXT(HLOOKUP(VLOOKUP($H51,INDEXTBL!$C$1:$O$1216,5,FALSE),DATA!$C$2:$CAD$14,8,FALSE)/DATA!$H$9*1000000,"0.0"),"NA") -> 115.8 | L51: =IFERROR(TEXT(HLOOKUP(VLOOKUP($H51,INDEXTBL!$C$1:$O$1216,5,FALSE),DATA!$C$2:$CAD$14,7,FALSE)/DATA!$H$8*1000000,"0.0"),"NA") -> 187.7 | M51: =IFERROR(TEXT(MAX(OFFSET(DATA!$A$1,14,MATCH(VLOOKUP($H51,INDEXTBL!$C$1:$O$1216,5,FALSE),DATA!$A$2:$CAD$2,0)-1,47,1)/DATA!$H$15:$H$61*1000000),"0.0") &" （"& N51 & "）","NA") -> 268.2 （徳島県） | N51: =INDEX(DATA!$C$15:$C$61,MATCH(MAX(OFFSET(DATA!$A$1,14,MATCH(VLOOKUP($H51,INDEXTBL!$C$1:$O$1216,5,FALSE),DATA!$A$2:$CAD$2,0)-1,47,1)/DATA!$H$15:$H$61*1000000),OFFSET(DATA!$A$1,14,MATCH(VLOOKUP($H51,INDEXTBL!$C$1:$O$1216,5,FALSE),DATA!$A$2:$CAD$2,0)-1,47,1)/DATA!$H$15:$H$61*1000000,0)) -> 徳島県 | O51: ＊＊ | R51: グラフ | T51: 提B-060103 | U51: =VLOOKUP(T51,INDEXTBL!$C$1:$O$1216,3,FALSE) -> （DPC-QI）外来麻薬開始時の緩下剤処方 実施率（％） | V51: =VLOOKUP(T51,INDEXTBL!$C$1:$N$1216,5,FALSE) -> EX168 | W51: =IFERROR(TEXT(HLOOKUP(VLOOKUP($T51,INDEXTBL!$C$1:$O$1216,5,FALSE),DATA!$C$2:$CAD$14,8,FALSE),"0.0")&"%","NA") -> 70.6% | X51: =IFERROR(TEXT(HLOOKUP(VLOOKUP($T51,INDEXTBL!$C$1:$O$1216,5,FALSE),DATA!$C$2:$CAD$14,7,FALSE),"0.0")&"%","NA") -> 90.3% | Y51: =IFERROR(TEXT(_xlfn.AGGREGATE(4,7,OFFSET(DATA!$A$1,14,MATCH(VLOOKUP($T51,INDEXTBL!$C$1:$O$1216,5,FALSE),DATA!$A$2:$CAD$2,0)-1,47,1)),"0.0")&"%" &" （"& Z51 & "）","NA") -> 100.0% （鳥取県） | Z51: =INDEX(DATA!$C$15:$C$61,MATCH(_xlfn.AGGREGATE(4,7,OFFSET(DATA!$A$1,14,MATCH(VLOOKUP($T51,INDEXTBL!$C$1:$O$1216,5,FALSE),DATA!$A$2:$CAD$2,0)-1,47,1)),OFFSET(DATA!$A$1,14,MATCH(VLOOKUP($T51,INDEXTBL!$C$1:$O$1216,5,FALSE),DATA!$A$2:$CAD$2,0)-1,47,1),0)) -> 鳥取県
H52: 提D-060104 | I52: =VLOOKUP(H52,INDEXTBL!$C$1:$O$1216,3,FALSE) -> がん指導薬剤師（人） | J52: =VLOOKUP(H52,INDEXTBL!$C$1:$N$1216,5,FALSE) -> EX071 | K52: =IFERROR(TEXT(HLOOKUP(VLOOKUP($H52,INDEXTBL!$C$1:$O$1216,5,FALSE),DATA!$C$2:$CAD$14,8,FALSE)/DATA!$H$9*1000000,"0.0"),"NA") -> 0.0 | L52: =IFERROR(TEXT(HLOOKUP(VLOOKUP($H52,INDEXTBL!$C$1:$O$1216,5,FALSE),DATA!$C$2:$CAD$14,7,FALSE)/DATA!$H$8*1000000,"0.0"),"NA") -> 3.1 | M52: =IFERROR(TEXT(MAX(OFFSET(DATA!$A$1,14,MATCH(VLOOKUP($H52,INDEXTBL!$C$1:$O$1216,5,FALSE),DATA!$A$2:$CAD$2,0)-1,47,1)/DATA!$H$15:$H$61*1000000),"0.0") &" （"& N52 & "）","NA") -> 11.5 （石川県） | N52: =INDEX(DATA!$C$15:$C$61,MATCH(MAX(OFFSET(DATA!$A$1,14,MATCH(VLOOKUP($H52,INDEXTBL!$C$1:$O$1216,5,FALSE),DATA!$A$2:$CAD$2,0)-1,47,1)/DATA!$H$15:$H$61*1000000),OFFSET(DATA!$A$1,14,MATCH(VLOOKUP($H52,INDEXTBL!$C$1:$O$1216,5,FALSE),DATA!$A$2:$CAD$2,0)-1,47,1)/DATA!$H$15:$H$61*1000000,0)) -> 石川県 | O52: ＊＊
H53: 提D-060105 | I53: =VLOOKUP(H53,INDEXTBL!$C$1:$O$1216,3,FALSE) -> がん専門薬剤師（人） | J53: =VLOOKUP(H53,INDEXTBL!$C$1:$N$1216,5,FALSE) -> EX072 | K53: =IFERROR(TEXT(HLOOKUP(VLOOKUP($H53,INDEXTBL!$C$1:$O$1216,5,FALSE),DATA!$C$2:$CAD$14,8,FALSE)/DATA!$H$9*1000000,"0.0"),"NA") -> 2.7 | L53: =IFERROR(TEXT(HLOOKUP(VLOOKUP($H53,INDEXTBL!$C$1:$O$1216,5,FALSE),DATA!$C$2:$CAD$14,7,FALSE)/DATA!$H$8*1000000,"0.0"),"NA") -> 6.6 | M53: =IFERROR(TEXT(MAX(OFFSET(DATA!$A$1,14,MATCH(VLOOKUP($H53,INDEXTBL!$C$1:$O$1216,5,FALSE),DATA!$A$2:$CAD$2,0)-1,47,1)/DATA!$H$15:$H$61*1000000),"0.0") &" （"& N53 & "）","NA") -> 18.5 （石川県） | N53: =INDEX(DATA!$C$15:$C$61,MATCH(MAX(OFFSET(DATA!$A$1,14,MATCH(VLOOKUP($H53,INDEXTBL!$C$1:$O$1216,5,FALSE),DATA!$A$2:$CAD$2,0)-1,47,1)/DATA!$H$15:$H$61*1000000),OFFSET(DATA!$A$1,14,MATCH(VLOOKUP($H53,INDEXTBL!$C$1:$O$1216,5,FALSE),DATA!$A$2:$CAD$2,0)-1,47,1)/DATA!$H$15:$H$61*1000000,0)) -> 石川県 | O53: ＊＊
H54: 提D-060106 | I54: =VLOOKUP(H54,INDEXTBL!$C$1:$O$1216,3,FALSE) -> がん薬物療法認定薬剤師（人） | J54: =VLOOKUP(H54,INDEXTBL!$C$1:$N$1216,5,FALSE) -> EX073 | K54: =IFERROR(TEXT(HLOOKUP(VLOOKUP($H54,INDEXTBL!$C$1:$O$1216,5,FALSE),DATA!$C$2:$CAD$14,8,FALSE)/DATA!$H$9*1000000,"0.0"),"NA") -> 8.2 | L54: =IFERROR(TEXT(HLOOKUP(VLOOKUP($H54,INDEXTBL!$C$1:$O$1216,5,FALSE),DATA!$C$2:$CAD$14,7,FALSE)/DATA!$H$8*1000000,"0.0"),"NA") -> 8.1 | M54: =IFERROR(TEXT(MAX(OFFSET(DATA!$A$1,14,MATCH(VLOOKUP($H54,INDEXTBL!$C$1:$O$1216,5,FALSE),DATA!$A$2:$CAD$2,0)-1,47,1)/DATA!$H$15:$H$61*1000000),"0.0") &" （"& N54 & "）","NA") -> 19.4 （島根県） | N54: =INDEX(DATA!$C$15:$C$61,MATCH(MAX(OFFSET(DATA!$A$1,14,MATCH(VLOOKUP($H54,INDEXTBL!$C$1:$O$1216,5,FALSE),DATA!$A$2:$CAD$2,0)-1,47,1)/DATA!$H$15:$H$61*1000000),OFFSET(DATA!$A$1,14,MATCH(VLOOKUP($H54,INDEXTBL!$C$1:$O$1216,5,FALSE),DATA!$A$2:$CAD$2,0)-1,47,1)/DATA!$H$15:$H$61*1000000,0)) -> 島根県 | O54: ＊＊
H55: 提D-060107 | I55: =VLOOKUP(H55,INDEXTBL!$C$1:$O$1216,3,FALSE) -> 外来がん治療認定薬剤師（人） | J55: =VLOOKUP(H55,INDEXTBL!$C$1:$N$1216,5,FALSE) -> EX074 | K55: =IFERROR(TEXT(HLOOKUP(VLOOKUP($H55,INDEXTBL!$C$1:$O$1216,5,FALSE),DATA!$C$2:$CAD$14,8,FALSE)/DATA!$H$9*1000000,"0.0"),"NA") -> 4.1 | L55: =IFERROR(TEXT(HLOOKUP(VLOOKUP($H55,INDEXTBL!$C$1:$O$1216,5,FALSE),DATA!$C$2:$CAD$14,7,FALSE)/DATA!$H$8*1000000,"0.0"),"NA") -> 7.8 | M55: =IFERROR(TEXT(MAX(OFFSET(DATA!$A$1,14,MATCH(VLOOKUP($H55,INDEXTBL!$C$1:$O$1216,5,FALSE),DATA!$A$2:$CAD$2,0)-1,47,1)/DATA!$H$15:$H$61*1000000),"0.0") &" （"& N55 & "）","NA") -> 11.9 （和歌山県） | N55: =INDEX(DATA!$C$15:$C$61,MATCH(MAX(OFFSET(DATA!$A$1,14,MATCH(VLOOKUP($H55,INDEXTBL!$C$1:$O$1216,5,FALSE),DATA!$A$2:$CAD$2,0)-1,47,1)/DATA!$H$15:$H$61*1000000),OFFSET(DATA!$A$1,14,MATCH(VLOOKUP($H55,INDEXTBL!$C$1:$O$1216,5,FALSE),DATA!$A$2:$CAD$2,0)-1,47,1)/DATA!$H$15:$H$61*1000000,0)) -> 和歌山県 | O55: ＊＊
H56: 提D-060108 | I56: =VLOOKUP(H56,INDEXTBL!$C$1:$O$1216,3,FALSE) -> がん看護専門看護師（人） | J56: =VLOOKUP(H56,INDEXTBL!$C$1:$N$1216,5,FALSE) -> EX075 | K56: =IFERROR(TEXT(HLOOKUP(VLOOKUP($H56,INDEXTBL!$C$1:$O$1216,5,FALSE),DATA!$C$2:$CAD$14,8,FALSE)/DATA!$H$9*1000000,"0.0"),"NA") -> 7.5 | L56: =IFERROR(TEXT(HLOOKUP(VLOOKUP($H56,INDEXTBL!$C$1:$O$1216,5,FALSE),DATA!$C$2:$CAD$14,7,FALSE)/DATA!$H$8*1000000,"0.0"),"NA") -> 7.2 | M56: =IFERROR(TEXT(MAX(OFFSET(DATA!$A$1,14,MATCH(VLOOKUP($H56,INDEXTBL!$C$1:$O$1216,5,FALSE),DATA!$A$2:$CAD$2,0)-1,47,1)/DATA!$H$15:$H$61*1000000),"0.0") &" （"& N56 & "）","NA") -> 21.7 （高知県） | N56: =INDEX(DATA!$C$15:$C$61,MATCH(MAX(OFFSET(DATA!$A$1,14,MATCH(VLOOKUP($H56,INDEXTBL!$C$1:$O$1216,5,FALSE),DATA!$A$2:$CAD$2,0)-1,47,1)/DATA!$H$15:$H$61*1000000),OFFSET(DATA!$A$1,14,MATCH(VLOOKUP($H56,INDEXTBL!$C$1:$O$1216,5,FALSE),DATA!$A$2:$CAD$2,0)-1,47,1)/DATA!$H$15:$H$61*1000000,0)) -> 高知県 | O56: ＊＊
H57: 提D-060109 | I57: =VLOOKUP(H57,INDEXTBL!$C$1:$O$1216,3,FALSE) -> がん薬物療法看護認定看護師（人） | J57: =VLOOKUP(H57,INDEXTBL!$C$1:$N$1216,5,FALSE) -> EX076 | K57: =IFERROR(TEXT(HLOOKUP(VLOOKUP($H57,INDEXTBL!$C$1:$O$1216,5,FALSE),DATA!$C$2:$CAD$14,8,FALSE)/DATA!$H$9*1000000,"0.0"),"NA") -> 0.0 | L57: =IFERROR(TEXT(HLOOKUP(VLOOKUP($H57,INDEXTBL!$C$1:$O$1216,5,FALSE),DATA!$C$2:$CAD$14,7,FALSE)/DATA!$H$8*1000000,"0.0"),"NA") -> 0.7 | M57: =IFERROR(TEXT(MAX(OFFSET(DATA!$A$1,14,MATCH(VLOOKUP($H57,INDEXTBL!$C$1:$O$1216,5,FALSE),DATA!$A$2:$CAD$2,0)-1,47,1)/DATA!$H$15:$H$61*1000000),"0.0") &" （"& N57 & "）","NA") -> 4.7 （山形県） | N57: =INDEX(DATA!$C$15:$C$61,MATCH(MAX(OFFSET(DATA!$A$1,14,MATCH(VLOOKUP($H57,INDEXTBL!$C$1:$O$1216,5,FALSE),DATA!$A$2:$CAD$2,0)-1,47,1)/DATA!$H$15:$H$61*1000000),OFFSET(DATA!$A$1,14,MATCH(VLOOKUP($H57,INDEXTBL!$C$1:$O$1216,5,FALSE),DATA!$A$2:$CAD$2,0)-1,47,1)/DATA!$H$15:$H$61*1000000,0)) -> 山形県 | O57: ＊＊
H58: 提D-060110 | I58: =VLOOKUP(H58,INDEXTBL!$C$1:$O$1216,3,FALSE) -> 乳がん看護認定看護師（人） | J58: =VLOOKUP(H58,INDEXTBL!$C$1:$N$1216,5,FALSE) -> EX077 | K58: =IFERROR(TEXT(HLOOKUP(VLOOKUP($H58,INDEXTBL!$C$1:$O$1216,5,FALSE),DATA!$C$2:$CAD$14,8,FALSE)/DATA!$H$9*1000000,"0.0"),"NA") -> 1.4 | L58: =IFERROR(TEXT(HLOOKUP(VLOOKUP($H58,INDEXTBL!$C$1:$O$1216,5,FALSE),DATA!$C$2:$CAD$14,7,FALSE)/DATA!$H$8*1000000,"0.0"),"NA") -> 2.5 | M58: =IFERROR(TEXT(MAX(OFFSET(DATA!$A$1,14,MATCH(VLOOKUP($H58,INDEXTBL!$C$1:$O$1216,5,FALSE),DATA!$A$2:$CAD$2,0)-1,47,1)/DATA!$H$15:$H$61*1000000),"0.0") &" （"& N58 & "）","NA") -> 9.3 （宮崎県） | N58: =INDEX(DATA!$C$15:$C$61,MATCH(MAX(OFFSET(DATA!$A$1,14,MATCH(VLOOKUP($H58,INDEXTBL!$C$1:$O$1216,5,FALSE),DATA!$A$2:$CAD$2,0)-1,47,1)/DATA!$H$15:$H$61*1000000),OFFSET(DATA!$A$1,14,MATCH(VLOOKUP($H58,INDEXTBL!$C$1:$O$1216,5,FALSE),DATA!$A$2:$CAD$2,0)-1,47,1)/DATA!$H$15:$H$61*1000000,0)) -> 宮崎県 | O58: ＊＊
H59: 提D-060111 | I59: =VLOOKUP(H59,INDEXTBL!$C$1:$O$1216,3,FALSE) -> がん薬物療法専門医が常勤で配置されている「施設」の割合（％） | J59: =VLOOKUP(H59,INDEXTBL!$C$1:$N$1216,5,FALSE) -> EX203 | K59: =IFERROR(TEXT(HLOOKUP(VLOOKUP($H59,INDEXTBL!$C$1:$O$1216,5,FALSE),DATA!$C$2:$CAD$14,8,FALSE),"0.0")&"%","NA") -> 28.6% | L59: =IFERROR(TEXT(HLOOKUP(VLOOKUP($H59,INDEXTBL!$C$1:$O$1216,5,FALSE),DATA!$C$2:$CAD$14,T77,FALSE)*100,"0.0")&"%","NA") -> NA | M59: =IFERROR(TEXT(_xlfn.AGGREGATE(4,7,OFFSET(DATA!$A$1,14,MATCH(VLOOKUP($H59,INDEXTBL!$C$1:$O$1216,5,FALSE),DATA!$A$2:$CAD$2,0)-1,47,1)),"0.0")&"%" &" （"& N59 & "）","NA") -> NA | N59: =INDEX(DATA!$C$15:$C$61,MATCH(_xlfn.AGGREGATE(4,7,OFFSET(DATA!$A$1,14,MATCH(VLOOKUP($H59,INDEXTBL!$C$1:$O$1216,5,FALSE),DATA!$A$2:$CAD$2,0)-1,47,1)),OFFSET(DATA!$A$1,14,MATCH(VLOOKUP($H59,INDEXTBL!$C$1:$O$1216,5,FALSE),DATA!$A$2:$CAD$2,0)-1,47,1),0)) -> 
H60: 提D-060112 | I60: =VLOOKUP(H60,INDEXTBL!$C$1:$O$1216,3,FALSE) -> 消化器病専門医が常勤で配置されている「施設」の割合（％） | J60: =VLOOKUP(H60,INDEXTBL!$C$1:$N$1216,5,FALSE) -> EX204 | K60: =IFERROR(TEXT(HLOOKUP(VLOOKUP($H60,INDEXTBL!$C$1:$O$1216,5,FALSE),DATA!$C$2:$CAD$14,8,FALSE),"0.0")&"%","NA") -> 100.0% | L60: =IFERROR(TEXT(HLOOKUP(VLOOKUP($H60,INDEXTBL!$C$1:$O$1216,5,FALSE),DATA!$C$2:$CAD$14,T78,FALSE)*100,"0.0")&"%","NA") -> NA | M60: =IFERROR(TEXT(_xlfn.AGGREGATE(4,7,OFFSET(DATA!$A$1,14,MATCH(VLOOKUP($H60,INDEXTBL!$C$1:$O$1216,5,FALSE),DATA!$A$2:$CAD$2,0)-1,47,1)),"0.0")&"%" &" （"& N60 & "）","NA") -> NA | N60: =INDEX(DATA!$C$15:$C$61,MATCH(_xlfn.AGGREGATE(4,7,OFFSET(DATA!$A$1,14,MATCH(VLOOKUP($H60,INDEXTBL!$C$1:$O$1216,5,FALSE),DATA!$A$2:$CAD$2,0)-1,47,1)),OFFSET(DATA!$A$1,14,MATCH(VLOOKUP($H60,INDEXTBL!$C$1:$O$1216,5,FALSE),DATA!$A$2:$CAD$2,0)-1,47,1),0)) -> 
H61: 提D-060113 | I61: =VLOOKUP(H61,INDEXTBL!$C$1:$O$1216,3,FALSE) -> がん指導薬剤師が常勤で配置されている「施設」の割合（％） | J61: =VLOOKUP(H61,INDEXTBL!$C$1:$N$1216,5,FALSE) -> EX205 | K61: =IFERROR(TEXT(HLOOKUP(VLOOKUP($H61,INDEXTBL!$C$1:$O$1216,5,FALSE),DATA!$C$2:$CAD$14,8,FALSE),"0.0")&"%","NA") -> 14.3% | L61: =IFERROR(TEXT(HLOOKUP(VLOOKUP($H61,INDEXTBL!$C$1:$O$1216,5,FALSE),DATA!$C$2:$CAD$14,T79,FALSE)*100,"0.0")&"%","NA") -> NA | M61: =IFERROR(TEXT(_xlfn.AGGREGATE(4,7,OFFSET(DATA!$A$1,14,MATCH(VLOOKUP($H61,INDEXTBL!$C$1:$O$1216,5,FALSE),DATA!$A$2:$CAD$2,0)-1,47,1)),"0.0")&"%" &" （"& N61 & "）","NA") -> NA | N61: =INDEX(DATA!$C$15:$C$61,MATCH(_xlfn.AGGREGATE(4,7,OFFSET(DATA!$A$1,14,MATCH(VLOOKUP($H61,INDEXTBL!$C$1:$O$1216,5,FALSE),DATA!$A$2:$CAD$2,0)-1,47,1)),OFFSET(DATA!$A$1,14,MATCH(VLOOKUP($H61,INDEXTBL!$C$1:$O$1216,5,FALSE),DATA!$A$2:$CAD$2,0)-1,47,1),0)) -> 
H62: 提D-060114 | I62: =VLOOKUP(H62,INDEXTBL!$C$1:$O$1216,3,FALSE) -> がん専門薬剤師が常勤で配置されている「施設」の割合（％） | J62: =VLOOKUP(H62,INDEXTBL!$C$1:$N$1216,5,FALSE) -> EX206 | K62: =IFERROR(TEXT(HLOOKUP(VLOOKUP($H62,INDEXTBL!$C$1:$O$1216,5,FALSE),DATA!$C$2:$CAD$14,8,FALSE),"0.0")&"%","NA") -> 0.0% | L62: =IFERROR(TEXT(HLOOKUP(VLOOKUP($H62,INDEXTBL!$C$1:$O$1216,5,FALSE),DATA!$C$2:$CAD$14,T80,FALSE)*100,"0.0")&"%","NA") -> NA | M62: =IFERROR(TEXT(_xlfn.AGGREGATE(4,7,OFFSET(DATA!$A$1,14,MATCH(VLOOKUP($H62,INDEXTBL!$C$1:$O$1216,5,FALSE),DATA!$A$2:$CAD$2,0)-1,47,1)),"0.0")&"%" &" （"& N62 & "）","NA") -> NA | N62: =INDEX(DATA!$C$15:$C$61,MATCH(_xlfn.AGGREGATE(4,7,OFFSET(DATA!$A$1,14,MATCH(VLOOKUP($H62,INDEXTBL!$C$1:$O$1216,5,FALSE),DATA!$A$2:$CAD$2,0)-1,47,1)),OFFSET(DATA!$A$1,14,MATCH(VLOOKUP($H62,INDEXTBL!$C$1:$O$1216,5,FALSE),DATA!$A$2:$CAD$2,0)-1,47,1),0)) -> 
H63: 提D-060115 | I63: =VLOOKUP(H63,INDEXTBL!$C$1:$O$1216,3,FALSE) -> がん薬物療法認定薬剤師が常勤で配置されている「施設」の割合（％） | J63: =VLOOKUP(H63,INDEXTBL!$C$1:$N$1216,5,FALSE) -> EX207 | K63: =IFERROR(TEXT(HLOOKUP(VLOOKUP($H63,INDEXTBL!$C$1:$O$1216,5,FALSE),DATA!$C$2:$CAD$14,8,FALSE),"0.0")&"%","NA") -> 42.9% | L63: =IFERROR(TEXT(HLOOKUP(VLOOKUP($H63,INDEXTBL!$C$1:$O$1216,5,FALSE),DATA!$C$2:$CAD$14,T81,FALSE)*100,"0.0")&"%","NA") -> NA | M63: =IFERROR(TEXT(_xlfn.AGGREGATE(4,7,OFFSET(DATA!$A$1,14,MATCH(VLOOKUP($H63,INDEXTBL!$C$1:$O$1216,5,FALSE),DATA!$A$2:$CAD$2,0)-1,47,1)),"0.0")&"%" &" （"& N63 & "）","NA") -> NA | N63: =INDEX(DATA!$C$15:$C$61,MATCH(_xlfn.AGGREGATE(4,7,OFFSET(DATA!$A$1,14,MATCH(VLOOKUP($H63,INDEXTBL!$C$1:$O$1216,5,FALSE),DATA!$A$2:$CAD$2,0)-1,47,1)),OFFSET(DATA!$A$1,14,MATCH(VLOOKUP($H63,INDEXTBL!$C$1:$O$1216,5,FALSE),DATA!$A$2:$CAD$2,0)-1,47,1),0)) -> 
H64: 提D-060116 | I64: =VLOOKUP(H64,INDEXTBL!$C$1:$O$1216,3,FALSE) -> 外来がん治療認定薬剤師が常勤で配置されている「施設」の割合（％） | J64: =VLOOKUP(H64,INDEXTBL!$C$1:$N$1216,5,FALSE) -> EX208 | K64: =IFERROR(TEXT(HLOOKUP(VLOOKUP($H64,INDEXTBL!$C$1:$O$1216,5,FALSE),DATA!$C$2:$CAD$14,8,FALSE),"0.0")&"%","NA") -> 28.6% | L64: =IFERROR(TEXT(HLOOKUP(VLOOKUP($H64,INDEXTBL!$C$1:$O$1216,5,FALSE),DATA!$C$2:$CAD$14,T82,FALSE)*100,"0.0")&"%","NA") -> NA | M64: =IFERROR(TEXT(_xlfn.AGGREGATE(4,7,OFFSET(DATA!$A$1,14,MATCH(VLOOKUP($H64,INDEXTBL!$C$1:$O$1216,5,FALSE),DATA!$A$2:$CAD$2,0)-1,47,1)),"0.0")&"%" &" （"& N64 & "）","NA") -> NA | N64: =INDEX(DATA!$C$15:$C$61,MATCH(_xlfn.AGGREGATE(4,7,OFFSET(DATA!$A$1,14,MATCH(VLOOKUP($H64,INDEXTBL!$C$1:$O$1216,5,FALSE),DATA!$A$2:$CAD$2,0)-1,47,1)),OFFSET(DATA!$A$1,14,MATCH(VLOOKUP($H64,INDEXTBL!$C$1:$O$1216,5,FALSE),DATA!$A$2:$CAD$2,0)-1,47,1),0)) -> 
H65: 提D-060117 | I65: =VLOOKUP(H65,INDEXTBL!$C$1:$O$1216,3,FALSE) -> がん看護専門看護師が常勤で配置されている「施設」の割合（％） | J65: =VLOOKUP(H65,INDEXTBL!$C$1:$N$1216,5,FALSE) -> EX209 | K65: =IFERROR(TEXT(HLOOKUP(VLOOKUP($H65,INDEXTBL!$C$1:$O$1216,5,FALSE),DATA!$C$2:$CAD$14,8,FALSE),"0.0")&"%","NA") -> 28.6% | L65: =IFERROR(TEXT(HLOOKUP(VLOOKUP($H65,INDEXTBL!$C$1:$O$1216,5,FALSE),DATA!$C$2:$CAD$14,T83,FALSE)*100,"0.0")&"%","NA") -> NA | M65: =IFERROR(TEXT(_xlfn.AGGREGATE(4,7,OFFSET(DATA!$A$1,14,MATCH(VLOOKUP($H65,INDEXTBL!$C$1:$O$1216,5,FALSE),DATA!$A$2:$CAD$2,0)-1,47,1)),"0.0")&"%" &" （"& N65 & "）","NA") -> NA | N65: =INDEX(DATA!$C$15:$C$61,MATCH(_xlfn.AGGREGATE(4,7,OFFSET(DATA!$A$1,14,MATCH(VLOOKUP($H65,INDEXTBL!$C$1:$O$1216,5,FALSE),DATA!$A$2:$CAD$2,0)-1,47,1)),OFFSET(DATA!$A$1,14,MATCH(VLOOKUP($H65,INDEXTBL!$C$1:$O$1216,5,FALSE),DATA!$A$2:$CAD$2,0)-1,47,1),0)) -> 
H66: 提D-060118 | I66: =VLOOKUP(H66,INDEXTBL!$C$1:$O$1216,3,FALSE) -> がん薬物療法看護認定看護師が常勤で配置されている「施設」の割合（％） | J66: =VLOOKUP(H66,INDEXTBL!$C$1:$N$1216,5,FALSE) -> EX210 | K66: =IFERROR(TEXT(HLOOKUP(VLOOKUP($H66,INDEXTBL!$C$1:$O$1216,5,FALSE),DATA!$C$2:$CAD$14,8,FALSE),"0.0")&"%","NA") -> 71.4% | L66: =IFERROR(TEXT(HLOOKUP(VLOOKUP($H66,INDEXTBL!$C$1:$O$1216,5,FALSE),DATA!$C$2:$CAD$14,T84,FALSE)*100,"0.0")&"%","NA") -> NA | M66: =IFERROR(TEXT(_xlfn.AGGREGATE(4,7,OFFSET(DATA!$A$1,14,MATCH(VLOOKUP($H66,INDEXTBL!$C$1:$O$1216,5,FALSE),DATA!$A$2:$CAD$2,0)-1,47,1)),"0.0")&"%" &" （"& N66 & "）","NA") -> NA | N66: =INDEX(DATA!$C$15:$C$61,MATCH(_xlfn.AGGREGATE(4,7,OFFSET(DATA!$A$1,14,MATCH(VLOOKUP($H66,INDEXTBL!$C$1:$O$1216,5,FALSE),DATA!$A$2:$CAD$2,0)-1,47,1)),OFFSET(DATA!$A$1,14,MATCH(VLOOKUP($H66,INDEXTBL!$C$1:$O$1216,5,FALSE),DATA!$A$2:$CAD$2,0)-1,47,1),0)) -> 
H67: 提D-060119 | I67: =VLOOKUP(H67,INDEXTBL!$C$1:$O$1216,3,FALSE) -> 乳がん看護認定看護師が常勤で配置されている「施設」の割合（％） | J67: =VLOOKUP(H67,INDEXTBL!$C$1:$N$1216,5,FALSE) -> EX211 | K67: =IFERROR(TEXT(HLOOKUP(VLOOKUP($H67,INDEXTBL!$C$1:$O$1216,5,FALSE),DATA!$C$2:$CAD$14,8,FALSE),"0.0")&"%","NA") -> 0.0% | L67: =IFERROR(TEXT(HLOOKUP(VLOOKUP($H67,INDEXTBL!$C$1:$O$1216,5,FALSE),DATA!$C$2:$CAD$14,T85,FALSE)*100,"0.0")&"%","NA") -> NA | M67: =IFERROR(TEXT(_xlfn.AGGREGATE(4,7,OFFSET(DATA!$A$1,14,MATCH(VLOOKUP($H67,INDEXTBL!$C$1:$O$1216,5,FALSE),DATA!$A$2:$CAD$2,0)-1,47,1)),"0.0")&"%" &" （"& N67 & "）","NA") -> NA | N67: =INDEX(DATA!$C$15:$C$61,MATCH(_xlfn.AGGREGATE(4,7,OFFSET(DATA!$A$1,14,MATCH(VLOOKUP($H67,INDEXTBL!$C$1:$O$1216,5,FALSE),DATA!$A$2:$CAD$2,0)-1,47,1)),OFFSET(DATA!$A$1,14,MATCH(VLOOKUP($H67,INDEXTBL!$C$1:$O$1216,5,FALSE),DATA!$A$2:$CAD$2,0)-1,47,1),0)) -> 
E68: 提D-0602 | I68: =VLOOKUP(E68,INDEXTBL!$A$1:$O$1216,2,FALSE) -> 「施設」では、標準治療を、質が高く安全に実施する | K68: 沖縄県 | L68: 全国 | M68: 最良値 （都道府県）
H69: 提D-060201 | I69: =VLOOKUP(H69,INDEXTBL!$C$1:$O$1216,3,FALSE) -> （検討中） | J69: =VLOOKUP(H69,INDEXTBL!$C$1:$N$1216,5,FALSE) -> 0 | K69: =IFERROR(HLOOKUP(VLOOKUP($H69,INDEXTBL!$C$1:$O$1216,5,FALSE),DATA!$C$2:$CAP$14,8,FALSE),"NA") -> NA | L69: =IFERROR(HLOOKUP(VLOOKUP($H69,INDEXTBL!$C$1:$O$1216,5,FALSE),DATA!$C$2:$CAP$14,7,FALSE),"NA") -> NA | M69: =IFERROR(HLOOKUP(VLOOKUP($H69,INDEXTBL!$C$1:$O$1216,5,FALSE),DATA!$C$2:$CAP$14,10,FALSE),"NA") -> NA
E70: 提D-0603 | I70: =VLOOKUP(E70,INDEXTBL!$A$1:$O$1216,2,FALSE) -> 拠点病院等では、並存疾患のある患者に対する薬物療法を安全に実施する | K70: 沖縄県 | L70: 全国 | M70: 最良値 （都道府県）
H71: 提D-060301 | I71: =VLOOKUP(H71,INDEXTBL!$C$1:$O$1216,3,FALSE) -> 免疫関連有害事象を含む有害事象に対して、他診療科や他病院と連携等して対応している「施設」の割合（％） | J71: =VLOOKUP(H71,INDEXTBL!$C$1:$N$1216,5,FALSE) -> EX212 | K71: =IFERROR(TEXT(HLOOKUP(VLOOKUP($H71,INDEXTBL!$C$1:$O$1216,5,FALSE),DATA!$C$2:$CAD$14,8,FALSE),"0.0")&"%","NA") -> 100.0% | L71: =IFERROR(TEXT(HLOOKUP(VLOOKUP($H71,INDEXTBL!$C$1:$O$1216,5,FALSE),DATA!$C$2:$CAD$14,T89,FALSE)*100,"0.0")&"%","NA") -> NA | M71: =IFERROR(TEXT(_xlfn.AGGREGATE(4,7,OFFSET(DATA!$A$1,14,MATCH(VLOOKUP($H71,INDEXTBL!$C$1:$O$1216,5,FALSE),DATA!$A$2:$CAD$2,0)-1,47,1)),"0.0")&"%" &" （"& N71 & "）","NA") -> NA | N71: =INDEX(DATA!$C$15:$C$61,MATCH(_xlfn.AGGREGATE(4,7,OFFSET(DATA!$A$1,14,MATCH(VLOOKUP($H71,INDEXTBL!$C$1:$O$1216,5,FALSE),DATA!$A$2:$CAD$2,0)-1,47,1)),OFFSET(DATA!$A$1,14,MATCH(VLOOKUP($H71,INDEXTBL!$C$1:$O$1216,5,FALSE),DATA!$A$2:$CAD$2,0)-1,47,1),0)) -> 
M72: ＊＊：人口100万人あたり
E73: ⑦チーム医療の推進
E74: 提D-0701 | I74: =VLOOKUP(E74,INDEXTBL!$A$1:$O$1216,2,FALSE) -> 「施設」では、栄養サポートチーム等の専門チームと連携し、栄養指導や管理を行う | K74: 沖縄県 | L74: 全国 | M74: 最良値 （都道府県） | Q74: 提B-0701 | U74: =VLOOKUP(Q74,INDEXTBL!$A$1:$O$1216,2,FALSE) -> 患者が、医療者の間の情報共有ができた医療を受けられている | W74: 沖縄県 | X74: 全国 | Y74: 最良値 （都道府県）
H75: 提D-070101 | I75: =VLOOKUP(H75,INDEXTBL!$C$1:$O$1216,3,FALSE) -> 「栄養サポートチーム加算」を算定している「施設」の割合（％） | J75: =VLOOKUP(H75,INDEXTBL!$C$1:$N$1216,5,FALSE) -> EX213 | K75: =IFERROR(TEXT(HLOOKUP(VLOOKUP($H75,INDEXTBL!$C$1:$O$1216,5,FALSE),DATA!$C$2:$CAD$14,8,FALSE),"0.0")&"%","NA") -> 76.9% | L75: =IFERROR(TEXT(HLOOKUP(VLOOKUP($H75,INDEXTBL!$C$1:$O$1216,5,FALSE),DATA!$C$2:$CAD$14,T93,FALSE)*100,"0.0")&"%","NA") -> NA | M75: =IFERROR(TEXT(_xlfn.AGGREGATE(4,7,OFFSET(DATA!$A$1,14,MATCH(VLOOKUP($H75,INDEXTBL!$C$1:$O$1216,5,FALSE),DATA!$A$2:$CAD$2,0)-1,47,1)),"0.0")&"%" &" （"& N75 & "）","NA") -> NA | N75: =INDEX(DATA!$C$15:$C$61,MATCH(_xlfn.AGGREGATE(4,7,OFFSET(DATA!$A$1,14,MATCH(VLOOKUP($H75,INDEXTBL!$C$1:$O$1216,5,FALSE),DATA!$A$2:$CAD$2,0)-1,47,1)),OFFSET(DATA!$A$1,14,MATCH(VLOOKUP($H75,INDEXTBL!$C$1:$O$1216,5,FALSE),DATA!$A$2:$CAD$2,0)-1,47,1),0)) ->  | R75: グラフ | T75: 提B-070101 | U75: =VLOOKUP(T75,INDEXTBL!$C$1:$O$1216,3,FALSE) -> （NDB-SCR）栄養サポートチーム加算 | V75: =VLOOKUP(T75,INDEXTBL!$C$1:$N$1216,10,FALSE) -> NA06 | W75: =IFERROR(TEXT(HLOOKUP(VLOOKUP($T75,INDEXTBL!$C$1:$O$1216,10,FALSE),DATA!$C$2:$CAD$14,8,FALSE),"0.0"),"NA") -> 190.1 | X75: =IFERROR(TEXT(HLOOKUP(VLOOKUP($T75,INDEXTBL!$C$1:$O$1216,10,FALSE),DATA!$C$2:$CAD$14,7,FALSE),"0.0"),"NA") -> 100.0 | Y75: =IFERROR(TEXT(_xlfn.AGGREGATE(4,7,OFFSET(DATA!$A$1,14,MATCH(VLOOKUP($T75,INDEXTBL!$C$1:$O$1216,10,FALSE),DATA!$A$2:$CAD$2,0)-1,47,1)),"0.0") &" （"& Z75 & "）","NA") -> 190.1 （沖縄県） | Z75: =INDEX(DATA!$C$15:$C$61,MATCH(_xlfn.AGGREGATE(4,7,OFFSET(DATA!$A$1,14,MATCH(VLOOKUP($T75,INDEXTBL!$C$1:$O$1216,10,FALSE),DATA!$A$2:$CAD$2,0)-1,47,1)),OFFSET(DATA!$A$1,14,MATCH(VLOOKUP($T75,INDEXTBL!$C$1:$O$1216,10,FALSE),DATA!$A$2:$CAD$2,0)-1,47,1),0)) -> 沖縄県
E77: ⑧医療実装
E78: 提D-0801 | I78: =VLOOKUP(E78,INDEXTBL!$A$1:$O$1216,2,FALSE) -> 「施設」では、新規に認可された医薬品、医療機器及び医療技術を速やかに患者に提供する | K78: 沖縄県 | L78: 全国 | M78: 最良値 （都道府県） | Q78: 提B-0801 | U78: =VLOOKUP(Q78,INDEXTBL!$A$1:$O$1216,2,FALSE) -> 患者が、新規に認可された医薬品、医療機器及び医療技術を受けられており、希望する患者が治験等に参加できている | W78: 沖縄県 | X78: 全国 | Y78: 最良値 （都道府県）
H79: 提D-080101 | I79: =VLOOKUP(H79,INDEXTBL!$C$1:$O$1216,3,FALSE) -> 「拠点病院等」において新規に認可された免疫チェックポイント阻害薬が実際に使えるようになった日数 | J79: =VLOOKUP(H79,INDEXTBL!$C$1:$N$1216,5,FALSE) -> 0 | K79: =IFERROR(HLOOKUP(VLOOKUP($H79,INDEXTBL!$C$1:$O$1216,5,FALSE),DATA!$C$2:$CAP$14,8,FALSE),"NA") -> NA | L79: =IFERROR(HLOOKUP(VLOOKUP($H79,INDEXTBL!$C$1:$O$1216,5,FALSE),DATA!$C$2:$CAP$14,7,FALSE),"NA") -> NA | M79: =IFERROR(HLOOKUP(VLOOKUP($H79,INDEXTBL!$C$1:$O$1216,5,FALSE),DATA!$C$2:$CAP$14,10,FALSE),"NA") -> NA | T79: 提B-080101 | U79: =IF($C$2="乳","-",VLOOKUP(T79,INDEXTBL!$C$1:$O$1216,3,FALSE)) -> 治験も含めた医薬品等の臨床研究、先進医療、患者申出療養等に参加した患者数（人） | W79: =IFERROR(HLOOKUP(VLOOKUP($T79,INDEXTBL!$C$1:$O$1216,5,FALSE),DATA!$C$2:$CAP$14,8,FALSE),"NA") -> NA | X79: =IFERROR(HLOOKUP(VLOOKUP($T79,INDEXTBL!$C$1:$O$1216,5,FALSE),DATA!$C$2:$CAP$14,7,FALSE),"NA") -> NA | Y79: =IFERROR(HLOOKUP(VLOOKUP($T79,INDEXTBL!$C$1:$O$1216,5,FALSE),DATA!$C$2:$CAP$14,10,FALSE),"NA") -> NA
E80: 提D-0802 | I80: =VLOOKUP(E80,INDEXTBL!$A$1:$O$1216,2,FALSE) -> 「拠点病院等」では、治験も含めた医薬品等の臨床研究、先進医療、患者申出療養等に関する適切な情報提供を行い、患者を紹介する | K80: 沖縄県 | L80: 全国 | M80: 最良値 （都道府県）
H81: 提D-080201 | I81: =VLOOKUP(H81,INDEXTBL!$C$1:$O$1216,3,FALSE) -> 臨床試験に参加していない地域の患者さんやご家族向けの問い合わせ窓口を設置している拠点病院数 | J81: =VLOOKUP(H81,INDEXTBL!$C$1:$N$1216,5,FALSE) -> 0 | K81: =IFERROR(HLOOKUP(VLOOKUP($H81,INDEXTBL!$C$1:$O$1216,5,FALSE),DATA!$C$2:$CAP$14,8,FALSE),"NA") -> NA | L81: =IFERROR(HLOOKUP(VLOOKUP($H81,INDEXTBL!$C$1:$O$1216,5,FALSE),DATA!$C$2:$CAP$14,7,FALSE),"NA") -> NA | M81: =IFERROR(HLOOKUP(VLOOKUP($H81,INDEXTBL!$C$1:$O$1216,5,FALSE),DATA!$C$2:$CAP$14,10,FALSE),"NA") -> NA
H82: 提D-080202 | I82: =VLOOKUP(H82,INDEXTBL!$C$1:$O$1216,3,FALSE) -> 「拠点病院等」において実施されている（参加が可能な）臨床研究の数 | J82: =VLOOKUP(H82,INDEXTBL!$C$1:$N$1216,5,FALSE) -> 0 | K82: =IFERROR(HLOOKUP(VLOOKUP($H82,INDEXTBL!$C$1:$O$1216,5,FALSE),DATA!$C$2:$CAP$14,8,FALSE),"NA") -> NA | L82: =IFERROR(HLOOKUP(VLOOKUP($H82,INDEXTBL!$C$1:$O$1216,5,FALSE),DATA!$C$2:$CAP$14,7,FALSE),"NA") -> NA | M82: =IFERROR(HLOOKUP(VLOOKUP($H82,INDEXTBL!$C$1:$O$1216,5,FALSE),DATA!$C$2:$CAP$14,10,FALSE),"NA") -> NA
E84: ➈支持療法
E85: 提D-0901 | I85: =VLOOKUP(E85,INDEXTBL!$A$1:$O$1216,2,FALSE) -> 患者が、治療に伴う副作用・合併症・後遺症への見通しを持ち、身体的苦痛や外見の変化等があった際に容易に相談できる環境を整備する | K85: 沖縄県 | L85: 全国 | M85: 最良値 （都道府県） | Q85: 提B-0901 | U85: =VLOOKUP(Q85,INDEXTBL!$A$1:$O$1216,2,FALSE) -> [施設」では、各種ガイドラインに基づく十分な支持療法が行われている | W85: 沖縄県 | X85: 全国 | Y85: 最良値 （都道府県）
F86: グラフ | H86: 提D-090101 | I86: =VLOOKUP(H86,INDEXTBL!$C$1:$O$1216,3,FALSE) -> リンパ浮腫研修の修了者数（人） | J86: =VLOOKUP(H86,INDEXTBL!$C$1:$N$1216,5,FALSE) -> EX214 | K86: =IFERROR(TEXT(HLOOKUP(VLOOKUP($H86,INDEXTBL!$C$1:$O$1216,5,FALSE),DATA!$C$2:$CAD$14,8,FALSE),"0.0"),"NA") -> 2.0 | L86: =IFERROR(TEXT(HLOOKUP(VLOOKUP($H86,INDEXTBL!$C$1:$O$1216,5,FALSE),DATA!$C$2:$CAD$14,7,FALSE),"0.0"),"NA") -> 2.8 | M86: =IFERROR(TEXT(_xlfn.AGGREGATE(4,7,OFFSET(DATA!$A$1,14,MATCH(VLOOKUP($H86,INDEXTBL!$C$1:$N$1216,5,FALSE),DATA!$A$2:$DAD$2,0)-1,47,1)),"0.0") &" （"& N86 & "）","NA") -> 7.6 （奈良県） | N86: =INDEX(DATA!$C$15:$C$61,MATCH(_xlfn.AGGREGATE(4,7,OFFSET(DATA!$A$1,14,MATCH(VLOOKUP($H86,INDEXTBL!$C$1:$N$1216,5,FALSE),DATA!$A$2:$DAD$2,0)-1,47,1)),OFFSET(DATA!$A$1,14,MATCH(VLOOKUP($H86,INDEXTBL!$C$1:$N$1216,5,FALSE),DATA!$A$2:$DAD$2,0)-1,47,1),0)) -> 奈良県 | O86: ＊＊ | T86: 提B-090101 | U86: =IF($C$2="乳","-",VLOOKUP(T86,INDEXTBL!$C$1:$O$1216,3,FALSE)) -> 拠点病院において支持療法に関する標準診療を実施された患者の割合（％） | W86: =IFERROR(HLOOKUP(VLOOKUP($T86,INDEXTBL!$C$1:$O$1216,5,FALSE),DATA!$C$2:$CAP$14,8,FALSE),"NA") -> NA | X86: =IFERROR(HLOOKUP(VLOOKUP($T86,INDEXTBL!$C$1:$O$1216,5,FALSE),DATA!$C$2:$CAP$14,7,FALSE),"NA") -> NA | Y86: =IFERROR(HLOOKUP(VLOOKUP($T86,INDEXTBL!$C$1:$O$1216,5,FALSE),DATA!$C$2:$CAP$14,10,FALSE),"NA") -> NA
H87: 提D-090102 | I87: =VLOOKUP(H87,INDEXTBL!$C$1:$O$1216,3,FALSE) -> リンパ浮腫外来が設置されている「施設」の割合（％） | J87: =VLOOKUP(H87,INDEXTBL!$C$1:$N$1216,5,FALSE) -> EX215 | K87: =IFERROR(TEXT(HLOOKUP(VLOOKUP($H87,INDEXTBL!$C$1:$O$1216,5,FALSE),DATA!$C$2:$CAD$14,8,FALSE),"0.0")&"%","NA") -> 71.4% | L87: =IFERROR(TEXT(HLOOKUP(VLOOKUP($H87,INDEXTBL!$C$1:$O$1216,5,FALSE),DATA!$C$2:$CAD$14,T105,FALSE)*100,"0.0")&"%","NA") -> NA | M87: =IFERROR(TEXT(_xlfn.AGGREGATE(4,7,OFFSET(DATA!$A$1,14,MATCH(VLOOKUP($H87,INDEXTBL!$C$1:$O$1216,5,FALSE),DATA!$A$2:$CAD$2,0)-1,47,1)),"0.0")&"%" &" （"& N87 & "）","NA") -> NA | N87: =INDEX(DATA!$C$15:$C$61,MATCH(_xlfn.AGGREGATE(4,7,OFFSET(DATA!$A$1,14,MATCH(VLOOKUP($H87,INDEXTBL!$C$1:$O$1216,5,FALSE),DATA!$A$2:$CAD$2,0)-1,47,1)),OFFSET(DATA!$A$1,14,MATCH(VLOOKUP($H87,INDEXTBL!$C$1:$O$1216,5,FALSE),DATA!$A$2:$CAD$2,0)-1,47,1),0)) ->  | R87: グラフ | T87: 提B-090102 | U87: =VLOOKUP(T87,INDEXTBL!$C$1:$O$1216,3,FALSE) -> （NDB-SCR）リンパ浮腫複合的治療料（重症） | V87: =VLOOKUP(T87,INDEXTBL!$C$1:$N$1216,10,FALSE) -> NA07 | W87: =IFERROR(HLOOKUP(VLOOKUP($T87,INDEXTBL!$C$1:$O$1216,10,FALSE),DATA!$C$2:$CAP$14,8,FALSE),"NA") -> NA | X87: =IFERROR(HLOOKUP(VLOOKUP($T87,INDEXTBL!$C$1:$O$1216,10,FALSE),DATA!$C$2:$CAP$14,7,FALSE),"NA") -> 100 | Y87: =IFERROR(TEXT(_xlfn.AGGREGATE(4,7,OFFSET(DATA!$A$1,14,MATCH(VLOOKUP($T87,INDEXTBL!$C$1:$N$1216,10,FALSE),DATA!$A$2:$CAP$2,0)-1,47,1)),"0.0") &" （"& Z87 & "）","NA") -> 459.0 （岩手県） | Z87: =INDEX(DATA!$C$15:$C$61,MATCH(_xlfn.AGGREGATE(4,7,OFFSET(DATA!$A$1,14,MATCH(VLOOKUP($T87,INDEXTBL!$C$1:$N$1216,10,FALSE),DATA!$A$2:$CAP$2,0)-1,47,1)),OFFSET(DATA!$A$1,14,MATCH(VLOOKUP($T87,INDEXTBL!$C$1:$N$1216,10,FALSE),DATA!$A$2:$CAP$2,0)-1,47,1),0)) -> 岩手県
H88: 提D-090103 | I88: =VLOOKUP(H88,INDEXTBL!$C$1:$O$1216,3,FALSE) -> ストーマ外来が設置されている「施設」の割合（％） | J88: =VLOOKUP(H88,INDEXTBL!$C$1:$N$1216,5,FALSE) -> EX216 | K88: =IFERROR(TEXT(HLOOKUP(VLOOKUP($H88,INDEXTBL!$C$1:$O$1216,5,FALSE),DATA!$C$2:$CAD$14,8,FALSE),"0.0")&"%","NA") -> 71.4% | L88: =IFERROR(TEXT(HLOOKUP(VLOOKUP($H88,INDEXTBL!$C$1:$O$1216,5,FALSE),DATA!$C$2:$CAD$14,T106,FALSE)*100,"0.0")&"%","NA") -> NA | M88: =IFERROR(TEXT(_xlfn.AGGREGATE(4,7,OFFSET(DATA!$A$1,14,MATCH(VLOOKUP($H88,INDEXTBL!$C$1:$O$1216,5,FALSE),DATA!$A$2:$CAD$2,0)-1,47,1)),"0.0")&"%" &" （"& N88 & "）","NA") -> NA | N88: =INDEX(DATA!$C$15:$C$61,MATCH(_xlfn.AGGREGATE(4,7,OFFSET(DATA!$A$1,14,MATCH(VLOOKUP($H88,INDEXTBL!$C$1:$O$1216,5,FALSE),DATA!$A$2:$CAD$2,0)-1,47,1)),OFFSET(DATA!$A$1,14,MATCH(VLOOKUP($H88,INDEXTBL!$C$1:$O$1216,5,FALSE),DATA!$A$2:$CAD$2,0)-1,47,1),0)) ->  | R88: グラフ | T88: 提B-090103 | U88: =VLOOKUP(T88,INDEXTBL!$C$1:$O$1216,3,FALSE) -> （NDB-SCR）リンパ浮腫複合的治療料（１以外） | V88: =VLOOKUP(T88,INDEXTBL!$C$1:$N$1216,10,FALSE) -> NA19 | W88: =IFERROR(HLOOKUP(VLOOKUP($T88,INDEXTBL!$C$1:$O$1216,10,FALSE),DATA!$C$2:$CAP$14,8,FALSE),"NA") -> NA | X88: =IFERROR(HLOOKUP(VLOOKUP($T88,INDEXTBL!$C$1:$O$1216,10,FALSE),DATA!$C$2:$CAP$14,7,FALSE),"NA") -> 100 | Y88: =IFERROR(TEXT(_xlfn.AGGREGATE(4,7,OFFSET(DATA!$A$1,14,MATCH(VLOOKUP($T88,INDEXTBL!$C$1:$N$1216,10,FALSE),DATA!$A$2:$CAP$2,0)-1,47,1)),"0.0") &" （"& Z88 & "）","NA") -> 299.6 （東京都） | Z88: =INDEX(DATA!$C$15:$C$61,MATCH(_xlfn.AGGREGATE(4,7,OFFSET(DATA!$A$1,14,MATCH(VLOOKUP($T88,INDEXTBL!$C$1:$N$1216,10,FALSE),DATA!$A$2:$CAP$2,0)-1,47,1)),OFFSET(DATA!$A$1,14,MATCH(VLOOKUP($T88,INDEXTBL!$C$1:$N$1216,10,FALSE),DATA!$A$2:$CAP$2,0)-1,47,1),0)) -> 東京都
E89: 提D-0902 | I89: =VLOOKUP(E89,INDEXTBL!$A$1:$O$1216,2,FALSE) -> [施設」では、各種ガイドラインに基づく支持療法を、組織的に行う体制を整備する | K89: 沖縄県 | L89: 全国 | M89: 最良値 （都道府県） | R89: グラフ | T89: 提B-090104 | U89: =VLOOKUP(T89,INDEXTBL!$C$1:$O$1216,3,FALSE) -> （NDB-SCR）リンパ浮腫指導管理料 入院+外来 | V89: =VLOOKUP(T89,INDEXTBL!$C$1:$N$1216,10,FALSE) -> NA08 | W89: =IFERROR(HLOOKUP(VLOOKUP($T89,INDEXTBL!$C$1:$O$1216,10,FALSE),DATA!$C$2:$CAP$14,8,FALSE),"NA") -> 69.4 | X89: =IFERROR(HLOOKUP(VLOOKUP($T89,INDEXTBL!$C$1:$O$1216,10,FALSE),DATA!$C$2:$CAP$14,7,FALSE),"NA") -> 100 | Y89: =IFERROR(TEXT(_xlfn.AGGREGATE(4,7,OFFSET(DATA!$A$1,14,MATCH(VLOOKUP($T89,INDEXTBL!$C$1:$N$1216,10,FALSE),DATA!$A$2:$CAP$2,0)-1,47,1)),"0.0") &" （"& Z89 & "）","NA") -> 138.6 （鹿児島県） | Z89: =INDEX(DATA!$C$15:$C$61,MATCH(_xlfn.AGGREGATE(4,7,OFFSET(DATA!$A$1,14,MATCH(VLOOKUP($T89,INDEXTBL!$C$1:$N$1216,10,FALSE),DATA!$A$2:$CAP$2,0)-1,47,1)),OFFSET(DATA!$A$1,14,MATCH(VLOOKUP($T89,INDEXTBL!$C$1:$N$1216,10,FALSE),DATA!$A$2:$CAP$2,0)-1,47,1),0)) -> 鹿児島県
H90: 提D-090201 | I90: =VLOOKUP(H90,INDEXTBL!$C$1:$O$1216,3,FALSE) -> 制吐薬適正使用ガイドラインに基づく院内マニュアルを作成し、レジメンの登録が行われている「施設」の割合（％） | J90: =VLOOKUP(H90,INDEXTBL!$C$1:$N$1216,5,FALSE) -> EX217 | K90: =IFERROR(TEXT(HLOOKUP(VLOOKUP($H90,INDEXTBL!$C$1:$O$1216,5,FALSE),DATA!$C$2:$CAD$14,8,FALSE),"0.0")&"%","NA") -> 71.4% | L90: =IFERROR(TEXT(HLOOKUP(VLOOKUP($H90,INDEXTBL!$C$1:$O$1216,5,FALSE),DATA!$C$2:$CAD$14,T108,FALSE)*100,"0.0")&"%","NA") -> NA | M90: =IFERROR(TEXT(_xlfn.AGGREGATE(4,7,OFFSET(DATA!$A$1,14,MATCH(VLOOKUP($H90,INDEXTBL!$C$1:$O$1216,5,FALSE),DATA!$A$2:$CAD$2,0)-1,47,1)),"0.0")&"%" &" （"& N90 & "）","NA") -> NA | N90: =INDEX(DATA!$C$15:$C$61,MATCH(_xlfn.AGGREGATE(4,7,OFFSET(DATA!$A$1,14,MATCH(VLOOKUP($H90,INDEXTBL!$C$1:$O$1216,5,FALSE),DATA!$A$2:$CAD$2,0)-1,47,1)),OFFSET(DATA!$A$1,14,MATCH(VLOOKUP($H90,INDEXTBL!$C$1:$O$1216,5,FALSE),DATA!$A$2:$CAD$2,0)-1,47,1),0)) -> 
M91: ＊＊：人口100万人あたり

Sheet 緩和・支持療法 (hidden)
B2: 大腸がん | C2: =IF(ISBLANK($B$2),"",SUBSTITUTE($B$2,"がん","")) -> 大腸 | E2: 番号 | G2: 個別施策 | O2: 番号 | Q2: 中間アウトカム | Y2: 番号 | AA2: 分野アウトカム
C3: =IF($C$2="大腸",6,IF($C$2="肺",7,IF($C$2="胃",8,IF($C$2="乳",9,"")))) -> 6
E4: ①緩和ケア
E5: 緩D-0101 | H5: =VLOOKUP(E5,INDEXTBL!$A$1:$N$1216,2,FALSE) -> 「施設」では、外来初診時および入院時に、看護師による「痛みのスクリーニング」を行い、その後は必要な医療を行う | I5: 沖縄県 | J5: 全国 | K5: 最良値 （都道府県） | O5: 緩B-0101 | R5: =VLOOKUP(O5,INDEXTBL!$A$1:$N$1216,2,FALSE) -> がん患者及びその家族の苦痛の軽減ができ、QOLが向上できている | S5: 沖縄県 | T5: 全国 | U5: 最良値 （都道府県） | Y5: 緩A-0101 | AB5: =VLOOKUP(Y5,INDEXTBL!$A$1:$N$1216,2,FALSE) -> 全てのがん患者及びその家族の苦痛の軽減並びに療養生活の質の維持向上ができている | AC5: 沖縄県 | AD5: 全国 | AE5: 最良値 （都道府県）
G6: 緩D-010101 | H6: =VLOOKUP(G6,INDEXTBL!$C$1:$N$1216,3,FALSE) -> 看護師による痛みのスクリーニング（外来初診時および入院時）が行われたがん患者の割合（％） | I6: =IFERROR(HLOOKUP(VLOOKUP($G6,INDEXTBL!$C$1:$N$1216,$C$3,FALSE),DATA!$C$2:$ASR$14,8,FALSE),"NA") -> NA | J6: =IFERROR(HLOOKUP(VLOOKUP($G6,INDEXTBL!$C$1:$N$1216,$C$3,FALSE),DATA!$C$2:$ASR$14,7,FALSE),"NA") -> NA | K6: =IFERROR(HLOOKUP(VLOOKUP($G6,INDEXTBL!$C$1:$N$1216,$C$3,FALSE),DATA!$C$2:$ASR$14,10,FALSE),"NA") -> NA | Q6: 緩B-010101 | R6: =VLOOKUP(Q6,INDEXTBL!$C$1:$N$1216,3,FALSE) -> （患者体験調査）医療者はつらい症状にすみやかに対応していたと感じる割合（％） | S6: =IFERROR(TEXT(HLOOKUP(VLOOKUP($Q6,INDEXTBL!$C$1:$N$1216,11,FALSE),DATA!$C$2:$AXB$14,8,FALSE),"0.0")&"%","NA") -> 80.1% | T6: =IFERROR(TEXT(HLOOKUP(VLOOKUP($Q6,INDEXTBL!$C$1:$N$1216,11,FALSE),DATA!$C$2:$AXB$14,7,FALSE),"0.0")&"%","NA") -> 74.1% | U6: =IFERROR(TEXT(_xlfn.AGGREGATE(4,7,OFFSET(DATA!$A$1,14,MATCH(VLOOKUP($Q6,INDEXTBL!$C$1:$N$1216,11,FALSE),DATA!$A$2:$AXB$2,0)-1,47,1)),"0.0")&"%" &" （"& V6 & "）","NA") -> 86.3% （愛媛県） | V6: =INDEX(DATA!$C$15:$C$61,MATCH(_xlfn.AGGREGATE(4,7,OFFSET(DATA!$A$1,14,MATCH(VLOOKUP($Q6,INDEXTBL!$C$1:$N$1216,11,FALSE),DATA!$A$2:$AXB$2,0)-1,47,1)),OFFSET(DATA!$A$1,14,MATCH(VLOOKUP($Q6,INDEXTBL!$C$1:$N$1216,11,FALSE),DATA!$A$2:$AXB$2,0)-1,47,1),0)) -> 愛媛県 | AA6: 緩A-010101 | AB6: =VLOOKUP(AA6,INDEXTBL!$C$1:$N$1216,3,FALSE) -> （患者体験調査）がんやがん治療に伴う身体の苦痛や気持ちのつらさにより、日常生活を送る上で困っていることがない患者の割合（％） | AC6: =IFERROR(TEXT(HLOOKUP(VLOOKUP($AA6,INDEXTBL!$C$1:$N$1216,11,FALSE),DATA!$C$2:$AXB$14,8,FALSE),"0.0")&"%","NA") -> 70.4% | AD6: =IFERROR(TEXT(HLOOKUP(VLOOKUP($AA6,INDEXTBL!$C$1:$N$1216,11,FALSE),DATA!$C$2:$AXB$14,7,FALSE),"0.0")&"%","NA") -> 69.5% | AE6: =IFERROR(TEXT(_xlfn.AGGREGATE(4,7,OFFSET(DATA!$A$1,14,MATCH(VLOOKUP($AA6,INDEXTBL!$C$1:$N$1216,11,FALSE),DATA!$A$2:$AXB$2,0)-1,47,1)),"0.0")&"%" &" （"& AF6 & "）","NA") -> 79.8% （岡山県） | AF6: =INDEX(DATA!$C$15:$C$61,MATCH(_xlfn.AGGREGATE(4,7,OFFSET(DATA!$A$1,14,MATCH(VLOOKUP($AA6,INDEXTBL!$C$1:$N$1216,11,FALSE),DATA!$A$2:$AXB$2,0)-1,47,1)),OFFSET(DATA!$A$1,14,MATCH(VLOOKUP($AA6,INDEXTBL!$C$1:$N$1216,11,FALSE),DATA!$A$2:$AXB$2,0)-1,47,1),0)) -> 岡山県
G7: 緩D-010102 | H7: =VLOOKUP(G7,INDEXTBL!$C$1:$N$1216,3,FALSE) -> 痛みのスクリーニングの結果が看護師から主治医に報告されたがん患者の割合（％） | I7: =IFERROR(HLOOKUP(VLOOKUP($G7,INDEXTBL!$C$1:$N$1216,$C$3,FALSE),DATA!$C$2:$ASR$14,8,FALSE),"NA") -> NA | J7: =IFERROR(HLOOKUP(VLOOKUP($G7,INDEXTBL!$C$1:$N$1216,$C$3,FALSE),DATA!$C$2:$ASR$14,7,FALSE),"NA") -> NA | K7: =IFERROR(HLOOKUP(VLOOKUP($G7,INDEXTBL!$C$1:$N$1216,$C$3,FALSE),DATA!$C$2:$ASR$14,10,FALSE),"NA") -> NA | Q7: 緩B-010102 | R7: =VLOOKUP(Q7,INDEXTBL!$C$1:$N$1216,3,FALSE) -> （患者体験調査）医療スタッフが耳を傾け理解しようとしてくれていたと思う患者の割合（％） | S7: =IFERROR(TEXT(HLOOKUP(VLOOKUP($Q7,INDEXTBL!$C$1:$N$1216,11,FALSE),DATA!$C$2:$AXB$14,8,FALSE),"0.0")&"%","NA") -> 78.6% | T7: =IFERROR(TEXT(HLOOKUP(VLOOKUP($Q7,INDEXTBL!$C$1:$N$1216,11,FALSE),DATA!$C$2:$AXB$14,7,FALSE),"0.0")&"%","NA") -> 71.7% | U7: =IFERROR(TEXT(_xlfn.AGGREGATE(4,7,OFFSET(DATA!$A$1,14,MATCH(VLOOKUP($Q7,INDEXTBL!$C$1:$N$1216,11,FALSE),DATA!$A$2:$AXB$2,0)-1,47,1)),"0.0")&"%" &" （"& V7 & "）","NA") -> 79.8% （愛媛県） | V7: =INDEX(DATA!$C$15:$C$61,MATCH(_xlfn.AGGREGATE(4,7,OFFSET(DATA!$A$1,14,MATCH(VLOOKUP($Q7,INDEXTBL!$C$1:$N$1216,11,FALSE),DATA!$A$2:$AXB$2,0)-1,47,1)),OFFSET(DATA!$A$1,14,MATCH(VLOOKUP($Q7,INDEXTBL!$C$1:$N$1216,11,FALSE),DATA!$A$2:$AXB$2,0)-1,47,1),0)) -> 愛媛県 | AA7: 緩A-010102 | AB7: =VLOOKUP(AA7,INDEXTBL!$C$1:$N$1216,3,FALSE) -> （患者体験調査）身体の苦痛や気持ちのつらさを和らげる支援は十分であると感じる患者の割合（％） | AC7: =IFERROR(TEXT(HLOOKUP(VLOOKUP($AA7,INDEXTBL!$C$1:$N$1216,11,FALSE),DATA!$C$2:$AXB$14,8,FALSE),"0.0")&"%","NA") -> 43.5% | AD7: =IFERROR(TEXT(HLOOKUP(VLOOKUP($AA7,INDEXTBL!$C$1:$N$1216,11,FALSE),DATA!$C$2:$AXB$14,7,FALSE),"0.0")&"%","NA") -> 42.5% | AE7: =IFERROR(TEXT(_xlfn.AGGREGATE(4,7,OFFSET(DATA!$A$1,14,MATCH(VLOOKUP($AA7,INDEXTBL!$C$1:$N$1216,11,FALSE),DATA!$A$2:$AXB$2,0)-1,47,1)),"0.0")&"%" &" （"& AF7 & "）","NA") -> 55.2% （山口県） | AF7: =INDEX(DATA!$C$15:$C$61,MATCH(_xlfn.AGGREGATE(4,7,OFFSET(DATA!$A$1,14,MATCH(VLOOKUP($AA7,INDEXTBL!$C$1:$N$1216,11,FALSE),DATA!$A$2:$AXB$2,0)-1,47,1)),OFFSET(DATA!$A$1,14,MATCH(VLOOKUP($AA7,INDEXTBL!$C$1:$N$1216,11,FALSE),DATA!$A$2:$AXB$2,0)-1,47,1),0)) -> 山口県
G8: 緩D-010103 | H8: =VLOOKUP(G8,INDEXTBL!$C$1:$N$1216,3,FALSE) -> 痛みのスクリーニングの結果を受けた主治医が速やかに必要な緩和ケアをしたがん患者の割合（％） | I8: =IFERROR(HLOOKUP(VLOOKUP($G8,INDEXTBL!$C$1:$N$1216,$C$3,FALSE),DATA!$C$2:$ASR$14,8,FALSE),"NA") -> NA | J8: =IFERROR(HLOOKUP(VLOOKUP($G8,INDEXTBL!$C$1:$N$1216,$C$3,FALSE),DATA!$C$2:$ASR$14,7,FALSE),"NA") -> NA | K8: =IFERROR(HLOOKUP(VLOOKUP($G8,INDEXTBL!$C$1:$N$1216,$C$3,FALSE),DATA!$C$2:$ASR$14,10,FALSE),"NA") -> NA | Q8: 緩B-010103 | R8: =VLOOKUP(Q8,INDEXTBL!$C$1:$N$1216,3,FALSE) -> （医療者調査）痛みのモニタリングの結果が看護師から主治医に速やかに伝えられた患者の割合が75%以上であると答えた人の割合（％） | S8: =IFERROR(TEXT(HLOOKUP(VLOOKUP($Q8,INDEXTBL!$C$1:$O$1216,13,FALSE),DATA!$C$2:$AXB$14,8,FALSE)*100,"0.0")&"%","NA") -> 75.2% | T8: =IFERROR(TEXT(HLOOKUP(VLOOKUP($Q8,INDEXTBL!$C$1:$O$1216,13,FALSE),DATA!$C$2:$AXB$14,7,FALSE)*100,"0.0")&"%","NA") -> NA | U8: =IFERROR(TEXT(_xlfn.AGGREGATE(4,7,OFFSET(DATA!$A$1,14,MATCH(VLOOKUP($Q8,INDEXTBL!$C$1:$O$1216,13,FALSE),DATA!$A$2:$AXB$2,0)-1,47,1)),"0.0") &" （"& V8 & "）","NA") -> NA | V8: =INDEX(DATA!$C$15:$C$61,MATCH(_xlfn.AGGREGATE(4,7,OFFSET(DATA!$A$1,14,MATCH(VLOOKUP($Q8,INDEXTBL!$C$1:$O$1216,13,FALSE),DATA!$A$2:$AXB$2,0)-1,47,1)),OFFSET(DATA!$A$1,14,MATCH(VLOOKUP($Q8,INDEXTBL!$C$1:$O$1216,13,FALSE),DATA!$A$2:$AXB$2,0)-1,47,1),0)) ->  | AA8: 緩A-010103 | AB8: =VLOOKUP(AA8,INDEXTBL!$C$1:$N$1216,3,FALSE) -> （患者体験調査）現在自分らしい日常生活を送れていると感じる患者の割合（％） | AC8: =IFERROR(TEXT(HLOOKUP(VLOOKUP($AA8,INDEXTBL!$C$1:$N$1216,11,FALSE),DATA!$C$2:$AXB$14,8,FALSE),"0.0")&"%","NA") -> 78.3% | AD8: =IFERROR(TEXT(HLOOKUP(VLOOKUP($AA8,INDEXTBL!$C$1:$N$1216,11,FALSE),DATA!$C$2:$AXB$14,7,FALSE),"0.0")&"%","NA") -> 70.1% | AE8: =IFERROR(TEXT(_xlfn.AGGREGATE(4,7,OFFSET(DATA!$A$1,14,MATCH(VLOOKUP($AA8,INDEXTBL!$C$1:$N$1216,11,FALSE),DATA!$A$2:$AXB$2,0)-1,47,1)),"0.0")&"%" &" （"& AF8 & "）","NA") -> 83.5% （徳島県） | AF8: =INDEX(DATA!$C$15:$C$61,MATCH(_xlfn.AGGREGATE(4,7,OFFSET(DATA!$A$1,14,MATCH(VLOOKUP($AA8,INDEXTBL!$C$1:$N$1216,11,FALSE),DATA!$A$2:$AXB$2,0)-1,47,1)),OFFSET(DATA!$A$1,14,MATCH(VLOOKUP($AA8,INDEXTBL!$C$1:$N$1216,11,FALSE),DATA!$A$2:$AXB$2,0)-1,47,1),0)) -> 徳島県
G9: 緩D-010104 | H9: =VLOOKUP(G9,INDEXTBL!$C$1:$N$1216,3,FALSE) -> 痛みのスクリーニングの結果を受けた主治医から速やかに緩和ケアチームへ紹介されたがん患者の割合（％） | I9: =IFERROR(HLOOKUP(VLOOKUP($G9,INDEXTBL!$C$1:$N$1216,$C$3,FALSE),DATA!$C$2:$ASR$14,8,FALSE),"NA") -> NA | J9: =IFERROR(HLOOKUP(VLOOKUP($G9,INDEXTBL!$C$1:$N$1216,$C$3,FALSE),DATA!$C$2:$ASR$14,7,FALSE),"NA") -> NA | K9: =IFERROR(HLOOKUP(VLOOKUP($G9,INDEXTBL!$C$1:$N$1216,$C$3,FALSE),DATA!$C$2:$ASR$14,10,FALSE),"NA") -> NA | Q9: 緩B-010104 | R9: =VLOOKUP(Q9,INDEXTBL!$C$1:$N$1216,3,FALSE) -> （医療者調査）痛みのモニタリングの結果を受けた主治医が速やかに必要な緩和ケアを行った患者の割合が75%以上であると回答した人の割合（％） | S9: =IFERROR(TEXT(HLOOKUP(VLOOKUP($Q9,INDEXTBL!$C$1:$O$1216,13,FALSE),DATA!$C$2:$AXB$14,8,FALSE)*100,"0.0")&"%","NA") -> 71.4% | T9: =IFERROR(TEXT(HLOOKUP(VLOOKUP($Q9,INDEXTBL!$C$1:$O$1216,13,FALSE),DATA!$C$2:$AXB$14,7,FALSE)*100,"0.0")&"%","NA") -> NA | U9: =IFERROR(TEXT(_xlfn.AGGREGATE(4,7,OFFSET(DATA!$A$1,14,MATCH(VLOOKUP($Q9,INDEXTBL!$C$1:$O$1216,13,FALSE),DATA!$A$2:$AXB$2,0)-1,47,1)),"0.0") &" （"& V9 & "）","NA") -> NA | V9: =INDEX(DATA!$C$15:$C$61,MATCH(_xlfn.AGGREGATE(4,7,OFFSET(DATA!$A$1,14,MATCH(VLOOKUP($Q9,INDEXTBL!$C$1:$O$1216,13,FALSE),DATA!$A$2:$AXB$2,0)-1,47,1)),OFFSET(DATA!$A$1,14,MATCH(VLOOKUP($Q9,INDEXTBL!$C$1:$O$1216,13,FALSE),DATA!$A$2:$AXB$2,0)-1,47,1),0)) -> 
E10: 緩D-0102 | H10: =VLOOKUP(E10,INDEXTBL!$A$1:$N$1216,2,FALSE) -> 外来患者は毎回の受診時に、入院患者は毎日、看護師による「痛みのモニタリング」を行い、その後は必要な医療を行う | I10: 沖縄県 | J10: 全国 | K10: 最良値 （都道府県） | Q10: 緩B-010105 | R10: =VLOOKUP(Q10,INDEXTBL!$C$1:$N$1216,3,FALSE) -> （医療者調査）痛みのモニタリングの結果を受けた主治医から速やかに緩和ケアチームへ紹介された患者の割合が75%以上であると回答した人の割合（％） | S10: =IFERROR(TEXT(HLOOKUP(VLOOKUP($Q10,INDEXTBL!$C$1:$O$1216,13,FALSE),DATA!$C$2:$AXB$14,8,FALSE)*100,"0.0")&"%","NA") -> 59.4% | T10: =IFERROR(TEXT(HLOOKUP(VLOOKUP($Q10,INDEXTBL!$C$1:$O$1216,13,FALSE),DATA!$C$2:$AXB$14,7,FALSE)*100,"0.0")&"%","NA") -> NA | U10: =IFERROR(TEXT(_xlfn.AGGREGATE(4,7,OFFSET(DATA!$A$1,14,MATCH(VLOOKUP($Q10,INDEXTBL!$C$1:$O$1216,13,FALSE),DATA!$A$2:$AXB$2,0)-1,47,1)),"0.0") &" （"& V10 & "）","NA") -> NA | V10: =INDEX(DATA!$C$15:$C$61,MATCH(_xlfn.AGGREGATE(4,7,OFFSET(DATA!$A$1,14,MATCH(VLOOKUP($Q10,INDEXTBL!$C$1:$O$1216,13,FALSE),DATA!$A$2:$AXB$2,0)-1,47,1)),OFFSET(DATA!$A$1,14,MATCH(VLOOKUP($Q10,INDEXTBL!$C$1:$O$1216,13,FALSE),DATA!$A$2:$AXB$2,0)-1,47,1),0)) -> 
G11: 緩D-010201 | H11: =VLOOKUP(G11,INDEXTBL!$C$1:$N$1216,3,FALSE) -> 看護師による痛みのモニタリング（外来患者は受診毎、入院患者は毎日）が行われたがん患者の割合（％） | I11: =IFERROR(HLOOKUP(VLOOKUP($G11,INDEXTBL!$C$1:$N$1216,$C$3,FALSE),DATA!$C$2:$ASR$14,8,FALSE),"NA") -> NA | J11: =IFERROR(HLOOKUP(VLOOKUP($G11,INDEXTBL!$C$1:$N$1216,$C$3,FALSE),DATA!$C$2:$ASR$14,7,FALSE),"NA") -> NA | K11: =IFERROR(HLOOKUP(VLOOKUP($G11,INDEXTBL!$C$1:$N$1216,$C$3,FALSE),DATA!$C$2:$ASR$14,10,FALSE),"NA") -> NA | O11: 緩B-0102 | R11: =VLOOKUP(O11,INDEXTBL!$A$1:$N$1216,2,FALSE) -> 緩和ケアの質の向上ができている | S11: 沖縄県 | T11: 全国 | U11: 最良値 （都道府県）
G12: 緩D-010202 | H12: =VLOOKUP(G12,INDEXTBL!$C$1:$N$1216,3,FALSE) -> 痛みのモニタリングの結果が看護師から主治医に報告されたがん患者の割合（％） | I12: =IFERROR(HLOOKUP(VLOOKUP($G12,INDEXTBL!$C$1:$N$1216,$C$3,FALSE),DATA!$C$2:$ASR$14,8,FALSE),"NA") -> NA | J12: =IFERROR(HLOOKUP(VLOOKUP($G12,INDEXTBL!$C$1:$N$1216,$C$3,FALSE),DATA!$C$2:$ASR$14,7,FALSE),"NA") -> NA | K12: =IFERROR(HLOOKUP(VLOOKUP($G12,INDEXTBL!$C$1:$N$1216,$C$3,FALSE),DATA!$C$2:$ASR$14,10,FALSE),"NA") -> NA | Q12: 緩B-010201 | R12: =VLOOKUP(Q12,INDEXTBL!$C$1:$N$1216,3,FALSE) -> 患者報告アウトカム（PRO）の症状改善率（％） | S12: =IFERROR(HLOOKUP(VLOOKUP($Q12,INDEXTBL!$C$1:$N$1216,$C$3,FALSE),DATA!$C$2:$ASR$14,8,FALSE),"NA") -> NA | T12: =IFERROR(HLOOKUP(VLOOKUP($Q12,INDEXTBL!$C$1:$N$1216,$C$3,FALSE),DATA!$C$2:$ASR$14,7,FALSE),"NA") -> NA | U12: =IFERROR(HLOOKUP(VLOOKUP($Q12,INDEXTBL!$C$1:$N$1216,$C$3,FALSE),DATA!$C$2:$ASR$14,10,FALSE),"NA") -> NA
G13: 緩D-010203 | H13: =VLOOKUP(G13,INDEXTBL!$C$1:$N$1216,3,FALSE) -> 痛みのモニタリングの結果を受けた主治医が速やかに必要な緩和ケアをしたがん患者の割合（％） | I13: =IFERROR(HLOOKUP(VLOOKUP($G13,INDEXTBL!$C$1:$N$1216,$C$3,FALSE),DATA!$C$2:$ASR$14,8,FALSE),"NA") -> NA | J13: =IFERROR(HLOOKUP(VLOOKUP($G13,INDEXTBL!$C$1:$N$1216,$C$3,FALSE),DATA!$C$2:$ASR$14,7,FALSE),"NA") -> NA | K13: =IFERROR(HLOOKUP(VLOOKUP($G13,INDEXTBL!$C$1:$N$1216,$C$3,FALSE),DATA!$C$2:$ASR$14,10,FALSE),"NA") -> NA | Q13: 緩B-010202 | R13: =VLOOKUP(Q13,INDEXTBL!$C$1:$N$1216,3,FALSE) -> （NDB-SCR）緩和ケア診療加算 | S13: =IFERROR(TEXT(HLOOKUP(VLOOKUP($Q13,INDEXTBL!$C$1:$N$1216,10,FALSE),DATA!$C$2:$AXB$14,8,FALSE),"0.0"),"NA") -> 34.7 | T13: =IFERROR(TEXT(HLOOKUP(VLOOKUP($Q13,INDEXTBL!$C$1:$N$1216,10,FALSE),DATA!$C$2:$AXB$14,7,FALSE),"0.0"),"NA") -> 100.0 | U13: =IFERROR(TEXT(_xlfn.AGGREGATE(4,7,OFFSET(DATA!$A$1,14,MATCH(VLOOKUP($Q13,INDEXTBL!$C$1:$N$1216,10,FALSE),DATA!$A$2:$AXB$2,0)-1,47,1)),"0.0") &" （"& V13 & "）","NA") -> 225.2 （福井県） | V13: =INDEX(DATA!$C$15:$C$61,MATCH(_xlfn.AGGREGATE(4,7,OFFSET(DATA!$A$1,14,MATCH(VLOOKUP($Q13,INDEXTBL!$C$1:$N$1216,10,FALSE),DATA!$A$2:$AXB$2,0)-1,47,1)),OFFSET(DATA!$A$1,14,MATCH(VLOOKUP($Q13,INDEXTBL!$C$1:$N$1216,10,FALSE),DATA!$A$2:$AXB$2,0)-1,47,1),0)) -> 福井県
G14: 緩D-010204 | H14: =VLOOKUP(G14,INDEXTBL!$C$1:$N$1216,3,FALSE) -> 痛みのモニタリングの結果を受けた主治医から速やかに緩和ケアチームへ紹介されたがん患者の割合（％） | I14: =IFERROR(HLOOKUP(VLOOKUP($G14,INDEXTBL!$C$1:$N$1216,$C$3,FALSE),DATA!$C$2:$ASR$14,8,FALSE),"NA") -> NA | J14: =IFERROR(HLOOKUP(VLOOKUP($G14,INDEXTBL!$C$1:$N$1216,$C$3,FALSE),DATA!$C$2:$ASR$14,7,FALSE),"NA") -> NA | K14: =IFERROR(HLOOKUP(VLOOKUP($G14,INDEXTBL!$C$1:$N$1216,$C$3,FALSE),DATA!$C$2:$ASR$14,10,FALSE),"NA") -> NA | Q14: 緩B-010203 | R14: =VLOOKUP(Q14,INDEXTBL!$C$1:$N$1216,3,FALSE) -> （NDB-SCR）神経ブロック(神経破壊剤又は高周波凝固法使用) | S14: =IFERROR(TEXT(HLOOKUP(VLOOKUP($Q14,INDEXTBL!$C$1:$N$1216,10,FALSE),DATA!$C$2:$AXB$14,8,FALSE),"0.0"),"NA") -> 85.3 | T14: =IFERROR(TEXT(HLOOKUP(VLOOKUP($Q14,INDEXTBL!$C$1:$N$1216,10,FALSE),DATA!$C$2:$AXB$14,7,FALSE),"0.0"),"NA") -> 100.0 | U14: =IFERROR(TEXT(_xlfn.AGGREGATE(4,7,OFFSET(DATA!$A$1,14,MATCH(VLOOKUP($Q14,INDEXTBL!$C$1:$N$1216,10,FALSE),DATA!$A$2:$AXB$2,0)-1,47,1)),"0.0") &" （"& V14 & "）","NA") -> 375.0 （大分県） | V14: =INDEX(DATA!$C$15:$C$61,MATCH(_xlfn.AGGREGATE(4,7,OFFSET(DATA!$A$1,14,MATCH(VLOOKUP($Q14,INDEXTBL!$C$1:$N$1216,10,FALSE),DATA!$A$2:$AXB$2,0)-1,47,1)),OFFSET(DATA!$A$1,14,MATCH(VLOOKUP($Q14,INDEXTBL!$C$1:$N$1216,10,FALSE),DATA!$A$2:$AXB$2,0)-1,47,1),0)) -> 大分県
G15: 緩D-010205 | H15: =VLOOKUP(G15,INDEXTBL!$C$1:$N$1216,3,FALSE) -> リンクナース制度を運用している「施設」の割合（％） | I15: =IFERROR(HLOOKUP(VLOOKUP($G15,INDEXTBL!$C$1:$N$1216,$C$3,FALSE),DATA!$C$2:$ASR$14,8,FALSE),"NA") -> NA | J15: =IFERROR(HLOOKUP(VLOOKUP($G15,INDEXTBL!$C$1:$N$1216,$C$3,FALSE),DATA!$C$2:$ASR$14,7,FALSE),"NA") -> NA | K15: =IFERROR(HLOOKUP(VLOOKUP($G15,INDEXTBL!$C$1:$N$1216,$C$3,FALSE),DATA!$C$2:$ASR$14,10,FALSE),"NA") -> NA | Q15: 緩B-010204 | R15: =VLOOKUP(Q15,INDEXTBL!$C$1:$N$1216,3,FALSE) -> （NDB-SCR）直線加速器による放射線治療（定位放射線治療以外） 入院+外来 | S15: =IFERROR(TEXT(HLOOKUP(VLOOKUP($Q15,INDEXTBL!$C$1:$N$1216,10,FALSE),DATA!$C$2:$AXB$14,8,FALSE),"0.0"),"NA") -> 79.9 | T15: =IFERROR(TEXT(HLOOKUP(VLOOKUP($Q15,INDEXTBL!$C$1:$N$1216,10,FALSE),DATA!$C$2:$AXB$14,7,FALSE),"0.0"),"NA") -> 100.0 | U15: =IFERROR(TEXT(_xlfn.AGGREGATE(4,7,OFFSET(DATA!$A$1,14,MATCH(VLOOKUP($Q15,INDEXTBL!$C$1:$N$1216,10,FALSE),DATA!$A$2:$AXB$2,0)-1,47,1)),"0.0") &" （"& V15 & "）","NA") -> 232.6 （山形県） | V15: =INDEX(DATA!$C$15:$C$61,MATCH(_xlfn.AGGREGATE(4,7,OFFSET(DATA!$A$1,14,MATCH(VLOOKUP($Q15,INDEXTBL!$C$1:$N$1216,10,FALSE),DATA!$A$2:$AXB$2,0)-1,47,1)),OFFSET(DATA!$A$1,14,MATCH(VLOOKUP($Q15,INDEXTBL!$C$1:$N$1216,10,FALSE),DATA!$A$2:$AXB$2,0)-1,47,1),0)) -> 山形県
E16: 緩D-0103 | H16: =VLOOKUP(E16,INDEXTBL!$A$1:$N$1216,2,FALSE) -> 「施設」では、専門的な緩和ケアを提供できる人材とチームを整備する | I16: 沖縄県 | J16: 全国 | K16: 最良値 （都道府県）
G17: 緩D-010301 | H17: =VLOOKUP(G17,INDEXTBL!$C$1:$N$1216,3,FALSE) -> 「施設」の緩和ケアチーム新規診療症例数 | I17: =IFERROR(HLOOKUP(VLOOKUP($G17,INDEXTBL!$C$1:$N$1216,$C$3,FALSE),DATA!$C$2:$ASR$14,8,FALSE),"NA") -> NA | J17: =IFERROR(HLOOKUP(VLOOKUP($G17,INDEXTBL!$C$1:$N$1216,$C$3,FALSE),DATA!$C$2:$ASR$14,7,FALSE),"NA") -> NA | K17: =IFERROR(HLOOKUP(VLOOKUP($G17,INDEXTBL!$C$1:$N$1216,$C$3,FALSE),DATA!$C$2:$ASR$14,10,FALSE),"NA") -> NA
G18: 緩D-010302 | H18: =VLOOKUP(G18,INDEXTBL!$C$1:$N$1216,3,FALSE) -> 緩和ケア外来の新規診療症例数 | I18: =IFERROR(HLOOKUP(VLOOKUP($G18,INDEXTBL!$C$1:$N$1216,$C$3,FALSE),DATA!$C$2:$ASR$14,8,FALSE),"NA") -> NA | J18: =IFERROR(HLOOKUP(VLOOKUP($G18,INDEXTBL!$C$1:$N$1216,$C$3,FALSE),DATA!$C$2:$ASR$14,7,FALSE),"NA") -> NA | K18: =IFERROR(HLOOKUP(VLOOKUP($G18,INDEXTBL!$C$1:$N$1216,$C$3,FALSE),DATA!$C$2:$ASR$14,10,FALSE),"NA") -> NA
G19: 緩D-010303 | H19: =VLOOKUP(G19,INDEXTBL!$C$1:$N$1216,3,FALSE) -> 緩和ケア外来への、地域の医療機関からの紹介件数 | I19: =IFERROR(HLOOKUP(VLOOKUP($G19,INDEXTBL!$C$1:$N$1216,$C$3,FALSE),DATA!$C$2:$ASR$14,8,FALSE),"NA") -> NA | J19: =IFERROR(HLOOKUP(VLOOKUP($G19,INDEXTBL!$C$1:$N$1216,$C$3,FALSE),DATA!$C$2:$ASR$14,7,FALSE),"NA") -> NA | K19: =IFERROR(HLOOKUP(VLOOKUP($G19,INDEXTBL!$C$1:$N$1216,$C$3,FALSE),DATA!$C$2:$ASR$14,10,FALSE),"NA") -> NA
G20: 緩D-010304 | H20: =VLOOKUP(G20,INDEXTBL!$C$1:$N$1216,3,FALSE) -> 緩和医療学会専門医（人） | I20: =IFERROR(TEXT(HLOOKUP(VLOOKUP($G20,INDEXTBL!$C$1:$N$1216,5,FALSE),DATA!$C$2:$BAP$14,8,FALSE)/DATA!$H$9*1000000,"0.0"),"NA") -> 2.0 | J20: =IFERROR(TEXT(HLOOKUP(VLOOKUP($G20,INDEXTBL!$C$1:$N$1216,5,FALSE),DATA!$C$2:$BAP$14,7,FALSE)/DATA!$H$8*1000000,"0.0"),"NA") -> 2.8 | K20: =IFERROR(TEXT(MAX(OFFSET(DATA!$A$1,14,MATCH(VLOOKUP($G20,INDEXTBL!$C$1:$N$1216,5,FALSE),DATA!$A$2:$BAP$2,0)-1,47,1)/DATA!$H$15:$H$61*1000000),"0.0") &" （"& L20 & "）","NA") -> 7.2 （鳥取県） | L20: =INDEX(DATA!$C$15:$C$61,MATCH(MAX(OFFSET(DATA!$A$1,14,MATCH(VLOOKUP($G20,INDEXTBL!$C$1:$N$1216,5,FALSE),DATA!$A$2:$BAP$2,0)-1,47,1)/DATA!$H$15:$H$61*1000000),OFFSET(DATA!$A$1,14,MATCH(VLOOKUP($G20,INDEXTBL!$C$1:$N$1216,5,FALSE),DATA!$A$2:$BAP$2,0)-1,47,1)/DATA!$H$15:$H$61*1000000,0)) -> 鳥取県 | M20: ＊＊
G21: 緩D-010305 | H21: =VLOOKUP(G21,INDEXTBL!$C$1:$N$1216,3,FALSE) -> 緩和医療学会認定医（人） | I21: =IFERROR(TEXT(HLOOKUP(VLOOKUP($G21,INDEXTBL!$C$1:$N$1216,5,FALSE),DATA!$C$2:$BAP$14,8,FALSE)/DATA!$H$9*1000000,"0.0"),"NA") -> 7.5 | J21: =IFERROR(TEXT(HLOOKUP(VLOOKUP($G21,INDEXTBL!$C$1:$N$1216,5,FALSE),DATA!$C$2:$BAP$14,7,FALSE)/DATA!$H$8*1000000,"0.0"),"NA") -> 9.1 | K21: =IFERROR(TEXT(MAX(OFFSET(DATA!$A$1,14,MATCH(VLOOKUP($G21,INDEXTBL!$C$1:$N$1216,5,FALSE),DATA!$A$2:$BAP$2,0)-1,47,1)/DATA!$H$15:$H$61*1000000),"0.0") &" （"& L21 & "）","NA") -> 13.4 （島根県） | L21: =INDEX(DATA!$C$15:$C$61,MATCH(MAX(OFFSET(DATA!$A$1,14,MATCH(VLOOKUP($G21,INDEXTBL!$C$1:$N$1216,5,FALSE),DATA!$A$2:$BAP$2,0)-1,47,1)/DATA!$H$15:$H$61*1000000),OFFSET(DATA!$A$1,14,MATCH(VLOOKUP($G21,INDEXTBL!$C$1:$N$1216,5,FALSE),DATA!$A$2:$BAP$2,0)-1,47,1)/DATA!$H$15:$H$61*1000000,0)) -> 島根県 | M21: ＊＊
G22: 緩D-010306 | H22: =VLOOKUP(G22,INDEXTBL!$C$1:$N$1216,3,FALSE) -> 登録精神腫瘍医および精神腫瘍専門医（人） | I22: =IFERROR(TEXT(HLOOKUP(VLOOKUP($G22,INDEXTBL!$C$1:$N$1216,5,FALSE),DATA!$C$2:$BAP$14,8,FALSE)/DATA!$H$9*1000000,"0.0"),"NA") -> 2.0 | J22: =IFERROR(TEXT(HLOOKUP(VLOOKUP($G22,INDEXTBL!$C$1:$N$1216,5,FALSE),DATA!$C$2:$BAP$14,7,FALSE)/DATA!$H$8*1000000,"0.0"),"NA") -> 1.5 | K22: =IFERROR(TEXT(MAX(OFFSET(DATA!$A$1,14,MATCH(VLOOKUP($G22,INDEXTBL!$C$1:$N$1216,5,FALSE),DATA!$A$2:$BAP$2,0)-1,47,1)/DATA!$H$15:$H$61*1000000),"0.0") &" （"& L22 & "）","NA") -> 3.5 （京都府） | L22: =INDEX(DATA!$C$15:$C$61,MATCH(MAX(OFFSET(DATA!$A$1,14,MATCH(VLOOKUP($G22,INDEXTBL!$C$1:$N$1216,5,FALSE),DATA!$A$2:$BAP$2,0)-1,47,1)/DATA!$H$15:$H$61*1000000),OFFSET(DATA!$A$1,14,MATCH(VLOOKUP($G22,INDEXTBL!$C$1:$N$1216,5,FALSE),DATA!$A$2:$BAP$2,0)-1,47,1)/DATA!$H$15:$H$61*1000000,0)) -> 京都府 | M22: ＊＊
G23: 緩D-010308 | H23: =VLOOKUP(G23,INDEXTBL!$C$1:$N$1216,3,FALSE) -> ペインクリニック専門医（人） | I23: =IFERROR(TEXT(HLOOKUP(VLOOKUP($G23,INDEXTBL!$C$1:$N$1216,5,FALSE),DATA!$C$2:$BAP$14,8,FALSE)/DATA!$H$9*1000000,"0.0"),"NA") -> 10.2 | J23: =IFERROR(TEXT(HLOOKUP(VLOOKUP($G23,INDEXTBL!$C$1:$N$1216,5,FALSE),DATA!$C$2:$BAP$14,7,FALSE)/DATA!$H$8*1000000,"0.0"),"NA") -> 12.7 | K23: =IFERROR(TEXT(MAX(OFFSET(DATA!$A$1,14,MATCH(VLOOKUP($G23,INDEXTBL!$C$1:$N$1216,5,FALSE),DATA!$A$2:$BAP$2,0)-1,47,1)/DATA!$H$15:$H$61*1000000),"0.0") &" （"& L23 & "）","NA") -> 27.4 （栃木県） | L23: =INDEX(DATA!$C$15:$C$61,MATCH(MAX(OFFSET(DATA!$A$1,14,MATCH(VLOOKUP($G23,INDEXTBL!$C$1:$N$1216,5,FALSE),DATA!$A$2:$BAP$2,0)-1,47,1)/DATA!$H$15:$H$61*1000000),OFFSET(DATA!$A$1,14,MATCH(VLOOKUP($G23,INDEXTBL!$C$1:$N$1216,5,FALSE),DATA!$A$2:$BAP$2,0)-1,47,1)/DATA!$H$15:$H$61*1000000,0)) -> 栃木県 | M23: ＊＊
G24: 緩D-010309 | H24: =VLOOKUP(G24,INDEXTBL!$C$1:$N$1216,3,FALSE) -> 放射線治療専門医（人） | I24: =IFERROR(TEXT(HLOOKUP(VLOOKUP($G24,INDEXTBL!$C$1:$N$1216,5,FALSE),DATA!$C$2:$BAP$14,8,FALSE)/DATA!$H$9*1000000,"0.0"),"NA") -> 10.2 | J24: =IFERROR(TEXT(HLOOKUP(VLOOKUP($G24,INDEXTBL!$C$1:$N$1216,5,FALSE),DATA!$C$2:$BAP$14,7,FALSE)/DATA!$H$8*1000000,"0.0"),"NA") -> 11.4 | K24: =IFERROR(TEXT(MAX(OFFSET(DATA!$A$1,14,MATCH(VLOOKUP($G24,INDEXTBL!$C$1:$N$1216,5,FALSE),DATA!$A$2:$BAP$2,0)-1,47,1)/DATA!$H$15:$H$61*1000000),"0.0") &" （"& L24 & "）","NA") -> 22.1 （京都府） | L24: =INDEX(DATA!$C$15:$C$61,MATCH(MAX(OFFSET(DATA!$A$1,14,MATCH(VLOOKUP($G24,INDEXTBL!$C$1:$N$1216,5,FALSE),DATA!$A$2:$BAP$2,0)-1,47,1)/DATA!$H$15:$H$61*1000000),OFFSET(DATA!$A$1,14,MATCH(VLOOKUP($G24,INDEXTBL!$C$1:$N$1216,5,FALSE),DATA!$A$2:$BAP$2,0)-1,47,1)/DATA!$H$15:$H$61*1000000,0)) -> 京都府 | M24: ＊＊
G25: 緩D-010310 | H25: =VLOOKUP(G25,INDEXTBL!$C$1:$N$1216,3,FALSE) -> IVR専門医（放射線カテーテル治療専門医）（人） | I25: =IFERROR(TEXT(HLOOKUP(VLOOKUP($G25,INDEXTBL!$C$1:$N$1216,5,FALSE),DATA!$C$2:$BAP$14,8,FALSE)/DATA!$H$9*1000000,"0.0"),"NA") -> 8.9 | J25: =IFERROR(TEXT(HLOOKUP(VLOOKUP($G25,INDEXTBL!$C$1:$N$1216,5,FALSE),DATA!$C$2:$BAP$14,7,FALSE)/DATA!$H$8*1000000,"0.0"),"NA") -> 10.0 | K25: =IFERROR(TEXT(MAX(OFFSET(DATA!$A$1,14,MATCH(VLOOKUP($G25,INDEXTBL!$C$1:$N$1216,5,FALSE),DATA!$A$2:$BAP$2,0)-1,47,1)/DATA!$H$15:$H$61*1000000),"0.0") &" （"& L25 & "）","NA") -> 89.8 （奈良県） | L25: =INDEX(DATA!$C$15:$C$61,MATCH(MAX(OFFSET(DATA!$A$1,14,MATCH(VLOOKUP($G25,INDEXTBL!$C$1:$N$1216,5,FALSE),DATA!$A$2:$BAP$2,0)-1,47,1)/DATA!$H$15:$H$61*1000000),OFFSET(DATA!$A$1,14,MATCH(VLOOKUP($G25,INDEXTBL!$C$1:$N$1216,5,FALSE),DATA!$A$2:$BAP$2,0)-1,47,1)/DATA!$H$15:$H$61*1000000,0)) -> 奈良県 | M25: ＊＊
G26: 緩D-010311 | H26: =VLOOKUP(G26,INDEXTBL!$C$1:$N$1216,3,FALSE) -> 緩和薬物療法認定薬剤師（人） | I26: =IFERROR(TEXT(HLOOKUP(VLOOKUP($G26,INDEXTBL!$C$1:$N$1216,5,FALSE),DATA!$C$2:$BAP$14,8,FALSE)/DATA!$H$9*1000000,"0.0"),"NA") -> 2.7 | J26: =IFERROR(TEXT(HLOOKUP(VLOOKUP($G26,INDEXTBL!$C$1:$N$1216,5,FALSE),DATA!$C$2:$BAP$14,7,FALSE)/DATA!$H$8*1000000,"0.0"),"NA") -> 6.9 | K26: =IFERROR(TEXT(MAX(OFFSET(DATA!$A$1,14,MATCH(VLOOKUP($G26,INDEXTBL!$C$1:$N$1216,5,FALSE),DATA!$A$2:$BAP$2,0)-1,47,1)/DATA!$H$15:$H$61*1000000),"0.0") &" （"& L26 & "）","NA") -> 16.4 （島根県） | L26: =INDEX(DATA!$C$15:$C$61,MATCH(MAX(OFFSET(DATA!$A$1,14,MATCH(VLOOKUP($G26,INDEXTBL!$C$1:$N$1216,5,FALSE),DATA!$A$2:$BAP$2,0)-1,47,1)/DATA!$H$15:$H$61*1000000),OFFSET(DATA!$A$1,14,MATCH(VLOOKUP($G26,INDEXTBL!$C$1:$N$1216,5,FALSE),DATA!$A$2:$BAP$2,0)-1,47,1)/DATA!$H$15:$H$61*1000000,0)) -> 島根県 | M26: ＊＊
G27: 緩D-010312 | H27: =VLOOKUP(G27,INDEXTBL!$C$1:$N$1216,3,FALSE) -> 緩和ケア認定看護師（人） | I27: =IFERROR(TEXT(HLOOKUP(VLOOKUP($G27,INDEXTBL!$C$1:$N$1216,5,FALSE),DATA!$C$2:$BAP$14,8,FALSE)/DATA!$H$9*1000000,"0.0"),"NA") -> 22.5 | J27: =IFERROR(TEXT(HLOOKUP(VLOOKUP($G27,INDEXTBL!$C$1:$N$1216,5,FALSE),DATA!$C$2:$BAP$14,7,FALSE)/DATA!$H$8*1000000,"0.0"),"NA") -> 15.5 | K27: =IFERROR(TEXT(MAX(OFFSET(DATA!$A$1,14,MATCH(VLOOKUP($G27,INDEXTBL!$C$1:$N$1216,5,FALSE),DATA!$A$2:$BAP$2,0)-1,47,1)/DATA!$H$15:$H$61*1000000),"0.0") &" （"& L27 & "）","NA") -> 61.7 （山梨県） | L27: =INDEX(DATA!$C$15:$C$61,MATCH(MAX(OFFSET(DATA!$A$1,14,MATCH(VLOOKUP($G27,INDEXTBL!$C$1:$N$1216,5,FALSE),DATA!$A$2:$BAP$2,0)-1,47,1)/DATA!$H$15:$H$61*1000000),OFFSET(DATA!$A$1,14,MATCH(VLOOKUP($G27,INDEXTBL!$C$1:$N$1216,5,FALSE),DATA!$A$2:$BAP$2,0)-1,47,1)/DATA!$H$15:$H$61*1000000,0)) -> 山梨県 | M27: ＊＊
G28: 緩D-010313 | H28: =VLOOKUP(G28,INDEXTBL!$C$1:$N$1216,3,FALSE) -> 公認心理師（人） | I28: =IFERROR(TEXT(HLOOKUP(VLOOKUP($G28,INDEXTBL!$C$1:$N$1216,5,FALSE),DATA!$C$2:$BAP$14,8,FALSE)/DATA!$H$9*1000000,"0.0"),"NA") -> 691.7 | J28: =IFERROR(TEXT(HLOOKUP(VLOOKUP($G28,INDEXTBL!$C$1:$N$1216,5,FALSE),DATA!$C$2:$BAP$14,7,FALSE)/DATA!$H$8*1000000,"0.0"),"NA") -> 570.7 | K28: =IFERROR(TEXT(MAX(OFFSET(DATA!$A$1,14,MATCH(VLOOKUP($G28,INDEXTBL!$C$1:$N$1216,5,FALSE),DATA!$A$2:$BAP$2,0)-1,47,1)/DATA!$H$15:$H$61*1000000),"0.0") &" （"& L28 & "）","NA") -> 892.5 （京都府） | L28: =INDEX(DATA!$C$15:$C$61,MATCH(MAX(OFFSET(DATA!$A$1,14,MATCH(VLOOKUP($G28,INDEXTBL!$C$1:$N$1216,5,FALSE),DATA!$A$2:$BAP$2,0)-1,47,1)/DATA!$H$15:$H$61*1000000),OFFSET(DATA!$A$1,14,MATCH(VLOOKUP($G28,INDEXTBL!$C$1:$N$1216,5,FALSE),DATA!$A$2:$BAP$2,0)-1,47,1)/DATA!$H$15:$H$61*1000000,0)) -> 京都府 | M28: ＊＊
G29: 緩D-010314 | H29: =VLOOKUP(G29,INDEXTBL!$C$1:$N$1216,3,FALSE) -> 臨床心理士（人） | I29: =IFERROR(TEXT(HLOOKUP(VLOOKUP($G29,INDEXTBL!$C$1:$N$1216,5,FALSE),DATA!$C$2:$BAP$14,8,FALSE)/DATA!$H$9*1000000,"0.0"),"NA") -> 229.0 | J29: =IFERROR(TEXT(HLOOKUP(VLOOKUP($G29,INDEXTBL!$C$1:$N$1216,5,FALSE),DATA!$C$2:$BAP$14,7,FALSE)/DATA!$H$8*1000000,"0.0"),"NA") -> 292.2 | K29: =IFERROR(TEXT(MAX(OFFSET(DATA!$A$1,14,MATCH(VLOOKUP($G29,INDEXTBL!$C$1:$N$1216,5,FALSE),DATA!$A$2:$BAP$2,0)-1,47,1)/DATA!$H$15:$H$61*1000000),"0.0") &" （"& L29 & "）","NA") -> 561.7 （京都府） | L29: =INDEX(DATA!$C$15:$C$61,MATCH(MAX(OFFSET(DATA!$A$1,14,MATCH(VLOOKUP($G29,INDEXTBL!$C$1:$N$1216,5,FALSE),DATA!$A$2:$BAP$2,0)-1,47,1)/DATA!$H$15:$H$61*1000000),OFFSET(DATA!$A$1,14,MATCH(VLOOKUP($G29,INDEXTBL!$C$1:$N$1216,5,FALSE),DATA!$A$2:$BAP$2,0)-1,47,1)/DATA!$H$15:$H$61*1000000,0)) -> 京都府 | M29: ＊＊
G30: 緩D-010315 | H30: =VLOOKUP(G30,INDEXTBL!$C$1:$N$1216,3,FALSE) -> 緩和医療学会専門医が常勤で配置されている「施設」の割合（％） | I30: =IFERROR(HLOOKUP(VLOOKUP($G30,INDEXTBL!$C$1:$N$1216,$C$3,FALSE),DATA!$C$2:$ASR$14,8,FALSE),"NA") -> NA | J30: =IFERROR(HLOOKUP(VLOOKUP($G30,INDEXTBL!$C$1:$N$1216,$C$3,FALSE),DATA!$C$2:$ASR$14,7,FALSE),"NA") -> NA | K30: =IFERROR(HLOOKUP(VLOOKUP($G30,INDEXTBL!$C$1:$N$1216,$C$3,FALSE),DATA!$C$2:$ASR$14,10,FALSE),"NA") -> NA
G31: 緩D-010316 | H31: =VLOOKUP(G31,INDEXTBL!$C$1:$N$1216,3,FALSE) -> 緩和医療学会認定医が常勤で配置されている「施設」の割合（％） | I31: =IFERROR(HLOOKUP(VLOOKUP($G31,INDEXTBL!$C$1:$N$1216,$C$3,FALSE),DATA!$C$2:$ASR$14,8,FALSE),"NA") -> NA | J31: =IFERROR(HLOOKUP(VLOOKUP($G31,INDEXTBL!$C$1:$N$1216,$C$3,FALSE),DATA!$C$2:$ASR$14,7,FALSE),"NA") -> NA | K31: =IFERROR(HLOOKUP(VLOOKUP($G31,INDEXTBL!$C$1:$N$1216,$C$3,FALSE),DATA!$C$2:$ASR$14,10,FALSE),"NA") -> NA
G32: 緩D-010317 | H32: =VLOOKUP(G32,INDEXTBL!$C$1:$N$1216,3,FALSE) -> 登録精神腫瘍医が常勤で配置されている「施設」の割合（％） | I32: =IFERROR(HLOOKUP(VLOOKUP($G32,INDEXTBL!$C$1:$N$1216,$C$3,FALSE),DATA!$C$2:$ASR$14,8,FALSE),"NA") -> NA | J32: =IFERROR(HLOOKUP(VLOOKUP($G32,INDEXTBL!$C$1:$N$1216,$C$3,FALSE),DATA!$C$2:$ASR$14,7,FALSE),"NA") -> NA | K32: =IFERROR(HLOOKUP(VLOOKUP($G32,INDEXTBL!$C$1:$N$1216,$C$3,FALSE),DATA!$C$2:$ASR$14,10,FALSE),"NA") -> NA
G33: 緩D-010318 | H33: =VLOOKUP(G33,INDEXTBL!$C$1:$N$1216,3,FALSE) -> 精神腫瘍専門医が常勤で配置されている「施設」の割合（％） | I33: =IFERROR(HLOOKUP(VLOOKUP($G33,INDEXTBL!$C$1:$N$1216,$C$3,FALSE),DATA!$C$2:$ASR$14,8,FALSE),"NA") -> NA | J33: =IFERROR(HLOOKUP(VLOOKUP($G33,INDEXTBL!$C$1:$N$1216,$C$3,FALSE),DATA!$C$2:$ASR$14,7,FALSE),"NA") -> NA | K33: =IFERROR(HLOOKUP(VLOOKUP($G33,INDEXTBL!$C$1:$N$1216,$C$3,FALSE),DATA!$C$2:$ASR$14,10,FALSE),"NA") -> NA
G34: 緩D-010319 | H34: =VLOOKUP(G34,INDEXTBL!$C$1:$N$1216,3,FALSE) -> ペインクリニック専門医が常勤で配置されている「施設」の割合（％） | I34: =IFERROR(HLOOKUP(VLOOKUP($G34,INDEXTBL!$C$1:$N$1216,$C$3,FALSE),DATA!$C$2:$ASR$14,8,FALSE),"NA") -> NA | J34: =IFERROR(HLOOKUP(VLOOKUP($G34,INDEXTBL!$C$1:$N$1216,$C$3,FALSE),DATA!$C$2:$ASR$14,7,FALSE),"NA") -> NA | K34: =IFERROR(HLOOKUP(VLOOKUP($G34,INDEXTBL!$C$1:$N$1216,$C$3,FALSE),DATA!$C$2:$ASR$14,10,FALSE),"NA") -> NA
G35: 緩D-010320 | H35: =VLOOKUP(G35,INDEXTBL!$C$1:$N$1216,3,FALSE) -> 放射線治療専門医が常勤で配置されている「施設」の割合（％） | I35: =IFERROR(HLOOKUP(VLOOKUP($G35,INDEXTBL!$C$1:$N$1216,$C$3,FALSE),DATA!$C$2:$ASR$14,8,FALSE),"NA") -> NA | J35: =IFERROR(HLOOKUP(VLOOKUP($G35,INDEXTBL!$C$1:$N$1216,$C$3,FALSE),DATA!$C$2:$ASR$14,7,FALSE),"NA") -> NA | K35: =IFERROR(HLOOKUP(VLOOKUP($G35,INDEXTBL!$C$1:$N$1216,$C$3,FALSE),DATA!$C$2:$ASR$14,10,FALSE),"NA") -> NA
G36: 緩D-010321 | H36: =VLOOKUP(G36,INDEXTBL!$C$1:$N$1216,3,FALSE) -> IVR専門医（放射線カテーテル治療専門医）が常勤で配置されている「施設」の割合（％） | I36: =IFERROR(HLOOKUP(VLOOKUP($G36,INDEXTBL!$C$1:$N$1216,$C$3,FALSE),DATA!$C$2:$ASR$14,8,FALSE),"NA") -> NA | J36: =IFERROR(HLOOKUP(VLOOKUP($G36,INDEXTBL!$C$1:$N$1216,$C$3,FALSE),DATA!$C$2:$ASR$14,7,FALSE),"NA") -> NA | K36: =IFERROR(HLOOKUP(VLOOKUP($G36,INDEXTBL!$C$1:$N$1216,$C$3,FALSE),DATA!$C$2:$ASR$14,10,FALSE),"NA") -> NA
G37: 緩D-010322 | H37: =VLOOKUP(G37,INDEXTBL!$C$1:$N$1216,3,FALSE) -> 緩和薬物療法認定薬剤師が常勤で配置されている「施設」の割合（％） | I37: =IFERROR(HLOOKUP(VLOOKUP($G37,INDEXTBL!$C$1:$N$1216,$C$3,FALSE),DATA!$C$2:$ASR$14,8,FALSE),"NA") -> NA | J37: =IFERROR(HLOOKUP(VLOOKUP($G37,INDEXTBL!$C$1:$N$1216,$C$3,FALSE),DATA!$C$2:$ASR$14,7,FALSE),"NA") -> NA | K37: =IFERROR(HLOOKUP(VLOOKUP($G37,INDEXTBL!$C$1:$N$1216,$C$3,FALSE),DATA!$C$2:$ASR$14,10,FALSE),"NA") -> NA
G38: 緩D-010323 | H38: =VLOOKUP(G38,INDEXTBL!$C$1:$N$1216,3,FALSE) -> 緩和ケア認定看護師が常勤で配置されている「施設」の割合（％） | I38: =IFERROR(HLOOKUP(VLOOKUP($G38,INDEXTBL!$C$1:$N$1216,$C$3,FALSE),DATA!$C$2:$ASR$14,8,FALSE),"NA") -> NA | J38: =IFERROR(HLOOKUP(VLOOKUP($G38,INDEXTBL!$C$1:$N$1216,$C$3,FALSE),DATA!$C$2:$ASR$14,7,FALSE),"NA") -> NA | K38: =IFERROR(HLOOKUP(VLOOKUP($G38,INDEXTBL!$C$1:$N$1216,$C$3,FALSE),DATA!$C$2:$ASR$14,10,FALSE),"NA") -> NA
G39: 緩D-010324 | H39: =VLOOKUP(G39,INDEXTBL!$C$1:$N$1216,3,FALSE) -> 公認心理師が常勤で配置されている「施設」の割合（％） | I39: =IFERROR(HLOOKUP(VLOOKUP($G39,INDEXTBL!$C$1:$N$1216,$C$3,FALSE),DATA!$C$2:$ASR$14,8,FALSE),"NA") -> NA | J39: =IFERROR(HLOOKUP(VLOOKUP($G39,INDEXTBL!$C$1:$N$1216,$C$3,FALSE),DATA!$C$2:$ASR$14,7,FALSE),"NA") -> NA | K39: =IFERROR(HLOOKUP(VLOOKUP($G39,INDEXTBL!$C$1:$N$1216,$C$3,FALSE),DATA!$C$2:$ASR$14,10,FALSE),"NA") -> NA
G40: 緩D-010325 | H40: =VLOOKUP(G40,INDEXTBL!$C$1:$N$1216,3,FALSE) -> 臨床心理士が常勤で配置されている「施設」の割合（％） | I40: =IFERROR(HLOOKUP(VLOOKUP($G40,INDEXTBL!$C$1:$N$1216,$C$3,FALSE),DATA!$C$2:$ASR$14,8,FALSE),"NA") -> NA | J40: =IFERROR(HLOOKUP(VLOOKUP($G40,INDEXTBL!$C$1:$N$1216,$C$3,FALSE),DATA!$C$2:$ASR$14,7,FALSE),"NA") -> NA | K40: =IFERROR(HLOOKUP(VLOOKUP($G40,INDEXTBL!$C$1:$N$1216,$C$3,FALSE),DATA!$C$2:$ASR$14,10,FALSE),"NA") -> NA
K41: ＊＊：人口100万人あたり
E43: ②在宅医療
E44: 緩D-0201 | H44: =VLOOKUP(E44,INDEXTBL!$A$1:$N$1216,2,FALSE) -> 望んだ場所で過ごせたがん患者の割合を増加させる | I44: 沖縄県 | J44: 全国 | K44: 最良値 （都道府県） | O44: 緩B-0201 | R44: =VLOOKUP(O44,INDEXTBL!$A$1:$N$1216,2,FALSE) -> 希望する患者の在宅医療への移行が充分にできている | S44: 沖縄県 | T44: 全国 | U44: 最良値 （都道府県）
G45: 緩D-020101 | H45: =VLOOKUP(G45,INDEXTBL!$C$1:$N$1216,3,FALSE) -> ※（検討中） | I45: =IFERROR(HLOOKUP(VLOOKUP($G45,INDEXTBL!$C$1:$N$1216,$C$3,FALSE),DATA!$C$2:$ASR$14,8,FALSE),"NA") -> NA | J45: =IFERROR(HLOOKUP(VLOOKUP($G45,INDEXTBL!$C$1:$N$1216,$C$3,FALSE),DATA!$C$2:$ASR$14,7,FALSE),"NA") -> NA | K45: =IFERROR(HLOOKUP(VLOOKUP($G45,INDEXTBL!$C$1:$N$1216,$C$3,FALSE),DATA!$C$2:$ASR$14,10,FALSE),"NA") -> NA | Q45: 緩B-020101 | R45: =VLOOKUP(Q45,INDEXTBL!$C$1:$N$1216,3,FALSE) -> （遺族調査）在宅で亡くなったがん患者の医療に対する満足度（％） | S45: =IFERROR(TEXT(HLOOKUP(VLOOKUP($Q45,INDEXTBL!$C$1:$O$1216,12,FALSE),DATA!$C$2:$AXB$14,8,FALSE),"0.0")&"%","NA") -> 38.1% | T45: =IFERROR(TEXT(HLOOKUP(VLOOKUP($Q45,INDEXTBL!$C$1:$O$1216,12,FALSE),DATA!$C$2:$AXB$14,7,FALSE),"0.0")&"%","NA") -> 38.5% | U45: =IFERROR(TEXT(_xlfn.AGGREGATE(4,7,OFFSET(DATA!$A$1,14,MATCH(VLOOKUP($Q45,INDEXTBL!$C$1:$O$1216,12,FALSE),DATA!$A$2:$AXB$2,0)-1,47,1)),"0.0")&"%" &" （"& V45 & "）","NA") -> 44.8% （山形県） | V45: =INDEX(DATA!$C$15:$C$61,MATCH(_xlfn.AGGREGATE(4,7,OFFSET(DATA!$A$1,14,MATCH(VLOOKUP($Q45,INDEXTBL!$C$1:$O$1216,12,FALSE),DATA!$A$2:$AXB$2,0)-1,47,1)),OFFSET(DATA!$A$1,14,MATCH(VLOOKUP($Q45,INDEXTBL!$C$1:$O$1216,12,FALSE),DATA!$A$2:$AXB$2,0)-1,47,1),0)) -> 山形県
E46: 緩D-0202 | H46: =VLOOKUP(E46,INDEXTBL!$A$1:$N$1216,2,FALSE) -> 在宅で亡くなったがん患者の医療に対する満足度を向上させる | I46: 沖縄県 | J46: 全国 | K46: 最良値 （都道府県） | Q46: 緩B-020102 | R46: =VLOOKUP(Q46,INDEXTBL!$C$1:$N$1216,3,FALSE) -> （遺族調査）介護をしたことで、全体的に負担感が大きかった割合（％） | S46: =IFERROR(TEXT(HLOOKUP(VLOOKUP($Q46,INDEXTBL!$C$1:$O$1216,12,FALSE),DATA!$C$2:$AXB$14,8,FALSE),"0.0")&"%","NA") -> 53.1% | T46: =IFERROR(TEXT(HLOOKUP(VLOOKUP($Q46,INDEXTBL!$C$1:$O$1216,12,FALSE),DATA!$C$2:$AXB$14,7,FALSE),"0.0")&"%","NA") -> 40.9% | U46: =IFERROR(TEXT(_xlfn.AGGREGATE(4,7,OFFSET(DATA!$A$1,14,MATCH(VLOOKUP($Q46,INDEXTBL!$C$1:$O$1216,12,FALSE),DATA!$A$2:$AXB$2,0)-1,47,1)),"0.0")&"%" &" （"& V46 & "）","NA") -> 53.1% （沖縄県） | V46: =INDEX(DATA!$C$15:$C$61,MATCH(_xlfn.AGGREGATE(4,7,OFFSET(DATA!$A$1,14,MATCH(VLOOKUP($Q46,INDEXTBL!$C$1:$O$1216,12,FALSE),DATA!$A$2:$AXB$2,0)-1,47,1)),OFFSET(DATA!$A$1,14,MATCH(VLOOKUP($Q46,INDEXTBL!$C$1:$O$1216,12,FALSE),DATA!$A$2:$AXB$2,0)-1,47,1),0)) -> 沖縄県
G47: 緩D-020201 | H47: =VLOOKUP(G47,INDEXTBL!$C$1:$N$1216,3,FALSE) -> ※（検討中） | I47: =IFERROR(HLOOKUP(VLOOKUP($G47,INDEXTBL!$C$1:$N$1216,$C$3,FALSE),DATA!$C$2:$ASR$14,8,FALSE),"NA") -> NA | J47: =IFERROR(HLOOKUP(VLOOKUP($G47,INDEXTBL!$C$1:$N$1216,$C$3,FALSE),DATA!$C$2:$ASR$14,7,FALSE),"NA") -> NA | K47: =IFERROR(HLOOKUP(VLOOKUP($G47,INDEXTBL!$C$1:$N$1216,$C$3,FALSE),DATA!$C$2:$ASR$14,10,FALSE),"NA") -> NA | Q47: 緩B-020103 | R47: =VLOOKUP(Q47,INDEXTBL!$C$1:$N$1216,3,FALSE) -> （NDB-SCR）在宅ターミナルケア加算 | S47: =IFERROR(TEXT(HLOOKUP(VLOOKUP($Q47,INDEXTBL!$C$1:$N$1216,10,FALSE),DATA!$C$2:$AXB$14,8,FALSE),"0.0"),"NA") -> 84.4 | T47: =IFERROR(TEXT(HLOOKUP(VLOOKUP($Q47,INDEXTBL!$C$1:$N$1216,10,FALSE),DATA!$C$2:$AXB$14,7,FALSE),"0.0"),"NA") -> 100.0 | U47: =IFERROR(TEXT(_xlfn.AGGREGATE(4,7,OFFSET(DATA!$A$1,14,MATCH(VLOOKUP($Q47,INDEXTBL!$C$1:$N$1216,10,FALSE),DATA!$A$2:$AXB$2,0)-1,47,1)),"0.0") &" （"& V47 & "）","NA") -> 312.1 （徳島県） | V47: =INDEX(DATA!$C$15:$C$61,MATCH(_xlfn.AGGREGATE(4,7,OFFSET(DATA!$A$1,14,MATCH(VLOOKUP($Q47,INDEXTBL!$C$1:$N$1216,10,FALSE),DATA!$A$2:$AXB$2,0)-1,47,1)),OFFSET(DATA!$A$1,14,MATCH(VLOOKUP($Q47,INDEXTBL!$C$1:$N$1216,10,FALSE),DATA!$A$2:$AXB$2,0)-1,47,1),0)) -> 徳島県
E48: 緩D-0203 | H48: =VLOOKUP(E48,INDEXTBL!$A$1:$N$1216,2,FALSE) -> 在宅医療を提供できる必要な資格を持った専門家を計画的に養成し、必要に応じて配置する | I48: 沖縄県 | J48: 全国 | K48: 最良値 （都道府県） | Q48: 緩B-020104 | R48: =VLOOKUP(Q48,INDEXTBL!$C$1:$N$1216,3,FALSE) -> （NDB-SCR）看取り加算（在宅患者訪問診療料（１）１・（２）イ・往診料） 外来 | S48: =IFERROR(TEXT(HLOOKUP(VLOOKUP($Q48,INDEXTBL!$C$1:$N$1216,10,FALSE),DATA!$C$2:$AXB$14,8,FALSE),"0.0"),"NA") -> 76.9 | T48: =IFERROR(TEXT(HLOOKUP(VLOOKUP($Q48,INDEXTBL!$C$1:$N$1216,10,FALSE),DATA!$C$2:$AXB$14,7,FALSE),"0.0"),"NA") -> 100.0 | U48: =IFERROR(TEXT(_xlfn.AGGREGATE(4,7,OFFSET(DATA!$A$1,14,MATCH(VLOOKUP($Q48,INDEXTBL!$C$1:$N$1216,10,FALSE),DATA!$A$2:$AXB$2,0)-1,47,1)),"0.0") &" （"& V48 & "）","NA") -> 195.9 （神奈川県） | V48: =INDEX(DATA!$C$15:$C$61,MATCH(_xlfn.AGGREGATE(4,7,OFFSET(DATA!$A$1,14,MATCH(VLOOKUP($Q48,INDEXTBL!$C$1:$N$1216,10,FALSE),DATA!$A$2:$AXB$2,0)-1,47,1)),OFFSET(DATA!$A$1,14,MATCH(VLOOKUP($Q48,INDEXTBL!$C$1:$N$1216,10,FALSE),DATA!$A$2:$AXB$2,0)-1,47,1),0)) -> 神奈川県
G49: 緩D-020301 | H49: =VLOOKUP(G49,INDEXTBL!$C$1:$N$1216,3,FALSE) -> 地域緩和ケア連携調整員研修受講者数（人） | I49: =IFERROR(HLOOKUP(VLOOKUP($G49,INDEXTBL!$C$1:$O$1216,4,FALSE),DATA!$C$2:$BAP$14,8,FALSE)/DATA!$H$9*100000,"NA") -> NA | J49: =IFERROR(HLOOKUP(VLOOKUP($G49,INDEXTBL!$C$1:$O$1216,4,FALSE),DATA!$C$2:$BAP$14,7,FALSE)/DATA!$H$8*100000,"NA") -> NA | K49: =IFERROR(HLOOKUP(VLOOKUP($Q61,INDEXTBL!$C$1:$O$1216,4,FALSE),DATA!$C$2:$BAP$14,10,FALSE)/DATA!$H$11*100000,"NA") -> NA | Q49: 緩B-020105 | R49: =VLOOKUP(Q49,INDEXTBL!$C$1:$N$1216,3,FALSE) -> （NDB-SCR）介護支援等連携指導料（がん患者に限定） | S49: =IFERROR(TEXT(HLOOKUP(VLOOKUP($Q49,INDEXTBL!$C$1:$N$1216,10,FALSE),DATA!$C$2:$AXB$14,8,FALSE),"0.0"),"NA") -> 96.7 | T49: =IFERROR(TEXT(HLOOKUP(VLOOKUP($Q49,INDEXTBL!$C$1:$N$1216,10,FALSE),DATA!$C$2:$AXB$14,7,FALSE),"0.0"),"NA") -> 100.0 | U49: =IFERROR(TEXT(_xlfn.AGGREGATE(4,7,OFFSET(DATA!$A$1,14,MATCH(VLOOKUP($Q49,INDEXTBL!$C$1:$N$1216,10,FALSE),DATA!$A$2:$AXB$2,0)-1,47,1)),"0.0") &" （"& V49 & "）","NA") -> 273.4 （秋田県） | V49: =INDEX(DATA!$C$15:$C$61,MATCH(_xlfn.AGGREGATE(4,7,OFFSET(DATA!$A$1,14,MATCH(VLOOKUP($Q49,INDEXTBL!$C$1:$N$1216,10,FALSE),DATA!$A$2:$AXB$2,0)-1,47,1)),OFFSET(DATA!$A$1,14,MATCH(VLOOKUP($Q49,INDEXTBL!$C$1:$N$1216,10,FALSE),DATA!$A$2:$AXB$2,0)-1,47,1),0)) -> 秋田県
G50: 緩D-020302 | H50: =VLOOKUP(G50,INDEXTBL!$C$1:$N$1216,3,FALSE) -> 在宅専門医（人） | I50: =IFERROR(TEXT(HLOOKUP(VLOOKUP($G50,INDEXTBL!$C$1:$N$1216,5,FALSE),DATA!$C$2:$BAP$14,8,FALSE)/DATA!$H$9*1000000,"0.0"),"NA") -> 6.8 | J50: =IFERROR(TEXT(HLOOKUP(VLOOKUP($G50,INDEXTBL!$C$1:$N$1216,5,FALSE),DATA!$C$2:$BAP$14,7,FALSE)/DATA!$H$8*1000000,"0.0"),"NA") -> 3.7 | K50: =IFERROR(TEXT(MAX(OFFSET(DATA!$A$1,14,MATCH(VLOOKUP($G50,INDEXTBL!$C$1:$N$1216,5,FALSE),DATA!$A$2:$BAP$2,0)-1,47,1)/DATA!$H$15:$H$61*1000000),"0.0") &" （"& L50 & "）","NA") -> 9.1 （奈良県） | L50: =INDEX(DATA!$C$15:$C$61,MATCH(MAX(OFFSET(DATA!$A$1,14,MATCH(VLOOKUP($G50,INDEXTBL!$C$1:$N$1216,5,FALSE),DATA!$A$2:$BAP$2,0)-1,47,1)/DATA!$H$15:$H$61*1000000),OFFSET(DATA!$A$1,14,MATCH(VLOOKUP($G50,INDEXTBL!$C$1:$N$1216,5,FALSE),DATA!$A$2:$BAP$2,0)-1,47,1)/DATA!$H$15:$H$61*1000000,0)) -> 奈良県 | M50: ＊＊ | Q50: 緩B-020106 | R50: =VLOOKUP(Q50,INDEXTBL!$C$1:$N$1216,3,FALSE) -> （NDB-SCR）退院時共同指導料１（がん患者に限定） | S50: =IFERROR(TEXT(HLOOKUP(VLOOKUP($Q50,INDEXTBL!$C$1:$N$1216,10,FALSE),DATA!$C$2:$AXB$14,8,FALSE),"0.0"),"NA") -> 171.1 | T50: =IFERROR(TEXT(HLOOKUP(VLOOKUP($Q50,INDEXTBL!$C$1:$N$1216,10,FALSE),DATA!$C$2:$AXB$14,7,FALSE),"0.0"),"NA") -> 100.0 | U50: =IFERROR(TEXT(_xlfn.AGGREGATE(4,7,OFFSET(DATA!$A$1,14,MATCH(VLOOKUP($Q50,INDEXTBL!$C$1:$N$1216,10,FALSE),DATA!$A$2:$AXB$2,0)-1,47,1)),"0.0") &" （"& V50 & "）","NA") -> 282.9 （岐阜県） | V50: =INDEX(DATA!$C$15:$C$61,MATCH(_xlfn.AGGREGATE(4,7,OFFSET(DATA!$A$1,14,MATCH(VLOOKUP($Q50,INDEXTBL!$C$1:$N$1216,10,FALSE),DATA!$A$2:$AXB$2,0)-1,47,1)),OFFSET(DATA!$A$1,14,MATCH(VLOOKUP($Q50,INDEXTBL!$C$1:$N$1216,10,FALSE),DATA!$A$2:$AXB$2,0)-1,47,1),0)) -> 岐阜県
G51: 緩D-020303 | H51: =VLOOKUP(G51,INDEXTBL!$C$1:$N$1216,3,FALSE) -> 訪問看護師（人） | I51: =IFERROR(TEXT(HLOOKUP(VLOOKUP($G51,INDEXTBL!$C$1:$N$1216,5,FALSE),DATA!$C$2:$BAP$14,8,FALSE)/DATA!$H$9*1000000,"0.0"),"NA") -> 2.0 | J51: =IFERROR(TEXT(HLOOKUP(VLOOKUP($G51,INDEXTBL!$C$1:$N$1216,5,FALSE),DATA!$C$2:$BAP$14,7,FALSE)/DATA!$H$8*1000000,"0.0"),"NA") -> 4.4 | K51: =IFERROR(TEXT(MAX(OFFSET(DATA!$A$1,14,MATCH(VLOOKUP($G51,INDEXTBL!$C$1:$N$1216,5,FALSE),DATA!$A$2:$BAP$2,0)-1,47,1)/DATA!$H$15:$H$61*1000000),"0.0") &" （"& L51 & "）","NA") -> 11.0 （愛知県） | L51: =INDEX(DATA!$C$15:$C$61,MATCH(MAX(OFFSET(DATA!$A$1,14,MATCH(VLOOKUP($G51,INDEXTBL!$C$1:$N$1216,5,FALSE),DATA!$A$2:$BAP$2,0)-1,47,1)/DATA!$H$15:$H$61*1000000),OFFSET(DATA!$A$1,14,MATCH(VLOOKUP($G51,INDEXTBL!$C$1:$N$1216,5,FALSE),DATA!$A$2:$BAP$2,0)-1,47,1)/DATA!$H$15:$H$61*1000000,0)) -> 愛知県 | M51: ＊＊ | Q51: 緩B-020107 | R51: =VLOOKUP(Q51,INDEXTBL!$C$1:$N$1216,3,FALSE) -> （医療者調査）在宅医療を希望された患者のうち、実際に在宅医療に移行した患者の割合が75%以上であると回答した人の割合（％） | S51: =IFERROR(TEXT(HLOOKUP(VLOOKUP($Q51,INDEXTBL!$C$1:$O$1216,13,FALSE),DATA!$C$2:$BAP$14,8,FALSE)*100,"0.0")&"%","NA") -> 62.7% | T51: =IFERROR(TEXT(HLOOKUP(VLOOKUP($Q51,INDEXTBL!$C$1:$O$1216,13,FALSE),DATA!$C$2:$BAP$14,7,FALSE)*100,"0.0")&"%","NA") -> NA | U51: =IFERROR(TEXT(_xlfn.AGGREGATE(4,7,OFFSET(DATA!$A$1,14,MATCH(VLOOKUP($Q51,INDEXTBL!$C$1:$O$1216,13,FALSE),DATA!$A$2:$BAP$2,0)-1,47,1)),"0.0") &" （"& V51 & "）","NA") -> NA | V51: =INDEX(DATA!$C$15:$C$61,MATCH(_xlfn.AGGREGATE(4,7,OFFSET(DATA!$A$1,14,MATCH(VLOOKUP($Q51,INDEXTBL!$C$1:$O$1216,13,FALSE),DATA!$A$2:$BAP$2,0)-1,47,1)),OFFSET(DATA!$A$1,14,MATCH(VLOOKUP($Q51,INDEXTBL!$C$1:$O$1216,13,FALSE),DATA!$A$2:$BAP$2,0)-1,47,1),0)) -> 
G52: 緩D-020304 | H52: =VLOOKUP(G52,INDEXTBL!$C$1:$N$1216,3,FALSE) -> 介護支援専門員（人） | I52: =IFERROR(TEXT(HLOOKUP(VLOOKUP($G52,INDEXTBL!$C$1:$N$1216,5,FALSE),DATA!$C$2:$BAP$14,8,FALSE)/DATA!$H$9*1000000,"0.0"),"NA") -> 4786.4 | J52: =IFERROR(TEXT(HLOOKUP(VLOOKUP($G52,INDEXTBL!$C$1:$N$1216,5,FALSE),DATA!$C$2:$BAP$14,7,FALSE)/DATA!$H$8*1000000,"0.0"),"NA") -> 5953.9 | K52: =IFERROR(TEXT(MAX(OFFSET(DATA!$A$1,14,MATCH(VLOOKUP($G52,INDEXTBL!$C$1:$N$1216,5,FALSE),DATA!$A$2:$BAP$2,0)-1,47,1)/DATA!$H$15:$H$61*1000000),"0.0") &" （"& L52 & "）","NA") -> 9882.4 （徳島県） | L52: =INDEX(DATA!$C$15:$C$61,MATCH(MAX(OFFSET(DATA!$A$1,14,MATCH(VLOOKUP($G52,INDEXTBL!$C$1:$N$1216,5,FALSE),DATA!$A$2:$BAP$2,0)-1,47,1)/DATA!$H$15:$H$61*1000000),OFFSET(DATA!$A$1,14,MATCH(VLOOKUP($G52,INDEXTBL!$C$1:$N$1216,5,FALSE),DATA!$A$2:$BAP$2,0)-1,47,1)/DATA!$H$15:$H$61*1000000,0)) -> 徳島県 | M52: ＊＊
G53: 緩D-020305 | H53: =VLOOKUP(G53,INDEXTBL!$C$1:$N$1216,3,FALSE) -> 在宅医療インテグレーター（人） | I53: =IFERROR(HLOOKUP(VLOOKUP($G53,INDEXTBL!$C$1:$O$1216,4,FALSE),DATA!$C$2:$BAP$14,8,FALSE)/DATA!$H$9*100000,"NA") -> NA | J53: =IFERROR(HLOOKUP(VLOOKUP($G53,INDEXTBL!$C$1:$O$1216,4,FALSE),DATA!$C$2:$BAP$14,7,FALSE)/DATA!$H$8*100000,"NA") -> NA | K53: =IFERROR(HLOOKUP(VLOOKUP(#REF!,INDEXTBL!$C$1:$O$1216,4,FALSE),DATA!$C$2:$BAP$14,10,FALSE)/DATA!$H$11*100000,"NA") -> NA
G54: 緩D-020306 | H54: =VLOOKUP(G54,INDEXTBL!$C$1:$N$1216,3,FALSE) -> 在宅療養支援診療所数 | I54: =IFERROR(TEXT(HLOOKUP(VLOOKUP($G54,INDEXTBL!$C$1:$N$1216,5,FALSE),DATA!$C$2:$CAP$14,8,FALSE)/DATA!$H$9*1000000,"0.0"),"NA") -> 62.0 | J54: =IFERROR(TEXT(HLOOKUP(VLOOKUP($G54,INDEXTBL!$C$1:$N$1216,5,FALSE),DATA!$C$2:$CAP$14,7,FALSE)/DATA!$H$8*1000000,"0.0"),"NA") -> 114.2 | K54: =IFERROR(TEXT(MAX(OFFSET(DATA!$A$1,14,MATCH(VLOOKUP($G54,INDEXTBL!$C$1:$N$1216,5,FALSE),DATA!$A$2:$CAP$2,0)-1,47,1)/DATA!$H$15:$H$61*1000000),"0.0") &" （"& L54 & "）","NA") -> 218.7 （長崎県） | L54: =INDEX(DATA!$C$15:$C$61,MATCH(MAX(OFFSET(DATA!$A$1,14,MATCH(VLOOKUP($G54,INDEXTBL!$C$1:$N$1216,5,FALSE),DATA!$A$2:$CAP$2,0)-1,47,1)/DATA!$H$15:$H$61*1000000),OFFSET(DATA!$A$1,14,MATCH(VLOOKUP($G54,INDEXTBL!$C$1:$N$1216,5,FALSE),DATA!$A$2:$CAP$2,0)-1,47,1)/DATA!$H$15:$H$61*1000000,0)) -> 長崎県 | M54: ＊＊
G55: 緩D-020307 | H55: =VLOOKUP(G55,INDEXTBL!$C$1:$N$1216,3,FALSE) -> 強化機能型在宅療養支援診療所数 | I55: =IFERROR(TEXT(HLOOKUP(VLOOKUP($G55,INDEXTBL!$C$1:$N$1216,5,FALSE),DATA!$C$2:$CAP$14,8,FALSE)/DATA!$H$9*1000000,"0.0"),"NA") -> 19.1 | J55: =IFERROR(TEXT(HLOOKUP(VLOOKUP($G55,INDEXTBL!$C$1:$N$1216,5,FALSE),DATA!$C$2:$CAP$14,7,FALSE)/DATA!$H$8*1000000,"0.0"),"NA") -> 27.2 | K55: =IFERROR(TEXT(MAX(OFFSET(DATA!$A$1,14,MATCH(VLOOKUP($G55,INDEXTBL!$C$1:$N$1216,5,FALSE),DATA!$A$2:$CAP$2,0)-1,47,1)/DATA!$H$15:$H$61*1000000),"0.0") &" （"& L55 & "）","NA") -> 44.4 （和歌山県） | L55: =INDEX(DATA!$C$15:$C$61,MATCH(MAX(OFFSET(DATA!$A$1,14,MATCH(VLOOKUP($G55,INDEXTBL!$C$1:$N$1216,5,FALSE),DATA!$A$2:$CAP$2,0)-1,47,1)/DATA!$H$15:$H$61*1000000),OFFSET(DATA!$A$1,14,MATCH(VLOOKUP($G55,INDEXTBL!$C$1:$N$1216,5,FALSE),DATA!$A$2:$CAP$2,0)-1,47,1)/DATA!$H$15:$H$61*1000000,0)) -> 和歌山県 | M55: ＊＊
G56: 緩D-020308 | H56: =VLOOKUP(G56,INDEXTBL!$C$1:$N$1216,3,FALSE) -> 在宅療養支援病院数 | I56: =IFERROR(TEXT(HLOOKUP(VLOOKUP($G56,INDEXTBL!$C$1:$N$1216,5,FALSE),DATA!$C$2:$CAP$14,8,FALSE)/DATA!$H$9*1000000,"0.0"),"NA") -> 11.6 | J56: =IFERROR(TEXT(HLOOKUP(VLOOKUP($G56,INDEXTBL!$C$1:$N$1216,5,FALSE),DATA!$C$2:$CAP$14,7,FALSE)/DATA!$H$8*1000000,"0.0"),"NA") -> 11.8 | K56: =IFERROR(TEXT(MAX(OFFSET(DATA!$A$1,14,MATCH(VLOOKUP($G56,INDEXTBL!$C$1:$N$1216,5,FALSE),DATA!$A$2:$CAP$2,0)-1,47,1)/DATA!$H$15:$H$61*1000000),"0.0") &" （"& L56 & "）","NA") -> 55.6 （徳島県） | L56: =INDEX(DATA!$C$15:$C$61,MATCH(MAX(OFFSET(DATA!$A$1,14,MATCH(VLOOKUP($G56,INDEXTBL!$C$1:$N$1216,5,FALSE),DATA!$A$2:$CAP$2,0)-1,47,1)/DATA!$H$15:$H$61*1000000),OFFSET(DATA!$A$1,14,MATCH(VLOOKUP($G56,INDEXTBL!$C$1:$N$1216,5,FALSE),DATA!$A$2:$CAP$2,0)-1,47,1)/DATA!$H$15:$H$61*1000000,0)) -> 徳島県 | M56: ＊＊
G57: 緩D-020309 | H57: =VLOOKUP(G57,INDEXTBL!$C$1:$N$1216,3,FALSE) -> 訪問看護ステーション数 | I57: =IFERROR(TEXT(HLOOKUP(VLOOKUP($G57,INDEXTBL!$C$1:$N$1216,5,FALSE),DATA!$C$2:$CAP$14,8,FALSE)/DATA!$H$9*1000000,"0.0"),"NA") -> 92.7 | J57: =IFERROR(TEXT(HLOOKUP(VLOOKUP($G57,INDEXTBL!$C$1:$N$1216,5,FALSE),DATA!$C$2:$CAP$14,7,FALSE)/DATA!$H$8*1000000,"0.0"),"NA") -> 98.2 | K57: =IFERROR(TEXT(MAX(OFFSET(DATA!$A$1,14,MATCH(VLOOKUP($G57,INDEXTBL!$C$1:$N$1216,5,FALSE),DATA!$A$2:$CAP$2,0)-1,47,1)/DATA!$H$15:$H$61*1000000),"0.0") &" （"& L57 & "）","NA") -> 170.2 （和歌山県） | L57: =INDEX(DATA!$C$15:$C$61,MATCH(MAX(OFFSET(DATA!$A$1,14,MATCH(VLOOKUP($G57,INDEXTBL!$C$1:$N$1216,5,FALSE),DATA!$A$2:$CAP$2,0)-1,47,1)/DATA!$H$15:$H$61*1000000),OFFSET(DATA!$A$1,14,MATCH(VLOOKUP($G57,INDEXTBL!$C$1:$N$1216,5,FALSE),DATA!$A$2:$CAP$2,0)-1,47,1)/DATA!$H$15:$H$61*1000000,0)) -> 和歌山県 | M57: ＊＊
G58: 緩D-020310 | H58: =VLOOKUP(G58,INDEXTBL!$C$1:$N$1216,3,FALSE) -> 専門医療機関連携薬局の認定数 | I58: =IFERROR(TEXT(HLOOKUP(VLOOKUP($G58,INDEXTBL!$C$1:$N$1216,5,FALSE),DATA!$C$2:$CAP$14,8,FALSE)/DATA!$H$9*1000000,"0.0"),"NA") -> 0.7 | J58: =IFERROR(TEXT(HLOOKUP(VLOOKUP($G58,INDEXTBL!$C$1:$N$1216,5,FALSE),DATA!$C$2:$CAP$14,7,FALSE)/DATA!$H$8*1000000,"0.0"),"NA") -> 1.5 | K58: =IFERROR(TEXT(MAX(OFFSET(DATA!$A$1,14,MATCH(VLOOKUP($G58,INDEXTBL!$C$1:$N$1216,5,FALSE),DATA!$A$2:$CAP$2,0)-1,47,1)/DATA!$H$15:$H$61*1000000),"0.0") &" （"& L58 & "）","NA") -> 5.3 （石川県） | L58: =INDEX(DATA!$C$15:$C$61,MATCH(MAX(OFFSET(DATA!$A$1,14,MATCH(VLOOKUP($G58,INDEXTBL!$C$1:$N$1216,5,FALSE),DATA!$A$2:$CAP$2,0)-1,47,1)/DATA!$H$15:$H$61*1000000),OFFSET(DATA!$A$1,14,MATCH(VLOOKUP($G58,INDEXTBL!$C$1:$N$1216,5,FALSE),DATA!$A$2:$CAP$2,0)-1,47,1)/DATA!$H$15:$H$61*1000000,0)) -> 石川県 | M58: ＊＊
G59: 緩D-020311 | H59: =VLOOKUP(G59,INDEXTBL!$C$1:$N$1216,3,FALSE) -> 介護サービス事業所数 | I59: =IFERROR(TEXT(HLOOKUP(VLOOKUP($G59,INDEXTBL!$C$1:$N$1216,5,FALSE),DATA!$C$2:$CAP$14,8,FALSE)/DATA!$H$9*1000000,"0.0"),"NA") -> 4158.1 | J59: =IFERROR(TEXT(HLOOKUP(VLOOKUP($G59,INDEXTBL!$C$1:$N$1216,5,FALSE),DATA!$C$2:$CAP$14,7,FALSE)/DATA!$H$8*1000000,"0.0"),"NA") -> NA | K59: =IFERROR(HLOOKUP(VLOOKUP(#REF!,INDEXTBL!$C$1:$O$1216,4,FALSE),DATA!$C$2:$BAP$14,10,FALSE)/DATA!$H$11*100000,"NA") -> NA | L59: =INDEX(DATA!$C$15:$C$61,MATCH(MAX(OFFSET(DATA!$A$1,14,MATCH(VLOOKUP($G59,INDEXTBL!$C$1:$N$1216,5,FALSE),DATA!$A$2:$CAP$2,0)-1,47,1)/DATA!$H$15:$H$61*1000000),OFFSET(DATA!$A$1,14,MATCH(VLOOKUP($G59,INDEXTBL!$C$1:$N$1216,5,FALSE),DATA!$A$2:$CAP$2,0)-1,47,1)/DATA!$H$15:$H$61*1000000,0)) -> 北海道 | M59: ＊＊
G60: 緩D-020312 | H60: =VLOOKUP(G60,INDEXTBL!$C$1:$N$1216,3,FALSE) -> 訪問リハビリテーション事業所数 | I60: =IFERROR(TEXT(HLOOKUP(VLOOKUP($G60,INDEXTBL!$C$1:$N$1216,5,FALSE),DATA!$C$2:$CAP$14,8,FALSE)/DATA!$H$9*1000000,"0.0"),"NA") -> 28.6 | J60: =IFERROR(TEXT(HLOOKUP(VLOOKUP($G60,INDEXTBL!$C$1:$N$1216,5,FALSE),DATA!$C$2:$CAP$14,7,FALSE)/DATA!$H$8*1000000,"0.0"),"NA") -> 38.9 | K60: =IFERROR(TEXT(MAX(OFFSET(DATA!$A$1,14,MATCH(VLOOKUP($G60,INDEXTBL!$C$1:$N$1216,5,FALSE),DATA!$A$2:$CAP$2,0)-1,47,1)/DATA!$H$15:$H$61*1000000),"0.0") &" （"& L60 & "）","NA") -> 133.4 （徳島県） | L60: =INDEX(DATA!$C$15:$C$61,MATCH(MAX(OFFSET(DATA!$A$1,14,MATCH(VLOOKUP($G60,INDEXTBL!$C$1:$N$1216,5,FALSE),DATA!$A$2:$CAP$2,0)-1,47,1)/DATA!$H$15:$H$61*1000000),OFFSET(DATA!$A$1,14,MATCH(VLOOKUP($G60,INDEXTBL!$C$1:$N$1216,5,FALSE),DATA!$A$2:$CAP$2,0)-1,47,1)/DATA!$H$15:$H$61*1000000,0)) -> 徳島県 | M60: ＊＊
E61: 緩D-0204 | H61: =VLOOKUP(E61,INDEXTBL!$A$1:$N$1216,2,FALSE) -> 看取りができる介護施設の拡大を図る | I61: 沖縄県 | J61: 全国 | K61: 最良値 （都道府県）
G62: 緩D-020401 | H62: =VLOOKUP(G62,INDEXTBL!$C$1:$N$1216,3,FALSE) -> 看取りができる介護施設の数 | I62: =IFERROR(HLOOKUP(VLOOKUP($G62,INDEXTBL!$C$1:$N$1216,$C$3,FALSE),DATA!$C$2:$ASR$14,8,FALSE),"NA") -> NA | J62: =IFERROR(HLOOKUP(VLOOKUP($G62,INDEXTBL!$C$1:$N$1216,$C$3,FALSE),DATA!$C$2:$ASR$14,7,FALSE),"NA") -> NA | K62: =IFERROR(HLOOKUP(VLOOKUP($G62,INDEXTBL!$C$1:$N$1216,$C$3,FALSE),DATA!$C$2:$ASR$14,10,FALSE),"NA") -> NA
K63: ＊＊：人口100万人あたり
E64: ③リハビリテーション
E65: 緩D-0301 | H65: =VLOOKUP(E65,INDEXTBL!$A$1:$N$1216,2,FALSE) -> すべてのがん患者に対して、リハビリが必要かどうかの評価をする体制が整え、その結果を踏まえたリハビリを施行する | I65: 沖縄県 | J65: 全国 | K65: 最良値 （都道府県） | O65: 緩B-0301 | R65: =VLOOKUP(O65,INDEXTBL!$A$1:$N$1216,2,FALSE) -> [施設」では、必要な全ての患者に、適切なリハビリテーションができている | S65: 沖縄県 | T65: 全国 | U65: 最良値 （都道府県）
G66: 緩D-030101 | H66: =VLOOKUP(G66,INDEXTBL!$C$1:$N$1216,3,FALSE) -> がん患者リハビリテーション料に関する施設基準を満たした「施設」の割合（％） | I66: =IFERROR(HLOOKUP(VLOOKUP($G66,INDEXTBL!$C$1:$N$1216,$C$3,FALSE),DATA!$C$2:$ASR$14,8,FALSE),"NA") -> NA | J66: =IFERROR(HLOOKUP(VLOOKUP($G66,INDEXTBL!$C$1:$N$1216,$C$3,FALSE),DATA!$C$2:$ASR$14,7,FALSE),"NA") -> NA | K66: =IFERROR(HLOOKUP(VLOOKUP($G66,INDEXTBL!$C$1:$N$1216,$C$3,FALSE),DATA!$C$2:$ASR$14,10,FALSE),"NA") -> NA | Q66: 緩B-030101 | R66: =VLOOKUP(Q66,INDEXTBL!$C$1:$N$1216,3,FALSE) -> 拠点病院等に通院・入院中のがん患者でリハビリテーションを受けた患者の割合（％） | S66: =IFERROR(HLOOKUP(VLOOKUP($Q66,INDEXTBL!$C$1:$N$1216,$C$3,FALSE),DATA!$C$2:$ASR$14,8,FALSE),"NA") -> NA | T66: =IFERROR(HLOOKUP(VLOOKUP($Q66,INDEXTBL!$C$1:$N$1216,$C$3,FALSE),DATA!$C$2:$ASR$14,7,FALSE),"NA") -> NA | U66: =IFERROR(HLOOKUP(VLOOKUP($Q66,INDEXTBL!$C$1:$N$1216,$C$3,FALSE),DATA!$C$2:$ASR$14,10,FALSE),"NA") -> NA
Q67: 緩B-030102 | R67: =VLOOKUP(Q67,INDEXTBL!$C$1:$N$1216,3,FALSE) -> （NDB-SCR）がん患者リハビリテーション料 | S67: =IFERROR(TEXT(HLOOKUP(VLOOKUP($Q67,INDEXTBL!$C$1:$N$1216,10,FALSE),DATA!$C$2:$AXB$14,8,FALSE),"0.0"),"NA") -> 125.5 | T67: =IFERROR(TEXT(HLOOKUP(VLOOKUP($Q67,INDEXTBL!$C$1:$N$1216,10,FALSE),DATA!$C$2:$AXB$14,7,FALSE),"0.0"),"NA") -> 100.0 | U67: =IFERROR(TEXT(_xlfn.AGGREGATE(4,7,OFFSET(DATA!$A$1,14,MATCH(VLOOKUP($Q67,INDEXTBL!$C$1:$N$1216,10,FALSE),DATA!$A$2:$AXB$2,0)-1,47,1)),"0.0") &" （"& V67 & "）","NA") -> 187.1 （福井県） | V67: =INDEX(DATA!$C$15:$C$61,MATCH(_xlfn.AGGREGATE(4,7,OFFSET(DATA!$A$1,14,MATCH(VLOOKUP($Q67,INDEXTBL!$C$1:$N$1216,10,FALSE),DATA!$A$2:$AXB$2,0)-1,47,1)),OFFSET(DATA!$A$1,14,MATCH(VLOOKUP($Q67,INDEXTBL!$C$1:$N$1216,10,FALSE),DATA!$A$2:$AXB$2,0)-1,47,1),0)) -> 福井県
Q68: 緩B-030103 | R68: =VLOOKUP(Q68,INDEXTBL!$C$1:$N$1216,3,FALSE) -> （医療者調査）リハビリテーションを行った患者の割合が75%以上であると回答した人の割合（％） | S68: =IFERROR(TEXT(HLOOKUP(VLOOKUP($Q68,INDEXTBL!$C$1:$O$1216,13,FALSE),DATA!$C$2:$BAP$14,8,FALSE)*100,"0.0")&"%","NA") -> 57.6% | T68: =IFERROR(TEXT(HLOOKUP(VLOOKUP($Q68,INDEXTBL!$C$1:$O$1216,13,FALSE),DATA!$C$2:$BAP$14,7,FALSE)*100,"0.0")&"%","NA") -> NA | U68: =IFERROR(TEXT(_xlfn.AGGREGATE(4,7,OFFSET(DATA!$A$1,14,MATCH(VLOOKUP($Q68,INDEXTBL!$C$1:$O$1216,13,FALSE),DATA!$A$2:$BAP$2,0)-1,47,1)),"0.0") &" （"& V68 & "）","NA") -> NA | V68: =INDEX(DATA!$C$15:$C$61,MATCH(_xlfn.AGGREGATE(4,7,OFFSET(DATA!$A$1,14,MATCH(VLOOKUP($Q68,INDEXTBL!$C$1:$O$1216,13,FALSE),DATA!$A$2:$BAP$2,0)-1,47,1)),OFFSET(DATA!$A$1,14,MATCH(VLOOKUP($Q68,INDEXTBL!$C$1:$O$1216,13,FALSE),DATA!$A$2:$BAP$2,0)-1,47,1),0)) -> 
E69: ④支持療法
E70: 緩D-0401 | H70: =VLOOKUP(E70,INDEXTBL!$A$1:$N$1216,2,FALSE) -> 患者が、治療に伴う副作用・合併症・後遺症への見通しを持ち、身体的苦痛や外見の変化等があった際に容易に相談できる環境を整備する | I70: 沖縄県 | J70: 全国 | K70: 最良値 （都道府県） | O70: 緩B-0401 | R70: =VLOOKUP(O70,INDEXTBL!$A$1:$N$1216,2,FALSE) -> [施設」では、各種ガイドラインに基づく十分な支持療法が行われている | S70: 沖縄県 | T70: 全国 | U70: 最良値 （都道府県）
G71: 緩D-040101 | H71: =VLOOKUP(G71,INDEXTBL!$C$1:$N$1216,3,FALSE) -> リンパ浮腫研修の受講者数（人） | I71: =IFERROR(HLOOKUP(VLOOKUP($G71,INDEXTBL!$C$1:$N$1216,$C$3,FALSE),DATA!$C$2:$ASR$14,8,FALSE),"NA") -> NA | J71: =IFERROR(HLOOKUP(VLOOKUP($G71,INDEXTBL!$C$1:$N$1216,$C$3,FALSE),DATA!$C$2:$ASR$14,7,FALSE),"NA") -> NA | K71: =IFERROR(HLOOKUP(VLOOKUP($G71,INDEXTBL!$C$1:$N$1216,$C$3,FALSE),DATA!$C$2:$ASR$14,10,FALSE),"NA") -> NA | Q71: 緩B-040101 | R71: =VLOOKUP(Q71,INDEXTBL!$C$1:$N$1216,3,FALSE) -> （患者体験調査）治療による副作用の予測などに関し見通しを持てた患者の割合（％） | S71: =IFERROR(TEXT(HLOOKUP(VLOOKUP($Q71,INDEXTBL!$C$1:$N$1216,11,FALSE),DATA!$C$2:$AXB$14,8,FALSE),"0.0")&"%","NA") -> 70.5% | T71: =IFERROR(TEXT(HLOOKUP(VLOOKUP($Q71,INDEXTBL!$C$1:$N$1216,11,FALSE),DATA!$C$2:$AXB$14,7,FALSE),"0.0")&"%","NA") -> 63.0% | U71: =IFERROR(TEXT(_xlfn.AGGREGATE(4,7,OFFSET(DATA!$A$1,14,MATCH(VLOOKUP($Q71,INDEXTBL!$C$1:$N$1216,11,FALSE),DATA!$A$2:$AXB$2,0)-1,47,1)),"0.0")&"%" &" （"& V71 & "）","NA") -> 70.8% （大分県） | V71: =INDEX(DATA!$C$15:$C$61,MATCH(_xlfn.AGGREGATE(4,7,OFFSET(DATA!$A$1,14,MATCH(VLOOKUP($Q71,INDEXTBL!$C$1:$N$1216,11,FALSE),DATA!$A$2:$AXB$2,0)-1,47,1)),OFFSET(DATA!$A$1,14,MATCH(VLOOKUP($Q71,INDEXTBL!$C$1:$N$1216,11,FALSE),DATA!$A$2:$AXB$2,0)-1,47,1),0)) -> 大分県
G72: 緩D-040102 | H72: =VLOOKUP(G72,INDEXTBL!$C$1:$N$1216,3,FALSE) -> リンパ浮腫外来が設置されている「施設」の割合（％） | I72: =IFERROR(HLOOKUP(VLOOKUP($G72,INDEXTBL!$C$1:$N$1216,$C$3,FALSE),DATA!$C$2:$ASR$14,8,FALSE),"NA") -> NA | J72: =IFERROR(HLOOKUP(VLOOKUP($G72,INDEXTBL!$C$1:$N$1216,$C$3,FALSE),DATA!$C$2:$ASR$14,7,FALSE),"NA") -> NA | K72: =IFERROR(HLOOKUP(VLOOKUP($G72,INDEXTBL!$C$1:$N$1216,$C$3,FALSE),DATA!$C$2:$ASR$14,10,FALSE),"NA") -> NA | Q72: 緩B-040102 | R72: =VLOOKUP(Q72,INDEXTBL!$C$1:$N$1216,3,FALSE) -> 拠点病院において支持療法に関する標準診療を実施された患者の割合（％） | S72: =IFERROR(HLOOKUP(VLOOKUP($Q72,INDEXTBL!$C$1:$N$1216,$C$3,FALSE),DATA!$C$2:$ASR$14,8,FALSE),"NA") -> NA | T72: =IFERROR(HLOOKUP(VLOOKUP($Q72,INDEXTBL!$C$1:$N$1216,$C$3,FALSE),DATA!$C$2:$ASR$14,7,FALSE),"NA") -> NA | U72: =IFERROR(HLOOKUP(VLOOKUP($Q72,INDEXTBL!$C$1:$N$1216,$C$3,FALSE),DATA!$C$2:$ASR$14,10,FALSE),"NA") -> NA
G73: 緩D-040103 | H73: =VLOOKUP(G73,INDEXTBL!$C$1:$N$1216,3,FALSE) -> ストーマ外来が設置されている「施設」の割合（％） | I73: =IFERROR(HLOOKUP(VLOOKUP($G73,INDEXTBL!$C$1:$N$1216,$C$3,FALSE),DATA!$C$2:$ASR$14,8,FALSE),"NA") -> NA | J73: =IFERROR(HLOOKUP(VLOOKUP($G73,INDEXTBL!$C$1:$N$1216,$C$3,FALSE),DATA!$C$2:$ASR$14,7,FALSE),"NA") -> NA | K73: =IFERROR(HLOOKUP(VLOOKUP($G73,INDEXTBL!$C$1:$N$1216,$C$3,FALSE),DATA!$C$2:$ASR$14,10,FALSE),"NA") -> NA | Q73: 緩B-040103 | R73: =VLOOKUP(Q73,INDEXTBL!$C$1:$N$1216,3,FALSE) -> （NDB-SCR）リンパ浮腫複合的治療料（重症） | S73: =IFERROR(TEXT(HLOOKUP(VLOOKUP($Q73,INDEXTBL!$C$1:$N$1216,10,FALSE),DATA!$C$2:$AXB$14,8,FALSE),"0.0"),"NA") -> NA | T73: =IFERROR(TEXT(HLOOKUP(VLOOKUP($Q73,INDEXTBL!$C$1:$N$1216,10,FALSE),DATA!$C$2:$AXB$14,7,FALSE),"0.0"),"NA") -> 100.0 | U73: =IFERROR(TEXT(_xlfn.AGGREGATE(4,7,OFFSET(DATA!$A$1,14,MATCH(VLOOKUP($Q73,INDEXTBL!$C$1:$N$1216,10,FALSE),DATA!$A$2:$AXB$2,0)-1,47,1)),"0.0") &" （"& V73 & "）","NA") -> 459.0 （岩手県） | V73: =INDEX(DATA!$C$15:$C$61,MATCH(_xlfn.AGGREGATE(4,7,OFFSET(DATA!$A$1,14,MATCH(VLOOKUP($Q73,INDEXTBL!$C$1:$N$1216,10,FALSE),DATA!$A$2:$AXB$2,0)-1,47,1)),OFFSET(DATA!$A$1,14,MATCH(VLOOKUP($Q73,INDEXTBL!$C$1:$N$1216,10,FALSE),DATA!$A$2:$AXB$2,0)-1,47,1),0)) -> 岩手県
E74: 緩D-0402 | H74: =VLOOKUP(E74,INDEXTBL!$A$1:$N$1216,2,FALSE) -> [施設」では、各種ガイドラインに基づく支持療法を、組織的に行う体制を整備する | I74: 沖縄県 | J74: 全国 | K74: 最良値 （都道府県） | Q74: 緩B-040104 | R74: =VLOOKUP(Q74,INDEXTBL!$C$1:$N$1216,3,FALSE) -> （NDB-SCR）リンパ浮腫指導管理料 入院+外来 | S74: =IFERROR(TEXT(HLOOKUP(VLOOKUP($Q74,INDEXTBL!$C$1:$N$1216,10,FALSE),DATA!$C$2:$AXB$14,8,FALSE),"0.0"),"NA") -> 69.4 | T74: =IFERROR(TEXT(HLOOKUP(VLOOKUP($Q74,INDEXTBL!$C$1:$N$1216,10,FALSE),DATA!$C$2:$AXB$14,7,FALSE),"0.0"),"NA") -> 100.0 | U74: =IFERROR(TEXT(_xlfn.AGGREGATE(4,7,OFFSET(DATA!$A$1,14,MATCH(VLOOKUP($Q74,INDEXTBL!$C$1:$N$1216,10,FALSE),DATA!$A$2:$AXB$2,0)-1,47,1)),"0.0") &" （"& V74 & "）","NA") -> 138.6 （鹿児島県） | V74: =INDEX(DATA!$C$15:$C$61,MATCH(_xlfn.AGGREGATE(4,7,OFFSET(DATA!$A$1,14,MATCH(VLOOKUP($Q74,INDEXTBL!$C$1:$N$1216,10,FALSE),DATA!$A$2:$AXB$2,0)-1,47,1)),OFFSET(DATA!$A$1,14,MATCH(VLOOKUP($Q74,INDEXTBL!$C$1:$N$1216,10,FALSE),DATA!$A$2:$AXB$2,0)-1,47,1),0)) -> 鹿児島県
G75: 緩D-040201 | H75: =VLOOKUP(G75,INDEXTBL!$C$1:$N$1216,3,FALSE) -> 制吐薬適正使用ガイドラインに基づく院内マニュアルを作成し、レジメンの登録が行われている「施設」の割合（％） | I75: =IFERROR(HLOOKUP(VLOOKUP($G75,INDEXTBL!$C$1:$N$1216,$C$3,FALSE),DATA!$C$2:$ASR$14,8,FALSE),"NA") -> NA | J75: =IFERROR(HLOOKUP(VLOOKUP($G75,INDEXTBL!$C$1:$N$1216,$C$3,FALSE),DATA!$C$2:$ASR$14,7,FALSE),"NA") -> NA | K75: =IFERROR(HLOOKUP(VLOOKUP($G75,INDEXTBL!$C$1:$N$1216,$C$3,FALSE),DATA!$C$2:$ASR$14,10,FALSE),"NA") -> NA | Q75: 緩B-040105 | R75: =VLOOKUP(Q75,INDEXTBL!$C$1:$N$1216,3,FALSE) -> （医療者調査）薬物療法の開始前に、副作用の出る時期の説明も含めて、十分な説明を行った患者の割合が75%以上であると回答した人の割合（％） | S75: =IFERROR(TEXT(HLOOKUP(VLOOKUP($Q75,INDEXTBL!$C$1:$O$1216,13,FALSE),DATA!$C$2:$BAP$14,8,FALSE)*100,"0.0")&"%","NA") -> 79.9% | T75: =IFERROR(TEXT(HLOOKUP(VLOOKUP($Q75,INDEXTBL!$C$1:$O$1216,13,FALSE),DATA!$C$2:$BAP$14,7,FALSE)*100,"0.0")&"%","NA") -> NA | U75: =IFERROR(TEXT(_xlfn.AGGREGATE(4,7,OFFSET(DATA!$A$1,14,MATCH(VLOOKUP($Q75,INDEXTBL!$C$1:$O$1216,13,FALSE),DATA!$A$2:$BAP$2,0)-1,47,1)),"0.0") &" （"& V75 & "）","NA") -> NA | V75: =INDEX(DATA!$C$15:$C$61,MATCH(_xlfn.AGGREGATE(4,7,OFFSET(DATA!$A$1,14,MATCH(VLOOKUP($Q75,INDEXTBL!$C$1:$O$1216,13,FALSE),DATA!$A$2:$BAP$2,0)-1,47,1)),OFFSET(DATA!$A$1,14,MATCH(VLOOKUP($Q75,INDEXTBL!$C$1:$O$1216,13,FALSE),DATA!$A$2:$BAP$2,0)-1,47,1),0)) -> 
E77: ⑤妊孕性温存療法
E78: 緩D-0501 | H78: =VLOOKUP(E78,INDEXTBL!$A$1:$N$1216,2,FALSE) -> がん患者・家族が、生殖機能への影響についての情報提供を十分に行う | I78: 沖縄県 | J78: 全国 | K78: 最良値 （都道府県） | O78: 緩B-0501 | R78: =VLOOKUP(O78,INDEXTBL!$A$1:$N$1216,2,FALSE) -> 妊孕性温存療法及びがん治療後の生殖補助医療が十分に行われている | S78: 沖縄県 | T78: 全国 | U78: 最良値 （都道府県）
G79: 緩D-050101 | H79: =VLOOKUP(G79,INDEXTBL!$C$1:$N$1216,3,FALSE) -> 相談支援センターにおける「妊孕性・生殖機能」に関する相談件数 | I79: =IFERROR(HLOOKUP(VLOOKUP($G79,INDEXTBL!$C$1:$N$1216,5,FALSE),DATA!$C$2:$CAP$14,8,FALSE),"NA") -> 6 | J79: =IFERROR(HLOOKUP(VLOOKUP($G79,INDEXTBL!$C$1:$N$1216,$C$3,FALSE),DATA!$C$2:$ASR$14,7,FALSE),"NA") -> NA | K79: =IFERROR(HLOOKUP(VLOOKUP($G79,INDEXTBL!$C$1:$N$1216,$C$3,FALSE),DATA!$C$2:$ASR$14,10,FALSE),"NA") -> NA | Q79: 緩B-050101 | R79: =IF($C$2="乳","-",VLOOKUP(Q79,INDEXTBL!$C$1:$N$1216,3,FALSE)) -> がん・生殖医療にて出産した子供の数（人） | S79: =IFERROR(HLOOKUP(VLOOKUP($Q79,INDEXTBL!$C$1:$N$1216,$C$3,FALSE),DATA!$C$2:$ASR$14,8,FALSE),"NA") -> NA | T79: =IFERROR(HLOOKUP(VLOOKUP($Q79,INDEXTBL!$C$1:$N$1216,$C$3,FALSE),DATA!$C$2:$ASR$14,7,FALSE),"NA") -> NA | U79: =IFERROR(HLOOKUP(VLOOKUP($Q79,INDEXTBL!$C$1:$N$1216,$C$3,FALSE),DATA!$C$2:$ASR$14,10,FALSE),"NA") -> NA
E80: 緩D-0502 | H80: =VLOOKUP(E80,INDEXTBL!$A$1:$N$1216,2,FALSE) -> 妊孕性温存療法に関する体制を整備する | I80: 沖縄県 | J80: 全国 | K80: 最良値 （都道府県） | Q80: 緩B-050102 | R80: =VLOOKUP(Q80,INDEXTBL!$C$1:$N$1216,3,FALSE) -> （患者体験調査）治療開始前に、生殖機能への影響に関する説明を受けたがん患者・家族の割合（％） | S80: =IFERROR(TEXT(HLOOKUP(VLOOKUP($Q80,INDEXTBL!$C$1:$N$1216,11,FALSE),DATA!$C$2:$AXB$14,8,FALSE),"0.0")&"%","NA") -> NA | T80: =IFERROR(TEXT(HLOOKUP(VLOOKUP($Q80,INDEXTBL!$C$1:$N$1216,11,FALSE),DATA!$C$2:$AXB$14,7,FALSE),"0.0")&"%","NA") -> NA | U80: =IFERROR(TEXT(_xlfn.AGGREGATE(4,7,OFFSET(DATA!$A$1,14,MATCH(VLOOKUP($Q80,INDEXTBL!$C$1:$N$1216,11,FALSE),DATA!$A$2:$AXB$2,0)-1,47,1)),"0.0")&"%" &" （"& V80 & "）","NA") -> NA | V80: =INDEX(DATA!$C$15:$C$61,MATCH(_xlfn.AGGREGATE(4,7,OFFSET(DATA!$A$1,14,MATCH(VLOOKUP($Q80,INDEXTBL!$C$1:$N$1216,11,FALSE),DATA!$A$2:$AXB$2,0)-1,47,1)),OFFSET(DATA!$A$1,14,MATCH(VLOOKUP($Q80,INDEXTBL!$C$1:$N$1216,11,FALSE),DATA!$A$2:$AXB$2,0)-1,47,1),0)) -> 
G81: 緩D-050201 | H81: =VLOOKUP(G81,INDEXTBL!$C$1:$N$1216,3,FALSE) -> 日本がん・生殖医療登録システム JOFRへの登録症例数 | I81: =IFERROR(HLOOKUP(VLOOKUP($G81,INDEXTBL!$C$1:$N$1216,$C$3,FALSE),DATA!$C$2:$ASR$14,8,FALSE),"NA") -> NA | J81: =IFERROR(HLOOKUP(VLOOKUP($G81,INDEXTBL!$C$1:$N$1216,$C$3,FALSE),DATA!$C$2:$ASR$14,7,FALSE),"NA") -> NA | K81: =IFERROR(HLOOKUP(VLOOKUP($G81,INDEXTBL!$C$1:$N$1216,$C$3,FALSE),DATA!$C$2:$ASR$14,10,FALSE),"NA") -> NA | Q81: 緩B-050103 | R81: =VLOOKUP(Q81,INDEXTBL!$C$1:$N$1216,3,FALSE) -> （医療者調査）妊孕性温存療法が必要な患者のうち、実際に妊孕性温存療法の説明を行った患者の割合が75%以上であると回答した人の割合（％）（医師と看護師のみ） | S81: =IFERROR(TEXT(HLOOKUP(VLOOKUP($Q81,INDEXTBL!$C$1:$O$1216,13,FALSE),DATA!$C$2:$BAP$14,8,FALSE)*100,"0.0")&"%","NA") -> 49.2% | T81: =IFERROR(TEXT(HLOOKUP(VLOOKUP($Q81,INDEXTBL!$C$1:$O$1216,13,FALSE),DATA!$C$2:$BAP$14,7,FALSE)*100,"0.0")&"%","NA") -> NA | U81: =IFERROR(TEXT(_xlfn.AGGREGATE(4,7,OFFSET(DATA!$A$1,14,MATCH(VLOOKUP($Q81,INDEXTBL!$C$1:$O$1216,13,FALSE),DATA!$A$2:$BAP$2,0)-1,47,1)),"0.0") &" （"& V81 & "）","NA") -> NA | V81: =INDEX(DATA!$C$15:$C$61,MATCH(_xlfn.AGGREGATE(4,7,OFFSET(DATA!$A$1,14,MATCH(VLOOKUP($Q81,INDEXTBL!$C$1:$O$1216,13,FALSE),DATA!$A$2:$BAP$2,0)-1,47,1)),OFFSET(DATA!$A$1,14,MATCH(VLOOKUP($Q81,INDEXTBL!$C$1:$O$1216,13,FALSE),DATA!$A$2:$BAP$2,0)-1,47,1),0)) -> 
E82: 緩D-0503 | H82: =VLOOKUP(E82,INDEXTBL!$A$1:$N$1216,2,FALSE) -> がん治療後の生殖医療に関する体制を整備する | I82: 沖縄県 | J82: 全国 | K82: 最良値 （都道府県）
G83: 緩D-050301 | H83: =VLOOKUP(G83,INDEXTBL!$C$1:$N$1216,3,FALSE) -> がん治療後の生殖医療のために琉球大学病院に紹介されたがん患者数（人） | I83: =IFERROR(HLOOKUP(VLOOKUP($G83,INDEXTBL!$C$1:$N$1216,$C$3,FALSE),DATA!$C$2:$ASR$14,8,FALSE),"NA") -> NA | J83: =IFERROR(HLOOKUP(VLOOKUP($G83,INDEXTBL!$C$1:$N$1216,$C$3,FALSE),DATA!$C$2:$ASR$14,7,FALSE),"NA") -> NA | K83: =IFERROR(HLOOKUP(VLOOKUP($G83,INDEXTBL!$C$1:$N$1216,$C$3,FALSE),DATA!$C$2:$ASR$14,10,FALSE),"NA") -> NA

Sheet 個別のがん対策 (hidden)
B2: 肺がん | C2: =IF(ISBLANK($B$2),"",SUBSTITUTE($B$2,"がん","")) -> 肺 | E2: 番号 | G2: 個別施策 | O2: 番号 | Q2: 中間アウトカム | Y2: 番号 | AA2: 分野アウトカム
C3: =IF($C$2="大腸",6,IF($C$2="肺",7,IF($C$2="胃",8,IF($C$2="乳",9,"")))) -> 7
E4: ①希少がん
E5: 個D-0101 | H5: =VLOOKUP(E5,INDEXTBL!$A$1:$O$1216,2,FALSE) -> 希少がん患者及びその家族に対して、十分な情報を提供する | I5: 沖縄県 | J5: 全国 | K5: 最良値 （都道府県） | O5: 個B-0101 | R5: =VLOOKUP(O5,INDEXTBL!$A$1:$O$1216,2,FALSE) -> 希少がん患者の生存率の改善ができている | S5: 沖縄県 | T5: 全国 | U5: 最良値 （都道府県） | Y5: 個A-0101 | AB5: =VLOOKUP(Y5,INDEXTBL!$A$1:$O$1216,2,FALSE) -> がんの種類、年代、住んでいる地域に拘わらず、がん診療の質の向上ができている | AC5: 沖縄県 | AD5: 全国 | AE5: 最良値 （都道府県）
G6: 個D-010101 | H6: =VLOOKUP(G6,INDEXTBL!$C$1:$O$1216,3,FALSE) -> 希少がんに関するHP等の整備を行っている「施設」の割合（％） | I6: =IFERROR(HLOOKUP(VLOOKUP($G6,INDEXTBL!$C$1:$O$1216,$C$3,FALSE),DATA!$C$2:$CAP$14,8,FALSE),"NA") -> NA | J6: =IFERROR(HLOOKUP(VLOOKUP($G6,INDEXTBL!$C$1:$O$1216,$C$3,FALSE),DATA!$C$2:$CAP$14,7,FALSE),"NA") -> NA | K6: =IFERROR(HLOOKUP(VLOOKUP($G6,INDEXTBL!$C$1:$O$1216,$C$3,FALSE),DATA!$C$2:$CAP$14,10,FALSE),"NA") -> NA | Q6: 個B-010101 | R6: =VLOOKUP(Q6,INDEXTBL!$C$1:$O$1216,3,FALSE) -> （患者体験調査）初診から診断までの時間が１か月未満の希少がん患者の割合（%） | S6: =IFERROR(TEXT(HLOOKUP(VLOOKUP($Q6,INDEXTBL!$C$1:$O$1216,11,FALSE),DATA!$C$2:$CAP$14,8,FALSE)*100,"0.0")&"%","NA") -> NA | T6: =IFERROR(TEXT(HLOOKUP(VLOOKUP($Q6,INDEXTBL!$C$1:$O$1216,11,FALSE),DATA!$C$2:$CAP$14,7,FALSE)*100,"0.0")&"%","NA") -> 61.4% | U6: =IFERROR(TEXT(_xlfn.AGGREGATE(4,7,OFFSET(DATA!$A$1,14,MATCH(VLOOKUP($Q6,INDEXTBL!$C$1:$O$1216,11,FALSE),DATA!$A$2:$CAP$2,0)-1,47,1)),"0.0")&"%" &" （"& V6 & "）","NA") -> NA | V6: =INDEX(DATA!$C$15:$C$61,MATCH(_xlfn.AGGREGATE(4,7,OFFSET(DATA!$A$1,14,MATCH(VLOOKUP($Q6,INDEXTBL!$C$1:$O$1216,11,FALSE),DATA!$A$2:$CAP$2,0)-1,47,1)),OFFSET(DATA!$A$1,14,MATCH(VLOOKUP($Q6,INDEXTBL!$C$1:$O$1216,11,FALSE),DATA!$A$2:$CAP$2,0)-1,47,1),0)) ->  | AA6: 個A-010101 | AB6: =VLOOKUP(AA6,INDEXTBL!$C$1:$O$1216,3,FALSE) -> 希少がんの5年生存率 | AC6: =IFERROR(TEXT(HLOOKUP(VLOOKUP($AA6,INDEXTBL!$C$1:$O$1216,5,FALSE),DATA!$C$2:$CAP$14,8,FALSE)*100,"0.0")&"%","NA") -> 58.9% | AD6: =IFERROR(TEXT(HLOOKUP(VLOOKUP($AA6,INDEXTBL!$C$1:$O$1216,11,FALSE),DATA!$C$2:$CAP$14,7,FALSE)*100,"0.0")&"%","NA") -> NA | AE6: =IFERROR(TEXT(_xlfn.AGGREGATE(4,7,OFFSET(DATA!$A$1,14,MATCH(VLOOKUP($AA6,INDEXTBL!$C$1:$O$1216,11,FALSE),DATA!$A$2:$CAP$2,0)-1,47,1)),"0.0")&"%" &" （"& AF6 & "）","NA") -> NA | AF6: =INDEX(DATA!$C$15:$C$61,MATCH(_xlfn.AGGREGATE(4,7,OFFSET(DATA!$A$1,14,MATCH(VLOOKUP($AA6,INDEXTBL!$C$1:$O$1216,11,FALSE),DATA!$A$2:$CAP$2,0)-1,47,1)),OFFSET(DATA!$A$1,14,MATCH(VLOOKUP($AA6,INDEXTBL!$C$1:$O$1216,11,FALSE),DATA!$A$2:$CAP$2,0)-1,47,1),0)) -> 
E7: 個D-0102 | H7: =VLOOKUP(E7,INDEXTBL!$A$1:$O$1216,2,FALSE) -> 希少がん患者及びその家族に対して、十分な相談支援を提供する | I7: 沖縄県 | J7: 全国 | K7: 最良値 （都道府県） | Q7: 個B-010102 | R7: =VLOOKUP(Q7,INDEXTBL!$C$1:$O$1216,3,FALSE) -> （患者体験調査）確定診断から治療開始までの時間が1か月未満の希少がん患者の割合（%） | S7: =IFERROR(TEXT(HLOOKUP(VLOOKUP($Q7,INDEXTBL!$C$1:$O$1216,11,FALSE),DATA!$C$2:$CAP$14,8,FALSE)*100,"0.0")&"%","NA") -> NA | T7: =IFERROR(TEXT(HLOOKUP(VLOOKUP($Q7,INDEXTBL!$C$1:$O$1216,11,FALSE),DATA!$C$2:$CAP$14,7,FALSE)*100,"0.0")&"%","NA") -> 62.4% | U7: =IFERROR(TEXT(_xlfn.AGGREGATE(4,7,OFFSET(DATA!$A$1,14,MATCH(VLOOKUP($Q7,INDEXTBL!$C$1:$O$1216,11,FALSE),DATA!$A$2:$CAP$2,0)-1,47,1)),"0.0")&"%" &" （"& V7 & "）","NA") -> NA | V7: =INDEX(DATA!$C$15:$C$61,MATCH(_xlfn.AGGREGATE(4,7,OFFSET(DATA!$A$1,14,MATCH(VLOOKUP($Q7,INDEXTBL!$C$1:$O$1216,11,FALSE),DATA!$A$2:$CAP$2,0)-1,47,1)),OFFSET(DATA!$A$1,14,MATCH(VLOOKUP($Q7,INDEXTBL!$C$1:$O$1216,11,FALSE),DATA!$A$2:$CAP$2,0)-1,47,1),0)) ->  | Y7: 個A-0102 | AB7: =VLOOKUP(Y7,INDEXTBL!$A$1:$O$1216,2,FALSE) -> がんの種類、年代、住んでいる地域に拘わらず、全てのがん患者及びその家族の苦痛の軽減並びに療養生活の質の維持向上ができている | AC7: 沖縄県 | AD7: 全国 | AE7: 最良値 （都道府県）
G8: 個D-010201 | H8: =VLOOKUP(G8,INDEXTBL!$C$1:$O$1216,3,FALSE) -> がん相談支援センターに相談した希少がん患者数（人） | I8: =IFERROR(HLOOKUP(VLOOKUP($G8,INDEXTBL!$C$1:$O$1216,$C$3,FALSE),DATA!$C$2:$CAP$14,8,FALSE),"NA") -> NA | J8: =IFERROR(HLOOKUP(VLOOKUP($G8,INDEXTBL!$C$1:$O$1216,$C$3,FALSE),DATA!$C$2:$CAP$14,7,FALSE),"NA") -> NA | K8: =IFERROR(HLOOKUP(VLOOKUP($G8,INDEXTBL!$C$1:$O$1216,$C$3,FALSE),DATA!$C$2:$CAP$14,10,FALSE),"NA") -> NA | O8: 個B-0102 | R8: =VLOOKUP(O8,INDEXTBL!$A$1:$O$1216,2,FALSE) -> 希少がん患者及びその家族の苦痛の軽減並びに療養生活の質の維持向上ができている | S8: 沖縄県 | T8: 全国 | U8: 最良値 （都道府県） | AA8: 個A-010201 | AB8: =VLOOKUP(AA8,INDEXTBL!$C$1:$O$1216,3,FALSE) -> 難治性がん（代表例：膵がん）の5年生存率 | AC8: =IFERROR(TEXT(HLOOKUP(VLOOKUP($AA8,INDEXTBL!$C$1:$O$1216,5,FALSE),DATA!$C$2:$CAP$14,8,FALSE)*100,"0.0")&"%","NA") -> 13.9% | AD8: =IFERROR(TEXT(HLOOKUP(VLOOKUP($AA8,INDEXTBL!$C$1:$O$1216,11,FALSE),DATA!$C$2:$CAP$14,7,FALSE)*100,"0.0")&"%","NA") -> NA | AE8: =IFERROR(TEXT(_xlfn.AGGREGATE(4,7,OFFSET(DATA!$A$1,14,MATCH(VLOOKUP($AA8,INDEXTBL!$C$1:$O$1216,11,FALSE),DATA!$A$2:$CAP$2,0)-1,47,1)),"0.0")&"%" &" （"& AF8 & "）","NA") -> NA | AF8: =INDEX(DATA!$C$15:$C$61,MATCH(_xlfn.AGGREGATE(4,7,OFFSET(DATA!$A$1,14,MATCH(VLOOKUP($AA8,INDEXTBL!$C$1:$O$1216,11,FALSE),DATA!$A$2:$CAP$2,0)-1,47,1)),OFFSET(DATA!$A$1,14,MATCH(VLOOKUP($AA8,INDEXTBL!$C$1:$O$1216,11,FALSE),DATA!$A$2:$CAP$2,0)-1,47,1),0)) -> 
E9: 個D-0103 | H9: =VLOOKUP(E9,INDEXTBL!$A$1:$O$1216,2,FALSE) -> 希少がん患者を、速やかに琉球大学病院または県立中部病院に紹介する | I9: 沖縄県 | J9: 全国 | K9: 最良値 （都道府県） | Q9: 個B-010201 | R9: =IF($C$2="乳","-",VLOOKUP(Q9,INDEXTBL!$C$1:$O$1216,3,FALSE)) -> （患者体験調査）治療スケジュールの見通しに関する情報を十分得ることができた希少がん患者の割合（％） | S9: =IFERROR(TEXT(HLOOKUP(VLOOKUP($Q9,INDEXTBL!$C$1:$O$1216,11,FALSE),DATA!$C$2:$CAP$14,8,FALSE)*100,"0.0")&"%","NA") -> NA | T9: =IFERROR(TEXT(HLOOKUP(VLOOKUP($Q9,INDEXTBL!$C$1:$O$1216,11,FALSE),DATA!$C$2:$CAP$14,7,FALSE)*100,"0.0")&"%","NA") -> 92.3% | U9: =IFERROR(TEXT(_xlfn.AGGREGATE(4,7,OFFSET(DATA!$A$1,14,MATCH(VLOOKUP($Q9,INDEXTBL!$C$1:$O$1216,11,FALSE),DATA!$A$2:$CAP$2,0)-1,47,1)),"0.0")&"%" &" （"& V9 & "）","NA") -> NA | V9: =INDEX(DATA!$C$15:$C$61,MATCH(_xlfn.AGGREGATE(4,7,OFFSET(DATA!$A$1,14,MATCH(VLOOKUP($Q9,INDEXTBL!$C$1:$O$1216,11,FALSE),DATA!$A$2:$CAP$2,0)-1,47,1)),OFFSET(DATA!$A$1,14,MATCH(VLOOKUP($Q9,INDEXTBL!$C$1:$O$1216,11,FALSE),DATA!$A$2:$CAP$2,0)-1,47,1),0)) ->  | AA9: 個A-010202 | AB9: =VLOOKUP(AA9,INDEXTBL!$C$1:$O$1216,3,FALSE) -> 小児がん患者の5年生存率 | AC9: =IFERROR(HLOOKUP(VLOOKUP($AA9,INDEXTBL!$C$1:$O$1216,$C$3,FALSE),DATA!$C$2:$CAP$14,8,FALSE),"NA") -> NA | AD9: =IFERROR(HLOOKUP(VLOOKUP($AA9,INDEXTBL!$C$1:$O$1216,$C$3,FALSE),DATA!$C$2:$CAP$14,7,FALSE),"NA") -> NA | AE9: =IFERROR(HLOOKUP(VLOOKUP($AA9,INDEXTBL!$C$1:$O$1216,$C$3,FALSE),DATA!$C$2:$CAP$14,10,FALSE),"NA") -> NA
G10: 個D-010301 | H10: =VLOOKUP(G10,INDEXTBL!$C$1:$O$1216,3,FALSE) -> 琉大病院と中部病院で治療を受けた希少がん患者の割合（％） | I10: =IFERROR(HLOOKUP(VLOOKUP($G10,INDEXTBL!$C$1:$O$1216,$C$3,FALSE),DATA!$C$2:$CAP$14,8,FALSE),"NA") -> NA | J10: =IFERROR(HLOOKUP(VLOOKUP($G10,INDEXTBL!$C$1:$O$1216,$C$3,FALSE),DATA!$C$2:$CAP$14,7,FALSE),"NA") -> NA | K10: =IFERROR(HLOOKUP(VLOOKUP($G10,INDEXTBL!$C$1:$O$1216,$C$3,FALSE),DATA!$C$2:$CAP$14,10,FALSE),"NA") -> NA | Q10: 個B-010202 | R10: =VLOOKUP(Q10,INDEXTBL!$C$1:$O$1216,3,FALSE) -> （医療者調査）希少がん患者のうち、診断又は治療目的で、県立中部病院、琉球大学病院または本土の専門医療機関に紹介した割合が75%以上であると回答した人の割合（％）（県立中部病院と琉球大学病院に勤務されている方以外） | S10: =IFERROR(TEXT(HLOOKUP(VLOOKUP($Q10,INDEXTBL!$C$1:$O$1216,13,FALSE),DATA!$C$2:$CAP$14,8,FALSE)*100,"0.0")&"%","NA") -> 42.8% | T10: =IFERROR(TEXT(HLOOKUP(VLOOKUP($Q10,INDEXTBL!$C$1:$O$1216,11,FALSE),DATA!$C$2:$CAP$14,7,FALSE)*100,"0.0")&"%","NA") -> NA | U10: =IFERROR(TEXT(_xlfn.AGGREGATE(4,7,OFFSET(DATA!$A$1,14,MATCH(VLOOKUP($Q10,INDEXTBL!$C$1:$O$1216,11,FALSE),DATA!$A$2:$CAP$2,0)-1,47,1)),"0.0")&"%" &" （"& V10 & "）","NA") -> NA | V10: =INDEX(DATA!$C$15:$C$61,MATCH(_xlfn.AGGREGATE(4,7,OFFSET(DATA!$A$1,14,MATCH(VLOOKUP($Q10,INDEXTBL!$C$1:$O$1216,11,FALSE),DATA!$A$2:$CAP$2,0)-1,47,1)),OFFSET(DATA!$A$1,14,MATCH(VLOOKUP($Q10,INDEXTBL!$C$1:$O$1216,11,FALSE),DATA!$A$2:$CAP$2,0)-1,47,1),0)) ->  | AA10: 個A-010203 | AB10: =VLOOKUP(AA10,INDEXTBL!$C$1:$O$1216,3,FALSE) -> AYA世代のがんの5年生存率 | AC10: =IFERROR(HLOOKUP(VLOOKUP($AA10,INDEXTBL!$C$1:$O$1216,$C$3,FALSE),DATA!$C$2:$CAP$14,8,FALSE),"NA") -> NA | AD10: =IFERROR(HLOOKUP(VLOOKUP($AA10,INDEXTBL!$C$1:$O$1216,$C$3,FALSE),DATA!$C$2:$CAP$14,7,FALSE),"NA") -> NA | AE10: =IFERROR(HLOOKUP(VLOOKUP($AA10,INDEXTBL!$C$1:$O$1216,$C$3,FALSE),DATA!$C$2:$CAP$14,10,FALSE),"NA") -> NA
E11: 個D-0104 | H11: =VLOOKUP(E11,INDEXTBL!$A$1:$O$1216,2,FALSE) -> 希少がん患者に対して、最新の知見に基づく、臨床試験や治験も含めての最適な治療を、タイムリーで質が高く、安全に実施する | I11: 沖縄県 | J11: 全国 | K11: 最良値 （都道府県） | Q11: 個B-010202 | R11: =VLOOKUP(Q11,INDEXTBL!$C$1:$O$1216,3,FALSE) -> （医療者調査）希少がん患者のうち、診断又は治療目的で、県立中部病院、琉球大学病院または本土の専門医療機関に紹介した割合が75%以上であると回答した人の割合（％）（県立中部病院と琉球大学病院に勤務されている方以外） | S11: =IFERROR(HLOOKUP(VLOOKUP($Q11,INDEXTBL!$C$1:$O$1216,$C$3,FALSE),DATA!$C$2:$CAP$14,8,FALSE),"NA") -> NA | T11: =IFERROR(HLOOKUP(VLOOKUP($Q11,INDEXTBL!$C$1:$O$1216,$C$3,FALSE),DATA!$C$2:$CAP$14,7,FALSE),"NA") -> NA | U11: =IFERROR(HLOOKUP(VLOOKUP($Q11,INDEXTBL!$C$1:$O$1216,$C$3,FALSE),DATA!$C$2:$CAP$14,10,FALSE),"NA") -> NA | AA11: 個A-010204 | AB11: =VLOOKUP(AA11,INDEXTBL!$C$1:$O$1216,3,FALSE) -> （患者体験調査）現在自分らしい日常生活を送れていると感じる希少がん患者の割合（％） | AC11: =IFERROR(TEXT(HLOOKUP(VLOOKUP($AA11,INDEXTBL!$C$1:$O$1216,11,FALSE),DATA!$C$2:$CAP$14,8,FALSE)*100,"0.0")&"%","NA") -> NA | AD11: =IFERROR(TEXT(HLOOKUP(VLOOKUP($AA11,INDEXTBL!$C$1:$O$1216,11,FALSE),DATA!$C$2:$CAP$14,7,FALSE)*100,"0.0")&"%","NA") -> 75.5% | AE11: =IFERROR(TEXT(_xlfn.AGGREGATE(4,7,OFFSET(DATA!$A$1,14,MATCH(VLOOKUP($AA11,INDEXTBL!$C$1:$O$1216,11,FALSE),DATA!$A$2:$CAP$2,0)-1,47,1)),"0.0")&"%" &" （"& AF11 & "）","NA") -> NA | AF11: =INDEX(DATA!$C$15:$C$61,MATCH(_xlfn.AGGREGATE(4,7,OFFSET(DATA!$A$1,14,MATCH(VLOOKUP($AA11,INDEXTBL!$C$1:$O$1216,11,FALSE),DATA!$A$2:$CAP$2,0)-1,47,1)),OFFSET(DATA!$A$1,14,MATCH(VLOOKUP($AA11,INDEXTBL!$C$1:$O$1216,11,FALSE),DATA!$A$2:$CAP$2,0)-1,47,1),0)) -> 
G12: 個D-010401 | H12: =VLOOKUP(G12,INDEXTBL!$C$1:$O$1216,3,FALSE) -> 希少がんにおいて参加が可能な臨床試験や治験の数 | I12: =IFERROR(HLOOKUP(VLOOKUP($G12,INDEXTBL!$C$1:$O$1216,$C$3,FALSE),DATA!$C$2:$CAP$14,8,FALSE),"NA") -> NA | J12: =IFERROR(HLOOKUP(VLOOKUP($G12,INDEXTBL!$C$1:$O$1216,$C$3,FALSE),DATA!$C$2:$CAP$14,7,FALSE),"NA") -> NA | K12: =IFERROR(HLOOKUP(VLOOKUP($G12,INDEXTBL!$C$1:$O$1216,$C$3,FALSE),DATA!$C$2:$CAP$14,10,FALSE),"NA") -> NA | AA12: 個A-010205 | AB12: =VLOOKUP(AA12,INDEXTBL!$C$1:$O$1216,3,FALSE) -> （患者体験調査）現在自分らしい日常生活を送れていると感じる若年がん患者の割合（％） | AC12: =IFERROR(TEXT(HLOOKUP(VLOOKUP($AA12,INDEXTBL!$C$1:$O$1216,11,FALSE),DATA!$C$2:$CAP$14,8,FALSE)*100,"0.0")&"%","NA") -> NA | AD12: =IFERROR(TEXT(HLOOKUP(VLOOKUP($AA12,INDEXTBL!$C$1:$O$1216,11,FALSE),DATA!$C$2:$CAP$14,7,FALSE)*100,"0.0")&"%","NA") -> 75.7% | AE12: =IFERROR(TEXT(_xlfn.AGGREGATE(4,7,OFFSET(DATA!$A$1,14,MATCH(VLOOKUP($AA12,INDEXTBL!$C$1:$O$1216,11,FALSE),DATA!$A$2:$CAP$2,0)-1,47,1)),"0.0")&"%" &" （"& AF12 & "）","NA") -> NA | AF12: =INDEX(DATA!$C$15:$C$61,MATCH(_xlfn.AGGREGATE(4,7,OFFSET(DATA!$A$1,14,MATCH(VLOOKUP($AA12,INDEXTBL!$C$1:$O$1216,11,FALSE),DATA!$A$2:$CAP$2,0)-1,47,1)),OFFSET(DATA!$A$1,14,MATCH(VLOOKUP($AA12,INDEXTBL!$C$1:$O$1216,11,FALSE),DATA!$A$2:$CAP$2,0)-1,47,1),0)) -> 
G13: 個D-010402 | H13: =VLOOKUP(G13,INDEXTBL!$C$1:$O$1216,3,FALSE) -> 臨床試験等を受けた希少がん患者数（人） | I13: =IFERROR(HLOOKUP(VLOOKUP($G13,INDEXTBL!$C$1:$O$1216,$C$3,FALSE),DATA!$C$2:$CAP$14,8,FALSE),"NA") -> NA | J13: =IFERROR(HLOOKUP(VLOOKUP($G13,INDEXTBL!$C$1:$O$1216,$C$3,FALSE),DATA!$C$2:$CAP$14,7,FALSE),"NA") -> NA | K13: =IFERROR(HLOOKUP(VLOOKUP($G13,INDEXTBL!$C$1:$O$1216,$C$3,FALSE),DATA!$C$2:$CAP$14,10,FALSE),"NA") -> NA | AA13: 個A-010206 | AB13: =VLOOKUP(AA13,INDEXTBL!$C$1:$O$1216,3,FALSE) -> （小児がん体験調査）小児がん患者のがんの診断・治療全般の総合評価 小児（平均点） | AC13: =IFERROR(TEXT(HLOOKUP(VLOOKUP($AA13,INDEXTBL!$C$1:$O$1216,5,FALSE),DATA!$C$2:$CAP$14,8,FALSE),"0.0"),"NA") -> NA | AD13: =IFERROR(TEXT(HLOOKUP(VLOOKUP($AA13,INDEXTBL!$C$1:$O$1216,5,FALSE),DATA!$C$2:$CAP$14,7,FALSE),"0.0"),"NA") -> 8.4 | AE13: =IFERROR(TEXT(_xlfn.AGGREGATE(4,7,OFFSET(DATA!$A$1,14,MATCH(VLOOKUP($AA13,INDEXTBL!$C$1:$O$1216,11,FALSE),DATA!$A$2:$CAP$2,0)-1,47,1)),"0.0")&"%" &" （"& AF13 & "）","NA") -> NA | AF13: =INDEX(DATA!$C$15:$C$61,MATCH(_xlfn.AGGREGATE(4,7,OFFSET(DATA!$A$1,14,MATCH(VLOOKUP($AA13,INDEXTBL!$C$1:$O$1216,11,FALSE),DATA!$A$2:$CAP$2,0)-1,47,1)),OFFSET(DATA!$A$1,14,MATCH(VLOOKUP($AA13,INDEXTBL!$C$1:$O$1216,11,FALSE),DATA!$A$2:$CAP$2,0)-1,47,1),0)) -> 
AA14: 個A-010207 | AB14: =VLOOKUP(AA14,INDEXTBL!$C$1:$O$1216,3,FALSE) -> （小児がん体験調査）小児がん患者のがんの診断・治療全般の総合評価 AYA（平均点） | AC14: =IFERROR(TEXT(HLOOKUP(VLOOKUP($AA14,INDEXTBL!$C$1:$O$1216,5,FALSE),DATA!$C$2:$CAP$14,8,FALSE),"0.0"),"NA") -> NA | AD14: =IFERROR(TEXT(HLOOKUP(VLOOKUP($AA14,INDEXTBL!$C$1:$O$1216,5,FALSE),DATA!$C$2:$CAP$14,7,FALSE),"0.0"),"NA") -> 7.8 | AE14: =IFERROR(TEXT(_xlfn.AGGREGATE(4,7,OFFSET(DATA!$A$1,14,MATCH(VLOOKUP($AA14,INDEXTBL!$C$1:$O$1216,11,FALSE),DATA!$A$2:$CAP$2,0)-1,47,1)),"0.0")&"%" &" （"& AF14 & "）","NA") -> NA | AF14: =INDEX(DATA!$C$15:$C$61,MATCH(_xlfn.AGGREGATE(4,7,OFFSET(DATA!$A$1,14,MATCH(VLOOKUP($AA14,INDEXTBL!$C$1:$O$1216,11,FALSE),DATA!$A$2:$CAP$2,0)-1,47,1)),OFFSET(DATA!$A$1,14,MATCH(VLOOKUP($AA14,INDEXTBL!$C$1:$O$1216,11,FALSE),DATA!$A$2:$CAP$2,0)-1,47,1),0)) -> 
E15: ②難治性がん | AA15: 個A-010208 | AB15: =VLOOKUP(AA15,INDEXTBL!$C$1:$O$1216,3,FALSE) -> （小児がん体験調査）小児がん患者のがんの診断・治療全般の総合評価 成人（平均点） | AC15: =IFERROR(TEXT(HLOOKUP(VLOOKUP($AA15,INDEXTBL!$C$1:$O$1216,5,FALSE),DATA!$C$2:$CAP$14,8,FALSE),"0.0"),"NA") -> 8.4 | AD15: =IFERROR(TEXT(HLOOKUP(VLOOKUP($AA15,INDEXTBL!$C$1:$O$1216,5,FALSE),DATA!$C$2:$CAP$14,7,FALSE),"0.0"),"NA") -> 8.0 | AE15: =IFERROR(TEXT(_xlfn.AGGREGATE(4,7,OFFSET(DATA!$A$1,14,MATCH(VLOOKUP($AA15,INDEXTBL!$C$1:$O$1216,11,FALSE),DATA!$A$2:$CAP$2,0)-1,47,1)),"0.0")&"%" &" （"& AF15 & "）","NA") -> NA | AF15: =INDEX(DATA!$C$15:$C$61,MATCH(_xlfn.AGGREGATE(4,7,OFFSET(DATA!$A$1,14,MATCH(VLOOKUP($AA15,INDEXTBL!$C$1:$O$1216,11,FALSE),DATA!$A$2:$CAP$2,0)-1,47,1)),OFFSET(DATA!$A$1,14,MATCH(VLOOKUP($AA15,INDEXTBL!$C$1:$O$1216,11,FALSE),DATA!$A$2:$CAP$2,0)-1,47,1),0)) -> 
E16: 個D-0201 | H16: =VLOOKUP(E16,INDEXTBL!$A$1:$O$1216,2,FALSE) -> 難治性がん患者及びその家族に対して、十分な相談支援が提供する | I16: 沖縄県 | J16: 全国 | K16: 最良値 （都道府県） | O16: 個B-0201 | R16: =VLOOKUP(O16,INDEXTBL!$A$1:$O$1216,2,FALSE) -> 難治性がん患者の生存率の改善ができている | S16: 沖縄県 | T16: 全国 | U16: 最良値 （都道府県）
G17: 個D-020101 | H17: =VLOOKUP(G17,INDEXTBL!$C$1:$O$1216,3,FALSE) -> がん相談支援センターに相談した難治性がん患者数（人） | I17: =IFERROR(HLOOKUP(VLOOKUP($G17,INDEXTBL!$C$1:$O$1216,$C$3,FALSE),DATA!$C$2:$CAP$14,8,FALSE),"NA") -> NA | J17: =IFERROR(HLOOKUP(VLOOKUP($G17,INDEXTBL!$C$1:$O$1216,$C$3,FALSE),DATA!$C$2:$CAP$14,7,FALSE),"NA") -> NA | K17: =IFERROR(HLOOKUP(VLOOKUP($G17,INDEXTBL!$C$1:$O$1216,$C$3,FALSE),DATA!$C$2:$CAP$14,10,FALSE),"NA") -> NA | Q17: 個B-020101 | R17: =VLOOKUP(Q17,INDEXTBL!$C$1:$O$1216,3,FALSE) -> 難治性がん（代表例：膵がん）の5年生存率【再掲】 | S17: =IFERROR(TEXT(HLOOKUP(VLOOKUP($Q17,INDEXTBL!$C$1:$O$1216,5,FALSE),DATA!$C$2:$CAP$14,8,FALSE)*100,"0.0")&"%","NA") -> 13.9% | T17: =IFERROR(TEXT(HLOOKUP(VLOOKUP($Q17,INDEXTBL!$C$1:$O$1216,5,FALSE),DATA!$C$2:$CAP$14,7,FALSE)*100,"0.0")&"%","NA") -> NA | U17: =IFERROR(TEXT(_xlfn.AGGREGATE(4,7,OFFSET(DATA!$A$1,14,MATCH(VLOOKUP($Q17,INDEXTBL!$C$1:$O$1216,5,FALSE),DATA!$A$2:$CAP$2,0)-1,47,1)),"0.0")&"%" &" （"& V17 & "）","NA") -> NA | V17: =INDEX(DATA!$C$15:$C$61,MATCH(_xlfn.AGGREGATE(4,7,OFFSET(DATA!$A$1,14,MATCH(VLOOKUP($Q17,INDEXTBL!$C$1:$O$1216,5,FALSE),DATA!$A$2:$CAP$2,0)-1,47,1)),OFFSET(DATA!$A$1,14,MATCH(VLOOKUP($Q17,INDEXTBL!$C$1:$O$1216,5,FALSE),DATA!$A$2:$CAP$2,0)-1,47,1),0)) -> 
E18: 個D-0202 | H18: =VLOOKUP(E18,INDEXTBL!$A$1:$O$1216,2,FALSE) -> 県内の医療機関について、難治性がん診療における適切な役割分担を行う | I18: 沖縄県 | J18: 全国 | K18: 最良値 （都道府県） | O18: 個B-0202 | R18: =VLOOKUP(O18,INDEXTBL!$A$1:$O$1216,2,FALSE) -> 難治性がん患者及びその家族の苦痛の軽減並びに療養生活の質の維持向上ができている | S18: 沖縄県 | T18: 全国 | U18: 最良値 （都道府県）
G19: 個D-020201 | H19: =VLOOKUP(G19,INDEXTBL!$C$1:$O$1216,3,FALSE) -> 難治性がん診療を積極的に受け入れている「施設」における治療開始数 | I19: =IFERROR(HLOOKUP(VLOOKUP($G19,INDEXTBL!$C$1:$O$1216,$C$3,FALSE),DATA!$C$2:$CAP$14,8,FALSE),"NA") -> NA | J19: =IFERROR(HLOOKUP(VLOOKUP($G19,INDEXTBL!$C$1:$O$1216,$C$3,FALSE),DATA!$C$2:$CAP$14,7,FALSE),"NA") -> NA | K19: =IFERROR(HLOOKUP(VLOOKUP($G19,INDEXTBL!$C$1:$O$1216,$C$3,FALSE),DATA!$C$2:$CAP$14,10,FALSE),"NA") -> NA | Q19: 個B-020201 | R19: =VLOOKUP(Q19,INDEXTBL!$C$1:$O$1216,3,FALSE) -> （医療者調査）難治がん患者のうち、診断又は治療目的で、沖縄県における「掲載要件を満たす、がん診療を行う県内医療施設一覧」または本土の専門医療機関に紹介した割合が75%以上であると回答した人の割合（％） | S19: =IFERROR(TEXT(HLOOKUP(VLOOKUP($Q19,INDEXTBL!$C$1:$O$1216,13,FALSE),DATA!$C$2:$CAP$14,8,FALSE)*100,"0.0")&"%","NA") -> 37.6% | T19: =IFERROR(TEXT(HLOOKUP(VLOOKUP($Q19,INDEXTBL!$C$1:$O$1216,11,FALSE),DATA!$C$2:$CAP$14,7,FALSE)*100,"0.0")&"%","NA") -> NA | U19: =IFERROR(TEXT(_xlfn.AGGREGATE(4,7,OFFSET(DATA!$A$1,14,MATCH(VLOOKUP($Q19,INDEXTBL!$C$1:$O$1216,11,FALSE),DATA!$A$2:$CAP$2,0)-1,47,1)),"0.0")&"%" &" （"& V19 & "）","NA") -> NA | V19: =INDEX(DATA!$C$15:$C$61,MATCH(_xlfn.AGGREGATE(4,7,OFFSET(DATA!$A$1,14,MATCH(VLOOKUP($Q19,INDEXTBL!$C$1:$O$1216,11,FALSE),DATA!$A$2:$CAP$2,0)-1,47,1)),OFFSET(DATA!$A$1,14,MATCH(VLOOKUP($Q19,INDEXTBL!$C$1:$O$1216,11,FALSE),DATA!$A$2:$CAP$2,0)-1,47,1),0)) -> 
E20: 個D-0203 | H20: =VLOOKUP(E20,INDEXTBL!$A$1:$O$1216,2,FALSE) -> 難治性がん患者に対して、最新の知見に基づく、臨床試験や治験も含めての最適な治療が、タイムリーで質が高く、安全に実施する | I20: 沖縄県 | J20: 全国 | K20: 最良値 （都道府県） | Q20: 個B-020202 | R20: =VLOOKUP(Q20,INDEXTBL!$C$1:$O$1216,3,FALSE) -> （医療者調査）上記医療機関に紹介できなかった理由について、具体的にお書きください。 | S20: =IFERROR(HLOOKUP(VLOOKUP($Q20,INDEXTBL!$C$1:$O$1216,$C$3,FALSE),DATA!$C$2:$CAP$14,8,FALSE),"NA") -> NA | T20: =IFERROR(HLOOKUP(VLOOKUP($Q20,INDEXTBL!$C$1:$O$1216,$C$3,FALSE),DATA!$C$2:$CAP$14,7,FALSE),"NA") -> NA | U20: =IFERROR(HLOOKUP(VLOOKUP($Q20,INDEXTBL!$C$1:$O$1216,$C$3,FALSE),DATA!$C$2:$CAP$14,10,FALSE),"NA") -> NA
G21: 個D-020301 | H21: =VLOOKUP(G21,INDEXTBL!$C$1:$O$1216,3,FALSE) -> 難治がんにおいて参加が可能な臨床試験や治験の数 | I21: =IFERROR(HLOOKUP(VLOOKUP($G21,INDEXTBL!$C$1:$O$1216,$C$3,FALSE),DATA!$C$2:$CAP$14,8,FALSE),"NA") -> NA | J21: =IFERROR(HLOOKUP(VLOOKUP($G21,INDEXTBL!$C$1:$O$1216,$C$3,FALSE),DATA!$C$2:$CAP$14,7,FALSE),"NA") -> NA | K21: =IFERROR(HLOOKUP(VLOOKUP($G21,INDEXTBL!$C$1:$O$1216,$C$3,FALSE),DATA!$C$2:$CAP$14,10,FALSE),"NA") -> NA
G22: 個D-020302 | H22: =VLOOKUP(G22,INDEXTBL!$C$1:$O$1216,3,FALSE) -> 臨床試験等を受けた難治がん患者数（人） | I22: =IFERROR(HLOOKUP(VLOOKUP($G22,INDEXTBL!$C$1:$O$1216,$C$3,FALSE),DATA!$C$2:$CAP$14,8,FALSE),"NA") -> NA | J22: =IFERROR(HLOOKUP(VLOOKUP($G22,INDEXTBL!$C$1:$O$1216,$C$3,FALSE),DATA!$C$2:$CAP$14,7,FALSE),"NA") -> NA | K22: =IFERROR(HLOOKUP(VLOOKUP($G22,INDEXTBL!$C$1:$O$1216,$C$3,FALSE),DATA!$C$2:$CAP$14,10,FALSE),"NA") -> NA
E24: ③小児がん
E25: 個D-0301 | H25: =VLOOKUP(E25,INDEXTBL!$A$1:$O$1216,2,FALSE) -> 小児がん患者及びその家族に対して、十分な情報を提供する | I25: 沖縄県 | J25: 全国 | K25: 最良値 （都道府県） | O25: 個B-0301 | R25: =VLOOKUP(O25,INDEXTBL!$A$1:$O$1216,2,FALSE) -> 小児がん患者の生存率の改善ができている | S25: 沖縄県 | T25: 全国 | U25: 最良値 （都道府県）
G26: 個D-030101 | H26: =VLOOKUP(G26,INDEXTBL!$C$1:$O$1216,3,FALSE) -> ※（検討中） | I26: =IFERROR(HLOOKUP(VLOOKUP($G26,INDEXTBL!$C$1:$O$1216,$C$3,FALSE),DATA!$C$2:$CAP$14,8,FALSE),"NA") -> NA | J26: =IFERROR(HLOOKUP(VLOOKUP($G26,INDEXTBL!$C$1:$O$1216,$C$3,FALSE),DATA!$C$2:$CAP$14,7,FALSE),"NA") -> NA | K26: =IFERROR(HLOOKUP(VLOOKUP($G26,INDEXTBL!$C$1:$O$1216,$C$3,FALSE),DATA!$C$2:$CAP$14,10,FALSE),"NA") -> NA | Q26: 個B-030101 | R26: =VLOOKUP(Q26,INDEXTBL!$C$1:$O$1216,3,FALSE) -> 小児がん患者の初診から琉球大学病院または県立こども医療センターを紹介受診した日数 | S26: =IFERROR(HLOOKUP(VLOOKUP($Q26,INDEXTBL!$C$1:$O$1216,$C$3,FALSE),DATA!$C$2:$CAP$14,8,FALSE),"NA") -> NA | T26: =IFERROR(HLOOKUP(VLOOKUP($Q26,INDEXTBL!$C$1:$O$1216,$C$3,FALSE),DATA!$C$2:$CAP$14,7,FALSE),"NA") -> NA | U26: =IFERROR(HLOOKUP(VLOOKUP($Q26,INDEXTBL!$C$1:$O$1216,$C$3,FALSE),DATA!$C$2:$CAP$14,10,FALSE),"NA") -> NA
E27: 個D-0302 | H27: =VLOOKUP(E27,INDEXTBL!$A$1:$O$1216,2,FALSE) -> 小児がん患者及びその家族に対して、十分な相談支援を提供する | I27: 沖縄県 | J27: 全国 | K27: 最良値 （都道府県） | O27: 個B-0302 | R27: =VLOOKUP(O27,INDEXTBL!$A$1:$O$1216,2,FALSE) -> 小児がん患者及びその家族の苦痛の軽減並びに療養生活の質の維持向上ができている | S27: 沖縄県 | T27: 全国 | U27: 最良値 （都道府県）
G28: 個D-030201 | H28: =VLOOKUP(G28,INDEXTBL!$C$1:$O$1216,3,FALSE) -> 国立がん研究センターによる「がん相談支援センター相談員基礎研修」(1)(2)を受講後、国立成育医療研究センターが実施する「小児がん相談員専門研修」を修了した者の数（人） | I28: =IFERROR(HLOOKUP(VLOOKUP($G28,INDEXTBL!$C$1:$O$1216,$C$3,FALSE),DATA!$C$2:$CAP$14,8,FALSE),"NA") -> NA | J28: =IFERROR(HLOOKUP(VLOOKUP($G28,INDEXTBL!$C$1:$O$1216,$C$3,FALSE),DATA!$C$2:$CAP$14,7,FALSE),"NA") -> NA | K28: =IFERROR(HLOOKUP(VLOOKUP($G28,INDEXTBL!$C$1:$O$1216,$C$3,FALSE),DATA!$C$2:$CAP$14,10,FALSE),"NA") -> NA | Q28: 個B-030201 | R28: =VLOOKUP(Q28,INDEXTBL!$C$1:$O$1216,3,FALSE) -> （小児がん体験調査）がん患者の家族の悩みや負担を相談できる支援・サービス・場所が十分あると思う小児がん患者の割合 小児（％） | S28: =IFERROR(TEXT(HLOOKUP(VLOOKUP($Q28,INDEXTBL!$C$1:$O$1216,5,FALSE),DATA!$C$2:$CAP$14,8,FALSE)*100,"0.0")&"%","NA") -> NA | T28: =IFERROR(TEXT(HLOOKUP(VLOOKUP($Q28,INDEXTBL!$C$1:$O$1216,5,FALSE),DATA!$C$2:$CAP$14,7,FALSE)*100,"0.0")&"%","NA") -> 39.7% | U28: =IFERROR(TEXT(_xlfn.AGGREGATE(4,7,OFFSET(DATA!$A$1,14,MATCH(VLOOKUP($Q28,INDEXTBL!$C$1:$O$1216,5,FALSE),DATA!$A$2:$CAP$2,0)-1,47,1)),"0.0")&"%" &" （"& V28 & "）","NA") -> NA | V28: =INDEX(DATA!$C$15:$C$61,MATCH(_xlfn.AGGREGATE(4,7,OFFSET(DATA!$A$1,14,MATCH(VLOOKUP($Q28,INDEXTBL!$C$1:$O$1216,5,FALSE),DATA!$A$2:$CAP$2,0)-1,47,1)),OFFSET(DATA!$A$1,14,MATCH(VLOOKUP($Q28,INDEXTBL!$C$1:$O$1216,5,FALSE),DATA!$A$2:$CAP$2,0)-1,47,1),0)) -> 
G29: 個D-030202 | H29: =VLOOKUP(G29,INDEXTBL!$C$1:$O$1216,3,FALSE) -> がん相談支援センターに相談した小児がん患者数（人） | I29: =IFERROR(HLOOKUP(VLOOKUP($G29,INDEXTBL!$C$1:$O$1216,$C$3,FALSE),DATA!$C$2:$CAP$14,8,FALSE),"NA") -> NA | J29: =IFERROR(HLOOKUP(VLOOKUP($G29,INDEXTBL!$C$1:$O$1216,$C$3,FALSE),DATA!$C$2:$CAP$14,7,FALSE),"NA") -> NA | K29: =IFERROR(HLOOKUP(VLOOKUP($G29,INDEXTBL!$C$1:$O$1216,$C$3,FALSE),DATA!$C$2:$CAP$14,10,FALSE),"NA") -> NA | Q29: 個B-030202 | R29: =VLOOKUP(Q29,INDEXTBL!$C$1:$O$1216,3,FALSE) -> （小児がん体験調査）がん患者の家族の悩みや負担を相談できる支援・サービス・場所が十分あると思う小児がん患者の割合 AYA（％） | S29: =IFERROR(TEXT(HLOOKUP(VLOOKUP($Q29,INDEXTBL!$C$1:$O$1216,5,FALSE),DATA!$C$2:$CAP$14,8,FALSE)*100,"0.0")&"%","NA") -> NA | T29: =IFERROR(TEXT(HLOOKUP(VLOOKUP($Q29,INDEXTBL!$C$1:$O$1216,5,FALSE),DATA!$C$2:$CAP$14,7,FALSE)*100,"0.0")&"%","NA") -> 39.5% | U29: =IFERROR(TEXT(_xlfn.AGGREGATE(4,7,OFFSET(DATA!$A$1,14,MATCH(VLOOKUP($Q29,INDEXTBL!$C$1:$O$1216,5,FALSE),DATA!$A$2:$CAP$2,0)-1,47,1)),"0.0")&"%" &" （"& V29 & "）","NA") -> NA | V29: =INDEX(DATA!$C$15:$C$61,MATCH(_xlfn.AGGREGATE(4,7,OFFSET(DATA!$A$1,14,MATCH(VLOOKUP($Q29,INDEXTBL!$C$1:$O$1216,5,FALSE),DATA!$A$2:$CAP$2,0)-1,47,1)),OFFSET(DATA!$A$1,14,MATCH(VLOOKUP($Q29,INDEXTBL!$C$1:$O$1216,5,FALSE),DATA!$A$2:$CAP$2,0)-1,47,1),0)) -> 
E30: 個D-0303 | H30: =VLOOKUP(E30,INDEXTBL!$A$1:$O$1216,2,FALSE) -> 小児がん患者が、速やかに琉球大学病院または県立こども医療センターに紹介する | I30: 沖縄県 | J30: 全国 | K30: 最良値 （都道府県） | Q30: 個B-030203 | R30: =VLOOKUP(Q30,INDEXTBL!$C$1:$O$1216,3,FALSE) -> （小児がん体験調査）がん患者の家族の悩みや負担を相談できる支援・サービス・場所が十分あると思う小児がん患者の割合 成人（％） | S30: =IFERROR(TEXT(HLOOKUP(VLOOKUP($Q30,INDEXTBL!$C$1:$O$1216,5,FALSE),DATA!$C$2:$CAP$14,8,FALSE)*100,"0.0")&"%","NA") -> 52.6% | T30: =IFERROR(TEXT(HLOOKUP(VLOOKUP($Q30,INDEXTBL!$C$1:$O$1216,5,FALSE),DATA!$C$2:$CAP$14,7,FALSE)*100,"0.0")&"%","NA") -> 47.7% | U30: =IFERROR(TEXT(_xlfn.AGGREGATE(4,7,OFFSET(DATA!$A$1,14,MATCH(VLOOKUP($Q30,INDEXTBL!$C$1:$O$1216,5,FALSE),DATA!$A$2:$CAP$2,0)-1,47,1)),"0.0")&"%" &" （"& V30 & "）","NA") -> NA | V30: =INDEX(DATA!$C$15:$C$61,MATCH(_xlfn.AGGREGATE(4,7,OFFSET(DATA!$A$1,14,MATCH(VLOOKUP($Q30,INDEXTBL!$C$1:$O$1216,5,FALSE),DATA!$A$2:$CAP$2,0)-1,47,1)),OFFSET(DATA!$A$1,14,MATCH(VLOOKUP($Q30,INDEXTBL!$C$1:$O$1216,5,FALSE),DATA!$A$2:$CAP$2,0)-1,47,1),0)) -> 
G31: 個D-030301 | H31: =VLOOKUP(G31,INDEXTBL!$C$1:$O$1216,3,FALSE) -> 琉球大学病院または県立こども医療センターで治療を受けた小児がん患者の割合（％） | I31: =IFERROR(TEXT(HLOOKUP(VLOOKUP($G31,INDEXTBL!$C$1:$O$1216,5,FALSE),DATA!$C$2:$CAP$14,8,FALSE)*100,"0.0")&"%","NA") -> 78.7% | J31: =IFERROR(TEXT(HLOOKUP(VLOOKUP($G31,INDEXTBL!$C$1:$O$1216,5,FALSE),DATA!$C$2:$CAP$14,7,FALSE)*100,"0.0")&"%","NA") -> NA | K31: =IFERROR(TEXT(_xlfn.AGGREGATE(4,7,OFFSET(DATA!$A$1,14,MATCH(VLOOKUP($G31,INDEXTBL!$C$1:$O$1216,5,FALSE),DATA!$A$2:$CAP$2,0)-1,47,1)),"0.0")&"%" &" （"& L31 & "）","NA") -> NA | L31: =INDEX(DATA!$C$15:$C$61,MATCH(_xlfn.AGGREGATE(4,7,OFFSET(DATA!$A$1,14,MATCH(VLOOKUP($G31,INDEXTBL!$C$1:$O$1216,5,FALSE),DATA!$A$2:$CAP$2,0)-1,47,1)),OFFSET(DATA!$A$1,14,MATCH(VLOOKUP($G31,INDEXTBL!$C$1:$O$1216,5,FALSE),DATA!$A$2:$CAP$2,0)-1,47,1),0)) ->  | Q31: 個B-030204 | R31: =VLOOKUP(Q31,INDEXTBL!$C$1:$O$1216,3,FALSE) -> （小児がん体験調査）治療開始前に教育の支援等について医療スタッフから話があったと回答した人の割合（％） | S31: =IFERROR(TEXT(HLOOKUP(VLOOKUP($Q31,INDEXTBL!$C$1:$O$1216,5,FALSE),DATA!$C$2:$CAP$14,8,FALSE)*100,"0.0")&"%","NA") -> NA | T31: =IFERROR(TEXT(HLOOKUP(VLOOKUP($Q31,INDEXTBL!$C$1:$O$1216,5,FALSE),DATA!$C$2:$CAP$14,7,FALSE)*100,"0.0")&"%","NA") -> 68.1% | U31: =IFERROR(TEXT(_xlfn.AGGREGATE(4,7,OFFSET(DATA!$A$1,14,MATCH(VLOOKUP($Q31,INDEXTBL!$C$1:$O$1216,5,FALSE),DATA!$A$2:$CAP$2,0)-1,47,1)),"0.0")&"%" &" （"& V31 & "）","NA") -> NA | V31: =INDEX(DATA!$C$15:$C$61,MATCH(_xlfn.AGGREGATE(4,7,OFFSET(DATA!$A$1,14,MATCH(VLOOKUP($Q31,INDEXTBL!$C$1:$O$1216,5,FALSE),DATA!$A$2:$CAP$2,0)-1,47,1)),OFFSET(DATA!$A$1,14,MATCH(VLOOKUP($Q31,INDEXTBL!$C$1:$O$1216,5,FALSE),DATA!$A$2:$CAP$2,0)-1,47,1),0)) -> 
E32: 個D-0304 | H32: =VLOOKUP(E32,INDEXTBL!$A$1:$O$1216,2,FALSE) -> 小児がん患者に対して、最新の知見に基づく、臨床試験や治験も含めての最適な治療が、タイムリーで質が高く、安全に実施する | I32: 沖縄県 | J32: 全国 | K32: 最良値 （都道府県）
G33: 個D-030401 | H33: =VLOOKUP(G33,INDEXTBL!$C$1:$O$1216,3,FALSE) -> 琉球大学病院または県立こども医療センターにおいて参加が可能な臨床試験や治験の数 | I33: =IFERROR(HLOOKUP(VLOOKUP($G33,INDEXTBL!$C$1:$O$1216,$C$3,FALSE),DATA!$C$2:$CAP$14,8,FALSE),"NA") -> NA | J33: =IFERROR(HLOOKUP(VLOOKUP($G33,INDEXTBL!$C$1:$O$1216,$C$3,FALSE),DATA!$C$2:$CAP$14,7,FALSE),"NA") -> NA | K33: =IFERROR(HLOOKUP(VLOOKUP($G33,INDEXTBL!$C$1:$O$1216,$C$3,FALSE),DATA!$C$2:$CAP$14,10,FALSE),"NA") -> NA
G34: 個D-030402 | H34: =VLOOKUP(G34,INDEXTBL!$C$1:$O$1216,3,FALSE) -> 臨床試験等を受けた小児がん患者数（人） | I34: =IFERROR(HLOOKUP(VLOOKUP($G34,INDEXTBL!$C$1:$O$1216,$C$3,FALSE),DATA!$C$2:$CAP$14,8,FALSE),"NA") -> NA | J34: =IFERROR(HLOOKUP(VLOOKUP($G34,INDEXTBL!$C$1:$O$1216,$C$3,FALSE),DATA!$C$2:$CAP$14,7,FALSE),"NA") -> NA | K34: =IFERROR(HLOOKUP(VLOOKUP($G34,INDEXTBL!$C$1:$O$1216,$C$3,FALSE),DATA!$C$2:$CAP$14,10,FALSE),"NA") -> NA
G35: 個D-030403 | H35: =VLOOKUP(G35,INDEXTBL!$C$1:$O$1216,3,FALSE) -> 小児血液・がん専門医（人） | I35: =IFERROR(TEXT(HLOOKUP(VLOOKUP($G35,INDEXTBL!$C$1:$O$1216,5,FALSE),DATA!$C$2:$CAP$14,8,FALSE)/DATA!$H$9*1000000,"0.0"),"NA") -> 2.0 | J35: =IFERROR(TEXT(HLOOKUP(VLOOKUP($G35,INDEXTBL!$C$1:$O$1216,5,FALSE),DATA!$C$2:$CAP$14,7,FALSE)/DATA!$H$8*1000000,"0.0"),"NA") -> 3.0 | K35: =IFERROR(TEXT(MAX(OFFSET(DATA!$A$1,14,MATCH(VLOOKUP($G35,INDEXTBL!$C$1:$O$1216,5,FALSE),DATA!$A$2:$CAP$2,0)-1,47,1)/DATA!$H$15:$H$61*1000000),"0.0") &" （"& L35 & "）","NA") -> 8.9 （京都府） | L35: =INDEX(DATA!$C$15:$C$61,MATCH(MAX(OFFSET(DATA!$A$1,14,MATCH(VLOOKUP($G35,INDEXTBL!$C$1:$O$1216,5,FALSE),DATA!$A$2:$CAP$2,0)-1,47,1)/DATA!$H$15:$H$61*1000000),OFFSET(DATA!$A$1,14,MATCH(VLOOKUP($G35,INDEXTBL!$C$1:$O$1216,5,FALSE),DATA!$A$2:$CAP$2,0)-1,47,1)/DATA!$H$15:$H$61*1000000,0)) -> 京都府 | M35: ＊＊
G36: 個D-030404 | H36: =VLOOKUP(G36,INDEXTBL!$C$1:$O$1216,3,FALSE) -> 小児外科専門医（人） | I36: =IFERROR(TEXT(HLOOKUP(VLOOKUP($G36,INDEXTBL!$C$1:$O$1216,5,FALSE),DATA!$C$2:$CAP$14,8,FALSE)/DATA!$H$9*1000000,"0.0"),"NA") -> 3.4 | J36: =IFERROR(TEXT(HLOOKUP(VLOOKUP($G36,INDEXTBL!$C$1:$O$1216,5,FALSE),DATA!$C$2:$CAP$14,7,FALSE)/DATA!$H$8*1000000,"0.0"),"NA") -> 6.0 | K36: =IFERROR(TEXT(MAX(OFFSET(DATA!$A$1,14,MATCH(VLOOKUP($G36,INDEXTBL!$C$1:$O$1216,5,FALSE),DATA!$A$2:$CAP$2,0)-1,47,1)/DATA!$H$15:$H$61*1000000),"0.0") &" （"& L36 & "）","NA") -> 12.8 （京都府） | L36: =INDEX(DATA!$C$15:$C$61,MATCH(MAX(OFFSET(DATA!$A$1,14,MATCH(VLOOKUP($G36,INDEXTBL!$C$1:$O$1216,5,FALSE),DATA!$A$2:$CAP$2,0)-1,47,1)/DATA!$H$15:$H$61*1000000),OFFSET(DATA!$A$1,14,MATCH(VLOOKUP($G36,INDEXTBL!$C$1:$O$1216,5,FALSE),DATA!$A$2:$CAP$2,0)-1,47,1)/DATA!$H$15:$H$61*1000000,0)) -> 京都府 | M36: ＊＊
G37: 個D-030405 | H37: =VLOOKUP(G37,INDEXTBL!$C$1:$O$1216,3,FALSE) -> 小児がん認定外科医（人） | I37: =IFERROR(TEXT(HLOOKUP(VLOOKUP($G37,INDEXTBL!$C$1:$O$1216,5,FALSE),DATA!$C$2:$CAP$14,8,FALSE)/DATA!$H$9*1000000,"0.0"),"NA") -> 0.7 | J37: =IFERROR(TEXT(HLOOKUP(VLOOKUP($G37,INDEXTBL!$C$1:$O$1216,5,FALSE),DATA!$C$2:$CAP$14,7,FALSE)/DATA!$H$8*1000000,"0.0"),"NA") -> 1.0 | K37: =IFERROR(TEXT(MAX(OFFSET(DATA!$A$1,14,MATCH(VLOOKUP($G37,INDEXTBL!$C$1:$O$1216,5,FALSE),DATA!$A$2:$CAP$2,0)-1,47,1)/DATA!$H$15:$H$61*1000000),"0.0") &" （"& L37 & "）","NA") -> 3.0 （奈良県） | L37: =INDEX(DATA!$C$15:$C$61,MATCH(MAX(OFFSET(DATA!$A$1,14,MATCH(VLOOKUP($G37,INDEXTBL!$C$1:$O$1216,5,FALSE),DATA!$A$2:$CAP$2,0)-1,47,1)/DATA!$H$15:$H$61*1000000),OFFSET(DATA!$A$1,14,MATCH(VLOOKUP($G37,INDEXTBL!$C$1:$O$1216,5,FALSE),DATA!$A$2:$CAP$2,0)-1,47,1)/DATA!$H$15:$H$61*1000000,0)) -> 奈良県 | M37: ＊＊
G38: 個D-030406 | H38: =VLOOKUP(G38,INDEXTBL!$C$1:$O$1216,3,FALSE) -> 血液専門医（人） | I38: =IFERROR(TEXT(HLOOKUP(VLOOKUP($G38,INDEXTBL!$C$1:$O$1216,5,FALSE),DATA!$C$2:$CAP$14,8,FALSE)/DATA!$H$9*1000000,"0.0"),"NA") -> 19.1 | J38: =IFERROR(TEXT(HLOOKUP(VLOOKUP($G38,INDEXTBL!$C$1:$O$1216,5,FALSE),DATA!$C$2:$CAP$14,7,FALSE)/DATA!$H$8*1000000,"0.0"),"NA") -> 36.3 | K38: =IFERROR(TEXT(MAX(OFFSET(DATA!$A$1,14,MATCH(VLOOKUP($G38,INDEXTBL!$C$1:$O$1216,5,FALSE),DATA!$A$2:$CAP$2,0)-1,47,1)/DATA!$H$15:$H$61*1000000),"0.0") &" （"& L38 & "）","NA") -> 73.3 （京都府） | L38: =INDEX(DATA!$C$15:$C$61,MATCH(MAX(OFFSET(DATA!$A$1,14,MATCH(VLOOKUP($G38,INDEXTBL!$C$1:$O$1216,5,FALSE),DATA!$A$2:$CAP$2,0)-1,47,1)/DATA!$H$15:$H$61*1000000),OFFSET(DATA!$A$1,14,MATCH(VLOOKUP($G38,INDEXTBL!$C$1:$O$1216,5,FALSE),DATA!$A$2:$CAP$2,0)-1,47,1)/DATA!$H$15:$H$61*1000000,0)) -> 京都府 | M38: ＊＊
G39: 個D-030407 | H39: =VLOOKUP(G39,INDEXTBL!$C$1:$O$1216,3,FALSE) -> 小児看護専門看護師（人） | I39: =IFERROR(TEXT(HLOOKUP(VLOOKUP($G39,INDEXTBL!$C$1:$O$1216,5,FALSE),DATA!$C$2:$CAP$14,8,FALSE)/DATA!$H$9*1000000,"0.0"),"NA") -> 2.0 | J39: =IFERROR(TEXT(HLOOKUP(VLOOKUP($G39,INDEXTBL!$C$1:$O$1216,5,FALSE),DATA!$C$2:$CAP$14,7,FALSE)/DATA!$H$8*1000000,"0.0"),"NA") -> 2.0 | K39: =IFERROR(TEXT(MAX(OFFSET(DATA!$A$1,14,MATCH(VLOOKUP($G39,INDEXTBL!$C$1:$O$1216,5,FALSE),DATA!$A$2:$CAP$2,0)-1,47,1)/DATA!$H$15:$H$61*1000000),"0.0") &" （"& L39 & "）","NA") -> 11.6 （高知県） | L39: =INDEX(DATA!$C$15:$C$61,MATCH(MAX(OFFSET(DATA!$A$1,14,MATCH(VLOOKUP($G39,INDEXTBL!$C$1:$O$1216,5,FALSE),DATA!$A$2:$CAP$2,0)-1,47,1)/DATA!$H$15:$H$61*1000000),OFFSET(DATA!$A$1,14,MATCH(VLOOKUP($G39,INDEXTBL!$C$1:$O$1216,5,FALSE),DATA!$A$2:$CAP$2,0)-1,47,1)/DATA!$H$15:$H$61*1000000,0)) -> 高知県 | M39: ＊＊
G40: 個D-030408 | H40: =VLOOKUP(G40,INDEXTBL!$C$1:$O$1216,3,FALSE) -> がん看護専門看護師（人） | I40: =IFERROR(TEXT(HLOOKUP(VLOOKUP($G40,INDEXTBL!$C$1:$O$1216,5,FALSE),DATA!$C$2:$CAP$14,8,FALSE)/DATA!$H$9*1000000,"0.0"),"NA") -> 7.5 | J40: =IFERROR(TEXT(HLOOKUP(VLOOKUP($G40,INDEXTBL!$C$1:$O$1216,5,FALSE),DATA!$C$2:$CAP$14,7,FALSE)/DATA!$H$8*1000000,"0.0"),"NA") -> 7.2 | K40: =IFERROR(TEXT(MAX(OFFSET(DATA!$A$1,14,MATCH(VLOOKUP($G40,INDEXTBL!$C$1:$O$1216,5,FALSE),DATA!$A$2:$CAP$2,0)-1,47,1)/DATA!$H$15:$H$61*1000000),"0.0") &" （"& L40 & "）","NA") -> 21.7 （高知県） | L40: =INDEX(DATA!$C$15:$C$61,MATCH(MAX(OFFSET(DATA!$A$1,14,MATCH(VLOOKUP($G40,INDEXTBL!$C$1:$O$1216,5,FALSE),DATA!$A$2:$CAP$2,0)-1,47,1)/DATA!$H$15:$H$61*1000000),OFFSET(DATA!$A$1,14,MATCH(VLOOKUP($G40,INDEXTBL!$C$1:$O$1216,5,FALSE),DATA!$A$2:$CAP$2,0)-1,47,1)/DATA!$H$15:$H$61*1000000,0)) -> 高知県 | M40: ＊＊
G41: 個D-030409 | H41: =VLOOKUP(G41,INDEXTBL!$C$1:$O$1216,3,FALSE) -> がん薬物療法看護認定看護師（人） | I41: =IFERROR(TEXT(HLOOKUP(VLOOKUP($G41,INDEXTBL!$C$1:$O$1216,5,FALSE),DATA!$C$2:$CAP$14,8,FALSE)/DATA!$H$9*1000000,"0.0"),"NA") -> 0.0 | J41: =IFERROR(TEXT(HLOOKUP(VLOOKUP($G41,INDEXTBL!$C$1:$O$1216,5,FALSE),DATA!$C$2:$CAP$14,7,FALSE)/DATA!$H$8*1000000,"0.0"),"NA") -> 0.7 | K41: =IFERROR(TEXT(MAX(OFFSET(DATA!$A$1,14,MATCH(VLOOKUP($G41,INDEXTBL!$C$1:$O$1216,5,FALSE),DATA!$A$2:$CAP$2,0)-1,47,1)/DATA!$H$15:$H$61*1000000),"0.0") &" （"& L41 & "）","NA") -> 4.7 （山形県） | L41: =INDEX(DATA!$C$15:$C$61,MATCH(MAX(OFFSET(DATA!$A$1,14,MATCH(VLOOKUP($G41,INDEXTBL!$C$1:$O$1216,5,FALSE),DATA!$A$2:$CAP$2,0)-1,47,1)/DATA!$H$15:$H$61*1000000),OFFSET(DATA!$A$1,14,MATCH(VLOOKUP($G41,INDEXTBL!$C$1:$O$1216,5,FALSE),DATA!$A$2:$CAP$2,0)-1,47,1)/DATA!$H$15:$H$61*1000000,0)) -> 山形県 | M41: ＊＊
G42: 個D-030410 | H42: =VLOOKUP(G42,INDEXTBL!$C$1:$O$1216,3,FALSE) -> 緩和ケア認定看護師（人） | I42: =IFERROR(TEXT(HLOOKUP(VLOOKUP($G42,INDEXTBL!$C$1:$O$1216,5,FALSE),DATA!$C$2:$CAP$14,8,FALSE)/DATA!$H$9*1000000,"0.0"),"NA") -> 22.5 | J42: =IFERROR(TEXT(HLOOKUP(VLOOKUP($G42,INDEXTBL!$C$1:$O$1216,5,FALSE),DATA!$C$2:$CAP$14,7,FALSE)/DATA!$H$8*1000000,"0.0"),"NA") -> 15.5 | K42: =IFERROR(TEXT(MAX(OFFSET(DATA!$A$1,14,MATCH(VLOOKUP($G42,INDEXTBL!$C$1:$O$1216,5,FALSE),DATA!$A$2:$CAP$2,0)-1,47,1)/DATA!$H$15:$H$61*1000000),"0.0") &" （"& L42 & "）","NA") -> 61.7 （山梨県） | L42: =INDEX(DATA!$C$15:$C$61,MATCH(MAX(OFFSET(DATA!$A$1,14,MATCH(VLOOKUP($G42,INDEXTBL!$C$1:$O$1216,5,FALSE),DATA!$A$2:$CAP$2,0)-1,47,1)/DATA!$H$15:$H$61*1000000),OFFSET(DATA!$A$1,14,MATCH(VLOOKUP($G42,INDEXTBL!$C$1:$O$1216,5,FALSE),DATA!$A$2:$CAP$2,0)-1,47,1)/DATA!$H$15:$H$61*1000000,0)) -> 山梨県 | M42: ＊＊
G43: 個D-030411 | H43: =VLOOKUP(G43,INDEXTBL!$C$1:$O$1216,3,FALSE) -> 琉球大学病院または県立こども医療センターに常勤で勤務している小児血液・がん専門医（人） | I43: =IFERROR(HLOOKUP(VLOOKUP($G43,INDEXTBL!$C$1:$O$1216,$C$3,FALSE),DATA!$C$2:$CAP$14,8,FALSE),"NA") -> NA | J43: =IFERROR(HLOOKUP(VLOOKUP($G43,INDEXTBL!$C$1:$O$1216,$C$3,FALSE),DATA!$C$2:$CAP$14,7,FALSE),"NA") -> NA | K43: =IFERROR(HLOOKUP(VLOOKUP($G43,INDEXTBL!$C$1:$O$1216,$C$3,FALSE),DATA!$C$2:$CAP$14,10,FALSE),"NA") -> NA
G44: 個D-030412 | H44: =VLOOKUP(G44,INDEXTBL!$C$1:$O$1216,3,FALSE) -> 琉球大学病院または県立こども医療センターに常勤で勤務している小児外科専門医（人） | I44: =IFERROR(HLOOKUP(VLOOKUP($G44,INDEXTBL!$C$1:$O$1216,$C$3,FALSE),DATA!$C$2:$CAP$14,8,FALSE),"NA") -> NA | J44: =IFERROR(HLOOKUP(VLOOKUP($G44,INDEXTBL!$C$1:$O$1216,$C$3,FALSE),DATA!$C$2:$CAP$14,7,FALSE),"NA") -> NA | K44: =IFERROR(HLOOKUP(VLOOKUP($G44,INDEXTBL!$C$1:$O$1216,$C$3,FALSE),DATA!$C$2:$CAP$14,10,FALSE),"NA") -> NA
G45: 個D-030413 | H45: =VLOOKUP(G45,INDEXTBL!$C$1:$O$1216,3,FALSE) -> 琉球大学病院または県立こども医療センターに常勤で勤務している小児がん認定外科医（人） | I45: =IFERROR(HLOOKUP(VLOOKUP($G45,INDEXTBL!$C$1:$O$1216,$C$3,FALSE),DATA!$C$2:$CAP$14,8,FALSE),"NA") -> NA | J45: =IFERROR(HLOOKUP(VLOOKUP($G45,INDEXTBL!$C$1:$O$1216,$C$3,FALSE),DATA!$C$2:$CAP$14,7,FALSE),"NA") -> NA | K45: =IFERROR(HLOOKUP(VLOOKUP($G45,INDEXTBL!$C$1:$O$1216,$C$3,FALSE),DATA!$C$2:$CAP$14,10,FALSE),"NA") -> NA
G46: 個D-030414 | H46: =VLOOKUP(G46,INDEXTBL!$C$1:$O$1216,3,FALSE) -> 琉球大学病院または県立こども医療センターに常勤で勤務している血液専門医（人） | I46: =IFERROR(HLOOKUP(VLOOKUP($G46,INDEXTBL!$C$1:$O$1216,$C$3,FALSE),DATA!$C$2:$CAP$14,8,FALSE),"NA") -> NA | J46: =IFERROR(HLOOKUP(VLOOKUP($G46,INDEXTBL!$C$1:$O$1216,$C$3,FALSE),DATA!$C$2:$CAP$14,7,FALSE),"NA") -> NA | K46: =IFERROR(HLOOKUP(VLOOKUP($G46,INDEXTBL!$C$1:$O$1216,$C$3,FALSE),DATA!$C$2:$CAP$14,10,FALSE),"NA") -> NA
G47: 個D-030415 | H47: =VLOOKUP(G47,INDEXTBL!$C$1:$O$1216,3,FALSE) -> 琉球大学病院または県立こども医療センターに常勤で勤務している小児看護専門看護師（人） | I47: =IFERROR(HLOOKUP(VLOOKUP($G47,INDEXTBL!$C$1:$O$1216,$C$3,FALSE),DATA!$C$2:$CAP$14,8,FALSE),"NA") -> NA | J47: =IFERROR(HLOOKUP(VLOOKUP($G47,INDEXTBL!$C$1:$O$1216,$C$3,FALSE),DATA!$C$2:$CAP$14,7,FALSE),"NA") -> NA | K47: =IFERROR(HLOOKUP(VLOOKUP($G47,INDEXTBL!$C$1:$O$1216,$C$3,FALSE),DATA!$C$2:$CAP$14,10,FALSE),"NA") -> NA
G48: 個D-030416 | H48: =VLOOKUP(G48,INDEXTBL!$C$1:$O$1216,3,FALSE) -> 琉球大学病院または県立こども医療センターに常勤で勤務しているがん看護専門看護師（人） | I48: =IFERROR(HLOOKUP(VLOOKUP($G48,INDEXTBL!$C$1:$O$1216,$C$3,FALSE),DATA!$C$2:$CAP$14,8,FALSE),"NA") -> NA | J48: =IFERROR(HLOOKUP(VLOOKUP($G48,INDEXTBL!$C$1:$O$1216,$C$3,FALSE),DATA!$C$2:$CAP$14,7,FALSE),"NA") -> NA | K48: =IFERROR(HLOOKUP(VLOOKUP($G48,INDEXTBL!$C$1:$O$1216,$C$3,FALSE),DATA!$C$2:$CAP$14,10,FALSE),"NA") -> NA
G49: 個D-030417 | H49: =VLOOKUP(G49,INDEXTBL!$C$1:$O$1216,3,FALSE) -> 琉球大学病院または県立こども医療センターに常勤で勤務しているがん薬物療法看護認定看護師（人） | I49: =IFERROR(HLOOKUP(VLOOKUP($G49,INDEXTBL!$C$1:$O$1216,$C$3,FALSE),DATA!$C$2:$CAP$14,8,FALSE),"NA") -> NA | J49: =IFERROR(HLOOKUP(VLOOKUP($G49,INDEXTBL!$C$1:$O$1216,$C$3,FALSE),DATA!$C$2:$CAP$14,7,FALSE),"NA") -> NA | K49: =IFERROR(HLOOKUP(VLOOKUP($G49,INDEXTBL!$C$1:$O$1216,$C$3,FALSE),DATA!$C$2:$CAP$14,10,FALSE),"NA") -> NA
G50: 個D-030418 | H50: =VLOOKUP(G50,INDEXTBL!$C$1:$O$1216,3,FALSE) -> 琉球大学病院または県立こども医療センターに常勤で勤務している緩和ケア認定看護師（人） | I50: =IFERROR(HLOOKUP(VLOOKUP($G50,INDEXTBL!$C$1:$O$1216,$C$3,FALSE),DATA!$C$2:$CAP$14,8,FALSE),"NA") -> NA | J50: =IFERROR(HLOOKUP(VLOOKUP($G50,INDEXTBL!$C$1:$O$1216,$C$3,FALSE),DATA!$C$2:$CAP$14,7,FALSE),"NA") -> NA | K50: =IFERROR(HLOOKUP(VLOOKUP($G50,INDEXTBL!$C$1:$O$1216,$C$3,FALSE),DATA!$C$2:$CAP$14,10,FALSE),"NA") -> NA
E51: 個D-0305 | H51: =VLOOKUP(E51,INDEXTBL!$A$1:$O$1216,2,FALSE) -> 小児がん患者に対して、晩期合併症の検索も含めて、長期フォローアップを行う | I51: 沖縄県 | J51: 全国 | K51: 最良値 （都道府県）
G52: 個D-030501 | H52: =VLOOKUP(G52,INDEXTBL!$C$1:$O$1216,3,FALSE) -> 長期フォローアップ外来を設置している施設数 | I52: =IFERROR(HLOOKUP(VLOOKUP($G52,INDEXTBL!$C$1:$O$1216,5,FALSE),DATA!$C$2:$CAP$14,8,FALSE),"NA") -> 4 | J52: =IFERROR(HLOOKUP(VLOOKUP($G52,INDEXTBL!$C$1:$O$1216,5,FALSE),DATA!$C$2:$CAP$14,7,FALSE),"NA") -> NA | K52: =IFERROR(_xlfn.AGGREGATE(4,7,OFFSET(DATA!$A$1,14,MATCH(VLOOKUP($G52,INDEXTBL!$C$1:$O$1216,5,FALSE),DATA!$A$2:$CAP$2,0)-1,47,1)) &" （"& L52 & "）","NA") -> NA | L52: =INDEX(DATA!$C$15:$C$61,MATCH(_xlfn.AGGREGATE(4,7,OFFSET(DATA!$A$1,14,MATCH(VLOOKUP($G52,INDEXTBL!$C$1:$O$1216,5,FALSE),DATA!$A$2:$CAP$2,0)-1,47,1)),OFFSET(DATA!$A$1,14,MATCH(VLOOKUP($G52,INDEXTBL!$C$1:$O$1216,5,FALSE),DATA!$A$2:$CAP$2,0)-1,47,1),0)) -> 
G53: 個D-030502 | H53: =VLOOKUP(G53,INDEXTBL!$C$1:$O$1216,3,FALSE) -> 長期フォローアップ外来で長期にフォローアップをしている小児がん患者数（人） | I53: =IFERROR(HLOOKUP(VLOOKUP($G53,INDEXTBL!$C$1:$O$1216,$C$3,FALSE),DATA!$C$2:$CAP$14,8,FALSE),"NA") -> NA | J53: =IFERROR(HLOOKUP(VLOOKUP($G53,INDEXTBL!$C$1:$O$1216,$C$3,FALSE),DATA!$C$2:$CAP$14,7,FALSE),"NA") -> NA | K53: =IFERROR(HLOOKUP(VLOOKUP($G53,INDEXTBL!$C$1:$O$1216,$C$3,FALSE),DATA!$C$2:$CAP$14,10,FALSE),"NA") -> NA
E54: 個D-0306 | H54: =VLOOKUP(E54,INDEXTBL!$A$1:$O$1216,2,FALSE) -> 小児がん患者に対して、治療と並行した学業の継続、治療終了後の進学や就職に対しての支援を行う | I54: 沖縄県 | J54: 全国 | K54: 最良値 （都道府県）
G55: 個D-030601 | H55: =VLOOKUP(G55,INDEXTBL!$C$1:$O$1216,3,FALSE) -> がん相談支援センターにおける小児がん患者の教育に関する相談件数 | I55: =IFERROR(HLOOKUP(VLOOKUP($G55,INDEXTBL!$C$1:$O$1216,$C$3,FALSE),DATA!$C$2:$CAP$14,8,FALSE),"NA") -> NA | J55: =IFERROR(HLOOKUP(VLOOKUP($G55,INDEXTBL!$C$1:$O$1216,$C$3,FALSE),DATA!$C$2:$CAP$14,7,FALSE),"NA") -> NA | K55: =IFERROR(HLOOKUP(VLOOKUP($G55,INDEXTBL!$C$1:$O$1216,$C$3,FALSE),DATA!$C$2:$CAP$14,10,FALSE),"NA") -> NA
G56: 個D-030602 | H56: =VLOOKUP(G56,INDEXTBL!$C$1:$O$1216,3,FALSE) -> がん相談支援センターにおける小児がん患者の就労に関する相談件数 | I56: =IFERROR(HLOOKUP(VLOOKUP($G56,INDEXTBL!$C$1:$O$1216,$C$3,FALSE),DATA!$C$2:$CAP$14,8,FALSE),"NA") -> NA | J56: =IFERROR(HLOOKUP(VLOOKUP($G56,INDEXTBL!$C$1:$O$1216,$C$3,FALSE),DATA!$C$2:$CAP$14,7,FALSE),"NA") -> NA | K56: =IFERROR(HLOOKUP(VLOOKUP($G56,INDEXTBL!$C$1:$O$1216,$C$3,FALSE),DATA!$C$2:$CAP$14,10,FALSE),"NA") -> NA
E57: 個D-0307 | H57: =VLOOKUP(E57,INDEXTBL!$A$1:$O$1216,2,FALSE) -> 小児がん患者の家族、特に両親や同胞への支援を行う | I57: 沖縄県 | J57: 全国 | K57: 最良値 （都道府県）
G58: 個D-030701 | H58: =VLOOKUP(G58,INDEXTBL!$C$1:$O$1216,3,FALSE) -> 小児がんに関する患者団体数 | I58: =IFERROR(HLOOKUP(VLOOKUP($G58,INDEXTBL!$C$1:$O$1216,5,FALSE),DATA!$C$2:$CAP$14,8,FALSE),"NA") -> 4 | J58: =IFERROR(HLOOKUP(VLOOKUP($G58,INDEXTBL!$C$1:$O$1216,5,FALSE),DATA!$C$2:$CAP$14,7,FALSE),"NA") -> NA | K58: =IFERROR(_xlfn.AGGREGATE(4,7,OFFSET(DATA!$A$1,14,MATCH(VLOOKUP($G58,INDEXTBL!$C$1:$O$1216,5,FALSE),DATA!$A$2:$CAP$2,0)-1,47,1)) &" （"& L58 & "）","NA") -> NA | L58: =INDEX(DATA!$C$15:$C$61,MATCH(_xlfn.AGGREGATE(4,7,OFFSET(DATA!$A$1,14,MATCH(VLOOKUP($G58,INDEXTBL!$C$1:$O$1216,5,FALSE),DATA!$A$2:$CAP$2,0)-1,47,1)),OFFSET(DATA!$A$1,14,MATCH(VLOOKUP($G58,INDEXTBL!$C$1:$O$1216,5,FALSE),DATA!$A$2:$CAP$2,0)-1,47,1),0)) -> 
K59: ＊＊：人口100万人あたり
E60: ④AYA世代のがん
E61: 個D-0401 | H61: =VLOOKUP(E61,INDEXTBL!$A$1:$O$1216,2,FALSE) -> AYA世代のがん患者及びその家族に対して、十分な情報を提供する | I61: 沖縄県 | J61: 全国 | K61: 最良値 （都道府県） | O61: 個B-0401 | R61: =VLOOKUP(O61,INDEXTBL!$A$1:$O$1216,2,FALSE) -> AYA世代のがん患者の生存率の改善ができている | S61: 沖縄県 | T61: 全国 | U61: 最良値 （都道府県）
G62: 個D-040101 | H62: =VLOOKUP(G62,INDEXTBL!$C$1:$O$1216,3,FALSE) -> ※（検討中） | I62: =IFERROR(HLOOKUP(VLOOKUP($G62,INDEXTBL!$C$1:$O$1216,$C$3,FALSE),DATA!$C$2:$CAP$14,8,FALSE),"NA") -> NA | J62: =IFERROR(HLOOKUP(VLOOKUP($G62,INDEXTBL!$C$1:$O$1216,$C$3,FALSE),DATA!$C$2:$CAP$14,7,FALSE),"NA") -> NA | K62: =IFERROR(HLOOKUP(VLOOKUP($G62,INDEXTBL!$C$1:$O$1216,$C$3,FALSE),DATA!$C$2:$CAP$14,10,FALSE),"NA") -> NA | Q62: 個B-040101 | R62: =VLOOKUP(Q62,INDEXTBL!$C$1:$O$1216,3,FALSE) -> AYA世代のがんの5年生存率【再掲】 | S62: =IFERROR(HLOOKUP(VLOOKUP($Q62,INDEXTBL!$C$1:$O$1216,$C$3,FALSE),DATA!$C$2:$CAP$14,8,FALSE),"NA") -> NA | T62: =IFERROR(HLOOKUP(VLOOKUP($Q62,INDEXTBL!$C$1:$O$1216,$C$3,FALSE),DATA!$C$2:$CAP$14,7,FALSE),"NA") -> NA | U62: =IFERROR(HLOOKUP(VLOOKUP($Q62,INDEXTBL!$C$1:$O$1216,$C$3,FALSE),DATA!$C$2:$CAP$14,10,FALSE),"NA") -> NA
E63: 個D-0402 | H63: =VLOOKUP(E63,INDEXTBL!$A$1:$O$1216,2,FALSE) -> AYA世代のがん患者及びその家族に対して、十分な相談支援を提供する | I63: 沖縄県 | J63: 全国 | K63: 最良値 （都道府県） | O63: 個B-0402 | R63: =VLOOKUP(O63,INDEXTBL!$A$1:$O$1216,2,FALSE) -> AYA世代のがん患者及びその家族の苦痛の軽減並びに療養生活の質の維持向上ができている | S63: 沖縄県 | T63: 全国 | U63: 最良値 （都道府県）
G64: 個D-040201 | H64: =VLOOKUP(G64,INDEXTBL!$C$1:$O$1216,3,FALSE) -> がん相談支援センターに相談したAYA世代のがん患者数（人） | I64: =IFERROR(HLOOKUP(VLOOKUP($G64,INDEXTBL!$C$1:$O$1216,$C$3,FALSE),DATA!$C$2:$CAP$14,8,FALSE),"NA") -> NA | J64: =IFERROR(HLOOKUP(VLOOKUP($G64,INDEXTBL!$C$1:$O$1216,$C$3,FALSE),DATA!$C$2:$CAP$14,7,FALSE),"NA") -> NA | K64: =IFERROR(HLOOKUP(VLOOKUP($G64,INDEXTBL!$C$1:$O$1216,$C$3,FALSE),DATA!$C$2:$CAP$14,10,FALSE),"NA") -> NA | Q64: 個B-040201 | R64: =VLOOKUP(Q64,INDEXTBL!$C$1:$O$1216,3,FALSE) -> （患者体験調査）＜若年がん患者のみ＞治療開始前に、就労継続について説明を受けたがん患者の割合（％） | S64: =IFERROR(TEXT(HLOOKUP(VLOOKUP($Q64,INDEXTBL!$C$1:$O$1216,11,FALSE),DATA!$C$2:$CAP$14,8,FALSE),"0.0")&"%","NA") -> 27.2% | T64: =IFERROR(TEXT(HLOOKUP(VLOOKUP($Q64,INDEXTBL!$C$1:$O$1216,11,FALSE),DATA!$C$2:$CAP$14,7,FALSE),"0.0")&"%","NA") -> 38.6% | U64: =IFERROR(TEXT(_xlfn.AGGREGATE(4,7,OFFSET(DATA!$A$1,14,MATCH(VLOOKUP($Q64,INDEXTBL!$C$1:$O$1216,11,FALSE),DATA!$A$2:$CAP$2,0)-1,47,1)),"0.0")&"%" &" （"& V64 & "）","NA") -> 53.6% （神奈川県） | V64: =INDEX(DATA!$C$15:$C$61,MATCH(_xlfn.AGGREGATE(4,7,OFFSET(DATA!$A$1,14,MATCH(VLOOKUP($Q64,INDEXTBL!$C$1:$O$1216,11,FALSE),DATA!$A$2:$CAP$2,0)-1,47,1)),OFFSET(DATA!$A$1,14,MATCH(VLOOKUP($Q64,INDEXTBL!$C$1:$O$1216,11,FALSE),DATA!$A$2:$CAP$2,0)-1,47,1),0)) -> 神奈川県
E65: 個D-0403 | H65: =VLOOKUP(E65,INDEXTBL!$A$1:$O$1216,2,FALSE) -> AYA世代のがん患者が、速やかにがん診療連携拠点病院（以下、拠点病院)に紹介する | I65: 沖縄県 | J65: 全国 | K65: 最良値 （都道府県） | Q65: 個B-040202 | R65: =VLOOKUP(Q65,INDEXTBL!$C$1:$O$1216,3,FALSE) -> （医療者調査）AYA世代のがん患者のうち、診断又は治療目的で、県内のがん診療連携拠点病院（県立中部病院、那覇市立病院または琉球大学病院）または本土の専門医療機関に紹介した割合が75%以上であると回答した人の割合（％）（県立中部病院、那覇市立病院、琉球大学病院以外の方） | S65: =IFERROR(TEXT(HLOOKUP(VLOOKUP($Q65,INDEXTBL!$C$1:$O$1216,13,FALSE),DATA!$C$2:$CAP$14,8,FALSE)*100,"0.0")&"%","NA") -> 35.0% | T65: =IFERROR(TEXT(HLOOKUP(VLOOKUP($Q65,INDEXTBL!$C$1:$O$1216,11,FALSE),DATA!$C$2:$CAP$14,7,FALSE)*100,"0.0")&"%","NA") -> NA | U65: =IFERROR(TEXT(_xlfn.AGGREGATE(4,7,OFFSET(DATA!$A$1,14,MATCH(VLOOKUP($Q65,INDEXTBL!$C$1:$O$1216,11,FALSE),DATA!$A$2:$CAP$2,0)-1,47,1)),"0.0")&"%" &" （"& V65 & "）","NA") -> NA | V65: =INDEX(DATA!$C$15:$C$61,MATCH(_xlfn.AGGREGATE(4,7,OFFSET(DATA!$A$1,14,MATCH(VLOOKUP($Q65,INDEXTBL!$C$1:$O$1216,11,FALSE),DATA!$A$2:$CAP$2,0)-1,47,1)),OFFSET(DATA!$A$1,14,MATCH(VLOOKUP($Q65,INDEXTBL!$C$1:$O$1216,11,FALSE),DATA!$A$2:$CAP$2,0)-1,47,1),0)) -> 
G66: 個D-040301 | H66: =VLOOKUP(G66,INDEXTBL!$C$1:$O$1216,3,FALSE) -> 拠点病院等で治療を受けたAYA世代のがん患者の割合（％） | I66: =IFERROR(TEXT(HLOOKUP(VLOOKUP($G66,INDEXTBL!$C$1:$O$1216,5,FALSE),DATA!$C$2:$CAP$14,8,FALSE)*100,"0.0")&"%","NA") -> 41.4% | J66: =IFERROR(TEXT(HLOOKUP(VLOOKUP($G66,INDEXTBL!$C$1:$O$1216,5,FALSE),DATA!$C$2:$CAP$14,7,FALSE)*100,"0.0")&"%","NA") -> NA | K66: =IFERROR(TEXT(_xlfn.AGGREGATE(4,7,OFFSET(DATA!$A$1,14,MATCH(VLOOKUP($G66,INDEXTBL!$C$1:$O$1216,5,FALSE),DATA!$A$2:$CAP$2,0)-1,47,1)),"0.0")&"%" &" （"& L66 & "）","NA") -> NA | L66: =INDEX(DATA!$C$15:$C$61,MATCH(_xlfn.AGGREGATE(4,7,OFFSET(DATA!$A$1,14,MATCH(VLOOKUP($G66,INDEXTBL!$C$1:$O$1216,5,FALSE),DATA!$A$2:$CAP$2,0)-1,47,1)),OFFSET(DATA!$A$1,14,MATCH(VLOOKUP($G66,INDEXTBL!$C$1:$O$1216,5,FALSE),DATA!$A$2:$CAP$2,0)-1,47,1),0)) ->  | Q66: 個B-040203 | R66: =VLOOKUP(Q66,INDEXTBL!$C$1:$O$1216,3,FALSE) -> （医療者調査）上記医療機関に紹介できなかった理由について、具体的にお書きください。 | S66: =IFERROR(HLOOKUP(VLOOKUP($Q66,INDEXTBL!$C$1:$O$1216,$C$3,FALSE),DATA!$C$2:$CAP$14,8,FALSE),"NA") -> NA | T66: =IFERROR(HLOOKUP(VLOOKUP($Q66,INDEXTBL!$C$1:$O$1216,$C$3,FALSE),DATA!$C$2:$CAP$14,7,FALSE),"NA") -> NA | U66: =IFERROR(HLOOKUP(VLOOKUP($Q66,INDEXTBL!$C$1:$O$1216,$C$3,FALSE),DATA!$C$2:$CAP$14,10,FALSE),"NA") -> NA
E67: 個D-0404 | H67: =VLOOKUP(E67,INDEXTBL!$A$1:$O$1216,2,FALSE) -> AYA世代のがん患者に対して、最新の知見に基づく、臨床試験や治験も含めての最適な治療が、タイムリーで質が高く、安全に実施する | I67: 沖縄県 | J67: 全国 | K67: 最良値 （都道府県）
G68: 個D-040401 | H68: =VLOOKUP(G68,INDEXTBL!$C$1:$O$1216,3,FALSE) -> 拠点病院等において参加が可能な臨床試験や治験の数 | I68: =IFERROR(HLOOKUP(VLOOKUP($G68,INDEXTBL!$C$1:$O$1216,$C$3,FALSE),DATA!$C$2:$CAP$14,8,FALSE),"NA") -> NA | J68: =IFERROR(HLOOKUP(VLOOKUP($G68,INDEXTBL!$C$1:$O$1216,$C$3,FALSE),DATA!$C$2:$CAP$14,7,FALSE),"NA") -> NA | K68: =IFERROR(HLOOKUP(VLOOKUP($G68,INDEXTBL!$C$1:$O$1216,$C$3,FALSE),DATA!$C$2:$CAP$14,10,FALSE),"NA") -> NA
G69: 個D-040402 | H69: =VLOOKUP(G69,INDEXTBL!$C$1:$O$1216,3,FALSE) -> 臨床試験等を受けたAYA世代のがん患者数（人） | I69: =IFERROR(HLOOKUP(VLOOKUP($G69,INDEXTBL!$C$1:$O$1216,$C$3,FALSE),DATA!$C$2:$CAP$14,8,FALSE),"NA") -> NA | J69: =IFERROR(HLOOKUP(VLOOKUP($G69,INDEXTBL!$C$1:$O$1216,$C$3,FALSE),DATA!$C$2:$CAP$14,7,FALSE),"NA") -> NA | K69: =IFERROR(HLOOKUP(VLOOKUP($G69,INDEXTBL!$C$1:$O$1216,$C$3,FALSE),DATA!$C$2:$CAP$14,10,FALSE),"NA") -> NA
E70: 個D-0405 | H70: =VLOOKUP(E70,INDEXTBL!$A$1:$O$1216,2,FALSE) -> AYA世代のがん患者に対して、晩期合併症の検索も含めて、長期フォローアップを行う | I70: 沖縄県 | J70: 全国 | K70: 最良値 （都道府県）
G71: 個D-040501 | H71: =VLOOKUP(G71,INDEXTBL!$C$1:$O$1216,3,FALSE) -> 長期フォローアップ外来を設置している施設数【再掲】 | I71: =IFERROR(HLOOKUP(VLOOKUP($G71,INDEXTBL!$C$1:$O$1216,5,FALSE),DATA!$C$2:$CAP$14,8,FALSE),"NA") -> 4 | J71: =IFERROR(HLOOKUP(VLOOKUP($G71,INDEXTBL!$C$1:$O$1216,5,FALSE),DATA!$C$2:$CAP$14,7,FALSE),"NA") -> NA | K71: =IFERROR(_xlfn.AGGREGATE(4,7,OFFSET(DATA!$A$1,14,MATCH(VLOOKUP($G71,INDEXTBL!$C$1:$O$1216,5,FALSE),DATA!$A$2:$CAP$2,0)-1,47,1)) &" （"& L71 & "）","NA") -> NA | L71: =INDEX(DATA!$C$15:$C$61,MATCH(_xlfn.AGGREGATE(4,7,OFFSET(DATA!$A$1,14,MATCH(VLOOKUP($G71,INDEXTBL!$C$1:$O$1216,5,FALSE),DATA!$A$2:$CAP$2,0)-1,47,1)),OFFSET(DATA!$A$1,14,MATCH(VLOOKUP($G71,INDEXTBL!$C$1:$O$1216,5,FALSE),DATA!$A$2:$CAP$2,0)-1,47,1),0)) -> 
G72: 個D-040502 | H72: =VLOOKUP(G72,INDEXTBL!$C$1:$O$1216,3,FALSE) -> 小児・AYA世代のがんの長期フォローアップに関する研修会参加人数（人） | I72: =IFERROR(HLOOKUP(VLOOKUP($G72,INDEXTBL!$C$1:$O$1216,$C$3,FALSE),DATA!$C$2:$CAP$14,8,FALSE),"NA") -> NA | J72: =IFERROR(HLOOKUP(VLOOKUP($G72,INDEXTBL!$C$1:$O$1216,$C$3,FALSE),DATA!$C$2:$CAP$14,7,FALSE),"NA") -> NA | K72: =IFERROR(HLOOKUP(VLOOKUP($G72,INDEXTBL!$C$1:$O$1216,$C$3,FALSE),DATA!$C$2:$CAP$14,10,FALSE),"NA") -> NA
G73: 個D-040503 | H73: =VLOOKUP(G73,INDEXTBL!$C$1:$O$1216,3,FALSE) -> 長期フォローアップ外来で長期にフォローアップをしているAYA世代のがん患者数（人） | I73: =IFERROR(HLOOKUP(VLOOKUP($G73,INDEXTBL!$C$1:$O$1216,$C$3,FALSE),DATA!$C$2:$CAP$14,8,FALSE),"NA") -> NA | J73: =IFERROR(HLOOKUP(VLOOKUP($G73,INDEXTBL!$C$1:$O$1216,$C$3,FALSE),DATA!$C$2:$CAP$14,7,FALSE),"NA") -> NA | K73: =IFERROR(HLOOKUP(VLOOKUP($G73,INDEXTBL!$C$1:$O$1216,$C$3,FALSE),DATA!$C$2:$CAP$14,10,FALSE),"NA") -> NA
E74: 個D-0406 | H74: =VLOOKUP(E74,INDEXTBL!$A$1:$O$1216,2,FALSE) -> AYA世代のがん患者に対して、治療と並行した学業や就労の継続、治療終了後の進学や就職に対しての支援を行う | I74: 沖縄県 | J74: 全国 | K74: 最良値 （都道府県）
G75: 個D-040601 | H75: =VLOOKUP(G75,INDEXTBL!$C$1:$O$1216,3,FALSE) -> がん相談支援センターにおける、AYA世代のがん患者の発育及び療養上の相談への対応・支援のうち、教育に関する相談件数 | I75: =IFERROR(HLOOKUP(VLOOKUP($G75,INDEXTBL!$C$1:$O$1216,$C$3,FALSE),DATA!$C$2:$CAP$14,8,FALSE),"NA") -> NA | J75: =IFERROR(HLOOKUP(VLOOKUP($G75,INDEXTBL!$C$1:$O$1216,$C$3,FALSE),DATA!$C$2:$CAP$14,7,FALSE),"NA") -> NA | K75: =IFERROR(HLOOKUP(VLOOKUP($G75,INDEXTBL!$C$1:$O$1216,$C$3,FALSE),DATA!$C$2:$CAP$14,10,FALSE),"NA") -> NA
G76: 個D-040602 | H76: =VLOOKUP(G76,INDEXTBL!$C$1:$O$1216,3,FALSE) -> がん相談支援センターにおける、AYA世代のがん患者に対する就労に関する相談件数 | I76: =IFERROR(HLOOKUP(VLOOKUP($G76,INDEXTBL!$C$1:$O$1216,$C$3,FALSE),DATA!$C$2:$CAP$14,8,FALSE),"NA") -> NA | J76: =IFERROR(HLOOKUP(VLOOKUP($G76,INDEXTBL!$C$1:$O$1216,$C$3,FALSE),DATA!$C$2:$CAP$14,7,FALSE),"NA") -> NA | K76: =IFERROR(HLOOKUP(VLOOKUP($G76,INDEXTBL!$C$1:$O$1216,$C$3,FALSE),DATA!$C$2:$CAP$14,10,FALSE),"NA") -> NA
E77: 個D-0407 | H77: =VLOOKUP(E77,INDEXTBL!$A$1:$O$1216,2,FALSE) -> 子供がいるAYA世代のがん患者に対して、その子供に対する支援を行う | I77: 沖縄県 | J77: 全国 | K77: 最良値 （都道府県）
G78: 個D-040701 | H78: =VLOOKUP(G78,INDEXTBL!$C$1:$O$1216,3,FALSE) -> 親ががんになった子ども、そしてその患者さん、ご家族を支援する団体に紹介したAYA世代のがん患者数（人） | I78: =IFERROR(HLOOKUP(VLOOKUP($G78,INDEXTBL!$C$1:$O$1216,$C$3,FALSE),DATA!$C$2:$CAP$14,8,FALSE),"NA") -> NA | J78: =IFERROR(HLOOKUP(VLOOKUP($G78,INDEXTBL!$C$1:$O$1216,$C$3,FALSE),DATA!$C$2:$CAP$14,7,FALSE),"NA") -> NA | K78: =IFERROR(HLOOKUP(VLOOKUP($G78,INDEXTBL!$C$1:$O$1216,$C$3,FALSE),DATA!$C$2:$CAP$14,10,FALSE),"NA") -> NA
E80: ⑤高齢者のがん
E81: 個D-0501 | H81: =VLOOKUP(E81,INDEXTBL!$A$1:$O$1216,2,FALSE) -> 地域の医療機関やかかりつけ医、在宅療養支援診療所、訪問看護事業所等の医療・介護を担う機関、関係団体、地方公共団体等と連携し、高齢者のがん患者やその家族等の療養生活を支えるための体制を整備する | I81: 沖縄県 | J81: 全国 | K81: 最良値 （都道府県） | O81: 個B-0501 | R81: =VLOOKUP(O81,INDEXTBL!$A$1:$O$1216,2,FALSE) -> 高齢者のがん患者及びその家族の苦痛の軽減並びに療養生活の質の維持向上ができている | S81: 沖縄県 | T81: 全国 | U81: 最良値 （都道府県）
G82: 個D-050101 | H82: =VLOOKUP(G82,INDEXTBL!$C$1:$O$1216,3,FALSE) -> 在宅療養支援診療所数 | I82: =IFERROR(TEXT(HLOOKUP(VLOOKUP($G82,INDEXTBL!$C$1:$N$1216,5,FALSE),DATA!$C$2:$CAP$14,8,FALSE)/DATA!$H$9*1000000,"0.0"),"NA") -> 62.0 | J82: =IFERROR(TEXT(HLOOKUP(VLOOKUP($G82,INDEXTBL!$C$1:$N$1216,5,FALSE),DATA!$C$2:$CAP$14,7,FALSE)/DATA!$H$8*1000000,"0.0"),"NA") -> 114.2 | K82: =IFERROR(TEXT(MAX(OFFSET(DATA!$A$1,14,MATCH(VLOOKUP($G82,INDEXTBL!$C$1:$N$1216,5,FALSE),DATA!$A$2:$CAP$2,0)-1,47,1)/DATA!$H$15:$H$61*1000000),"0.0") &" （"& L82 & "）","NA") -> 218.7 （長崎県） | L82: =INDEX(DATA!$C$15:$C$61,MATCH(MAX(OFFSET(DATA!$A$1,14,MATCH(VLOOKUP($G82,INDEXTBL!$C$1:$N$1216,5,FALSE),DATA!$A$2:$CAP$2,0)-1,47,1)/DATA!$H$15:$H$61*1000000),OFFSET(DATA!$A$1,14,MATCH(VLOOKUP($G82,INDEXTBL!$C$1:$N$1216,5,FALSE),DATA!$A$2:$CAP$2,0)-1,47,1)/DATA!$H$15:$H$61*1000000,0)) -> 長崎県 | M82: ＊＊ | Q82: 個B-050101 | R82: =VLOOKUP(Q82,INDEXTBL!$C$1:$O$1216,3,FALSE) -> （遺族調査）患者と医師間で最期の療養場所に関する話し合いがあったと回答した割合（％） | S82: =IFERROR(TEXT(HLOOKUP(VLOOKUP($Q82,INDEXTBL!$C$1:$O$1216,12,FALSE),DATA!$C$2:$CAP$14,8,FALSE),"0.0")&"%","NA") -> 38.1% | T82: =IFERROR(TEXT(HLOOKUP(VLOOKUP($Q82,INDEXTBL!$C$1:$O$1216,12,FALSE),DATA!$C$2:$CAP$14,7,FALSE),"0.0")&"%","NA") -> 38.5% | U82: =IFERROR(TEXT(_xlfn.AGGREGATE(4,7,OFFSET(DATA!$A$1,14,MATCH(VLOOKUP($Q82,INDEXTBL!$C$1:$O$1216,12,FALSE),DATA!$A$2:$CAP$2,0)-1,47,1)),"0.0")&"%" &" （"& V82 & "）","NA") -> 44.8% （山形県） | V82: =INDEX(DATA!$C$15:$C$61,MATCH(_xlfn.AGGREGATE(4,7,OFFSET(DATA!$A$1,14,MATCH(VLOOKUP($Q82,INDEXTBL!$C$1:$O$1216,12,FALSE),DATA!$A$2:$CAP$2,0)-1,47,1)),OFFSET(DATA!$A$1,14,MATCH(VLOOKUP($Q82,INDEXTBL!$C$1:$O$1216,12,FALSE),DATA!$A$2:$CAP$2,0)-1,47,1),0)) -> 山形県
G83: 個D-050102 | H83: =VLOOKUP(G83,INDEXTBL!$C$1:$O$1216,3,FALSE) -> 在宅療養支援病院数 | I83: =IFERROR(TEXT(HLOOKUP(VLOOKUP($G83,INDEXTBL!$C$1:$N$1216,5,FALSE),DATA!$C$2:$CAP$14,8,FALSE)/DATA!$H$9*1000000,"0.0"),"NA") -> 11.6 | J83: =IFERROR(TEXT(HLOOKUP(VLOOKUP($G83,INDEXTBL!$C$1:$N$1216,5,FALSE),DATA!$C$2:$CAP$14,7,FALSE)/DATA!$H$8*1000000,"0.0"),"NA") -> 11.8 | K83: =IFERROR(TEXT(MAX(OFFSET(DATA!$A$1,14,MATCH(VLOOKUP($G83,INDEXTBL!$C$1:$N$1216,5,FALSE),DATA!$A$2:$CAP$2,0)-1,47,1)/DATA!$H$15:$H$61*1000000),"0.0") &" （"& L83 & "）","NA") -> 55.6 （徳島県） | L83: =INDEX(DATA!$C$15:$C$61,MATCH(MAX(OFFSET(DATA!$A$1,14,MATCH(VLOOKUP($G83,INDEXTBL!$C$1:$N$1216,5,FALSE),DATA!$A$2:$CAP$2,0)-1,47,1)/DATA!$H$15:$H$61*1000000),OFFSET(DATA!$A$1,14,MATCH(VLOOKUP($G83,INDEXTBL!$C$1:$N$1216,5,FALSE),DATA!$A$2:$CAP$2,0)-1,47,1)/DATA!$H$15:$H$61*1000000,0)) -> 徳島県 | M83: ＊＊ | Q83: 個B-050102 | R83: =VLOOKUP(Q83,INDEXTBL!$C$1:$O$1216,3,FALSE) -> （遺族調査）介護をしたことで、全体的に負担感が大きかったと回答した割合（％） | S83: =IFERROR(TEXT(HLOOKUP(VLOOKUP($Q83,INDEXTBL!$C$1:$O$1216,12,FALSE),DATA!$C$2:$CAP$14,8,FALSE),"0.0")&"%","NA") -> 53.1% | T83: =IFERROR(TEXT(HLOOKUP(VLOOKUP($Q83,INDEXTBL!$C$1:$O$1216,12,FALSE),DATA!$C$2:$CAP$14,7,FALSE),"0.0")&"%","NA") -> 40.9% | U83: =IFERROR(TEXT(_xlfn.AGGREGATE(5,7,OFFSET(DATA!$A$1,14,MATCH(VLOOKUP($Q83,INDEXTBL!$C$1:$O$1216,12,FALSE),DATA!$A$2:$CAP$2,0)-1,47,1)),"0.0")&"%" &" （"& V83 & "）","NA") -> 31.0% （福岡県） | V83: =INDEX(DATA!$C$15:$C$61,MATCH(_xlfn.AGGREGATE(5,7,OFFSET(DATA!$A$1,14,MATCH(VLOOKUP($Q83,INDEXTBL!$C$1:$O$1216,12,FALSE),DATA!$A$2:$CAP$2,0)-1,47,1)),OFFSET(DATA!$A$1,14,MATCH(VLOOKUP($Q83,INDEXTBL!$C$1:$O$1216,12,FALSE),DATA!$A$2:$CAP$2,0)-1,47,1),0)) -> 福岡県
E84: 個D-0502 | H84: =VLOOKUP(E84,INDEXTBL!$A$1:$O$1216,2,FALSE) -> 療養場所の選択も含めて、すべての高齢者のがん患者に、適切な意思決定支援と適切なアドバンスケアプランニングを行う | I84: 沖縄県 | J84: 全国 | K84: 最良値 （都道府県） | Q84: 個B-050103 | R84: =VLOOKUP(Q84,INDEXTBL!$C$1:$O$1216,3,FALSE) -> （NDB-SCR）介護支援等連携指導料（がん患者に限定） | S84: =IFERROR(TEXT(HLOOKUP(VLOOKUP($Q84,INDEXTBL!$C$1:$N$1216,10,FALSE),DATA!$C$2:$AXB$14,8,FALSE),"0.0"),"NA") -> 96.7 | T84: =IFERROR(TEXT(HLOOKUP(VLOOKUP($Q84,INDEXTBL!$C$1:$N$1216,10,FALSE),DATA!$C$2:$AXB$14,7,FALSE),"0.0"),"NA") -> 100.0 | U84: =IFERROR(TEXT(_xlfn.AGGREGATE(4,7,OFFSET(DATA!$A$1,14,MATCH(VLOOKUP($Q84,INDEXTBL!$C$1:$N$1216,10,FALSE),DATA!$A$2:$AXB$2,0)-1,47,1)),"0.0") &" （"& V84 & "）","NA") -> 273.4 （秋田県） | V84: =INDEX(DATA!$C$15:$C$61,MATCH(_xlfn.AGGREGATE(4,7,OFFSET(DATA!$A$1,14,MATCH(VLOOKUP($Q84,INDEXTBL!$C$1:$N$1216,10,FALSE),DATA!$A$2:$AXB$2,0)-1,47,1)),OFFSET(DATA!$A$1,14,MATCH(VLOOKUP($Q84,INDEXTBL!$C$1:$N$1216,10,FALSE),DATA!$A$2:$AXB$2,0)-1,47,1),0)) -> 秋田県
G85: 個D-050201 | H85: =VLOOKUP(G85,INDEXTBL!$C$1:$O$1216,3,FALSE) -> ACPに関する院内のマニュアル等を策定している「施設」の割合 | I85: =IFERROR(HLOOKUP(VLOOKUP($G85,INDEXTBL!$C$1:$O$1216,$C$3,FALSE),DATA!$C$2:$CAP$14,8,FALSE),"NA") -> NA | J85: =IFERROR(HLOOKUP(VLOOKUP($G85,INDEXTBL!$C$1:$O$1216,$C$3,FALSE),DATA!$C$2:$CAP$14,7,FALSE),"NA") -> NA | K85: =IFERROR(HLOOKUP(VLOOKUP($G85,INDEXTBL!$C$1:$O$1216,$C$3,FALSE),DATA!$C$2:$CAP$14,10,FALSE),"NA") -> NA | Q85: 個B-050104 | R85: =VLOOKUP(Q85,INDEXTBL!$C$1:$O$1216,3,FALSE) -> （NDB-SCR）退院時共同指導料１（がん患者に限定） | S85: =IFERROR(TEXT(HLOOKUP(VLOOKUP($Q85,INDEXTBL!$C$1:$N$1216,10,FALSE),DATA!$C$2:$AXB$14,8,FALSE),"0.0"),"NA") -> 171.1 | T85: =IFERROR(TEXT(HLOOKUP(VLOOKUP($Q85,INDEXTBL!$C$1:$N$1216,10,FALSE),DATA!$C$2:$AXB$14,7,FALSE),"0.0"),"NA") -> 100.0 | U85: =IFERROR(TEXT(_xlfn.AGGREGATE(4,7,OFFSET(DATA!$A$1,14,MATCH(VLOOKUP($Q85,INDEXTBL!$C$1:$N$1216,10,FALSE),DATA!$A$2:$AXB$2,0)-1,47,1)),"0.0") &" （"& V85 & "）","NA") -> 282.9 （岐阜県） | V85: =INDEX(DATA!$C$15:$C$61,MATCH(_xlfn.AGGREGATE(4,7,OFFSET(DATA!$A$1,14,MATCH(VLOOKUP($Q85,INDEXTBL!$C$1:$N$1216,10,FALSE),DATA!$A$2:$AXB$2,0)-1,47,1)),OFFSET(DATA!$A$1,14,MATCH(VLOOKUP($Q85,INDEXTBL!$C$1:$N$1216,10,FALSE),DATA!$A$2:$AXB$2,0)-1,47,1),0)) -> 岐阜県
E86: 個D-0503 | H86: =VLOOKUP(E86,INDEXTBL!$A$1:$O$1216,2,FALSE) -> 高齢者機能評価および依存疾患の評価の結果と、患者の意向を十分に配慮したうえで、種々のガイドラインに準拠した最適な治療が安全に実施する | I86: 沖縄県 | J86: 全国 | K86: 最良値 （都道府県） | Q86: 個B-050105 | R86: =VLOOKUP(Q86,INDEXTBL!$C$1:$O$1216,3,FALSE) -> （医療者調査）高齢者のがん患者に対して、治療前に「高齢者機能評価」を行った割合が75%以上であると回答した人の割合（％） | S86: =IFERROR(TEXT(HLOOKUP(VLOOKUP($Q86,INDEXTBL!$C$1:$O$1216,13,FALSE),DATA!$C$2:$CAP$14,8,FALSE)*100,"0.0")&"%","NA") -> 26.1% | T86: =IFERROR(TEXT(HLOOKUP(VLOOKUP($Q86,INDEXTBL!$C$1:$O$1216,11,FALSE),DATA!$C$2:$CAP$14,7,FALSE)*100,"0.0")&"%","NA") -> NA | U86: =IFERROR(TEXT(_xlfn.AGGREGATE(4,7,OFFSET(DATA!$A$1,14,MATCH(VLOOKUP($Q86,INDEXTBL!$C$1:$O$1216,11,FALSE),DATA!$A$2:$CAP$2,0)-1,47,1)),"0.0")&"%" &" （"& V86 & "）","NA") -> NA | V86: =INDEX(DATA!$C$15:$C$61,MATCH(_xlfn.AGGREGATE(4,7,OFFSET(DATA!$A$1,14,MATCH(VLOOKUP($Q86,INDEXTBL!$C$1:$O$1216,11,FALSE),DATA!$A$2:$CAP$2,0)-1,47,1)),OFFSET(DATA!$A$1,14,MATCH(VLOOKUP($Q86,INDEXTBL!$C$1:$O$1216,11,FALSE),DATA!$A$2:$CAP$2,0)-1,47,1),0)) -> 
G87: 個D-050301 | H87: =VLOOKUP(G87,INDEXTBL!$C$1:$O$1216,3,FALSE) -> 意思決定能力を含む機能高齢者評価に関する院内のマニュアル等を策定している「施設」の割合 | I87: =IFERROR(HLOOKUP(VLOOKUP($G87,INDEXTBL!$C$1:$O$1216,$C$3,FALSE),DATA!$C$2:$CAP$14,8,FALSE),"NA") -> NA | J87: =IFERROR(HLOOKUP(VLOOKUP($G87,INDEXTBL!$C$1:$O$1216,$C$3,FALSE),DATA!$C$2:$CAP$14,7,FALSE),"NA") -> NA | K87: =IFERROR(HLOOKUP(VLOOKUP($G87,INDEXTBL!$C$1:$O$1216,$C$3,FALSE),DATA!$C$2:$CAP$14,10,FALSE),"NA") -> NA
E88: 個D-0504 | H88: =VLOOKUP(E88,INDEXTBL!$A$1:$O$1216,2,FALSE) -> 高齢者のがん患者をもつ家族の介護負担感を軽減する | I88: 沖縄県 | J88: 全国 | K88: 最良値 （都道府県）
G89: 個D-050401 | H89: =VLOOKUP(G89,INDEXTBL!$C$1:$O$1216,3,FALSE) -> （遺族調査）介護をしたことで、全体的に負担感が大きかったと回答した割合（％）【再掲】 | I89: =IFERROR(TEXT(HLOOKUP(VLOOKUP($G89,INDEXTBL!$C$1:$O$1216,12,FALSE),DATA!$C$2:$CAP$14,8,FALSE),"0.0")&"%","NA") -> 53.1% | J89: =IFERROR(TEXT(HLOOKUP(VLOOKUP($G89,INDEXTBL!$C$1:$O$1216,12,FALSE),DATA!$C$2:$CAP$14,7,FALSE),"0.0")&"%","NA") -> 40.9% | K89: =IFERROR(TEXT(_xlfn.AGGREGATE(5,7,OFFSET(DATA!$A$1,14,MATCH(VLOOKUP($G89,INDEXTBL!$C$1:$O$1216,12,FALSE),DATA!$A$2:$CAP$2,0)-1,47,1)),"0.0")&"%" &" （"& L89 & "）","NA") -> 31.0% （福岡県） | L89: =INDEX(DATA!$C$15:$C$61,MATCH(_xlfn.AGGREGATE(5,7,OFFSET(DATA!$A$1,14,MATCH(VLOOKUP($G89,INDEXTBL!$C$1:$O$1216,12,FALSE),DATA!$A$2:$CAP$2,0)-1,47,1)),OFFSET(DATA!$A$1,14,MATCH(VLOOKUP($G89,INDEXTBL!$C$1:$O$1216,12,FALSE),DATA!$A$2:$CAP$2,0)-1,47,1),0)) -> 福岡県
E90: 個D-0505 | H90: =VLOOKUP(E90,INDEXTBL!$A$1:$O$1216,2,FALSE) -> 看取りができる介護施設の拡大を図る | I90: 沖縄県 | J90: 全国 | K90: 最良値 （都道府県）
G91: 個D-050501 | H91: =VLOOKUP(G91,INDEXTBL!$C$1:$O$1216,3,FALSE) -> 看取りができる介護施設の数 | I91: =IFERROR(HLOOKUP(VLOOKUP($G91,INDEXTBL!$C$1:$O$1216,$C$3,FALSE),DATA!$C$2:$CAP$14,8,FALSE),"NA") -> NA | J91: =IFERROR(HLOOKUP(VLOOKUP($G91,INDEXTBL!$C$1:$O$1216,$C$3,FALSE),DATA!$C$2:$CAP$14,7,FALSE),"NA") -> NA | K91: =IFERROR(HLOOKUP(VLOOKUP($G91,INDEXTBL!$C$1:$O$1216,$C$3,FALSE),DATA!$C$2:$CAP$14,10,FALSE),"NA") -> NA
K92: ＊＊：人口100万人あたり
E93: ⑥離島・へき地
E94: 個D-0601 | H94: =VLOOKUP(E94,INDEXTBL!$A$1:$O$1216,2,FALSE) -> 正しい情報を基に、患者が自ら選択した医療機関で受診する | I94: 沖縄県 | J94: 全国 | K94: 最良値 （都道府県） | O94: 個B-0601 | R94: =VLOOKUP(O94,INDEXTBL!$A$1:$O$1216,2,FALSE) -> 離島・へき地のがん患者の生存率の改善ができている | S94: 沖縄県 | T94: 全国 | U94: 最良値 （都道府県）
G95: 個D-060101 | H95: =VLOOKUP(G95,INDEXTBL!$C$1:$O$1216,3,FALSE) -> 療養場所ガイドの全戸配布を行った市町村の割合（％） | I95: =IFERROR(HLOOKUP(VLOOKUP($G95,INDEXTBL!$C$1:$O$1216,$C$3,FALSE),DATA!$C$2:$CAP$14,8,FALSE),"NA") -> NA | J95: =IFERROR(HLOOKUP(VLOOKUP($G95,INDEXTBL!$C$1:$O$1216,$C$3,FALSE),DATA!$C$2:$CAP$14,7,FALSE),"NA") -> NA | K95: =IFERROR(HLOOKUP(VLOOKUP($G95,INDEXTBL!$C$1:$O$1216,$C$3,FALSE),DATA!$C$2:$CAP$14,10,FALSE),"NA") -> NA | Q95: 個B-060101 | R95: =VLOOKUP(Q95,INDEXTBL!$C$1:$O$1216,3,FALSE) -> ※（検討中） | S95: =IFERROR(HLOOKUP(VLOOKUP($Q95,INDEXTBL!$C$1:$O$1216,$C$3,FALSE),DATA!$C$2:$CAP$14,8,FALSE),"NA") -> NA | T95: =IFERROR(HLOOKUP(VLOOKUP($Q95,INDEXTBL!$C$1:$O$1216,$C$3,FALSE),DATA!$C$2:$CAP$14,7,FALSE),"NA") -> NA | U95: =IFERROR(HLOOKUP(VLOOKUP($Q95,INDEXTBL!$C$1:$O$1216,$C$3,FALSE),DATA!$C$2:$CAP$14,10,FALSE),"NA") -> NA
E96: 個D-0602 | H96: =VLOOKUP(E96,INDEXTBL!$A$1:$O$1216,2,FALSE) -> 地域がん診療病院では、拠点病院と連携し、標準治療を行う | I96: 沖縄県 | J96: 全国 | K96: 最良値 （都道府県） | O96: 個B-0602 | R96: =VLOOKUP(O96,INDEXTBL!$A$1:$O$1216,2,FALSE) -> 離島・へき地のがん患者及びその家族の苦痛の軽減並びに療養生活の質の維持向上ができている | S96: 沖縄県 | T96: 全国 | U96: 最良値 （都道府県）
G97: 個D-060201 | H97: =VLOOKUP(G97,INDEXTBL!$C$1:$O$1216,3,FALSE) -> ※（検討中） | I97: =IFERROR(HLOOKUP(VLOOKUP($G97,INDEXTBL!$C$1:$O$1216,$C$3,FALSE),DATA!$C$2:$CAP$14,8,FALSE),"NA") -> NA | J97: =IFERROR(HLOOKUP(VLOOKUP($G97,INDEXTBL!$C$1:$O$1216,$C$3,FALSE),DATA!$C$2:$CAP$14,7,FALSE),"NA") -> NA | K97: =IFERROR(HLOOKUP(VLOOKUP($G97,INDEXTBL!$C$1:$O$1216,$C$3,FALSE),DATA!$C$2:$CAP$14,10,FALSE),"NA") -> NA | Q97: 個B-060201 | R97: =VLOOKUP(Q97,INDEXTBL!$C$1:$O$1216,3,FALSE) -> （医療者調査）離島やへき地に住む患者において、自施設から本島の専門医療機関に送った方が良いと評価した患者のうち、スムーズに送ることができた患者の割合が75%以上であると回答した人の割合（％）（北部地区医師会病院、県立北部病院、たいら内科クリニック、宮古病院、八重山病院の方のみ） | S97: =IFERROR(TEXT(HLOOKUP(VLOOKUP($Q97,INDEXTBL!$C$1:$O$1216,13,FALSE),DATA!$C$2:$CAP$14,8,FALSE)*100,"0.0")&"%","NA") -> 70.2% | T97: =IFERROR(TEXT(HLOOKUP(VLOOKUP($Q97,INDEXTBL!$C$1:$O$1216,11,FALSE),DATA!$C$2:$CAP$14,7,FALSE)*100,"0.0")&"%","NA") -> NA | U97: =IFERROR(TEXT(_xlfn.AGGREGATE(4,7,OFFSET(DATA!$A$1,14,MATCH(VLOOKUP($Q97,INDEXTBL!$C$1:$O$1216,11,FALSE),DATA!$A$2:$CAP$2,0)-1,47,1)),"0.0")&"%" &" （"& V97 & "）","NA") -> NA | V97: =INDEX(DATA!$C$15:$C$61,MATCH(_xlfn.AGGREGATE(4,7,OFFSET(DATA!$A$1,14,MATCH(VLOOKUP($Q97,INDEXTBL!$C$1:$O$1216,11,FALSE),DATA!$A$2:$CAP$2,0)-1,47,1)),OFFSET(DATA!$A$1,14,MATCH(VLOOKUP($Q97,INDEXTBL!$C$1:$O$1216,11,FALSE),DATA!$A$2:$CAP$2,0)-1,47,1),0)) -> 
E98: 個D-0603 | H98: =VLOOKUP(E98,INDEXTBL!$A$1:$O$1216,2,FALSE) -> 診療病院におけるがん関連の人材配置等を過不足なく行う | I98: 沖縄県 | J98: 全国 | K98: 最良値 （都道府県） | Q98: 個B-060202 | R98: =VLOOKUP(Q98,INDEXTBL!$C$1:$O$1216,3,FALSE) -> （医療者調査）離島やへき地に住む患者のうち、中部医療圏や南部医療圏との医療格差が明らかに感じられた患者の割合が75%以上であると回答した人の割合（％）（北部地区医師会病院、県立北部病院、たいら内科クリニック、宮古病院、八重山病院の方のみ） | S98: =IFERROR(TEXT(HLOOKUP(VLOOKUP($Q98,INDEXTBL!$C$1:$O$1216,13,FALSE),DATA!$C$2:$CAP$14,8,FALSE)*100,"0.0")&"%","NA") -> 47.0% | T98: =IFERROR(TEXT(HLOOKUP(VLOOKUP($Q98,INDEXTBL!$C$1:$O$1216,11,FALSE),DATA!$C$2:$CAP$14,7,FALSE)*100,"0.0")&"%","NA") -> NA | U98: =IFERROR(TEXT(_xlfn.AGGREGATE(4,7,OFFSET(DATA!$A$1,14,MATCH(VLOOKUP($Q98,INDEXTBL!$C$1:$O$1216,11,FALSE),DATA!$A$2:$CAP$2,0)-1,47,1)),"0.0")&"%" &" （"& V98 & "）","NA") -> NA | V98: =INDEX(DATA!$C$15:$C$61,MATCH(_xlfn.AGGREGATE(4,7,OFFSET(DATA!$A$1,14,MATCH(VLOOKUP($Q98,INDEXTBL!$C$1:$O$1216,11,FALSE),DATA!$A$2:$CAP$2,0)-1,47,1)),OFFSET(DATA!$A$1,14,MATCH(VLOOKUP($Q98,INDEXTBL!$C$1:$O$1216,11,FALSE),DATA!$A$2:$CAP$2,0)-1,47,1),0)) -> 
G99: 個D-060301 | H99: =VLOOKUP(G99,INDEXTBL!$C$1:$O$1216,3,FALSE) -> 呼吸器外科専門医が常勤で配置されている施設数 | I99: =IFERROR(HLOOKUP(VLOOKUP($G99,INDEXTBL!$C$1:$O$1216,$C$3,FALSE),DATA!$C$2:$CAP$14,8,FALSE),"NA") -> NA | J99: =IFERROR(HLOOKUP(VLOOKUP($G99,INDEXTBL!$C$1:$O$1216,$C$3,FALSE),DATA!$C$2:$CAP$14,7,FALSE),"NA") -> NA | K99: =IFERROR(HLOOKUP(VLOOKUP($G99,INDEXTBL!$C$1:$O$1216,$C$3,FALSE),DATA!$C$2:$CAP$14,10,FALSE),"NA") -> NA | Q99: 個B-060203 | R99: =VLOOKUP(Q99,INDEXTBL!$C$1:$O$1216,3,FALSE) -> （医療者調査）離島やへき地に住む患者のうち、なるべく少ない回数で通院が終わるように配慮した患者の割合が75%以上であると回答した人の割合（％） | S99: =IFERROR(TEXT(HLOOKUP(VLOOKUP($Q99,INDEXTBL!$C$1:$O$1216,13,FALSE),DATA!$C$2:$CAP$14,8,FALSE)*100,"0.0")&"%","NA") -> 67.6% | T99: =IFERROR(TEXT(HLOOKUP(VLOOKUP($Q99,INDEXTBL!$C$1:$O$1216,11,FALSE),DATA!$C$2:$CAP$14,7,FALSE)*100,"0.0")&"%","NA") -> NA | U99: =IFERROR(TEXT(_xlfn.AGGREGATE(4,7,OFFSET(DATA!$A$1,14,MATCH(VLOOKUP($Q99,INDEXTBL!$C$1:$O$1216,11,FALSE),DATA!$A$2:$CAP$2,0)-1,47,1)),"0.0")&"%" &" （"& V99 & "）","NA") -> NA | V99: =INDEX(DATA!$C$15:$C$61,MATCH(_xlfn.AGGREGATE(4,7,OFFSET(DATA!$A$1,14,MATCH(VLOOKUP($Q99,INDEXTBL!$C$1:$O$1216,11,FALSE),DATA!$A$2:$CAP$2,0)-1,47,1)),OFFSET(DATA!$A$1,14,MATCH(VLOOKUP($Q99,INDEXTBL!$C$1:$O$1216,11,FALSE),DATA!$A$2:$CAP$2,0)-1,47,1),0)) -> 
G100: 個D-060302 | H100: =VLOOKUP(G100,INDEXTBL!$C$1:$O$1216,3,FALSE) -> 乳腺外科専門医が常勤で配置されている施設数 | I100: =IFERROR(HLOOKUP(VLOOKUP($G100,INDEXTBL!$C$1:$O$1216,$C$3,FALSE),DATA!$C$2:$CAP$14,8,FALSE),"NA") -> NA | J100: =IFERROR(HLOOKUP(VLOOKUP($G100,INDEXTBL!$C$1:$O$1216,$C$3,FALSE),DATA!$C$2:$CAP$14,7,FALSE),"NA") -> NA | K100: =IFERROR(HLOOKUP(VLOOKUP($G100,INDEXTBL!$C$1:$O$1216,$C$3,FALSE),DATA!$C$2:$CAP$14,10,FALSE),"NA") -> NA
G101: 個D-060303 | H101: =VLOOKUP(G101,INDEXTBL!$C$1:$O$1216,3,FALSE) -> がん指導薬剤師、がん専門薬剤師、がん薬物療法認定薬剤師、外来がん治療認定薬剤のいずれかが常勤で配置されている施設数 | I101: =IFERROR(HLOOKUP(VLOOKUP($G101,INDEXTBL!$C$1:$O$1216,$C$3,FALSE),DATA!$C$2:$CAP$14,8,FALSE),"NA") -> NA | J101: =IFERROR(HLOOKUP(VLOOKUP($G101,INDEXTBL!$C$1:$O$1216,$C$3,FALSE),DATA!$C$2:$CAP$14,7,FALSE),"NA") -> NA | K101: =IFERROR(HLOOKUP(VLOOKUP($G101,INDEXTBL!$C$1:$O$1216,$C$3,FALSE),DATA!$C$2:$CAP$14,10,FALSE),"NA") -> NA
G102: 個D-060304 | H102: =VLOOKUP(G102,INDEXTBL!$C$1:$O$1216,3,FALSE) -> がん看護専門看護師、がん薬物療法看護認定看護師、乳がん看護認定看護師のいずれかが常勤で配置されている施設数 | I102: =IFERROR(HLOOKUP(VLOOKUP($G102,INDEXTBL!$C$1:$O$1216,$C$3,FALSE),DATA!$C$2:$CAP$14,8,FALSE),"NA") -> NA | J102: =IFERROR(HLOOKUP(VLOOKUP($G102,INDEXTBL!$C$1:$O$1216,$C$3,FALSE),DATA!$C$2:$CAP$14,7,FALSE),"NA") -> NA | K102: =IFERROR(HLOOKUP(VLOOKUP($G102,INDEXTBL!$C$1:$O$1216,$C$3,FALSE),DATA!$C$2:$CAP$14,10,FALSE),"NA") -> NA
G103: 個D-060305 | H103: =VLOOKUP(G103,INDEXTBL!$C$1:$O$1216,3,FALSE) -> がん相談支援センター相談員基礎研修(1)(2)を修了した看護師、社会福祉士、精神保健福祉士のいずれかが常勤で配置されている施設数 | I103: =IFERROR(HLOOKUP(VLOOKUP($G103,INDEXTBL!$C$1:$O$1216,$C$3,FALSE),DATA!$C$2:$CAP$14,8,FALSE),"NA") -> NA | J103: =IFERROR(HLOOKUP(VLOOKUP($G103,INDEXTBL!$C$1:$O$1216,$C$3,FALSE),DATA!$C$2:$CAP$14,7,FALSE),"NA") -> NA | K103: =IFERROR(HLOOKUP(VLOOKUP($G103,INDEXTBL!$C$1:$O$1216,$C$3,FALSE),DATA!$C$2:$CAP$14,10,FALSE),"NA") -> NA
G104: 個D-060306 | H104: =VLOOKUP(G104,INDEXTBL!$C$1:$O$1216,3,FALSE) -> がん登録実務初級認定を受けた診療情報管理士が常勤で配置されている施設数 | I104: =IFERROR(HLOOKUP(VLOOKUP($G104,INDEXTBL!$C$1:$O$1216,$C$3,FALSE),DATA!$C$2:$CAP$14,8,FALSE),"NA") -> NA | J104: =IFERROR(HLOOKUP(VLOOKUP($G104,INDEXTBL!$C$1:$O$1216,$C$3,FALSE),DATA!$C$2:$CAP$14,7,FALSE),"NA") -> NA | K104: =IFERROR(HLOOKUP(VLOOKUP($G104,INDEXTBL!$C$1:$O$1216,$C$3,FALSE),DATA!$C$2:$CAP$14,10,FALSE),"NA") -> NA
G105: 個D-060307 | H105: =VLOOKUP(G105,INDEXTBL!$C$1:$O$1216,3,FALSE) -> 放射線治療専門医が毎週または月に2回以上外来診療を行っている施設数 | I105: =IFERROR(HLOOKUP(VLOOKUP($G105,INDEXTBL!$C$1:$O$1216,$C$3,FALSE),DATA!$C$2:$CAP$14,8,FALSE),"NA") -> NA | J105: =IFERROR(HLOOKUP(VLOOKUP($G105,INDEXTBL!$C$1:$O$1216,$C$3,FALSE),DATA!$C$2:$CAP$14,7,FALSE),"NA") -> NA | K105: =IFERROR(HLOOKUP(VLOOKUP($G105,INDEXTBL!$C$1:$O$1216,$C$3,FALSE),DATA!$C$2:$CAP$14,10,FALSE),"NA") -> NA
G106: 個D-060308 | H106: =VLOOKUP(G106,INDEXTBL!$C$1:$O$1216,3,FALSE) -> がん薬物療法専門医が毎週または月に2回以上外来診療を行っている施設数 | I106: =IFERROR(HLOOKUP(VLOOKUP($G106,INDEXTBL!$C$1:$O$1216,$C$3,FALSE),DATA!$C$2:$CAP$14,8,FALSE),"NA") -> NA | J106: =IFERROR(HLOOKUP(VLOOKUP($G106,INDEXTBL!$C$1:$O$1216,$C$3,FALSE),DATA!$C$2:$CAP$14,7,FALSE),"NA") -> NA | K106: =IFERROR(HLOOKUP(VLOOKUP($G106,INDEXTBL!$C$1:$O$1216,$C$3,FALSE),DATA!$C$2:$CAP$14,10,FALSE),"NA") -> NA
G107: 個D-060309 | H107: =VLOOKUP(G107,INDEXTBL!$C$1:$O$1216,3,FALSE) -> 血液専門医が毎週または月に2回以上外来診療を行っている施設数 | I107: =IFERROR(HLOOKUP(VLOOKUP($G107,INDEXTBL!$C$1:$O$1216,$C$3,FALSE),DATA!$C$2:$CAP$14,8,FALSE),"NA") -> NA | J107: =IFERROR(HLOOKUP(VLOOKUP($G107,INDEXTBL!$C$1:$O$1216,$C$3,FALSE),DATA!$C$2:$CAP$14,7,FALSE),"NA") -> NA | K107: =IFERROR(HLOOKUP(VLOOKUP($G107,INDEXTBL!$C$1:$O$1216,$C$3,FALSE),DATA!$C$2:$CAP$14,10,FALSE),"NA") -> NA
E108: 個D-0604 | H108: =VLOOKUP(E108,INDEXTBL!$A$1:$O$1216,2,FALSE) -> 離島・へき地において提供できない医療がある場合に、本島への渡航費用等の助成など、経済的な支援を行う | I108: 沖縄県 | J108: 全国 | K108: 最良値 （都道府県）
G109: 個D-060401 | H109: =VLOOKUP(G109,INDEXTBL!$C$1:$O$1216,3,FALSE) -> 沖縄県離島患者等通院費支援事業に参加している市町村の割合（％） | I109: =IFERROR(HLOOKUP(VLOOKUP($G109,INDEXTBL!$C$1:$O$1216,$C$3,FALSE),DATA!$C$2:$CAP$14,8,FALSE),"NA") -> NA | J109: =IFERROR(HLOOKUP(VLOOKUP($G109,INDEXTBL!$C$1:$O$1216,$C$3,FALSE),DATA!$C$2:$CAP$14,7,FALSE),"NA") -> NA | K109: =IFERROR(HLOOKUP(VLOOKUP($G109,INDEXTBL!$C$1:$O$1216,$C$3,FALSE),DATA!$C$2:$CAP$14,10,FALSE),"NA") -> NA
G110: 個D-060402 | H110: =VLOOKUP(G110,INDEXTBL!$C$1:$O$1216,3,FALSE) -> 沖縄県離島患者等通院費支援事業を利用したがん患者の割合（％） | I110: =IFERROR(HLOOKUP(VLOOKUP($G110,INDEXTBL!$C$1:$O$1216,$C$3,FALSE),DATA!$C$2:$CAP$14,8,FALSE),"NA") -> NA | J110: =IFERROR(HLOOKUP(VLOOKUP($G110,INDEXTBL!$C$1:$O$1216,$C$3,FALSE),DATA!$C$2:$CAP$14,7,FALSE),"NA") -> NA | K110: =IFERROR(HLOOKUP(VLOOKUP($G110,INDEXTBL!$C$1:$O$1216,$C$3,FALSE),DATA!$C$2:$CAP$14,10,FALSE),"NA") -> NA

Sheet 共生 (hidden)
B2: 肺がん | C2: =IF(ISBLANK($B$2),"",SUBSTITUTE($B$2,"がん","")) -> 肺 | E2: 番号 | G2: 個別施策 | O2: 番号 | Q2: 中間アウトカム | Y2: 番号 | AA2: 分野アウトカム
C3: =IF($C$2="大腸",6,IF($C$2="肺",7,IF($C$2="胃",8,IF($C$2="乳",9,"")))) -> 7
E4: ①相談支援
E5: 共D-0101 | H5: =VLOOKUP(E5,INDEXTBL!$A$1:$O$1216,2,FALSE) -> 拠点病院等以外の「施設」では、「拠点病院等」のがん相談支援センターに準じた組織を構築し、がん患者とその家族等への相談業務を行う | I5: 沖縄県 | J5: 全国 | K5: 最良値 （都道府県） | O5: 共B-0101 | R5: =VLOOKUP(O5,INDEXTBL!$A$1:$O$1216,2,FALSE) -> がん患者やその家族等が、質の高い相談支援が受けることができている | S5: 沖縄県 | T5: 全国 | U5: 最良値 （都道府県） | Y5: 共A-0101 | AB5: =VLOOKUP(Y5,INDEXTBL!$A$1:$O$1216,2,FALSE) -> 全てのがん患者及びその家族の苦痛の軽減並びに療養生活の質の維持向上ができている | AC5: 沖縄県 | AD5: 全国 | AE5: 最良値 （都道府県）
G6: 共D-010101 | H6: =VLOOKUP(G6,INDEXTBL!$C$1:$O$1216,3,FALSE) -> がん相談支援センターに準じた組織を構築した拠点病院等以外の「施設」の割合（％） | I6: =IFERROR(HLOOKUP(VLOOKUP($G6,INDEXTBL!$C$1:$O$1216,$C$3,FALSE),DATA!$C$2:$ASR$14,8,FALSE),"NA") -> NA | J6: =IFERROR(HLOOKUP(VLOOKUP($G6,INDEXTBL!$C$1:$O$1216,$C$3,FALSE),DATA!$C$2:$ASR$14,7,FALSE),"NA") -> NA | K6: =IFERROR(HLOOKUP(VLOOKUP($G6,INDEXTBL!$C$1:$O$1216,$C$3,FALSE),DATA!$C$2:$ASR$14,10,FALSE),"NA") -> NA | Q6: 共B-010101 | R6: =VLOOKUP(Q6,INDEXTBL!$C$1:$O$1216,3,FALSE) -> （患者体験調査）医療スタッフと十分な対話ができた人の割合（％） | S6: =IFERROR(TEXT(HLOOKUP(VLOOKUP($Q6,INDEXTBL!$C$1:$O$1216,11,FALSE),DATA!$C$2:$CAP$14,8,FALSE),"0.0")&"%","NA") -> 70.6% | T6: =IFERROR(TEXT(HLOOKUP(VLOOKUP($Q6,INDEXTBL!$C$1:$O$1216,11,FALSE),DATA!$C$2:$CAP$14,7,FALSE),"0.0")&"%","NA") -> 67.8% | U6: =IFERROR(TEXT(_xlfn.AGGREGATE(4,7,OFFSET(DATA!$A$1,14,MATCH(VLOOKUP($Q6,INDEXTBL!$C$1:$O$1216,11,FALSE),DATA!$A$2:$CAP$2,0)-1,47,1)),"0.0")&"%" &" （"& V6 & "）","NA") -> 79.4% （愛媛県） | V6: =INDEX(DATA!$C$15:$C$61,MATCH(_xlfn.AGGREGATE(4,7,OFFSET(DATA!$A$1,14,MATCH(VLOOKUP($Q6,INDEXTBL!$C$1:$O$1216,11,FALSE),DATA!$A$2:$CAP$2,0)-1,47,1)),OFFSET(DATA!$A$1,14,MATCH(VLOOKUP($Q6,INDEXTBL!$C$1:$O$1216,11,FALSE),DATA!$A$2:$CAP$2,0)-1,47,1),0)) -> 愛媛県 | AA6: 共A-010101 | AB6: =VLOOKUP(AA6,INDEXTBL!$C$1:$O$1216,3,FALSE) -> （患者体験調査）がん患者の家族の悩みや負担を相談できる支援・サービス・場所が十分あると思う人の割合（％） | AC6: =IFERROR(TEXT(HLOOKUP(VLOOKUP($AA6,INDEXTBL!$C$1:$O$1216,11,FALSE),DATA!$C$2:$CAP$14,8,FALSE),"0.0")&"%","NA") -> 52.6% | AD6: =IFERROR(TEXT(HLOOKUP(VLOOKUP($AA6,INDEXTBL!$C$1:$O$1216,11,FALSE),DATA!$C$2:$CAP$14,7,FALSE),"0.0")&"%","NA") -> 47.1% | AE6: =IFERROR(TEXT(_xlfn.AGGREGATE(4,7,OFFSET(DATA!$A$1,14,MATCH(VLOOKUP($AA6,INDEXTBL!$C$1:$O$1216,11,FALSE),DATA!$A$2:$CAP$2,0)-1,47,1)),"0.0")&"%" &" （"& AF6 & "）","NA") -> 57.0% （岡山県） | AF6: =INDEX(DATA!$C$15:$C$61,MATCH(_xlfn.AGGREGATE(4,7,OFFSET(DATA!$A$1,14,MATCH(VLOOKUP($AA6,INDEXTBL!$C$1:$O$1216,11,FALSE),DATA!$A$2:$CAP$2,0)-1,47,1)),OFFSET(DATA!$A$1,14,MATCH(VLOOKUP($AA6,INDEXTBL!$C$1:$O$1216,11,FALSE),DATA!$A$2:$CAP$2,0)-1,47,1),0)) -> 岡山県
E7: 共D-0102 | H7: =VLOOKUP(E7,INDEXTBL!$A$1:$O$1216,2,FALSE) -> 「拠点病院等」では、治療方針の決定の前までに、がん相談支援センターに立ち寄らなければならないシステムを構築する | I7: 沖縄県 | J7: 全国 | K7: 最良値 （都道府県） | Q7: 共B-010102 | R7: =VLOOKUP(Q7,INDEXTBL!$C$1:$O$1216,3,FALSE) -> （患者体験調査）がん相談支援センターを知っている人の割合（％） | S7: =IFERROR(TEXT(HLOOKUP(VLOOKUP($Q7,INDEXTBL!$C$1:$O$1216,11,FALSE),DATA!$C$2:$CAP$14,8,FALSE),"0.0")&"%","NA") -> 74.0% | T7: =IFERROR(TEXT(HLOOKUP(VLOOKUP($Q7,INDEXTBL!$C$1:$O$1216,11,FALSE),DATA!$C$2:$CAP$14,7,FALSE),"0.0")&"%","NA") -> 66.9% | U7: =IFERROR(TEXT(_xlfn.AGGREGATE(4,7,OFFSET(DATA!$A$1,14,MATCH(VLOOKUP($Q7,INDEXTBL!$C$1:$O$1216,11,FALSE),DATA!$A$2:$CAP$2,0)-1,47,1)),"0.0")&"%" &" （"& V7 & "）","NA") -> 88.6% （滋賀県） | V7: =INDEX(DATA!$C$15:$C$61,MATCH(_xlfn.AGGREGATE(4,7,OFFSET(DATA!$A$1,14,MATCH(VLOOKUP($Q7,INDEXTBL!$C$1:$O$1216,11,FALSE),DATA!$A$2:$CAP$2,0)-1,47,1)),OFFSET(DATA!$A$1,14,MATCH(VLOOKUP($Q7,INDEXTBL!$C$1:$O$1216,11,FALSE),DATA!$A$2:$CAP$2,0)-1,47,1),0)) -> 滋賀県 | AA7: 共A-010102 | AB7: =VLOOKUP(AA7,INDEXTBL!$C$1:$O$1216,3,FALSE) -> （患者体験調査）治療開始前に、病気のことや療養生活について誰かに相談できた人の割合（％） | AC7: =IFERROR(TEXT(HLOOKUP(VLOOKUP($AA7,INDEXTBL!$C$1:$O$1216,11,FALSE),DATA!$C$2:$CAP$14,8,FALSE),"0.0")&"%","NA") -> 79.9% | AD7: =IFERROR(TEXT(HLOOKUP(VLOOKUP($AA7,INDEXTBL!$C$1:$O$1216,11,FALSE),DATA!$C$2:$CAP$14,7,FALSE),"0.0")&"%","NA") -> 76.5% | AE7: =IFERROR(TEXT(_xlfn.AGGREGATE(4,7,OFFSET(DATA!$A$1,14,MATCH(VLOOKUP($AA7,INDEXTBL!$C$1:$O$1216,11,FALSE),DATA!$A$2:$CAP$2,0)-1,47,1)),"0.0")&"%" &" （"& AF7 & "）","NA") -> 92.2% （栃木県） | AF7: =INDEX(DATA!$C$15:$C$61,MATCH(_xlfn.AGGREGATE(4,7,OFFSET(DATA!$A$1,14,MATCH(VLOOKUP($AA7,INDEXTBL!$C$1:$O$1216,11,FALSE),DATA!$A$2:$CAP$2,0)-1,47,1)),OFFSET(DATA!$A$1,14,MATCH(VLOOKUP($AA7,INDEXTBL!$C$1:$O$1216,11,FALSE),DATA!$A$2:$CAP$2,0)-1,47,1),0)) -> 栃木県
G8: 共D-010201 | H8: =VLOOKUP(G8,INDEXTBL!$C$1:$O$1216,3,FALSE) -> 治療方針の決定の前までに、がん相談支援センターで立ち寄った患者の割合（％） | I8: =IFERROR(HLOOKUP(VLOOKUP($G8,INDEXTBL!$C$1:$O$1216,$C$3,FALSE),DATA!$C$2:$ASR$14,8,FALSE),"NA") -> NA | J8: =IFERROR(HLOOKUP(VLOOKUP($G8,INDEXTBL!$C$1:$O$1216,$C$3,FALSE),DATA!$C$2:$ASR$14,7,FALSE),"NA") -> NA | K8: =IFERROR(HLOOKUP(VLOOKUP($G8,INDEXTBL!$C$1:$O$1216,$C$3,FALSE),DATA!$C$2:$ASR$14,10,FALSE),"NA") -> NA | Q8: 共B-010103 | R8: =VLOOKUP(Q8,INDEXTBL!$C$1:$O$1216,3,FALSE) -> （医療者調査）がん相談支援センターについて十分な情報提供を行った患者の割合が21%以上であると回答した人の割合（％） | S8: =IFERROR(TEXT(HLOOKUP(VLOOKUP($Q8,INDEXTBL!$C$1:$O$1216,13,FALSE),DATA!$C$2:$CAP$14,8,FALSE)*100,"0.0")&"%","NA") -> 31.7% | T8: =IFERROR(TEXT(HLOOKUP(VLOOKUP($Q8,INDEXTBL!$C$1:$O$1216,11,FALSE),DATA!$C$2:$CAP$14,7,FALSE)*100,"0.0")&"%","NA") -> NA | U8: =IFERROR(TEXT(_xlfn.AGGREGATE(4,7,OFFSET(DATA!$A$1,14,MATCH(VLOOKUP($Q8,INDEXTBL!$C$1:$O$1216,11,FALSE),DATA!$A$2:$CAP$2,0)-1,47,1)),"0.0")&"%" &" （"& V8 & "）","NA") -> NA | V8: =INDEX(DATA!$C$15:$C$61,MATCH(_xlfn.AGGREGATE(4,7,OFFSET(DATA!$A$1,14,MATCH(VLOOKUP($Q8,INDEXTBL!$C$1:$O$1216,11,FALSE),DATA!$A$2:$CAP$2,0)-1,47,1)),OFFSET(DATA!$A$1,14,MATCH(VLOOKUP($Q8,INDEXTBL!$C$1:$O$1216,11,FALSE),DATA!$A$2:$CAP$2,0)-1,47,1),0)) ->  | AA8: 共A-010103 | AB8: =VLOOKUP(AA8,INDEXTBL!$C$1:$O$1216,3,FALSE) -> （患者体験調査）治療費用の負担が原因で、治療を変更または断念したことのある人の割合（％） | AC8: =IFERROR(TEXT(HLOOKUP(VLOOKUP($AA8,INDEXTBL!$C$1:$O$1216,11,FALSE),DATA!$C$2:$CAP$14,8,FALSE),"0.0")&"%","NA") -> 4.0% | AD8: =IFERROR(TEXT(HLOOKUP(VLOOKUP($AA8,INDEXTBL!$C$1:$O$1216,11,FALSE),DATA!$C$2:$CAP$14,7,FALSE),"0.0")&"%","NA") -> 5.0% | AE8: =IFERROR(TEXT(_xlfn.AGGREGATE(4,7,OFFSET(DATA!$A$1,14,MATCH(VLOOKUP($AA8,INDEXTBL!$C$1:$O$1216,11,FALSE),DATA!$A$2:$CAP$2,0)-1,47,1)),"0.0")&"%" &" （"& AF8 & "）","NA") -> 11.7% （群馬県） | AF8: =INDEX(DATA!$C$15:$C$61,MATCH(_xlfn.AGGREGATE(4,7,OFFSET(DATA!$A$1,14,MATCH(VLOOKUP($AA8,INDEXTBL!$C$1:$O$1216,11,FALSE),DATA!$A$2:$CAP$2,0)-1,47,1)),OFFSET(DATA!$A$1,14,MATCH(VLOOKUP($AA8,INDEXTBL!$C$1:$O$1216,11,FALSE),DATA!$A$2:$CAP$2,0)-1,47,1),0)) -> 群馬県
E9: 共D-0103 | H9: =VLOOKUP(E9,INDEXTBL!$A$1:$O$1216,2,FALSE) -> 「拠点病院等」では、相談者からのフィードバックを受ける仕組みづくりを行い、「がん相談対応のモニタリング」等に準じて「がん相談対応評価表」等を用いて定期的に自己評価を行う | I9: 沖縄県 | J9: 全国 | K9: 最良値 （都道府県） | O9: 共B-0102 | R9: =VLOOKUP(O9,INDEXTBL!$A$1:$O$1216,2,FALSE) -> 患者やその家族が、ピアサポートを受けることができている | S9: 沖縄県 | T9: 全国 | U9: 最良値 （都道府県）
G10: 共D-010301 | H10: =VLOOKUP(G10,INDEXTBL!$C$1:$O$1216,3,FALSE) -> 認定がん相談支援センターの数 | I10: =IFERROR(TEXT(HLOOKUP(VLOOKUP($G10,INDEXTBL!$C$1:$O$1216,5,FALSE),DATA!$C$2:$CAP$14,8,FALSE)/DATA!$H$9*1000000,"0.0"),"NA") -> 0.0 | J10: =IFERROR(TEXT(HLOOKUP(VLOOKUP($G10,INDEXTBL!$C$1:$O$1216,5,FALSE),DATA!$C$2:$CAP$14,7,FALSE)/DATA!$H$8*1000000,"0.0"),"NA") -> 0.3 | K10: =IFERROR(TEXT(MAX(OFFSET(DATA!$A$1,14,MATCH(VLOOKUP($G10,INDEXTBL!$C$1:$O$1216,5,FALSE),DATA!$A$2:$CAP$2,0)-1,47,1)/DATA!$H$15:$H$61*1000000),"0.0") &" （"& L10 & "）","NA") -> 2.6 （福井県） | L10: =INDEX(DATA!$C$15:$C$61,MATCH(MAX(OFFSET(DATA!$A$1,14,MATCH(VLOOKUP($G10,INDEXTBL!$C$1:$O$1216,5,FALSE),DATA!$A$2:$CAP$2,0)-1,47,1)/DATA!$H$15:$H$61*1000000),OFFSET(DATA!$A$1,14,MATCH(VLOOKUP($G10,INDEXTBL!$C$1:$O$1216,5,FALSE),DATA!$A$2:$CAP$2,0)-1,47,1)/DATA!$H$15:$H$61*1000000,0)) -> 福井県 | M10: ＊＊ | Q10: 共B-010201 | R10: =VLOOKUP(Q10,INDEXTBL!$C$1:$O$1216,3,FALSE) -> （患者体験調査）ピアサポートを利用して役に立ったと思うがん患者の割合（％） | S10: =IFERROR(TEXT(HLOOKUP(VLOOKUP($Q10,INDEXTBL!$C$1:$O$1216,13,FALSE),DATA!$C$2:$CAP$14,8,FALSE)*100,"0.0")&"%","NA") -> NA | T10: =IFERROR(TEXT(HLOOKUP(VLOOKUP($Q10,INDEXTBL!$C$1:$O$1216,11,FALSE),DATA!$C$2:$CAP$14,7,FALSE)*100,"0.0")&"%","NA") -> 70.4% | U10: =IFERROR(TEXT(_xlfn.AGGREGATE(4,7,OFFSET(DATA!$A$1,14,MATCH(VLOOKUP($Q10,INDEXTBL!$C$1:$O$1216,11,FALSE),DATA!$A$2:$CAP$2,0)-1,47,1)),"0.0")&"%" &" （"& V10 & "）","NA") -> NA | V10: =INDEX(DATA!$C$15:$C$61,MATCH(_xlfn.AGGREGATE(4,7,OFFSET(DATA!$A$1,14,MATCH(VLOOKUP($Q10,INDEXTBL!$C$1:$O$1216,11,FALSE),DATA!$A$2:$CAP$2,0)-1,47,1)),OFFSET(DATA!$A$1,14,MATCH(VLOOKUP($Q10,INDEXTBL!$C$1:$O$1216,11,FALSE),DATA!$A$2:$CAP$2,0)-1,47,1),0)) -> 
G11: 共D-010302 | H11: =VLOOKUP(G11,INDEXTBL!$C$1:$O$1216,3,FALSE) -> 認定がん専門相談員数 | I11: =IFERROR(TEXT(HLOOKUP(VLOOKUP($G11,INDEXTBL!$C$1:$O$1216,5,FALSE),DATA!$C$2:$CAP$14,8,FALSE)/DATA!$H$9*1000000,"0.0"),"NA") -> 2.0 | J11: =IFERROR(TEXT(HLOOKUP(VLOOKUP($G11,INDEXTBL!$C$1:$O$1216,5,FALSE),DATA!$C$2:$CAP$14,7,FALSE)/DATA!$H$8*1000000,"0.0"),"NA") -> 3.1 | K11: =IFERROR(TEXT(MAX(OFFSET(DATA!$A$1,14,MATCH(VLOOKUP($G11,INDEXTBL!$C$1:$O$1216,5,FALSE),DATA!$A$2:$CAP$2,0)-1,47,1)/DATA!$H$15:$H$61*1000000),"0.0") &" （"& L11 & "）","NA") -> 9.0 （鳥取県） | L11: =INDEX(DATA!$C$15:$C$61,MATCH(MAX(OFFSET(DATA!$A$1,14,MATCH(VLOOKUP($G11,INDEXTBL!$C$1:$O$1216,5,FALSE),DATA!$A$2:$CAP$2,0)-1,47,1)/DATA!$H$15:$H$61*1000000),OFFSET(DATA!$A$1,14,MATCH(VLOOKUP($G11,INDEXTBL!$C$1:$O$1216,5,FALSE),DATA!$A$2:$CAP$2,0)-1,47,1)/DATA!$H$15:$H$61*1000000,0)) -> 鳥取県 | M11: ＊＊ | Q11: 共B-010202 | R11: =VLOOKUP(Q11,INDEXTBL!$C$1:$O$1216,3,FALSE) -> （患者体験調査）ピアサポートを知っている人の割合（％） | S11: =IFERROR(TEXT(HLOOKUP(VLOOKUP($Q11,INDEXTBL!$C$1:$O$1216,11,FALSE),DATA!$C$2:$CAP$14,8,FALSE),"0.0")&"%","NA") -> 43.0% | T11: =IFERROR(TEXT(HLOOKUP(VLOOKUP($Q11,INDEXTBL!$C$1:$O$1216,11,FALSE),DATA!$C$2:$CAP$14,7,FALSE),"0.0")&"%","NA") -> 27.5% | U11: =IFERROR(TEXT(_xlfn.AGGREGATE(4,7,OFFSET(DATA!$A$1,14,MATCH(VLOOKUP($Q11,INDEXTBL!$C$1:$O$1216,11,FALSE),DATA!$A$2:$CAP$2,0)-1,47,1)),"0.0")&"%" &" （"& V11 & "）","NA") -> 43.0% （沖縄県） | V11: =INDEX(DATA!$C$15:$C$61,MATCH(_xlfn.AGGREGATE(4,7,OFFSET(DATA!$A$1,14,MATCH(VLOOKUP($Q11,INDEXTBL!$C$1:$O$1216,11,FALSE),DATA!$A$2:$CAP$2,0)-1,47,1)),OFFSET(DATA!$A$1,14,MATCH(VLOOKUP($Q11,INDEXTBL!$C$1:$O$1216,11,FALSE),DATA!$A$2:$CAP$2,0)-1,47,1),0)) -> 沖縄県
G12: 共D-010303 | H12: =VLOOKUP(G12,INDEXTBL!$C$1:$O$1216,3,FALSE) -> 相談員指導者研修修了者数 | I12: =IFERROR(TEXT(HLOOKUP(VLOOKUP($G12,INDEXTBL!$C$1:$O$1216,5,FALSE),DATA!$C$2:$CAP$14,8,FALSE)/DATA!$H$9*1000000,"0.0"),"NA") -> 6.1 | J12: =IFERROR(TEXT(HLOOKUP(VLOOKUP($G12,INDEXTBL!$C$1:$O$1216,5,FALSE),DATA!$C$2:$CAP$14,7,FALSE)/DATA!$H$8*1000000,"0.0"),"NA") -> 6.1 | K12: =IFERROR(TEXT(MAX(OFFSET(DATA!$A$1,14,MATCH(VLOOKUP($G12,INDEXTBL!$C$1:$O$1216,5,FALSE),DATA!$A$2:$CAP$2,0)-1,47,1)/DATA!$H$15:$H$61*1000000),"0.0") &" （"& L12 & "）","NA") -> 21.0 （山梨県） | L12: =INDEX(DATA!$C$15:$C$61,MATCH(MAX(OFFSET(DATA!$A$1,14,MATCH(VLOOKUP($G12,INDEXTBL!$C$1:$O$1216,5,FALSE),DATA!$A$2:$CAP$2,0)-1,47,1)/DATA!$H$15:$H$61*1000000),OFFSET(DATA!$A$1,14,MATCH(VLOOKUP($G12,INDEXTBL!$C$1:$O$1216,5,FALSE),DATA!$A$2:$CAP$2,0)-1,47,1)/DATA!$H$15:$H$61*1000000,0)) -> 山梨県 | M12: ＊＊ | Q12: 共B-010203 | R12: =VLOOKUP(Q12,INDEXTBL!$C$1:$O$1216,3,FALSE) -> （医療者調査）患者サロン（ゆんたく会）、ピアサポート、患者会について、十分な情報提供を行った患者の割合が21%以上であると回答した人の割合（％） | S12: =IFERROR(TEXT(HLOOKUP(VLOOKUP($Q12,INDEXTBL!$C$1:$O$1216,13,FALSE),DATA!$C$2:$CAP$14,8,FALSE)*100,"0.0")&"%","NA") -> 22.0% | T12: =IFERROR(TEXT(HLOOKUP(VLOOKUP($Q12,INDEXTBL!$C$1:$O$1216,11,FALSE),DATA!$C$2:$CAP$14,7,FALSE)*100,"0.0")&"%","NA") -> NA | U12: =IFERROR(TEXT(_xlfn.AGGREGATE(4,7,OFFSET(DATA!$A$1,14,MATCH(VLOOKUP($Q12,INDEXTBL!$C$1:$O$1216,11,FALSE),DATA!$A$2:$CAP$2,0)-1,47,1)),"0.0")&"%" &" （"& V12 & "）","NA") -> NA | V12: =INDEX(DATA!$C$15:$C$61,MATCH(_xlfn.AGGREGATE(4,7,OFFSET(DATA!$A$1,14,MATCH(VLOOKUP($Q12,INDEXTBL!$C$1:$O$1216,11,FALSE),DATA!$A$2:$CAP$2,0)-1,47,1)),OFFSET(DATA!$A$1,14,MATCH(VLOOKUP($Q12,INDEXTBL!$C$1:$O$1216,11,FALSE),DATA!$A$2:$CAP$2,0)-1,47,1),0)) -> 
G13: 共D-010304 | H13: =VLOOKUP(G13,INDEXTBL!$C$1:$O$1216,3,FALSE) -> 相談員基礎研修(3)修了者数 | I13: =IFERROR(TEXT(HLOOKUP(VLOOKUP($G13,INDEXTBL!$C$1:$O$1216,5,FALSE),DATA!$C$2:$CAP$14,8,FALSE)/DATA!$H$9*1000000,"0.0"),"NA") -> NA | J13: =IFERROR(TEXT(HLOOKUP(VLOOKUP($G13,INDEXTBL!$C$1:$O$1216,5,FALSE),DATA!$C$2:$CAP$14,7,FALSE)/DATA!$H$8*1000000,"0.0"),"NA") -> NA | K13: NA | L13: =INDEX(DATA!$C$15:$C$61,MATCH(MAX(OFFSET(DATA!$A$1,14,MATCH(VLOOKUP($G13,INDEXTBL!$C$1:$O$1216,5,FALSE),DATA!$A$2:$CAP$2,0)-1,47,1)/DATA!$H$15:$H$61*1000000),OFFSET(DATA!$A$1,14,MATCH(VLOOKUP($G13,INDEXTBL!$C$1:$O$1216,5,FALSE),DATA!$A$2:$CAP$2,0)-1,47,1)/DATA!$H$15:$H$61*1000000,0)) -> 北海道 | M13: ＊＊
E14: 共D-0104 | H14: =VLOOKUP(E14,INDEXTBL!$A$1:$O$1216,2,FALSE) -> 県拠点病院は、地域拠点病院等と協力して、ピアサポーターの養成を行う | I14: 沖縄県 | J14: 全国 | K14: 最良値 （都道府県）
G15: 共D-010401 | H15: =VLOOKUP(G15,INDEXTBL!$C$1:$O$1216,3,FALSE) -> ピアサポート養成講座を修了した人数 | I15: =IFERROR(HLOOKUP(VLOOKUP($G15,INDEXTBL!$C$1:$O$1216,5,FALSE),DATA!$C$2:$CAP$14,8,FALSE),"NA") -> 114 | J15: =IFERROR(HLOOKUP(VLOOKUP($G15,INDEXTBL!$C$1:$O$1216,5,FALSE),DATA!$C$2:$CAP$14,7,FALSE),"NA") -> NA | K15: =IFERROR(_xlfn.AGGREGATE(4,7,OFFSET(DATA!$A$1,14,MATCH(VLOOKUP($G15,INDEXTBL!$C$1:$O$1216,5,FALSE),DATA!$A$2:$CAP$2,0)-1,47,1)) &" （"& L15 & "）","NA") -> NA | L15: =INDEX(DATA!$C$15:$C$61,MATCH(_xlfn.AGGREGATE(4,7,OFFSET(DATA!$A$1,14,MATCH(VLOOKUP($G15,INDEXTBL!$C$1:$O$1216,5,FALSE),DATA!$A$2:$CAP$2,0)-1,47,1)),OFFSET(DATA!$A$1,14,MATCH(VLOOKUP($G15,INDEXTBL!$C$1:$O$1216,5,FALSE),DATA!$A$2:$CAP$2,0)-1,47,1),0)) -> 
G16: 共D-010402 | H16: =VLOOKUP(G16,INDEXTBL!$C$1:$O$1216,3,FALSE) -> フォローアップ研修会を修了した人数 | I16: =IFERROR(HLOOKUP(VLOOKUP($G16,INDEXTBL!$C$1:$O$1216,5,FALSE),DATA!$C$2:$CAP$14,8,FALSE),"NA") -> 231 | J16: =IFERROR(HLOOKUP(VLOOKUP($G16,INDEXTBL!$C$1:$O$1216,5,FALSE),DATA!$C$2:$CAP$14,7,FALSE),"NA") -> NA | K16: =IFERROR(_xlfn.AGGREGATE(4,7,OFFSET(DATA!$A$1,14,MATCH(VLOOKUP($G16,INDEXTBL!$C$1:$O$1216,5,FALSE),DATA!$A$2:$CAP$2,0)-1,47,1)) &" （"& L16 & "）","NA") -> NA | L16: =INDEX(DATA!$C$15:$C$61,MATCH(_xlfn.AGGREGATE(4,7,OFFSET(DATA!$A$1,14,MATCH(VLOOKUP($G16,INDEXTBL!$C$1:$O$1216,5,FALSE),DATA!$A$2:$CAP$2,0)-1,47,1)),OFFSET(DATA!$A$1,14,MATCH(VLOOKUP($G16,INDEXTBL!$C$1:$O$1216,5,FALSE),DATA!$A$2:$CAP$2,0)-1,47,1),0)) -> 
G17: 共D-010403 | H17: =VLOOKUP(G17,INDEXTBL!$C$1:$O$1216,3,FALSE) -> ピアサポーターとして活動している人数 | I17: =IFERROR(HLOOKUP(VLOOKUP($G17,INDEXTBL!$C$1:$O$1216,5,FALSE),DATA!$C$2:$CAP$14,8,FALSE),"NA") -> 27 | J17: =IFERROR(HLOOKUP(VLOOKUP($G17,INDEXTBL!$C$1:$O$1216,5,FALSE),DATA!$C$2:$CAP$14,7,FALSE),"NA") -> NA | K17: =IFERROR(_xlfn.AGGREGATE(4,7,OFFSET(DATA!$A$1,14,MATCH(VLOOKUP($G17,INDEXTBL!$C$1:$O$1216,5,FALSE),DATA!$A$2:$CAP$2,0)-1,47,1)) &" （"& L17 & "）","NA") -> NA | L17: =INDEX(DATA!$C$15:$C$61,MATCH(_xlfn.AGGREGATE(4,7,OFFSET(DATA!$A$1,14,MATCH(VLOOKUP($G17,INDEXTBL!$C$1:$O$1216,5,FALSE),DATA!$A$2:$CAP$2,0)-1,47,1)),OFFSET(DATA!$A$1,14,MATCH(VLOOKUP($G17,INDEXTBL!$C$1:$O$1216,5,FALSE),DATA!$A$2:$CAP$2,0)-1,47,1),0)) -> 
E18: 共D-0105 | H18: =VLOOKUP(E18,INDEXTBL!$A$1:$O$1216,2,FALSE) -> 「施設」ではピアサポートを行うとともに、ピアサポーターを活用した患者サロンを、患者に活用される方法で運営する | I18: 沖縄県 | J18: 全国 | K18: 最良値 （都道府県）
G19: 共D-010501 | H19: =VLOOKUP(G19,INDEXTBL!$C$1:$O$1216,3,FALSE) -> 各拠点病院等のピアサポート件数 | I19: =IFERROR(HLOOKUP(VLOOKUP($G19,INDEXTBL!$C$1:$O$1216,5,FALSE),DATA!$C$2:$CAP$14,8,FALSE),"NA") -> 35 | J19: =IFERROR(HLOOKUP(VLOOKUP($G19,INDEXTBL!$C$1:$O$1216,5,FALSE),DATA!$C$2:$CAP$14,7,FALSE),"NA") -> NA | K19: =IFERROR(_xlfn.AGGREGATE(4,7,OFFSET(DATA!$A$1,14,MATCH(VLOOKUP($G19,INDEXTBL!$C$1:$O$1216,5,FALSE),DATA!$A$2:$CAP$2,0)-1,47,1)) &" （"& L19 & "）","NA") -> NA | L19: =INDEX(DATA!$C$15:$C$61,MATCH(_xlfn.AGGREGATE(4,7,OFFSET(DATA!$A$1,14,MATCH(VLOOKUP($G19,INDEXTBL!$C$1:$O$1216,5,FALSE),DATA!$A$2:$CAP$2,0)-1,47,1)),OFFSET(DATA!$A$1,14,MATCH(VLOOKUP($G19,INDEXTBL!$C$1:$O$1216,5,FALSE),DATA!$A$2:$CAP$2,0)-1,47,1),0)) -> 
G20: 共D-010502 | H20: =VLOOKUP(G20,INDEXTBL!$C$1:$O$1216,3,FALSE) -> 患者サロンの開催回数 | I20: =IFERROR(HLOOKUP(VLOOKUP($G20,INDEXTBL!$C$1:$O$1216,5,FALSE),DATA!$C$2:$CAP$14,8,FALSE),"NA") -> 44 | J20: =IFERROR(HLOOKUP(VLOOKUP($G20,INDEXTBL!$C$1:$O$1216,5,FALSE),DATA!$C$2:$CAP$14,7,FALSE),"NA") -> NA | K20: =IFERROR(_xlfn.AGGREGATE(4,7,OFFSET(DATA!$A$1,14,MATCH(VLOOKUP($G20,INDEXTBL!$C$1:$O$1216,5,FALSE),DATA!$A$2:$CAP$2,0)-1,47,1)) &" （"& L20 & "）","NA") -> NA | L20: =INDEX(DATA!$C$15:$C$61,MATCH(_xlfn.AGGREGATE(4,7,OFFSET(DATA!$A$1,14,MATCH(VLOOKUP($G20,INDEXTBL!$C$1:$O$1216,5,FALSE),DATA!$A$2:$CAP$2,0)-1,47,1)),OFFSET(DATA!$A$1,14,MATCH(VLOOKUP($G20,INDEXTBL!$C$1:$O$1216,5,FALSE),DATA!$A$2:$CAP$2,0)-1,47,1),0)) -> 
K21: ＊＊：人口100万人あたり
E22: ②情報提供
E23: 共D-0201 | H23: =VLOOKUP(E23,INDEXTBL!$A$1:$O$1216,2,FALSE) -> 県は、関係団体と協力し、障害等の関係でコミュニケーションに配慮が必要な県民および日本語によるコミュニケーションが難しい人の情報へのアクセスを確保するため、音声資料や点字資料、英語等による説明書等を作成し、「施設」に配布し、情報が行き届くようにする | I23: 沖縄県 | J23: 全国 | K23: 最良値 （都道府県） | O23: 共B-0201 | R23: =VLOOKUP(O23,INDEXTBL!$A$1:$O$1216,2,FALSE) -> 患者やその家族が、医療者から十分な情報を得ることができている | S23: 沖縄県 | T23: 全国 | U23: 最良値 （都道府県）
G24: 共D-020101 | H24: =VLOOKUP(G24,INDEXTBL!$C$1:$O$1216,3,FALSE) -> 「施設」に配布した音声資料の種類 | I24: =IFERROR(HLOOKUP(VLOOKUP($G24,INDEXTBL!$C$1:$O$1216,$C$3,FALSE),DATA!$C$2:$ASR$14,8,FALSE),"NA") -> NA | J24: =IFERROR(HLOOKUP(VLOOKUP($G24,INDEXTBL!$C$1:$O$1216,$C$3,FALSE),DATA!$C$2:$ASR$14,7,FALSE),"NA") -> NA | K24: =IFERROR(HLOOKUP(VLOOKUP($G24,INDEXTBL!$C$1:$O$1216,$C$3,FALSE),DATA!$C$2:$ASR$14,10,FALSE),"NA") -> NA | Q24: 共B-020101 | R24: =VLOOKUP(Q24,INDEXTBL!$C$1:$O$1216,3,FALSE) -> （患者体験調査）治療決定までに医療スタッフから治療に関する十分な情報を得られた人の割合（％） | S24: =IFERROR(TEXT(HLOOKUP(VLOOKUP($Q24,INDEXTBL!$C$1:$O$1216,11,FALSE),DATA!$C$2:$CAP$14,8,FALSE),"0.0")&"%","NA") -> 71.4% | T24: =IFERROR(TEXT(HLOOKUP(VLOOKUP($Q24,INDEXTBL!$C$1:$O$1216,11,FALSE),DATA!$C$2:$CAP$14,7,FALSE),"0.0")&"%","NA") -> 75.2% | U24: =IFERROR(TEXT(_xlfn.AGGREGATE(4,7,OFFSET(DATA!$A$1,14,MATCH(VLOOKUP($Q24,INDEXTBL!$C$1:$O$1216,11,FALSE),DATA!$A$2:$CAP$2,0)-1,47,1)),"0.0")&"%" &" （"& V24 & "）","NA") -> 83.1% （長野県） | V24: =INDEX(DATA!$C$15:$C$61,MATCH(_xlfn.AGGREGATE(4,7,OFFSET(DATA!$A$1,14,MATCH(VLOOKUP($Q24,INDEXTBL!$C$1:$O$1216,11,FALSE),DATA!$A$2:$CAP$2,0)-1,47,1)),OFFSET(DATA!$A$1,14,MATCH(VLOOKUP($Q24,INDEXTBL!$C$1:$O$1216,11,FALSE),DATA!$A$2:$CAP$2,0)-1,47,1),0)) -> 長野県
G25: 共D-020102 | H25: =VLOOKUP(G25,INDEXTBL!$C$1:$O$1216,3,FALSE) -> 「施設」に配布した点字資料の種類 | I25: =IFERROR(HLOOKUP(VLOOKUP($G25,INDEXTBL!$C$1:$O$1216,$C$3,FALSE),DATA!$C$2:$ASR$14,8,FALSE),"NA") -> NA | J25: =IFERROR(HLOOKUP(VLOOKUP($G25,INDEXTBL!$C$1:$O$1216,$C$3,FALSE),DATA!$C$2:$ASR$14,7,FALSE),"NA") -> NA | K25: =IFERROR(HLOOKUP(VLOOKUP($G25,INDEXTBL!$C$1:$O$1216,$C$3,FALSE),DATA!$C$2:$ASR$14,10,FALSE),"NA") -> NA | Q25: 共B-020102 | R25: =VLOOKUP(Q25,INDEXTBL!$C$1:$O$1216,3,FALSE) -> （患者体験調査）治療スケジュールの見通しに関する情報を十分得ることができた人の割合（％） | S25: =IFERROR(TEXT(HLOOKUP(VLOOKUP($Q25,INDEXTBL!$C$1:$O$1216,11,FALSE),DATA!$C$2:$CAP$14,8,FALSE),"0.0")&"%","NA") -> 83.3% | T25: =IFERROR(TEXT(HLOOKUP(VLOOKUP($Q25,INDEXTBL!$C$1:$O$1216,11,FALSE),DATA!$C$2:$CAP$14,7,FALSE),"0.0")&"%","NA") -> 75.9% | U25: =IFERROR(TEXT(_xlfn.AGGREGATE(4,7,OFFSET(DATA!$A$1,14,MATCH(VLOOKUP($Q25,INDEXTBL!$C$1:$O$1216,11,FALSE),DATA!$A$2:$CAP$2,0)-1,47,1)),"0.0")&"%" &" （"& V25 & "）","NA") -> 86.4% （大分県） | V25: =INDEX(DATA!$C$15:$C$61,MATCH(_xlfn.AGGREGATE(4,7,OFFSET(DATA!$A$1,14,MATCH(VLOOKUP($Q25,INDEXTBL!$C$1:$O$1216,11,FALSE),DATA!$A$2:$CAP$2,0)-1,47,1)),OFFSET(DATA!$A$1,14,MATCH(VLOOKUP($Q25,INDEXTBL!$C$1:$O$1216,11,FALSE),DATA!$A$2:$CAP$2,0)-1,47,1),0)) -> 大分県
G26: 共D-020103 | H26: =VLOOKUP(G26,INDEXTBL!$C$1:$O$1216,3,FALSE) -> 「施設」に配布した外国語資料の種類 | I26: =IFERROR(HLOOKUP(VLOOKUP($G26,INDEXTBL!$C$1:$O$1216,$C$3,FALSE),DATA!$C$2:$ASR$14,8,FALSE),"NA") -> NA | J26: =IFERROR(HLOOKUP(VLOOKUP($G26,INDEXTBL!$C$1:$O$1216,$C$3,FALSE),DATA!$C$2:$ASR$14,7,FALSE),"NA") -> NA | K26: =IFERROR(HLOOKUP(VLOOKUP($G26,INDEXTBL!$C$1:$O$1216,$C$3,FALSE),DATA!$C$2:$ASR$14,10,FALSE),"NA") -> NA | Q26: 共B-020103 | R26: =VLOOKUP(Q26,INDEXTBL!$C$1:$O$1216,3,FALSE) -> （医療者調査）治療スケジュールの見通しについて、治療方針の決定までに、十分な情報を提供できた患者の割合が75%以上であると回答した人の割合（％） | S26: =IFERROR(TEXT(HLOOKUP(VLOOKUP($Q26,INDEXTBL!$C$1:$O$1216,13,FALSE),DATA!$C$2:$CAP$14,8,FALSE)*100,"0.0")&"%","NA") -> 69.6% | T26: =IFERROR(TEXT(HLOOKUP(VLOOKUP($Q26,INDEXTBL!$C$1:$O$1216,11,FALSE),DATA!$C$2:$CAP$14,7,FALSE)*100,"0.0")&"%","NA") -> NA | U26: =IFERROR(TEXT(_xlfn.AGGREGATE(4,7,OFFSET(DATA!$A$1,14,MATCH(VLOOKUP($Q26,INDEXTBL!$C$1:$O$1216,11,FALSE),DATA!$A$2:$CAP$2,0)-1,47,1)),"0.0")&"%" &" （"& V26 & "）","NA") -> NA | V26: =INDEX(DATA!$C$15:$C$61,MATCH(_xlfn.AGGREGATE(4,7,OFFSET(DATA!$A$1,14,MATCH(VLOOKUP($Q26,INDEXTBL!$C$1:$O$1216,11,FALSE),DATA!$A$2:$CAP$2,0)-1,47,1)),OFFSET(DATA!$A$1,14,MATCH(VLOOKUP($Q26,INDEXTBL!$C$1:$O$1216,11,FALSE),DATA!$A$2:$CAP$2,0)-1,47,1),0)) -> 
E27: 共D-0202 | H27: =VLOOKUP(E27,INDEXTBL!$A$1:$O$1216,2,FALSE) -> 県は、県庁のホームページのがんに関する説明を定期的に改訂し、「施設」に関する啓発を図るなど広報に務める | I27: 沖縄県 | J27: 全国 | K27: 最良値 （都道府県） | Q27: 共B-020104 | R27: =VLOOKUP(Q27,INDEXTBL!$C$1:$O$1216,3,FALSE) -> （医療者調査）医療費について、治療方針の決定までに、十分な情報を提供できた患者の割合が75%以上であると回答した人の割合（％） | S27: =IFERROR(TEXT(HLOOKUP(VLOOKUP($Q27,INDEXTBL!$C$1:$O$1216,13,FALSE),DATA!$C$2:$CAP$14,8,FALSE)*100,"0.0")&"%","NA") -> 47.8% | T27: =IFERROR(TEXT(HLOOKUP(VLOOKUP($Q27,INDEXTBL!$C$1:$O$1216,11,FALSE),DATA!$C$2:$CAP$14,7,FALSE)*100,"0.0")&"%","NA") -> NA | U27: =IFERROR(TEXT(_xlfn.AGGREGATE(4,7,OFFSET(DATA!$A$1,14,MATCH(VLOOKUP($Q27,INDEXTBL!$C$1:$O$1216,11,FALSE),DATA!$A$2:$CAP$2,0)-1,47,1)),"0.0")&"%" &" （"& V27 & "）","NA") -> NA | V27: =INDEX(DATA!$C$15:$C$61,MATCH(_xlfn.AGGREGATE(4,7,OFFSET(DATA!$A$1,14,MATCH(VLOOKUP($Q27,INDEXTBL!$C$1:$O$1216,11,FALSE),DATA!$A$2:$CAP$2,0)-1,47,1)),OFFSET(DATA!$A$1,14,MATCH(VLOOKUP($Q27,INDEXTBL!$C$1:$O$1216,11,FALSE),DATA!$A$2:$CAP$2,0)-1,47,1),0)) -> 
G28: 共D-020201 | H28: =VLOOKUP(G28,INDEXTBL!$C$1:$O$1216,3,FALSE) -> 「施設」の検索数 | I28: =IFERROR(HLOOKUP(VLOOKUP($G28,INDEXTBL!$C$1:$O$1216,$C$3,FALSE),DATA!$C$2:$ASR$14,8,FALSE),"NA") -> NA | J28: =IFERROR(HLOOKUP(VLOOKUP($G28,INDEXTBL!$C$1:$O$1216,$C$3,FALSE),DATA!$C$2:$ASR$14,7,FALSE),"NA") -> NA | K28: =IFERROR(HLOOKUP(VLOOKUP($G28,INDEXTBL!$C$1:$O$1216,$C$3,FALSE),DATA!$C$2:$ASR$14,10,FALSE),"NA") -> NA
E29: 共D-0203 | H29: =VLOOKUP(E29,INDEXTBL!$A$1:$O$1216,2,FALSE) -> 「施設」では、自院のホームページや印刷物等で、対応が可能ながん種などを情報提供する | I29: 沖縄県 | J29: 全国 | K29: 最良値 （都道府県）
G30: 共D-020301 | H30: =VLOOKUP(G30,INDEXTBL!$C$1:$O$1216,3,FALSE) -> 具体的な専門医の情報がホームページまたは印刷物で情報提供されている「施設」の割合（％） | I30: =IFERROR(HLOOKUP(VLOOKUP($G30,INDEXTBL!$C$1:$O$1216,$C$3,FALSE),DATA!$C$2:$ASR$14,8,FALSE),"NA") -> NA | J30: =IFERROR(HLOOKUP(VLOOKUP($G30,INDEXTBL!$C$1:$O$1216,$C$3,FALSE),DATA!$C$2:$ASR$14,7,FALSE),"NA") -> NA | K30: =IFERROR(HLOOKUP(VLOOKUP($G30,INDEXTBL!$C$1:$O$1216,$C$3,FALSE),DATA!$C$2:$ASR$14,10,FALSE),"NA") -> NA
G31: 共D-020302 | H31: =VLOOKUP(G31,INDEXTBL!$C$1:$O$1216,3,FALSE) -> 組織されている専門チームの情報がホームページまたは印刷物で情報提供されている「施設」の割合（％） | I31: =IFERROR(HLOOKUP(VLOOKUP($G31,INDEXTBL!$C$1:$O$1216,$C$3,FALSE),DATA!$C$2:$ASR$14,8,FALSE),"NA") -> NA | J31: =IFERROR(HLOOKUP(VLOOKUP($G31,INDEXTBL!$C$1:$O$1216,$C$3,FALSE),DATA!$C$2:$ASR$14,7,FALSE),"NA") -> NA | K31: =IFERROR(HLOOKUP(VLOOKUP($G31,INDEXTBL!$C$1:$O$1216,$C$3,FALSE),DATA!$C$2:$ASR$14,10,FALSE),"NA") -> NA
G32: 共D-020303 | H32: =VLOOKUP(G32,INDEXTBL!$C$1:$O$1216,3,FALSE) -> 診断できるがん種の情報がホームページまたは印刷物で情報提供されている「施設」の割合（％） | I32: =IFERROR(HLOOKUP(VLOOKUP($G32,INDEXTBL!$C$1:$O$1216,$C$3,FALSE),DATA!$C$2:$ASR$14,8,FALSE),"NA") -> NA | J32: =IFERROR(HLOOKUP(VLOOKUP($G32,INDEXTBL!$C$1:$O$1216,$C$3,FALSE),DATA!$C$2:$ASR$14,7,FALSE),"NA") -> NA | K32: =IFERROR(HLOOKUP(VLOOKUP($G32,INDEXTBL!$C$1:$O$1216,$C$3,FALSE),DATA!$C$2:$ASR$14,10,FALSE),"NA") -> NA
G33: 共D-020304 | H33: =VLOOKUP(G33,INDEXTBL!$C$1:$O$1216,3,FALSE) -> 治療できるがん種の情報がホームページまたは印刷物で情報提供されている「施設」の割合（％） | I33: =IFERROR(HLOOKUP(VLOOKUP($G33,INDEXTBL!$C$1:$O$1216,$C$3,FALSE),DATA!$C$2:$ASR$14,8,FALSE),"NA") -> NA | J33: =IFERROR(HLOOKUP(VLOOKUP($G33,INDEXTBL!$C$1:$O$1216,$C$3,FALSE),DATA!$C$2:$ASR$14,7,FALSE),"NA") -> NA | K33: =IFERROR(HLOOKUP(VLOOKUP($G33,INDEXTBL!$C$1:$O$1216,$C$3,FALSE),DATA!$C$2:$ASR$14,10,FALSE),"NA") -> NA
E34: 共D-0204 | H34: =VLOOKUP(E34,INDEXTBL!$A$1:$O$1216,2,FALSE) -> 「施設」では、自院のホームページや印刷物等で、院内がん登録のベンチマークの分析結果および医療の質の評価の分析結果等を情報提供する | I34: 沖縄県 | J34: 全国 | K34: 最良値 （都道府県）
G35: 共D-020401 | H35: =VLOOKUP(G35,INDEXTBL!$C$1:$O$1216,3,FALSE) -> 院内がん登録のベンチマーク結果の情報がホームページまたは印刷物で情報提供されている「施設」の割合（％） | I35: =IFERROR(HLOOKUP(VLOOKUP($G35,INDEXTBL!$C$1:$O$1216,$C$3,FALSE),DATA!$C$2:$ASR$14,8,FALSE),"NA") -> NA | J35: =IFERROR(HLOOKUP(VLOOKUP($G35,INDEXTBL!$C$1:$O$1216,$C$3,FALSE),DATA!$C$2:$ASR$14,7,FALSE),"NA") -> NA | K35: =IFERROR(HLOOKUP(VLOOKUP($G35,INDEXTBL!$C$1:$O$1216,$C$3,FALSE),DATA!$C$2:$ASR$14,10,FALSE),"NA") -> NA
G36: 共D-020402 | H36: =VLOOKUP(G36,INDEXTBL!$C$1:$O$1216,3,FALSE) -> 医療の質の評価のベンチマーク結果の情報がホームページまたは印刷物で情報提供されている「施設」の割合（％） | I36: =IFERROR(HLOOKUP(VLOOKUP($G36,INDEXTBL!$C$1:$O$1216,$C$3,FALSE),DATA!$C$2:$ASR$14,8,FALSE),"NA") -> NA | J36: =IFERROR(HLOOKUP(VLOOKUP($G36,INDEXTBL!$C$1:$O$1216,$C$3,FALSE),DATA!$C$2:$ASR$14,7,FALSE),"NA") -> NA | K36: =IFERROR(HLOOKUP(VLOOKUP($G36,INDEXTBL!$C$1:$O$1216,$C$3,FALSE),DATA!$C$2:$ASR$14,10,FALSE),"NA") -> NA
E37: 共D-0205 | H37: =VLOOKUP(E37,INDEXTBL!$A$1:$O$1216,2,FALSE) -> 「施設」では、自院のホームページや印刷物等で、自治体や患者会等が主催する講演会等を積極的に広報する | I37: 沖縄県 | J37: 全国 | K37: 最良値 （都道府県）
G38: 共D-020501 | H38: =VLOOKUP(G38,INDEXTBL!$C$1:$O$1216,3,FALSE) -> 「施設」のホームページで広報した自治体や患者会等が主催する講演会等の件数 | I38: =IFERROR(HLOOKUP(VLOOKUP($G38,INDEXTBL!$C$1:$O$1216,$C$3,FALSE),DATA!$C$2:$ASR$14,8,FALSE),"NA") -> NA | J38: =IFERROR(HLOOKUP(VLOOKUP($G38,INDEXTBL!$C$1:$O$1216,$C$3,FALSE),DATA!$C$2:$ASR$14,7,FALSE),"NA") -> NA | K38: =IFERROR(HLOOKUP(VLOOKUP($G38,INDEXTBL!$C$1:$O$1216,$C$3,FALSE),DATA!$C$2:$ASR$14,10,FALSE),"NA") -> NA
E40: ③デジタル化
E41: 共D-0301 | H41: =VLOOKUP(E41,INDEXTBL!$A$1:$O$1216,2,FALSE) -> 「施設」は、がん患者が院内で利用可能なインターネット環境を整備する | I41: 沖縄県 | J41: 全国 | K41: 最良値 （都道府県） | O41: 共B-0301 | R41: =VLOOKUP(O41,INDEXTBL!$A$1:$O$1216,2,FALSE) -> デジタル化によりがん患者・家族を含む国民が、適切な情報・医療資源・支援に容易にアクセスすることができている | S41: 沖縄県 | T41: 全国 | U41: 最良値 （都道府県）
G42: 共D-030101 | H42: =VLOOKUP(G42,INDEXTBL!$C$1:$O$1216,3,FALSE) -> 患者とその家族が利用可能なインターネット環境を整備ししている「施設」の割合（％） | I42: =IFERROR(HLOOKUP(VLOOKUP($G42,INDEXTBL!$C$1:$O$1216,$C$3,FALSE),DATA!$C$2:$ASR$14,8,FALSE),"NA") -> NA | J42: =IFERROR(HLOOKUP(VLOOKUP($G42,INDEXTBL!$C$1:$O$1216,$C$3,FALSE),DATA!$C$2:$ASR$14,7,FALSE),"NA") -> NA | K42: =IFERROR(HLOOKUP(VLOOKUP($G42,INDEXTBL!$C$1:$O$1216,$C$3,FALSE),DATA!$C$2:$ASR$14,10,FALSE),"NA") -> NA | Q42: 共B-030101 | R42: =VLOOKUP(Q42,INDEXTBL!$C$1:$O$1216,3,FALSE) -> ※（検討中） | S42: =IFERROR(HLOOKUP(VLOOKUP($Q42,INDEXTBL!$C$1:$O$1216,$C$3,FALSE),DATA!$C$2:$ASR$14,8,FALSE),"NA") -> NA | T42: =IFERROR(HLOOKUP(VLOOKUP($Q42,INDEXTBL!$C$1:$O$1216,$C$3,FALSE),DATA!$C$2:$ASR$14,7,FALSE),"NA") -> NA | U42: =IFERROR(HLOOKUP(VLOOKUP($Q42,INDEXTBL!$C$1:$O$1216,$C$3,FALSE),DATA!$C$2:$ASR$14,10,FALSE),"NA") -> NA
E43: 共D-0302 | H43: =VLOOKUP(E43,INDEXTBL!$A$1:$O$1216,2,FALSE) -> 「施設」は、がん患者に対するセカンドオピニオンを含むオンライン診療を提供する | I43: 沖縄県 | J43: 全国 | K43: 最良値 （都道府県）
G44: 共D-030201 | H44: =VLOOKUP(G44,INDEXTBL!$C$1:$O$1216,3,FALSE) -> オンラインでの相談を受け付けることができる体制を確保している「施設」の割合（％） | I44: =IFERROR(HLOOKUP(VLOOKUP($G44,INDEXTBL!$C$1:$O$1216,$C$3,FALSE),DATA!$C$2:$ASR$14,8,FALSE),"NA") -> NA | J44: =IFERROR(HLOOKUP(VLOOKUP($G44,INDEXTBL!$C$1:$O$1216,$C$3,FALSE),DATA!$C$2:$ASR$14,7,FALSE),"NA") -> NA | K44: =IFERROR(HLOOKUP(VLOOKUP($G44,INDEXTBL!$C$1:$O$1216,$C$3,FALSE),DATA!$C$2:$ASR$14,10,FALSE),"NA") -> NA
G45: 共D-030202 | H45: =VLOOKUP(G45,INDEXTBL!$C$1:$O$1216,3,FALSE) -> セカンドオピニオンをオンラインで施行できる体制を確保している「施設」の割合（％） | I45: =IFERROR(HLOOKUP(VLOOKUP($G45,INDEXTBL!$C$1:$O$1216,$C$3,FALSE),DATA!$C$2:$ASR$14,8,FALSE),"NA") -> NA | J45: =IFERROR(HLOOKUP(VLOOKUP($G45,INDEXTBL!$C$1:$O$1216,$C$3,FALSE),DATA!$C$2:$ASR$14,7,FALSE),"NA") -> NA | K45: =IFERROR(HLOOKUP(VLOOKUP($G45,INDEXTBL!$C$1:$O$1216,$C$3,FALSE),DATA!$C$2:$ASR$14,10,FALSE),"NA") -> NA
E46: 共D-0303 | H46: =VLOOKUP(E46,INDEXTBL!$A$1:$O$1216,2,FALSE) -> 拠点病院は、離島へき地のがん患者の診断・治療に際して、医療従事者とオンライン会議が実施できている | I46: 沖縄県 | J46: 全国 | K46: 最良値 （都道府県）
G47: 共D-030301 | H47: =VLOOKUP(G47,INDEXTBL!$C$1:$O$1216,3,FALSE) -> 拠点病院等と離島へき地の医療機関とのキャンサーボードの実施数 | I47: =IFERROR(HLOOKUP(VLOOKUP($G47,INDEXTBL!$C$1:$O$1216,$C$3,FALSE),DATA!$C$2:$ASR$14,8,FALSE),"NA") -> NA | J47: =IFERROR(HLOOKUP(VLOOKUP($G47,INDEXTBL!$C$1:$O$1216,$C$3,FALSE),DATA!$C$2:$ASR$14,7,FALSE),"NA") -> NA | K47: =IFERROR(HLOOKUP(VLOOKUP($G47,INDEXTBL!$C$1:$O$1216,$C$3,FALSE),DATA!$C$2:$ASR$14,10,FALSE),"NA") -> NA
E49: ④就労支援（医療機関側）
E50: 共D-0401 | H50: =VLOOKUP(E50,INDEXTBL!$A$1:$O$1216,2,FALSE) -> 「施設」の担当医は、患者の就労状況について把握し、患者が治療に入る前に、仕事を続けながら治療が可能であることを説明する | I50: 沖縄県 | J50: 全国 | K50: 最良値 （都道府県） | O50: 共B-0401 | R50: =VLOOKUP(O50,INDEXTBL!$A$1:$O$1216,2,FALSE) -> がん患者とその家族が、仕事と治療の両立についての必要な支援を受けることができている | S50: 沖縄県 | T50: 全国 | U50: 最良値 （都道府県）
G51: 共D-040101 | H51: =VLOOKUP(G51,INDEXTBL!$C$1:$O$1216,3,FALSE) -> ※（検討中） | I51: =IFERROR(HLOOKUP(VLOOKUP($G51,INDEXTBL!$C$1:$O$1216,$C$3,FALSE),DATA!$C$2:$ASR$14,8,FALSE),"NA") -> NA | J51: =IFERROR(HLOOKUP(VLOOKUP($G51,INDEXTBL!$C$1:$O$1216,$C$3,FALSE),DATA!$C$2:$ASR$14,7,FALSE),"NA") -> NA | K51: =IFERROR(HLOOKUP(VLOOKUP($G51,INDEXTBL!$C$1:$O$1216,$C$3,FALSE),DATA!$C$2:$ASR$14,10,FALSE),"NA") -> NA | Q51: 共B-040101 | R51: =VLOOKUP(Q51,INDEXTBL!$C$1:$O$1216,3,FALSE) -> （患者体験調査）治療開始前に就労の継続について医療スタッフから話があった人の割合（％） | S51: =IFERROR(TEXT(HLOOKUP(VLOOKUP($Q51,INDEXTBL!$C$1:$O$1216,11,FALSE),DATA!$C$2:$CAP$14,8,FALSE),"0.0")&"%","NA") -> 27.2% | T51: =IFERROR(TEXT(HLOOKUP(VLOOKUP($Q51,INDEXTBL!$C$1:$O$1216,11,FALSE),DATA!$C$2:$CAP$14,7,FALSE),"0.0")&"%","NA") -> 38.6% | U51: =IFERROR(TEXT(_xlfn.AGGREGATE(4,7,OFFSET(DATA!$A$1,14,MATCH(VLOOKUP($Q51,INDEXTBL!$C$1:$O$1216,11,FALSE),DATA!$A$2:$CAP$2,0)-1,47,1)),"0.0")&"%" &" （"& V51 & "）","NA") -> 53.6% （神奈川県） | V51: =INDEX(DATA!$C$15:$C$61,MATCH(_xlfn.AGGREGATE(4,7,OFFSET(DATA!$A$1,14,MATCH(VLOOKUP($Q51,INDEXTBL!$C$1:$O$1216,11,FALSE),DATA!$A$2:$CAP$2,0)-1,47,1)),OFFSET(DATA!$A$1,14,MATCH(VLOOKUP($Q51,INDEXTBL!$C$1:$O$1216,11,FALSE),DATA!$A$2:$CAP$2,0)-1,47,1),0)) -> 神奈川県
E52: 共D-0402 | H52: =VLOOKUP(E52,INDEXTBL!$A$1:$O$1216,2,FALSE) -> 「施設」の担当医は、患者が治療に入る前に、がん相談センターまたはそれに準ずる組織において、就労に関する相談をするように紹介する | I52: 沖縄県 | J52: 全国 | K52: 最良値 （都道府県） | Q52: 共B-040102 | R52: =VLOOKUP(Q52,INDEXTBL!$C$1:$O$1216,3,FALSE) -> （NDB-SCR）療養・就労両立支援指導料 | S52: =IFERROR(HLOOKUP(VLOOKUP($Q52,INDEXTBL!$C$1:$O$1216,10,FALSE),DATA!$C$2:$BAP$14,8,FALSE),"NA") -> NA | T52: =IFERROR(HLOOKUP(VLOOKUP($Q52,INDEXTBL!$C$1:$O$1216,10,FALSE),DATA!$C$2:$BAP$14,7,FALSE),"NA") -> 100 | U52: =IFERROR(HLOOKUP(VLOOKUP($Q52,INDEXTBL!$C$1:$O$1216,10,FALSE),DATA!$C$2:$BAP$14,10,FALSE),"NA") -> NA
G53: 共D-040201 | H53: =VLOOKUP(G53,INDEXTBL!$C$1:$O$1216,3,FALSE) -> がん相談支援センターにおける就労に関する相談件数 | I53: =IFERROR(HLOOKUP(VLOOKUP($G53,INDEXTBL!$C$1:$O$1216,$C$3,FALSE),DATA!$C$2:$ASR$14,8,FALSE),"NA") -> NA | J53: =IFERROR(HLOOKUP(VLOOKUP($G53,INDEXTBL!$C$1:$O$1216,$C$3,FALSE),DATA!$C$2:$ASR$14,7,FALSE),"NA") -> NA | K53: =IFERROR(HLOOKUP(VLOOKUP($G53,INDEXTBL!$C$1:$O$1216,$C$3,FALSE),DATA!$C$2:$ASR$14,10,FALSE),"NA") -> NA | Q53: 共B-040103 | R53: =VLOOKUP(Q53,INDEXTBL!$C$1:$O$1216,3,FALSE) -> （医療者調査）就労の継続について、治療開始前に、十分な情報を提供できた患者の割合が75%以上であると回答した人の割合（％） | S53: =IFERROR(TEXT(HLOOKUP(VLOOKUP($Q53,INDEXTBL!$C$1:$O$1216,13,FALSE),DATA!$C$2:$CAP$14,8,FALSE)*100,"0.0")&"%","NA") -> 34.9% | T53: =IFERROR(TEXT(HLOOKUP(VLOOKUP($Q53,INDEXTBL!$C$1:$O$1216,11,FALSE),DATA!$C$2:$CAP$14,7,FALSE)*100,"0.0")&"%","NA") -> NA | U53: =IFERROR(TEXT(_xlfn.AGGREGATE(4,7,OFFSET(DATA!$A$1,14,MATCH(VLOOKUP($Q53,INDEXTBL!$C$1:$O$1216,11,FALSE),DATA!$A$2:$CAP$2,0)-1,47,1)),"0.0")&"%" &" （"& V53 & "）","NA") -> NA | V53: =INDEX(DATA!$C$15:$C$61,MATCH(_xlfn.AGGREGATE(4,7,OFFSET(DATA!$A$1,14,MATCH(VLOOKUP($Q53,INDEXTBL!$C$1:$O$1216,11,FALSE),DATA!$A$2:$CAP$2,0)-1,47,1)),OFFSET(DATA!$A$1,14,MATCH(VLOOKUP($Q53,INDEXTBL!$C$1:$O$1216,11,FALSE),DATA!$A$2:$CAP$2,0)-1,47,1),0)) -> 
E54: 共D-0403 | H54: =VLOOKUP(E54,INDEXTBL!$A$1:$O$1216,2,FALSE) -> 「施設」では、地元のハローワーク等と協力しての就労相談を行う | I54: 沖縄県 | J54: 全国 | K54: 最良値 （都道府県）
G55: 共D-040301 | H55: =VLOOKUP(G55,INDEXTBL!$C$1:$O$1216,3,FALSE) -> 拠点病院等における就労の専門家による相談会の回数 | I55: =IFERROR(HLOOKUP(VLOOKUP($G55,INDEXTBL!$C$1:$O$1216,$C$3,FALSE),DATA!$C$2:$ASR$14,8,FALSE),"NA") -> NA | J55: =IFERROR(HLOOKUP(VLOOKUP($G55,INDEXTBL!$C$1:$O$1216,$C$3,FALSE),DATA!$C$2:$ASR$14,7,FALSE),"NA") -> NA | K55: =IFERROR(HLOOKUP(VLOOKUP($G55,INDEXTBL!$C$1:$O$1216,$C$3,FALSE),DATA!$C$2:$ASR$14,10,FALSE),"NA") -> NA
G56: 共D-040302 | H56: =VLOOKUP(G56,INDEXTBL!$C$1:$O$1216,3,FALSE) -> ハローワークと連携した就職支援を行った患者の数 | I56: =IFERROR(HLOOKUP(VLOOKUP($G56,INDEXTBL!$C$1:$O$1216,$C$3,FALSE),DATA!$C$2:$ASR$14,8,FALSE),"NA") -> NA | J56: =IFERROR(HLOOKUP(VLOOKUP($G56,INDEXTBL!$C$1:$O$1216,$C$3,FALSE),DATA!$C$2:$ASR$14,7,FALSE),"NA") -> NA | K56: =IFERROR(HLOOKUP(VLOOKUP($G56,INDEXTBL!$C$1:$O$1216,$C$3,FALSE),DATA!$C$2:$ASR$14,10,FALSE),"NA") -> NA
E58: ⑤就労支援（職場側）
E59: 共D-0501 | H59: =VLOOKUP(E59,INDEXTBL!$A$1:$O$1216,2,FALSE) -> 事業主として、両立支援コーディネーターを配置して、がん患者の就労相談を行う | I59: 沖縄県 | J59: 全国 | K59: 最良値 （都道府県） | O59: 共B-0501 | R59: =VLOOKUP(O59,INDEXTBL!$A$1:$O$1216,2,FALSE) -> がん患者とその家族が、仕事と治療の両立についての必要な支援を受けることができている | S59: 沖縄県 | T59: 全国 | U59: 最良値 （都道府県）
G60: 共D-050101 | H60: =VLOOKUP(G60,INDEXTBL!$C$1:$O$1216,3,FALSE) -> 両立支援コーディネーターを配置している事業主の割合（％） | I60: =IFERROR(HLOOKUP(VLOOKUP($G60,INDEXTBL!$C$1:$O$1216,$C$3,FALSE),DATA!$C$2:$ASR$14,8,FALSE),"NA") -> NA | J60: =IFERROR(HLOOKUP(VLOOKUP($G60,INDEXTBL!$C$1:$O$1216,$C$3,FALSE),DATA!$C$2:$ASR$14,7,FALSE),"NA") -> NA | K60: =IFERROR(HLOOKUP(VLOOKUP($G60,INDEXTBL!$C$1:$O$1216,$C$3,FALSE),DATA!$C$2:$ASR$14,10,FALSE),"NA") -> NA | Q60: 共B-050101 | R60: =VLOOKUP(Q60,INDEXTBL!$C$1:$O$1216,3,FALSE) -> （患者体験調査）職場や仕事上の関係者から治療と仕事を両方続けられるような勤務上の配慮があったと思う人の割合（％） | S60: =IFERROR(TEXT(HLOOKUP(VLOOKUP($Q60,INDEXTBL!$C$1:$O$1216,11,FALSE),DATA!$C$2:$CAP$14,8,FALSE),"0.0")&"%","NA") -> 74.4% | T60: =IFERROR(TEXT(HLOOKUP(VLOOKUP($Q60,INDEXTBL!$C$1:$O$1216,11,FALSE),DATA!$C$2:$CAP$14,7,FALSE),"0.0")&"%","NA") -> 65.1% | U60: =IFERROR(TEXT(_xlfn.AGGREGATE(4,7,OFFSET(DATA!$A$1,14,MATCH(VLOOKUP($Q60,INDEXTBL!$C$1:$O$1216,11,FALSE),DATA!$A$2:$CAP$2,0)-1,47,1)),"0.0")&"%" &" （"& V60 & "）","NA") -> 86.1% （秋田県） | V60: =INDEX(DATA!$C$15:$C$61,MATCH(_xlfn.AGGREGATE(4,7,OFFSET(DATA!$A$1,14,MATCH(VLOOKUP($Q60,INDEXTBL!$C$1:$O$1216,11,FALSE),DATA!$A$2:$CAP$2,0)-1,47,1)),OFFSET(DATA!$A$1,14,MATCH(VLOOKUP($Q60,INDEXTBL!$C$1:$O$1216,11,FALSE),DATA!$A$2:$CAP$2,0)-1,47,1),0)) -> 秋田県
E61: 共D-0502 | H61: =VLOOKUP(E61,INDEXTBL!$A$1:$O$1216,2,FALSE) -> 事業主として、地元のハローワーク等と協力しての就労相談を行う | I61: 沖縄県 | J61: 全国 | K61: 最良値 （都道府県） | Q61: 共B-050102 | R61: =VLOOKUP(Q61,INDEXTBL!$C$1:$O$1216,3,FALSE) -> （患者体験調査）治療と仕事を両立するために社内制度を利用した人の割合（％） | S61: =IFERROR(TEXT(HLOOKUP(VLOOKUP($Q61,INDEXTBL!$C$1:$O$1216,11,FALSE),DATA!$C$2:$CAP$14,8,FALSE),"0.0")&"%","NA") -> 26.1% | T61: =IFERROR(TEXT(HLOOKUP(VLOOKUP($Q61,INDEXTBL!$C$1:$O$1216,11,FALSE),DATA!$C$2:$CAP$14,7,FALSE),"0.0")&"%","NA") -> 35.6% | U61: =IFERROR(TEXT(_xlfn.AGGREGATE(4,7,OFFSET(DATA!$A$1,14,MATCH(VLOOKUP($Q61,INDEXTBL!$C$1:$O$1216,11,FALSE),DATA!$A$2:$CAP$2,0)-1,47,1)),"0.0")&"%" &" （"& V61 & "）","NA") -> 51.9% （島根県） | V61: =INDEX(DATA!$C$15:$C$61,MATCH(_xlfn.AGGREGATE(4,7,OFFSET(DATA!$A$1,14,MATCH(VLOOKUP($Q61,INDEXTBL!$C$1:$O$1216,11,FALSE),DATA!$A$2:$CAP$2,0)-1,47,1)),OFFSET(DATA!$A$1,14,MATCH(VLOOKUP($Q61,INDEXTBL!$C$1:$O$1216,11,FALSE),DATA!$A$2:$CAP$2,0)-1,47,1),0)) -> 島根県
G62: 共D-050201 | H62: =VLOOKUP(G62,INDEXTBL!$C$1:$O$1216,3,FALSE) -> 長期療養者就職支援事業を活用した就職者数 | I62: =IFERROR(HLOOKUP(VLOOKUP($G62,INDEXTBL!$C$1:$O$1216,$C$3,FALSE),DATA!$C$2:$ASR$14,8,FALSE),"NA") -> NA | J62: =IFERROR(HLOOKUP(VLOOKUP($G62,INDEXTBL!$C$1:$O$1216,$C$3,FALSE),DATA!$C$2:$ASR$14,7,FALSE),"NA") -> NA | K62: =IFERROR(HLOOKUP(VLOOKUP($G62,INDEXTBL!$C$1:$O$1216,$C$3,FALSE),DATA!$C$2:$ASR$14,10,FALSE),"NA") -> NA
E63: 共D-0503 | H63: =VLOOKUP(E63,INDEXTBL!$A$1:$O$1216,2,FALSE) -> 事業主として、地元の産業保健総合支援センター等と協力しての就労相談を行う | I63: 沖縄県 | J63: 全国 | K63: 最良値 （都道府県）
G64: 共D-050301 | H64: =VLOOKUP(G64,INDEXTBL!$C$1:$O$1216,3,FALSE) -> 産業保健総合支援センターで扱った件数 | I64: =IFERROR(HLOOKUP(VLOOKUP($G64,INDEXTBL!$C$1:$O$1216,$C$3,FALSE),DATA!$C$2:$ASR$14,8,FALSE),"NA") -> NA | J64: =IFERROR(HLOOKUP(VLOOKUP($G64,INDEXTBL!$C$1:$O$1216,$C$3,FALSE),DATA!$C$2:$ASR$14,7,FALSE),"NA") -> NA | K64: =IFERROR(HLOOKUP(VLOOKUP($G64,INDEXTBL!$C$1:$O$1216,$C$3,FALSE),DATA!$C$2:$ASR$14,10,FALSE),"NA") -> NA
E66: ⑥アピアランスケア
E67: 共D-0601 | H67: =VLOOKUP(E67,INDEXTBL!$A$1:$O$1216,2,FALSE) -> 担当医は、治療前からがん治療に伴う副作用についての説明を発現時期も含めて十分に説明を行い、アピアランスの変化が生じた場合は早期から積極的にがん相談支援センターと協力し対応を行う | I67: 沖縄県 | J67: 全国 | K67: 最良値 （都道府県） | O67: 共B-0601 | R67: =VLOOKUP(O67,INDEXTBL!$A$1:$O$1216,2,FALSE) -> 医学的・整容的・心理社会的支援を用いて、外見の変化を補完し、外見の変化に起因するがん患者の苦痛を軽減するケアを受けることができている | S67: 沖縄県 | T67: 全国 | U67: 最良値 （都道府県）
G68: 共D-060101 | H68: =VLOOKUP(G68,INDEXTBL!$C$1:$O$1216,3,FALSE) -> がん相談支援センターにおけるアピアランスに関する相談件数 | I68: =IFERROR(HLOOKUP(VLOOKUP($G68,INDEXTBL!$C$1:$O$1216,$C$3,FALSE),DATA!$C$2:$ASR$14,8,FALSE),"NA") -> NA | J68: =IFERROR(HLOOKUP(VLOOKUP($G68,INDEXTBL!$C$1:$O$1216,$C$3,FALSE),DATA!$C$2:$ASR$14,7,FALSE),"NA") -> NA | K68: =IFERROR(HLOOKUP(VLOOKUP($G68,INDEXTBL!$C$1:$O$1216,$C$3,FALSE),DATA!$C$2:$ASR$14,10,FALSE),"NA") -> NA | Q68: 共B-060101 | R68: =VLOOKUP(Q68,INDEXTBL!$C$1:$O$1216,3,FALSE) -> （患者体験調査）外見の変化に関する悩みを誰かに相談できた人の割合（％） | S68: =IFERROR(TEXT(HLOOKUP(VLOOKUP($Q68,INDEXTBL!$C$1:$O$1216,11,FALSE),DATA!$C$2:$CAP$14,8,FALSE),"0.0")&"%","NA") -> 31.6% | T68: =IFERROR(TEXT(HLOOKUP(VLOOKUP($Q68,INDEXTBL!$C$1:$O$1216,11,FALSE),DATA!$C$2:$CAP$14,7,FALSE),"0.0")&"%","NA") -> 28.5% | U68: =IFERROR(TEXT(_xlfn.AGGREGATE(4,7,OFFSET(DATA!$A$1,14,MATCH(VLOOKUP($Q68,INDEXTBL!$C$1:$O$1216,11,FALSE),DATA!$A$2:$CAP$2,0)-1,47,1)),"0.0")&"%" &" （"& V68 & "）","NA") -> 42.0% （徳島県） | V68: =INDEX(DATA!$C$15:$C$61,MATCH(_xlfn.AGGREGATE(4,7,OFFSET(DATA!$A$1,14,MATCH(VLOOKUP($Q68,INDEXTBL!$C$1:$O$1216,11,FALSE),DATA!$A$2:$CAP$2,0)-1,47,1)),OFFSET(DATA!$A$1,14,MATCH(VLOOKUP($Q68,INDEXTBL!$C$1:$O$1216,11,FALSE),DATA!$A$2:$CAP$2,0)-1,47,1),0)) -> 徳島県
E69: 共D-0602 | H69: =VLOOKUP(E69,INDEXTBL!$A$1:$O$1216,2,FALSE) -> 「施設」は、外来化学療法室にアピアランスケアの研修を受けた職員を配置して、早期から積極的にがん相談支援センターと協力し対応を行う | I69: 沖縄県 | J69: 全国 | K69: 最良値 （都道府県） | Q69: 共B-060102 | R69: =VLOOKUP(Q69,INDEXTBL!$C$1:$O$1216,3,FALSE) -> （医療者調査）アピアランスケアについて、治療開始前に、十分な情報提供を行った患者の割合が75%以上であると回答した人の割合（％） | S69: =IFERROR(TEXT(HLOOKUP(VLOOKUP($Q69,INDEXTBL!$C$1:$O$1216,13,FALSE),DATA!$C$2:$CAP$14,8,FALSE)*100,"0.0")&"%","NA") -> 37.9% | T69: =IFERROR(TEXT(HLOOKUP(VLOOKUP($Q69,INDEXTBL!$C$1:$O$1216,11,FALSE),DATA!$C$2:$CAP$14,7,FALSE)*100,"0.0")&"%","NA") -> NA | U69: =IFERROR(TEXT(_xlfn.AGGREGATE(4,7,OFFSET(DATA!$A$1,14,MATCH(VLOOKUP($Q69,INDEXTBL!$C$1:$O$1216,11,FALSE),DATA!$A$2:$CAP$2,0)-1,47,1)),"0.0")&"%" &" （"& V69 & "）","NA") -> NA | V69: =INDEX(DATA!$C$15:$C$61,MATCH(_xlfn.AGGREGATE(4,7,OFFSET(DATA!$A$1,14,MATCH(VLOOKUP($Q69,INDEXTBL!$C$1:$O$1216,11,FALSE),DATA!$A$2:$CAP$2,0)-1,47,1)),OFFSET(DATA!$A$1,14,MATCH(VLOOKUP($Q69,INDEXTBL!$C$1:$O$1216,11,FALSE),DATA!$A$2:$CAP$2,0)-1,47,1),0)) -> 
G70: 共D-060201 | H70: =VLOOKUP(G70,INDEXTBL!$C$1:$O$1216,3,FALSE) -> アピアランス支援研修修了者が配置されている外来化学療法室の割合（％） | I70: =IFERROR(HLOOKUP(VLOOKUP($G70,INDEXTBL!$C$1:$O$1216,$C$3,FALSE),DATA!$C$2:$ASR$14,8,FALSE),"NA") -> NA | J70: =IFERROR(HLOOKUP(VLOOKUP($G70,INDEXTBL!$C$1:$O$1216,$C$3,FALSE),DATA!$C$2:$ASR$14,7,FALSE),"NA") -> NA | K70: =IFERROR(HLOOKUP(VLOOKUP($G70,INDEXTBL!$C$1:$O$1216,$C$3,FALSE),DATA!$C$2:$ASR$14,10,FALSE),"NA") -> NA
E71: 共D-0603 | H71: =VLOOKUP(E71,INDEXTBL!$A$1:$O$1216,2,FALSE) -> 県は、財政的支援を講じ、県拠点病院にアピアランスケアセンターを設置し、患者向けの講習会の開催やケア帽子（またはウィッグ）に対する経済的援助を行う | I71: 沖縄県 | J71: 全国 | K71: 最良値 （都道府県）
G72: 共D-060301 | H72: =VLOOKUP(G72,INDEXTBL!$C$1:$O$1216,3,FALSE) -> 患者向け講習会の開催回数 | I72: =IFERROR(HLOOKUP(VLOOKUP($G72,INDEXTBL!$C$1:$O$1216,$C$3,FALSE),DATA!$C$2:$ASR$14,8,FALSE),"NA") -> NA | J72: =IFERROR(HLOOKUP(VLOOKUP($G72,INDEXTBL!$C$1:$O$1216,$C$3,FALSE),DATA!$C$2:$ASR$14,7,FALSE),"NA") -> NA | K72: =IFERROR(HLOOKUP(VLOOKUP($G72,INDEXTBL!$C$1:$O$1216,$C$3,FALSE),DATA!$C$2:$ASR$14,10,FALSE),"NA") -> NA
E74: ⑦自殺対策
E75: 共D-0701 | H75: =VLOOKUP(E75,INDEXTBL!$A$1:$O$1216,2,FALSE) -> 外来と入院患者向けの自殺防止マニュアルをそれぞれ整備し、研修を行い、がん患者の診断後の自殺対策ができている | I75: 沖縄県 | J75: 全国 | K75: 最良値 （都道府県） | O75: 共B-0701 | R75: =VLOOKUP(O75,INDEXTBL!$A$1:$O$1216,2,FALSE) -> がん患者の自殺を減らすことができている | S75: 沖縄県 | T75: 全国 | U75: 最良値 （都道府県）
